Workbook

Sheet LDC Info
Z3: 1 | AA3: Alectra Utilities Corporation
Z4: 2 | AA4: Alectra Utilities Corporation - Brampton service territory
Z5: 3 | AA5: Alectra Utilities Corporation - Horizon Utilities service territory
Z6: 4 | AA6: Alectra Utilities Corporation - Mississauga service territory
Z7: 5 | AA7: Alectra Utilities Corporation - PowerStream service territory
Z8: 6 | AA8: Algoma Power Inc.
Z9: 7 | AA9: Atikokan Hydro Inc.
Z10: 8 | AA10: Attawapiskat Power Corporation
Z11: 9 | AA11: Bluewater Power Distribution Corporation
Z12: 10 | AA12: Brantford Power Inc.
Z13: 11 | AA13: Burlington Hydro Inc.
D14: Utility Name | E14: PUC Distribution Inc. | Z14: 12 | AA14: Canadian Niagara Power Inc. (Eastern Ontario Power/Fort Erie/Port Colborne)
Z15: 13 | AA15: Centre Wellington Hydro Ltd.
D16: Assigned EB Number | E16: EB-2017-0071 | Z16: 14 | AA16: Chapleau Public Utilities Corporation
Z17: 15 | AA17: COLLUS PowerStream Corp.
D18: Name of Contact and Title | E18: Andrew Belsito, Rates and Regulatory Affairs Officer | Z18: 16 | AA18: Cooperative Hydro Embrun Inc.
Z19: 17 | AA19: E.L.K. Energy Inc.
D20: Phone Number | E20: 705-759-3009 | Z20: 18 | AA20: Energy + Inc.
Z21: 19 | AA21: Enersource Hydro Mississauga Inc.
D22: Email Address | E22: andrew.belsito@ssmpuc.com | Z22: 20 | AA22: Entegrus Powerlines Inc.
Z23: 21 | AA23: ENWIN Utilities Ltd.
D24: Test Year | E24: 2018 | Z24: 22 | AA24: Erie Thames Powerlines Corporation
Z25: 23 | AA25: Espanola Regional Hydro Distribution Corporation
D26: Bridge Year | E26: =IF(ISBLANK(E24), "", E24-1) -> 2017 | Z26: 24 | AA26: Essex Powerlines Corporation
Z27: 25 | AA27: Festival Hydro Inc.
D28: Last Rebasing Year | E28: 2013 | Z28: 26 | AA28: Fort Albany Power Corporation
Z29: 27 | AA29: Fort Frances Power Corporation
A30: Identify the accounting standard used for the test year | Z30: 28 | AA30: Greater Sudbury Hydro Inc.
E31: MIFRS | Z31: 29 | AA31: Grimsby Power Inc.
Z32: 30 | AA32: Guelph Hydro Electric Systems Inc.
A33: Did you update your depreciation and capitalization policies and reflect the changes in policies in a prior rebasing application? | Z33: 31 | AA33: Halton Hills Hydro Inc.
E34: Yes | Z34: 32 | AA34: Hearst Power Distribution Company Limited
Z35: 33 | AA35: Hydro 2000 Inc.
A36: When did you update your actual depreciation and capitalization policies? | Z36: 34 | AA36: Hydro Hawkesbury Inc.
E37: 2001-01-01 | F37: 2013 | Z37: 35 | AA37: Hydro One Networks Inc.
Z38: 36 | AA38: Hydro One Networks Inc. - Norfolk, Haldimand, Woodstock
A39: Identify the year the applicant adopted IFRS for financial reporting purposes | Z39: 37 | AA39: Hydro One Remote Communities Inc.
E40: 2015 | Z40: 38 | AA40: Hydro Ottawa Limited
Z41: 39 | AA41: Innpower Corporation
Z42: 40 | AA42: Kashechewan Power Corporation
A43: Are you applying for cost recovery for the test and/or future year(s) for Green Energy initiatives? | Z43: 41 | AA43: Kenora Hydro Electric Corporation Ltd.
E44: No | Z44: 42 | AA44: Kingston Hydro Corporation
Z45: 43 | AA45: Kitchener-Wilmot Hydro Inc.
A46: ="Is " & E14 & " an embedded distributor?" -> Is PUC Distribution Inc. an embedded distributor? | E46: No | Z46: 44 | AA46: Lakefront Utilities Inc.
Z47: 45 | AA47: Lakeland Power Distribution Ltd.
Z48: 46 | AA48: London Hydro Inc.
B49: Notes | Z49: 47 | AA49: Midland Power Utility Corporation
Z50: 48 | AA50: Milton Hydro Distribution Inc.
C51: Pale green cells represent input cells. | Z51: 49 | AA51: Newmarket-Tay Power Distribution Ltd.
Z52: 50 | AA52: Niagara Peninsula Energy Inc.
C53: Pale blue cells represent drop-down lists. The applicant should select the appropriate item from the drop-down list. | Z53: 51 | AA53: Niagara-on-the-Lake Hydro Inc.
Z54: 52 | AA54: North Bay Hydro Distribution Limited
C55: White cells contain fixed values, automatically generated values or formulae. | N55: =IF(LEN($G55)>1, (SUMPRODUCT(--($C$78:$C$1000=$C55),--($A$78:$A$1000=$D55), --($B$78:$B$1000=$B55&"_TOTAL"), $L$78:$L$1000)), "") ->  | O55: =IF(LEN($G55)>1, (SUMPRODUCT(--($C$78:$C$1000=$C55),--($A$78:$A$1000=$D55), --($B$78:$B$1000=$B55&"_TOTAL"), $M$78:$M$1000)), "") ->  | Z55: 53 | AA55: Northern Ontario Wires Inc.
N56: =IF(LEN($G56)>1, (SUMPRODUCT(--($C$78:$C$1000=$C56),--($A$78:$A$1000=$D56), --($B$78:$B$1000=$B56&"_TOTAL"), $L$78:$L$1000)), "") ->  | O56: =IF(LEN($G56)>1, (SUMPRODUCT(--($C$78:$C$1000=$C56),--($A$78:$A$1000=$D56), --($B$78:$B$1000=$B56&"_TOTAL"), $M$78:$M$1000)), "") ->  | Z56: 54 | AA56: Oakville Hydro Electricity Distribution Inc.
Z57: 55 | AA57: Orangeville Hydro Limited
Z58: 56 | AA58: Orillia Power Distribution Corporation
Z59: 57 | AA59: Oshawa PUC Networks Inc.
Z60: 58 | AA60: Ottawa River Power Corporation
Z61: 59 | AA61: Peterborough Distribution Inc.
Z62: 60 | AA62: PUC Distribution Inc.
Z63: 61 | AA63: Renfrew Hydro Inc.
Z64: 62 | AA64: Rideau St. Lawrence Distribution Inc.
Z65: 63 | AA65: Sioux Lookout Hydro Inc.
Z66: 64 | AA66: St. Thomas Energy Inc.
Z67: 65 | AA67: Thunder Bay Hydro Electricity Distribution Inc.
Z68: 66 | AA68: Tillsonburg Hydro Inc.
Z69: 67 | AA69: Toronto Hydro-Electric System Limited
Z70: 68 | AA70: Veridian Connections Inc.
Z71: 69 | AA71: Wasaga Distribution Inc.
Z72: 70 | AA72: Waterloo North Hydro Inc.
Z73: 71 | AA73: Welland Hydro-Electric System Corp.
Z74: 72 | AA74: Wellington North Power Inc.
Z75: 73 | AA75: West Coast Huron Energy Inc.
Z76: 74 | AA76: Westario Power Inc.
Z77: 75 | AA77: Whitby Hydro Electric Corporation

Sheet Index
A15: 1 | B15: LDC Information Sheet | E15: 20 | F15: App.2-G: Service Reliability Indicators
A16: 2 | B16: Index | E16: 21 | F16: App.2-H: Other Operating Revenue
A17: 3 | B17: Cost of Service Application Flowchart | E17: 22 | F17: App.2-I: Load Forecast CDM Adjustment Workform
A18: 4 | B18: List of Key References | E18: 23 | F18: App.2-IA: Load Forecast Data Instructions
A19: 5 | B19: App.2-A: List of Requested Approvals | E19: 24 | F19: App.2-IB: Actual and Forecast Load and Customer Data
A20: 6 | B20: App.2-AA: Capital Projects Table | E20: 25 | F20: App.2-JA: OM&A Summary Analysis
A21: 7 | B21: App.2-AB: Capital Expenditures | E21: 26 | F21: App.2-JB: Recoverable OM&A Cost Driver Table
A22: 8 | B22: App. 2-AC: Customer Engagement Worksheet | E22: 27 | F22: App.2-JC: OM&A Programs Table
A23: 9 | B23: App.2-B: General Accounting Instructions | E23: 28 | F23: App.2-K: Employee Costs
A24: 10 | B24: App.2-BA: Fixed Asset Continuity Schedule | E24: 29 | F24: App.2-L: Recoverable OM&A Cost per Customer and per FTE
A25: 11 | B25: Appendix 2-BB: Service Life Comparison | E25: 30 | F25: App.2-M: Regulatory Costs Schedule
A26: 12 | B26: App.2-C_DepExp: Depreciation and Amortization Expense | E26: 31 | F26: App.2-N: Shared Services and Corporate Cost Allocation
A27: 13 | B27: App.2-D: Overhead Expenses | E27: 32 | F27: App.2-OA: Capital Structure and Cost of Capital
A28: 14 | B28: App.2-EA: Account 1575 PP&E Deferral Account (2015 IFRS Adopters) | E28: 33 | F28: App.2-OB: Debt Instruments
A29: 15 | B29: App.2-EB: Account 1576 - Accounting Changes Under CGAAP (2012 Changes) | E29: 34 | F29: App.2-Q: Cost of Serving Embedded Distributor(s)
A30: 16 | B30: App.2-EC: Account 1576 - Accounting Changes Under CGAAP (2013 Changes) | E30: 35 | F30: App.2-R: Loss Factors
A31: 17 | B31: App.2-FA: Renewable Generation Connection Investment Summary | E31: 36 | F31: App.2-S: Stranded Meter Treatment
A32: 18 | B32: App.2-FB: Calculation of Renewable Generation Connection Direct Benefits/Provincial Amount: Renewable Enabling Improvement Investments | E32: 37 | F32: App.2-Y: Transition to MIFRS Summary Impact
A33: 19 | B33: App.2-FC: Calculation of Renewable Generation Connection Direct Benefits/Provincial Amount: Renewable Expansion Investments | E33: 38 | F33: App.2-YA: One-Time Incremental IFRS Transition Costs
A42: Note: | B42: Appendices for the Tariff of Rates and Charges at Current and Proposed Rates, and for the Bill Impacts are now in a separate spreadsheet model. These appendices were formerly 2-Z and 2-W.

Sheet COS Flowchart
B4: Cost of Service Rate Application Schematic
B6: The Cost of Service Rate Application Schematic is a flowchart that is included as a guide for the components of an application. The schematic demonstrates how demand and costs interrelate to derive the revenue requirement and how the revenue requirement is allocated between classes and through fixed/variable splits to derive rates that will be compensatory for the annual revenue requirement, based on the the forecasted demand. There is no form to be filled out; therefore, this Schedule is not required to be filed.

Sheet List of Key References
B3: List of Key References
A5: A list of key references for understanding the Filing Requirements has been embedded in the document below. To access the list of references and associated hyperlinks double-click the icon below.

Sheet App.2-A_Requested_Approvals
G1: File Number: | H1: =EBNUMBER -> EB-2017-0071
G2: Exhibit: | H2: 1
G3: Tab:
G4: Schedule:
G5: Page: | H5: 23-24
G7: Date: | H7: 2018-03-29
B9: Appendix 2-A
B10: List of Requested Approvals
B12: The distributor must fill out the following sheet with the complete list of specific approvals requested and relevant section(s) of the legislation must be provided. All approvals, including accounting orders (deferral and variance accounts) new rate classes, revised specific service charges or retail service charges which the applicant is seeking, must be separately identified, as well being clearly documented in the appropriate sections of the application.
B14: Additional requests may be added by copying and pasting blank input rows, as needed.
B16: If additional requests arise, or requested approvals are removed, during the processing of the application, the distributor should update this list.
B18: =CONCATENATE('LDC Info'!E14," is seeking the following approvals in this application:") -> PUC Distribution Inc. is seeking the following approvals in this application:
B20: 1 | F20: Approval to charge rates effective May 1, 2018 to recover a revenue requirements of $22,081,244 which includes a revenue deficiency of $3,679,687 as set out in Exhibit 6.
B22: 2 | F22: Approval of the proposed loss factor of 1.0481 as set out in Exhibit 8.
B24: 3 | F24: Approval to charge a Retail Transmission Netowrk Service rate as proposed and described in Exhibit 8.
B26: 4 | F26: Approval to continue to charge Wholesale Market Service Charge.
B28: 5 | F28: Approval to continue the Specific Service Charges and Transformer Allowance.
B30: 6 | F30: Approval to dispose of Account 1508, Other Regulatory Assets, sub-account Productivity Initiatives Variance Account.
B32: 7 | F32: Approval of the updated province-wide fixed monthly charge of $5.40 for MicroFIT Generator Service Classification.
B34: 8 | F34: Approval of the rate riders for a one year disposition of the Lost Revenue Adjustment Mechanism Variance Account ("LRAMVA") and Lost Revenue Adjustment Mechanism ("LRAM") for lost revenue for the 2011-2014 program years, with persistence from January 1, 2011 to December 31, 2014. For additional information, please refer to Exhibit 4.
B36: 9 | F36: Approval of the DSP as outlined in Exhibit 2, Attachment XX.
B38: 10 | F38: Approval of the rate riders for a one year disposition of the Group 1 and Group 2 and Other Deferral and Variance Accounts as detailed in Exhibit 9.

Sheet App.2-AA_Capital Projects
I1: File Number: | J1: =EBNUMBER -> EB-2017-0071
I2: Exhibit: | J2: 2
I3: Tab:
I4: Schedule:
I5: Page: | J5: 51
I7: Date: | J7: 2018-03-29
A9: Appendix 2-AA
A10: Capital Projects Table
A13: Projects | B13: 2013 Board Approved | C13: =D13-1 -> 2013 | D13: =E13-1 -> 2014 | E13: =F13-1 -> 2015 | F13: =BridgeYear - 1 -> 2016 | G13: =BridgeYear & " Bridge Year" -> 2017 Bridge Year | H13: 2017 | I13: =TestYear & " Test Year" -> 2018 Test Year
A14: Reporting Basis | B14: CGAAP | C14: CGAAP | D14: MIFRS | E14: MIFRS | F14: MIFRS | G14: MIFRS | H14: MIFRS | I14: MIFRS
A15: New Services & Subdivisions
A16: Land Rights (Formally known as Account 1906) | D16: 3411 | F16: 1736.43 | G16: 1056.54137 | H16: 5268 | I16: 1138.278146
A17: Buildings
A18: Transformer Station Equipment >50 kV | C18: 10633 | E18: 14422 | G18: 5142.856484 | I18: 5540.721178
A19: Distribution Station Equipment <50 kV | D19: 41 | F19: 467.59 | G19: 104.4233569 | H19: 524 | I19: 112.5018181
A20: Poles, Towers & Fixtures | B20: 799166 | C20: 256877 | D20: 401663 | E20: 184799 | F20: 274915.33 | G20: 229540.6121 | H20: 95521 | I20: 247298.4683
A21: Overhead Conductors & Devices | C21: 64863 | D21: 200363 | E21: 70055 | F21: 101891.19 | G21: 89736.85175 | H21: =93380+316 -> 93696 | I21: 96679.12696
A22: Underground Conduit | C22: 114781 | D22: 177913 | E22: 39290 | F22: 37654.51 | G22: 75874.35349 | H22: 85536 | I22: 81744.18994
A23: Underground Conductors & Devices | C23: 107784 | D23: 171551 | E23: 209801 | F23: 94176.24 | G23: 119734.411 | H23: 142631 | I23: 128997.3751
A24: Line Transformers | C24: 238554 | D24: 367159 | E24: 418565 | F24: 279567.19 | G24: 267636.1071 | H24: 216824 | I24: 288341.1294
A25: Services (Overhead & Underground) | B25: 643595 | C25: 810182 | D25: 527136 | E25: 357901 | F25: 347856.61 | G25: 419375.6181 | H25: 365987 | I25: 451819.6019
A26: Meters | C26: 799 | D26: 76 | E26: 10431 | F26: 1375.99 | G26: 2603.225105 | H26: 15530 | I26: 2804.61734
A27: Sub-Total | B27: =SUM(B16:B26) -> 1442761 | C27: =SUM(C16:C26) -> 1604473 | D27: =SUM(D16:D26) -> 1849313 | E27: 1305264 | F27: 1139641.08 | G27: =SUM(G16:G26) -> 1210805 | H27: 1021517 | I27: 1304476.01
A28: Joint Use
A29: Poles, Towers & Fixtures | C29: 1132204.86 | D29: 1010214.52 | E29: 74737.48 | F29: 35201.44 | G29: 86256.57719 | H29: 105436 | I29: 123905.9714
A30: Overhead Conductors & Devices | C30: 114062.5 | D30: 66940.18 | F30: 28981.75 | G30: 8041.588319 | H30: 37263 | I30: 11551.5923
A31: Line Transformers | C31: 19507.45 | D31: 10385.59 | E31: -4856.38 | F31: 8696.12 | G31: 1291.834493 | I31: 1855.696261
A32: Sub-Total | B32: =SUM(B29:B31) -> 0 | C32: =SUM(C29:C31) -> 1265774.81 | D32: 1087540.29 | E32: 69881.1 | F32: 72879.31 | G32: 95590 | H32: 142699 | I32: 137313.26
A33: Meters
A34: Transformer Station Equipment >50 kV | F34: 529.48 | G34: 219.9361358 | I34: 146.4785771
A35: Line Transformers | F35: 11410.12 | G35: 4739.551451 | H35: 12473 | I35: 3156.565201
A36: Services (Overhead & Underground) | D36: 560.97 | G36: 233.0164956 | I36: 155.1901628
A37: Meters | B37: 319666 | C37: 229273.63 | D37: 139712.27 | E37: 42513.16 | F37: 82277.27 | G37: 205105.4959 | H37: 76378 | I37: 136601.2961
A38: Sub-Total | B38: =SUM(B34:B37) -> 319666 | C38: =SUM(C34:C37) -> 229273.63 | D38: 140273.24 | E38: 42513.16 | F38: 94216.87 | G38: 210298 | H38: 88851 | I38: 140059.53
A39: City Projects
A40: Poles, Towers & Fixtures | D40: 41491.28 | E40: 63780.8 | F40: 15327.86 | G40: 19708.78454 | H40: 62878 | I40: 22649.04325
A41: Overhead Conductors & Devices | D41: 8524.05 | E41: 24949.22 | F41: 11466.03 | G41: 7344.107976 | H41: 90909 | I41: 8439.740096
A42: Underground Conduit | C42: 12345.3 | D42: =73276.29+5423.3 -> 78699.59 | E42: 120025.95 | F42: 86961.7 | G42: 48705.32372 | H42: 9373 | I42: 55971.43653
A43: Underground Conductors & Devices | C43: 213578.63 | D43: =199843.68+148454.33 -> 348298.01 | E43: 379453.93 | F43: 41380.79 | G43: 160597.4801 | H43: 2585 | I43: 184556.2451
A44: Line Transformers | D44: 10421.44 | E44: -1653.76 | F44: -3117.62 | G44: 923.3488441 | I44: 1061.098814
A45: Services (Overhead & Underground) | D45: 10197.98 | F45: 179.73 | G45: 1695.954828 | I45: 1948.966165
A46: Sub-Total | B46: =SUM(B40:B45) -> 0 | C46: =SUM(C40:C45) -> 225923.93 | D46: 497632.35 | E46: 586556.14 | F46: 152198.49 | G46: 238975 | H46: 165745 | I46: 274626.53
A47: Distribution Overhead Renewal
A48: Land Rights (Formally known as Account 1906) | D48: 3387.16 | G48: 449.6878188 | I48: 482.9018719
A49: Distribution Station Equipment <50 kV | D49: 224.39 | F49: =169.52-96854.44 -> -96684.92 | G49: -12806.34081 | I49: -13752.2203
A50: Poles, Towers & Fixtures | C50: 166341.85 | D50: =262671.95+368706.17 -> 631378.12 | E50: =191698.83+452394.16 -> 644092.99 | F50: =242031.24+113582.66 -> 355613.9 | G50: 238630.8778 | H50: 409840 | I50: 256256.2132
A51: Overhead Conductors & Devices | C51: 84447.46 | D51: =114916.15+72240.01 -> 187156.16 | E51: =150593.41+160140.09 -> 310733.5 | F51: =178694.1+31997.28 -> 210691.38 | G51: 105284.4437 | H51: 83344 | I51: 113060.7787
A52: Underground Conduit | C52: 48060.99 | D52: 515.37 | F52: 849.52 | G52: 6561.903238 | I52: 7046.567027
A53: Underground Conductors & Devices | D53: =2014.56+16288.01 -> 18302.57 | E53: =25048.12+7212.59 -> 32260.71 | F53: 15357.38 | G53: 8751.791416 | I53: 9398.200885
A54: Line Transformers | C54: 30758 | D54: =115771.35+7128.6 -> 122899.95 | E54: =11710.16+28433.95 -> 40144.11 | F54: 128906.28 | G54: 42843.56497 | H54: 60225 | I54: 46008.00123
A55: Services (Overhead & Underground) | F55: 1465.07 | G55: 194.5063513 | I55: 208.8726383
A56: Meters | C56: 13967.48 | G56: 1854.35752 | I56: 1991.320823
A57: System Supervisor Equipment | C57: 1154 | G57: 153.2079214 | I57: 164.5238962
A58: Sub-Total | B58: =SUM(B48:B57) -> 0 | C58: =SUM(C48:C57) -> 344729.78 | D58: 963863.72 | E58: 1027231.31 | F58: 616198.61 | G58: 391918 | H58: 553409 | I58: 420865.16
A59: Distribution Underground Renewal
A60: Land Rights (Formally known as Account 1906) | F60: 4739.65 | G60: 940.0762296
A61: Poles, Towers & Fixtures | C61: 105.81 | D61: 6556.48 | E61: 2026.12 | F61: 21084.45 | G61: 5905.237301 | H61: 1319
A62: Overhead Conductors & Devices | C62: 922.8 | E62: 2060.42 | F62: 225.82 | G62: 636.4905054 | H62: 7594
A63: Underground Conduit | C63: 50541.82 | D63: 17967.66 | E63: 128515.39 | F63: =75055.75+10969.46 -> 86025.21 | G63: 56140.99185
A64: Underground Conductors & Devices | B64: 159833 | C64: 14007.64 | D64: 43641.17 | E64: 145481.57 | F64: 149431.11 | G64: 69928.09094 | H64: 39074
A65: Line Transformers | D65: 9389.49 | E65: 117080.24 | F65: 114162.51 | G65: 47727.71173 | H65: 607
A66: Services (Overhead & Underground) | C66: 1726.31 | G66: 342.4014423
A67: Sub-Total | B67: =SUM(B60:B66) -> 159833 | C67: =SUM(C60:C66) -> 67304.38 | D67: 77554.8 | E67: 395163.74 | F67: 375668.75 | G67: =SUM(G60:G66) -> 181621 | H67: =SUM(H60:H66) -> 48594 | I67: 0
A68: Forced Overhead Renewal
A69: Poles, Towers & Fixtures | C69: =10821.51+163931.06 -> 174752.57 | D69: 145134.5 | E69: 107905.92 | F69: 155817.69 | G69: 177115.7775 | H69: 265935 | I69: 190817.6473
A70: Overhead Conductors & Devices | C70: =23250.86+47575.4 -> 70826.26 | D70: 28380.1 | E70: 30341.28 | F70: 42914.31 | G70: 52339.22788 | H70: 55720 | I70: 56388.24764
A71: Underground Conduit | E71: 46.4 | F71: 2390.34 | G71: 739.5085706 | I71: 796.7177603
A72: Underground Conductors & Devices | E72: 1074.62 | F72: 3833.81 | G72: 1489.623864 | I72: 1604.862791
A73: Line Transformers | C73: 40397.5 | D73: 8803.62 | E73: 40493.74 | F73: 72397.25 | G73: 49192.16025 | H73: 99164 | I73: 52997.71943
A74: Services (Overhead & Underground) | C74: 1571.8 | D74: 3662.35 | G74: 1588.474267 | H74: 781 | I74: 1711.360369
A75: Meters | C75: 12886.2 | D75: 1299.87 | G75: 4305.227619 | I75: 4638.284724
A76: Sub-Total | B76: =SUM(B69:B75) -> 0 | C76: =SUM(C69:C75) -> 300434.33 | D76: 187280.44 | E76: 179861.96 | F76: 277353.4 | G76: 286770 | H76: 421600 | I76: 308954.84
A77: Forced Underground Renewal
A78: Overhead Conductors & Devices | F78: 2010.79 | G78: 1299.104208 | I78: 1574.558986
A79: Underground Conductors & Devices | F79: 23637.21 | G79: 15271.21131 | H79: 92560 | I79: 18509.23339
A80: Line Transformers | B80: 958998 | E80: 132840.21 | F80: 236062.46 | G80: 238335.6845 | H80: 306023 | I80: 288871.0476
A81: Sub-Total | B81: =SUM(B78:B80) -> 958998 | C81: =SUM(C78:C80) -> 0 | D81: 0 | E81: 132840.21 | F81: 261710.46 | G81: 254906 | H81: 398583 | I81: 308954.84
A82: Restricted Wire Replacement
A83: Poles, Towers & Fixtures | B83: 532777 | C83: 166907.87 | D83: 23679.46 | E83: 130895.22 | F83: 372009.77 | G83: 274814.047 | H83: 400224 | I83: 418175.3058
A84: Overhead Conductors & Devices | C84: 195223.63 | D84: 59650.08 | E84: 90997.62 | F84: 371775.62 | G84: 284385.9362 | H84: 408070 | I84: 432740.5281
A85: Line Transformers | C85: 15436.45 | D85: 12128.24 | E85: 36008.87 | F85: 133425.77 | G85: 78066.01684 | H85: 81726 | I85: 118790.436
A86: Sub-Total | B86: =SUM(B83:B85) -> 532777 | C86: =SUM(C83:C85) -> 377567.95 | D86: 95457.78 | E86: 257901.71 | F86: 877211.16 | G86: 637266 | H86: 890020 | I86: 969706.27
A87: Transformers
A88: Line Transformers | C88: 88124.6 | F88: 59775 | I88: 56023.81
A89: Sub-Total | B89: =SUM(B88:B88) -> 0 | C89: =SUM(C88:C88) -> 88124.6 | D89: 0 | E89: 0 | F89: 59775 | G89: 0 | H89: 0 | I89: 56023.81
A90: Substation 16
A91: Distribution Station Equipment <50 kV | C91: 19870.51 | F91: 35584.69 | G91: 73445.37157 | H91: 186746 | I91: 121064.9128
A92: Overhead Conductors & Devices | C92: 14420.19 | G92: 19098.23087 | I92: 31480.8899
A93: Line Transformers | C93: 122592.33 | G93: 162362.3976 | I93: 267632.7873
A94: Sub-Total | B94: =SUM(B91:B93) -> 0 | C94: =SUM(C91:C93) -> 156883.03 | D94: 0 | E94: 0 | F94: 35584.69 | G94: 254906 | H94: 186746 | I94: 420178.59
A95: Station Upgrades - Dx
A96: Transformer Station Equipment >50 kV | C96: 49279.14 | G96: 12288.28178 | I96: 7758.86364
A97: Distribution Station Equipment <50 kV | B97: 213111 | C97: =5492.5+17396.68+182297.71+295056.48+347727.88+7100.38 -> 855071.63 | D97: 358361.91 | E97: 433145.66 | F97: =6852.96+2054.6+117420.68+98.42+83104.38+71098.68+31832.79+3437.29 -> 315899.8 | G97: 489365.1746 | H97: 118749 | I97: 308986.8646
A98: Poles, Towers & Fixtures | C98: 347.64 | D98: 563.16 | F98: =175.59+674.39 -> 849.98 | G98: 439.0693669 | I98: 277.2299176
A99: Overhead Conductors & Devices | B99: 530000 | C99: 3134.65 | F99: =479.16+50078.18 -> 50557.34 | G99: 13388.67323 | I99: 8453.654609
A100: Underground Conduit | B100: =988415+319666 -> 1308081 | D100: 7041.64 | G100: 1755.908414 | I100: 1108.686648
A101: Services (Overhead & Underground) | F101: 51.37 | G101: 12.80966014 | I101: 8.088063736
A102: System Supervisor Equipment | D102: 6466.08 | F102: 9707.61 | G102: 4033.082968 | I102: 2546.502542
A103: Sub-Total | B103: =SUM(B96:B102) -> 2051192 | C103: =SUM(C96:C102) -> 907833.06 | D103: 372432.79 | E103: 433145.66 | F103: 377066.1 | G103: 521283 | H103: 118749 | I103: 329139.89
A104: Station Upgrades - Tx
A105: Transformer Station Equipment >50 kV | B105: 213111 | C105: =5534.99+5511.9+11286.85+258870.82+106762.35 -> 387966.91 | D105: 459405.56 | E105: 73235.72 | F105: =975.61+70979.48 -> 71955.09 | H105: =67119+59287 -> 126406 | I105: 105162.78
A106: Distribution Station Equipment <50 kV | C106: 11738.33 | D106: 30373.87 | F106: 21671.99 | I106: 6757.979944
A107: Poles, Towers & Fixtures | C107: 995.04 | I107: 105.4251902
A108: Overhead Conductors & Devices | F108: 202.31 | H108: 8951 | I108: 21.43488727
A109: Sub-Total | B109: =SUM(B105:B108) -> 213111 | C109: =SUM(C105:C108) -> 400700.28 | D109: 489779.43 | E109: 73235.72 | F109: 93829.39 | G109: 0 | H109: 135357 | I109: 112047.62
A110: Voltage Conversion
A111: Distribution Station Equipment <50 kV | B111: =1763492+965395 -> 2728887 | C111: 934.71 | E111: 257568.82 | G111: 86788.09226 | H111: 2998 | I111: 81568.40464
A112: Poles, Towers & Fixtures | C112: 20689.33 | E112: 646132.92 | F112: 371099.47 | G112: 348464.2782 | H112: 282276 | I112: 327506.6257
A113: Overhead Conductors & Devices | C113: 30174.78 | D113: 45055.3 | E113: 336556.72 | F113: 457601.29 | G113: 291882.0249 | H113: 464974 | I113: 274327.3932
A114: Underground Conduit | C114: 526.49 | E114: 51596.85 | F114: 163259.45 | G114: 72311.0491 | H114: =4757+17610 -> 22367 | I114: 67962.05285
A115: Underground Conductors & Devices | C115: 5787.2 | E115: 17822.39 | F115: 5605.7 | G115: 9808.528665 | H115: =11525+19768 -> 31293 | I115: 9218.615299
A116: Line Transformers | C116: 19693.56 | D116: 681.46 | E116: 299308.21 | F116: 149899.7 | G116: 157654.3526 | H116: =130496+134270 -> 264766 | I116: 148172.5625
A117: Services (Overhead & Underground) | C117: 5169.81 | G117: 1735.674353 | H117: 264 | I117: 1631.285863
A118: Sub-Total | B118: =SUM(B111:B117) -> 2728887 | C118: =SUM(C111:C117) -> 82975.88 | D118: 45736.76 | E118: 1608985.91 | F118: 1147465.61 | G118: 968644 | H118: 1068938 | I118: 910386.94
A119: Switch Replacement
A120: Distribution Station Equipment <50 kV
A121: Poles, Towers & Fixtures | D121: 13236.09
A122: Overhead Conductors & Devices | C122: 66736.18 | D122: 105123.67 | E122: 99881.12
A123: Underground Conductors & Devices | B123: 106555 | D123: 18.71
A124: Line Transformers | C124: 46481.72 | D124: 4578.38
A125: Services (Overhead & Underground) | C125: 14590.29
A126: Sub-Total | B126: =SUM(B120:B125) -> 106555 | C126: =SUM(C120:C125) -> 127808.19 | D126: 122956.85 | E126: 99881.12 | F126: 0 | G126: 0 | H126: 0 | I126: 0
A127: Insulator Replacement
A128: Poles, Towers & Fixtures | C128: 291484.14 | D128: 4489.36
A129: Overhead Conductors & Devices | C129: 10490.61 | D129: 242586.42 | E129: 185049.1
A130: Sub-Total | B130: =SUM(B128:B129) -> 0 | C130: =SUM(C128:C129) -> 301974.75 | D130: 247075.78 | E130: 185049.1 | F130: 0 | G130: 0 | H130: 0 | I130: 0
A131: New Building
A132: Buildings | C132: 1861207.34 | D132: 244853.87 | E132: 66531.54 | F132: 82629.7 | H132: 8109
A133: Poles, Towers & Fixtures | C133: 11.29
A134: Sub-Total | B134: =SUM(B132:B133) -> 0 | C134: =SUM(C132:C133) -> 1861218.63 | D134: 244853.87 | E134: 66531.54 | F134: 82629.7 | G134: 0 | H134: 8109 | I134: 0
A135: POD Generation
A136: Poles, Towers & Fixtures | D136: 2725.79
A137: Sub-Total | B137: =SUM(B136:B136) -> 0 | C137: =SUM(C136:C136) -> 0 | D137: 2725.79 | E137: 0 | F137: 0 | G137: 0 | H137: 0 | I137: 0
A138: 34.5 kV Expansion
A139: Distribution Station Equipment <50 kV | D139: 85.87
A140: Transformer Station Equipment >50 kV | H140: 1157
A141: Underground Conductors & Devices | D141: 902.05
A142: Sub-Total | B142: =SUM(B139:B141) -> 0 | C142: =SUM(C139:C141) -> 0 | D142: 987.92 | E142: 0 | F142: 0 | G142: 0 | H142: 1157 | I142: 0
A143: Substation 19
A144: Distribution Station Equipment <50 kV | D144: 163163.66
A145: Sub-Total | B145: =SUM(B144:B144) -> 0 | C145: =SUM(C144:C144) -> 0 | D145: 163163.66 | E145: 0 | F145: 0 | G145: 0 | H145: 0 | I145: 0
A146: Energy Storage Project
A147: Transformer Station Equipment >50 kV | D147: 158517.75 | E147: -12821.56 | F147: 203252.56 | G147: 425000 | H147: 971770
A148: Sub-Total | B148: =SUM(B147:B147) -> 0 | C148: =SUM(C147:C147) -> 0 | D148: 158517.75 | E148: -12821.56 | F148: 203252.56 | G148: 425000 | H148: 971770 | I148: 0
A149: PMH Replacement Program
A150: Distribution Station Equipment <50 kV | D150: 16237.77
A151: Poles, Towers & Fixtures | D151: 836.63
A152: Overhead Conductors & Devices | C152: 11064.49 | D152: 10455.85
A153: Underground Conductors & Devices | C153: 1975.93
A154: Line Transformers | B154: 159833 | D154: 99485.92 | E154: 49302.52 | F154: 87998.64 | H154: 35936
A155: Sub-Total | B155: =SUM(B150:B154) -> 159833 | C155: =SUM(C150:C154) -> 13040.42 | D155: 127016.17 | E155: 49302.52 | F155: 87998.64 | G155: 0 | H155: 35936 | I155: 0
A156: Substation 10
A157: Distribution Station Equipment <50 kV | C157: =2935985.69+6329.4 -> 2942315.09 | D157: 674216.04 | E157: 174343.51
A158: Poles, Towers & Fixtures | C158: 109520.99
A159: Overhead Conductors & Devices | C159: 97288.46 | D159: 5815.08 | E159: 236.58
A160: Underground Conductors & Devices | C160: 57863.23 | D160: 6.34
A161: Line Transformers | C161: 35219.35
A162: System Supervisor Equipment | C162: 32152.65 | D162: 21741.08 | E162: 4349.42
A163: Sub-Total | B163: =SUM(B157:B162) -> 0 | C163: =SUM(C157:C162) -> 3274359.77 | D163: 701778.54 | E163: 178929.51 | F163: 0 | G163: 0 | H163: 0 | I163: 0
A164: SCADA
A165: Transformer Station Equipment >50 kV | E165: 25346.66 | H165: 77560 | I165: 4170.119773
A166: Distribution Station Equipment <50 kV | B166: 266389 | C166: 128475 | D166: 970.39 | H166: 1853 | I166: 21296.80125
A167: Overhead Conductors & Devices | H167: 148
A168: System Supervisor Equipment | C168: 2498.29 | D168: 128386.27 | E168: 201.65 | F168: 33358.92 | H168: 14852 | I168: 27055.07898
A169: Sub-Total | B169: =SUM(B165:B168) -> 266389 | C169: =SUM(C165:C168) -> 130973.29 | D169: 129356.66 | E169: 25548.31 | F169: 33358.92 | G169: 0 | H169: 94413 | I169: 52522
A170: Miscellaneous | C170: 36153 | D170: 1483 | E170: 5693 | F170: 588 | G170: 0 | I170: 63099
A171: Total | B171: =SUMPRODUCT(--($A15:$A170="Sub-Total"), B$15:B$170)+B170 -> 8940002 | C171: =SUMPRODUCT(--($A15:$A170="Sub-Total"), C$15:C$170)+C170 -> 11797526.71 | D171: 7706780.59 | E171: 6710694.16 | F171: 5988626.74 | G171: 5677982 | H171: 6352193 | I171: 5808354.29
A172: Less Renewable Generation Facility Assets and Other Non-Rate-Regulated Utility Assets (input as negative)
A173: Total | B173: =B171+B172 -> 8940002 | C173: =C171+C172 -> 11797526.71 | D173: 7706780.59 | E173: 6710694.16 | F173: 5988626.74 | G173: 5677982 | H173: 6352193 | I173: 5808354.29
A175: Notes:
A177: 1 Please provide a breakdown of the major components of each capital project undertaken in each year. Please ensure that all projects below the materiality threshold are included in the miscellaneous line. Add more projects as required.
A178: 2 The applicant should group projects appropriately and avoid presentations that result in classification of significant components of the capital budget in the miscellaneous category.

Sheet App.2-AB_Capital Expenditures
S1: File Number: | U1: =EBNUMBER -> EB-2017-0071
S2: Exhibit: | U2: 2
S3: Tab:
S4: Schedule:
S5: Page: | U5: Page 70 - Appendix 3
S7: Date: | U7: 2018-03-29
A9: Appendix 2-AB
A10: Table 26 - Capital Expenditure Summary from Chapter 5 Consolidated Distribution System Plan Filing Requirements
A12: First year of Forecast Period: | B12: 2018
A13: CATEGORY | B13: Historical Period (previous plan1 & actual) | T13: Forecast Period (planned)
B14: 2012 | E14: 2013 | H14: 2014 | K14: 2015 | N14: 2016 | Q14: 2017 | T14: 2018 | U14: 2019 | V14: 2020 | W14: 2021 | X14: 2022
B15: Plan | C15: Actual | D15: Var | E15: Plan | F15: Actual | G15: Var | H15: Plan | I15: Actual | J15: Var | K15: Plan | L15: Actual | M15: Var | N15: Plan | O15: Actual2 | P15: Var | Q15: Plan | R15: Actual2 | S15: Var
B16: $ '000 | D16: % | E16: $ '000 | G16: % | H16: $ '000 | J16: % | K16: $ '000 | M16: % | N16: $ '000 | P16: % | Q16: $ '000 | S16: % | T16: $ '000
A17: System Access | B17: =1132235/1000 -> 1132.235 | C17: =7938036/1000 -> 7938.036 | D17: =IF(ISERROR((C17-B17)/B17),"--",(C17-B17)/B17) -> 6.010943841 | E17: =1068766/1000 -> 1068.766 | F17: =2310000/1000 -> 2310 | G17: =IF(ISERROR((F17-E17)/E17),"--",(F17-E17)/E17) -> 1.161371151 | H17: =2957353/1000 -> 2957.353 | I17: =(3577484.2-1045731)/1000 -> 2531.7532 | J17: =IF(ISERROR((I17-H17)/H17),"--",(I17-H17)/H17) -> -0.1439124109 | K17: =1265490/1000 -> 1265.49 | L17: =(2004212.49-454801)/1000 -> 1549.41149 | M17: =IF(ISERROR((L17-K17)/K17),"--",(L17-K17)/K17) -> 0.2243569605 | N17: =1214680/1000 -> 1214.68 | O17: =1211917/1000 -> 1211.917 | P17: =IF(ISERROR((O17-N17)/N17),"--",(O17-N17)/N17) -> -0.002274673165 | Q17: =1271457/1000 -> 1271.457 | R17: =1383575/1000 -> 1383.575 | S17: =IF(ISERROR((R17-Q17)/Q17),"--",(R17-Q17)/Q17) -> 0.08818072495 | T17: =1511028/1000 -> 1511.028 | U17: =1615276/1000 -> 1615.276 | V17: =2086480/1000 -> 2086.48 | W17: =1603804/1000 -> 1603.804 | X17: =1560434/1000 -> 1560.434
A18: System Renewal | B18: =6042853.74/1000 -> 6042.85374 | C18: =(5116293-295233)/1000 -> 4821.06 | D18: =IF(ISERROR((C18-B18)/B18),"--",(C18-B18)/B18) -> -0.2021882032 | E18: =6525051/1000 -> 6525.051 | F18: =6082921/1000 -> 6082.921 | G18: =IF(ISERROR((F18-E18)/E18),"--",(F18-E18)/E18) -> -0.06775885736 | H18: =3813022/1000 -> 3813.022 | I18: =3753602/1000 -> 3753.602 | J18: =IF(ISERROR((I18-H18)/H18),"--",(I18-H18)/H18) -> -0.01558344012 | K18: =4752934/1000 -> 4752.934 | L18: =4639948.17/1000 -> 4639.94817 | M18: =IF(ISERROR((L18-K18)/K18),"--",(L18-K18)/K18) -> -0.02377180706 | N18: =4542992/1000 -> 4542.992 | O18: =4243808/1000 -> 4243.808 | P18: =IF(ISERROR((O18-N18)/N18),"--",(O18-N18)/N18) -> -0.06585615823 | Q18: =3372227/1000 -> 3372.227 | R18: =3823783/1000 -> 3823.783 | S18: =IF(ISERROR((R18-Q18)/Q18),"--",(R18-Q18)/Q18) -> 0.1339043902 | T18: =3761033/1000 -> 3761.033 | U18: =6905898/1000 -> 6905.898 | V18: =3296444/1000 -> 3296.444 | W18: =4532889/1000 -> 4532.889 | X18: =7092642/1000 -> 7092.642
A19: System Service | B19: 0 | C19: 0 | D19: -- | E19: 0 | F19: 0 | G19: -- | H19: 0 | I19: 0 | J19: -- | K19: 0 | L19: 0 | M19: -- | N19: 0 | O19: 0 | P19: -- | Q19: =38236/1000 -> 38.236 | R19: 0 | S19: -1 | T19: 0 | U19: 0 | V19: 0 | W19: 0 | X19: 0
A20: General Plant | B20: =17802500/1000 -> 17802.5 | C20: =(22974140+295233)/1000 -> 23269.373 | D20: 0.3070845668 | E20: =1313518/1000 -> 1313.518 | F20: =2028344/1000 -> 2028.344 | G20: 0.5442072358 | H20: =175445/1000 -> 175.445 | I20: =375693/1000 -> 375.693 | J20: 1.14137194 | K20: =68653/1000 -> 68.653 | L20: =66531.54/1000 -> 66.53154 | M20: -0.03090119878 | N20: 0 | O20: =82629.6958339626/1000 -> 82.62969583 | P20: -- | Q20: 0 | R20: =8109/1000 -> 8.109 | S20: -- | T20: =86294/1000 -> 86.294 | U20: =54629/1000 -> 54.629 | V20: =61932/1000 -> 61.932 | W20: =59853/1000 -> 59.853 | X20: =55100/1000 -> 55.1
A21: TOTAL EXPENDITURE | B21: =SUM(B17:B20) -> 24977.58874 | C21: =SUM(C17:C20) -> 36028.469 | D21: 0.4424318286 | E21: 8907.335 | F21: 10421.265 | G21: 0.169964417 | H21: 6945.82 | I21: 6661.0482 | J21: -0.04099901811 | K21: 6087.077 | L21: 6255.8912 | M21: 0.02773321251 | N21: 5757.672 | O21: 5538.354696 | P21: -0.0380913161 | Q21: =SUM(Q17:Q20) -> 4681.92 | R21: 5215.467 | S21: 0.1139590168 | T21: =SUM(T17:T20) -> 5358.355 | U21: =SUM(U17:U20) -> 8575.803 | V21: =SUM(V17:V20) -> 5444.856 | W21: =SUM(W17:W20) -> 6196.546 | X21: =SUM(X17:X20) -> 8708.176
A22: System O&M | B22: =6259122/1000 -> 6259.122 | C22: =5852889/1000 -> 5852.889 | D22: -0.06490255343 | E22: =6153732/1000 -> 6153.732 | F22: =5992120/1000 -> 5992.12 | G22: -0.02626243717 | H22: =5529970/1000 -> 5529.97 | I22: =5773408/1000 -> 5773.408 | J22: 0.04402157697 | K22: =5819316/1000 -> 5819.316 | L22: =5977598/1000 -> 5977.598 | M22: 0.02719941656 | N22: =6200512/1000 -> 6200.512 | O22: =5977871/1000 -> 5977.871 | P22: -0.0359068735 | Q22: =5856582/1000 -> 5856.582 | R22: =5916615/1000 -> 5916.615 | S22: 0.01025051813 | T22: =6212629/1000 -> 6212.629 | U22: 6306 | V22: 6400 | W22: 6496 | X22: 6594
A25: Net of Contributed Capital
A27: Notes to the Table:
A28: 1. Historical “previous plan” data is not required unless a plan has previously been filed. However, use the last Board-approved, at least on a Total (Capital) Expenditure basis for the last cost of service rebasing year, and the applicant should include their planned budget in each subsequent historical year up to and including the Bridge Year.
A29: 2. Indicate the number of months of 'actual' data included in the last year of the Historical Period (normally a 'bridge' year):
A31: Explanatory Notes on Variances (complete only if applicable)
A32: Notes on shifts in forecast vs. historical budgets by category
A33: The capital expenditure during the historic five years, after removing the extra ordinary expenditure related to construction of the office building and upgrade of the revenue meters with smart meteres in 2012 and 2013, amounts to an average annual capital expenditure of $6,680,745. These were excluded on the basis that they represent a one-time capital investment and are not attributable to the normal five-year asset management process applided in the DSP. This compares to the foreacst average amount of $6,856,747 for the 2018 to 2022. The five year average (2012-2016) capital expenditure, inclusive of the one-time extraordinary capital expenditures, amounted to $12,981,005. Average annual capital for System Access has been forecast at 88% of historical average actual expenditures (2013-2016). Avertage annual capital for System Renewal has been forecast at 109% of historical average actual expenditures (2013-2016) due primarily to the planned construction of two substations in the forecast period. General Plant for the forecast period is generally unchanged from 2015 and 2016 actual expenditures.
A35: Notes on year over year Plan vs. Actual variances for Total Expenditures
A36: Refer to Section 2.3.5.1 of the DSP for a high level summary of the budget versus actual capital variances on an annual basis. The key extraordinary expenditures pertained to the construction of a new office building as well as the upgrade of revenue meters wiht smart meters. The impacts of these one-time projects primarily impacted 2012 and 2013. There was an overall 2.1% increase in actual O&M expenditures from $5.85 million over the 2012-2016 period. The variability of budgeted to actual O&M over the 5 year historical period ranged from -6.5% to 4.4%.
A38: Notes on Plan vs. Actual variance trends for individual expenditure categories
A39: In the System Access category, variance trends are contingent upon variable customer demand. For the years 2013 to 2016 for the System Renewal category, the general trend is that actual expenditures are slightly below budget.

Sheet App.2-AC_Customer Engagement
B1: File Number: | C1: =EBNUMBER -> EB-2017-0071
B2: Exhibit: | C2: 1
B3: Tab:
B4: Schedule:
B5: Page: | C5: Page 41 and Appendix 10
B7: Date: | C7: 2018-03-29
A9: Appendix 2-AC
A10: Customer Engagement Activities Summary
A12: Provide a list of customer engagement activities | B12: Provide a list of customer needs and preferences identified through each engagement activity | C12: Actions taken to respond to identified needs and preferences. If no action was taken, explain why.
A13: COS-SPECIFIC CUSTOMER ENGAGEMENT
A14: Customer Engagement Online Survey (in-house, 2017/18) | B14: In 2018, PUC released a customer engagement survey that would provide customers with a new level of insight and transparency into operations, and infrastructure renewal projects. PUC's goal was to help customers stay informed, voice their opinions, create an open and honest dialogue about the state of the utility, the electrical distribution system, and plans for the future. Here are a list of priorities as per customer preference. 1. Customers believe PUC's first priority should be to keep rates as low as practical while maintaining good quality electrical service = 58% said this was their first choice as PUC's # 1 priority 2. Maintaining reliable electrical service (e.g. prevent/reduce power outages) = 34% said this was their first choice as PUC's # 2 priority 3. Helping customers reduce/manage consumption and by doing so reduce costs = 34% said this was their first choice as PUC's # 3 priority 4. Providing more information during power outages = 41% said this was their first choice as PUC's # 4 priority 5. Community Engagement/Communication = 55% said this was their first choice as PUC's # 5 priority | C14: PUC plans to host an information session about the application process for customers to better understand how the proposed rate increase will affect them, and capital investment projects in the DSP. Low rates/maintain quality electrical service Prolonged re-build of transformer stations Declined rate increase during 2015/16 Improved Reliability stats for SAIDI & SAIFI Maintain reliable electrical service (prevent/reduce power outages): Infrastructure renewal projects such as those in the DSP Voltage conversion projects (4kv to 12kv system) Improvements with vegetation management to reduce outages Focus on neighbourhoods with high equipment failure rates Help customers reduce costs/manage consumption: Conservation (CDM) information sessions, retail events, advertising Community partnership for energy-saving presentations Customer Connect - online portal that details consumption Customer Care phone calls include bill explanation with customers Business case studies (CDM-related projects) Outage Notification: Atlas Notification System (pro-active planned outage notification) Future plans to include text, email alerts Public Notices, website notifications, media releases Community engagement/communication: FTE providing information source for PUC operations, industry changes Customer consultations about infrastructure renewal in neighbourhoods Upgraded website to user-friendly Customer Connect - online account for accessibility Information sessions
A15: SURVEYS
A16: Bi-annual Customer Satisfaction Survey - Residential and Commercial Customers (2015 & 2017) | B16: In 2015 and 2017, customer satisfaction surveys were conducted by the third party organization, UtilityPulse, with both residential and commercial customers. 1. Reliability 2.Better prices / lower rates 3. Customer communication / online access 4. Outage Notification | C16: PUC has made improvements such as, but not limited to, the following areas: 1. Reliability Smart Meter/AMI data utilization for pro-active service delivery Customer Information System (CIS) & MCare (Electronic Service Orders) upgrade to improve services and response times for customers Improvements in vegetation management and infrastructure renewal VPR Partnership for assistance for those in need during emergencies 2. Better prices/lower costs Expanding the tree trimming program to a 4-year cycle to cut costs Declining a rate increase in 2015/2016 based off the local economy and the status of Sault Ste. Marie's major employer Accountability training to ensure employees work efficiently 3. Customer Communication/Online Access Customer Connect online platform to view detailed consumption Improvements in customer service; rebranding as Customer Care Customer Care training for management and staff Website upgrades, social media and local media communications Customer consultations for planned infrastructure renewal Energy conservation promoted via events, advertising, website, social media COS Customer Engagement Survey 4. Outage Notification Upgrades to the phone system to handle more calls during outages Atlas Notification System for planned outages Website and media release information Upgraded phone system to handle more calls Public Notices, hand-delivered to affected areas
A17: Strategic Direction Plan Survey (2016) | B17: In 2016, PUC started developing a new Corporate Strategic Plan to set direction and priorities for the utility over the coming years. 1. High cost of electricity/PUC advocating for customers 2. Aging infrastructure 3. Customer Sensitivity Training 4. Information on lowering bills 5. Moving services (online services made available) 6. Incentives for upgrades (CDM, provincial initiatives) 7. Accountability 8. TOU Elimination | C17: 1. High cost of electricity/PUC advocating for customers PUC advocated for customers during the February 2017 moratorium on winter disconnections Published media releases stating the breakdown of where the charges on the electricity bill go 2. Aging Infrastructure Inclusion of renewal projects in the DSP Neighbourhood consultations with customers Information provided to customers about the distribution system 3. Customer Sensitivity Training Management and employee participation in C.A.R.E. training Re-branded Customer Service to Customer Care 4. Information on lowering bills Information sessions Customer Care trained on new CDM programs/initiatives available CDM promotions on website, social media, retail events, community events, Chamber of Commerce and B2B-related events 5. Moving Services There are future opportunities to provide these services available online, rather than coming into the office to sign contracts 6. Incentives for upgrades (CDM programs/Gov't initiatives) CDM presentations in the community, home shows (interactions) CDM advertising, social media, website Focus Groups to target electric heated-homes 7. Accountability PUC participated in Accountability and Leadership training in 2017 to improve management and employee responsibility. An internal Business Improvement Committee was struck with a mandate to review internal business and process efficiencies. 8. TOU Elimination Time-of-Use is a provincially mandated initiative. PUC continues to promote TOU, and understanding of the electricity bill Customer Care assists customers with consumption analysis and CDM promotes ways to conserve.
A18: Public Awareness of Electrical Safety Survey (2015 & 2016) | B18: Ensuring the utility can provide safe electrical distribution Education and awareness about electrical safety, equipment, infrastructure Ensuring the utilities' operations are safe for workers and public Ontario One Call - Call Before You Dig Awareness | C18: PUC scored the highest out of 36 LDC's with an awareness of 86% Ongoing Elementary School Safety program Caution and Chance Website Safety Section Purchase of Promotional "Dig Safe" for the Ontario One Call program Contribution to the production of electrical safety videos "Give 'Em a Brake" marketing for worker safety Participation in Science Festivals and Innovation Expos
A19: INFORMATION SESSIONS
A20: Sault Ste. Marie Public Library (April 2017) | B20: Lower Rates Better understanding of bill charges How to control energy usage Regulations like the Fair Hydro Act, Disconnections | C20: Face-to-face interactive Information session at the library (advertised) PowerPoint presentation Conservation tips, upcoming/available programs Breaking down the costs in the electricity bill Understanding of disconnections, new industry regulations PUC received positive feedback about the event, stating the information provided was helpful and clarified concerns
B21: Lower Bills Understand bill charges How the electricity industry works Tips for Northern Ontario residents that deal with extreme cold Alternative energy What can they do to conserve? | C21: Presentation at the Innovation Centre (partnership) How much the cost of electricity has risen in the last decade Bill breakdown Flow of electricity/how the industry operates Lighting tips, air sealing, energy efficient products/appliances, insulating, water heating, heating & cooling, windows Alternative energy like solar panels
A23: MEETINGS
A24: Neighbourhood Project Meetings | B24: Reliability Operational Transparency More involvement in decision-making | C24: Engineering met with specific neighbourhoods and spoke with residents that would be affected by capital projects such as rear-lot pole replacements and underground cable replacements. Met with homeowners to discuss project objectives, logistics and impact to the property, if any.
A25: FOCUS GROUPS
A26: HEAR (Home Energy Assessment and Retrofit) | B26: Lower bills in the Winter High costs for electric heating Residential and Commercial customers with electric baseboards | C26: CDM partnership presentation (local electricians/contractors) Pilot program offered residential home assessments Installation of programmable thermostats, low-flow shower heads, pipe wrap and block timers.
A27: Customer First (Group of LDC's) Marketing Communications | B27: Conservation information Understanding for residential and commercial customer base Knowledge of programs | C27: CDM partnership with seven (7) other LDC's Improvements in marketing communications Residential and Commercial customers targeted Save on Energy branding Program availability knowledge with each customer base
A28: COMMUNITY EVENT INTERACTIONS
A29: Retail Product Consultation Coupon Campaigns | B29: Energy efficient products Conservation home upgrades | C29: Partnerships with local hardware and home supply stores CDM product consultations in-store Promote energy efficient products, how it will help kWh usage Coupons to purchase products Conservation tips/tools available
A30: Chamber of Commerce Business Breakfast | B30: Business customers incentives Lower costs Increase energy efficiency | C30: PowerPoint presentation on business incentives Partnered event with Algoma Power CDM provided awareness and program eligibility for businesses to minimize costs. Breakfast event and presentations for small business incentives, such as lighting, retro-fit programs and Save on Energy promotions. CDM would like to include a channel partner event and a business customer event in the future opportunities to meet with business customers
A31: Chamber of Commerce Bridges to a Better Business | B31: Small Business customer incentives Looking to minimize costs | C31: CDM branded Save on Energy promotions and programs available Speaking opportunities with customers
A32: Home/Trade Shows | B32: Rate information Provincial rebates and regulations Face-to-face interactions with customers Ability to ask questions and have conversations about high costs Individual concerns | C32: CDM promoted HEAR program, initiatives Explained Time-of-Use, Smart Meters, Online Services such as Customer Connect), capital projects, and sign-up customers for programs when eligible Customer Care & CDM reps on-site to answer questions personally
A33: Festivals (RotaryFest and Bushplane Days) | B33: Customers that have families may use more energy Safety awareness during an outage - downed power lines Time-of-Use, and what they can do to better manage usage | C33: Explain Time-of-Use and consumption habits Electrical safety for children Provide information on program eligibility
A34: SAFETY
A35: Caution and Chance Electrical Safety Awareness Program | B35: Providing a safe electrical service to the community Ensuring children are safe and aware of any electrical hazards | C35: Since 1995, this educational program has been implemented in elementary schools. Website Caution & Chance information section Social Media safety information posts
A36: Marketing Campaigns "Give Our Workers a Brake" and the "Call Before you Dig" | B36: Providing a safe electrical service Ensuring that safety is our top priority with workers/community | C36: Marketing campaigns to promote safety Providing in-house underground utility location services to the community
A37: CUSTOMER CARE
A38: Customer C.A.R.E. Training | B38: Customers want to be treated fairly Customer-focus and valued Speak with a professional that can resolve their problems Strategic Direction Plan survey results revealed customers wanted employees to have "customer sensitivity" training | C38: Entire organization underwent customer care training that included: How to ensure PUC is customer centered in everything we do Customer Loyalty Review of Customer Satisfaction survey (UtilityPulse-2017), what actual PUC customers have said they want/need Effective communication, active listening Why customers get upset, resolving customer concerns PUC has also re-branded its Customer Service to Customer Care to improve overall experience for each customer. Customer Care department will take the time to go through a person's bill with them. The representatives will connect customers with an Engineer or Planner to assist with questions related to neighbourhood projects. Being a local company, PUC is able to communicate in a more efficient manner as everyone involved in the electrical distribution system works out of the same building.
A39: Internal Training | B39: Consistent messaging from employees Knowledgeable, professional staff Information about electricity rates, industry changes, government rebates, and conservation program initiatives | C39: Monthly staff meetings (include info about OEB backgrounders, winter disconnections, rate changes) CDM and Line Departments provide Customer Care, Billing and Metering departments with presentations review programs available Line department provides Customer Care department with presentations to help with terminology and understanding of the electrical distribution system
A40: Customer Information System (CIS) and Mare (Electronic Service Orders) | B40: Customer wait times for metering services Reliability with services offered Customer satisfaction Overall trust in PUC | C40: PUC introduced the system upgrades to assist with inefficiencies with metering services, wrong meter readings, and customer billing issues. Upgraded from Harris to NorthStar system Real-time electronic communication with Meter department to improve services for customers Shorter wait times, quicker response Improved communication between customer, Customer Care, and the Meter Reading technicians to ensure we can provide reliable services for our customers, especially with Metering.
A41: Customer Connect | B41: Monitoring consumption Customer control, ability to review bills Needed assistance with understanding bill breakdown How to manage usage, Time-of-Use Help with lowering bills | C41: PUC introduced the Customer Connect option Online customer platform for easy access to information Ability to view current and historical data Allows for real-time access so the Customer Care department can analyze customer's bills, review spikes and provide information for better consumption habits based on the individual's usage As of November 2017, 8,596 PUC customers are signed up
A42: Vulnerable Persons' Registry | B42: Disabled customers or customers that experience any type of barrier Emergency services Reliability Ensuring safety is a priority for the community | C42: PUC partnered with the Canadian Red Cross and the SSM Community Geomatics Centre for a service for vulnerable persons. Confidential database, links to PUC's GIS system Alerts Operations and Customer Care whenever an outage may impact a vulnerable person(s). Standard operating procedure includes cooperation with emergency services so PUC contacts first responders. Better communication during emergencies Ability to assist those in need, vulnerable/disabled
A43: COMMUNITY SUPPORT
A44: Community Outreach | B44: Corporate Social Responsibility Donations Event Sponsorships Investments back into the Community | C44: SSM Downtown Association - banner installation & sponsorship SSM Community Tree Lighting - sponsorship SSM Christmas Lighting Awards Program - co-sponsor the event The Lung Association Festival of Trees - sponsor a CDM related tree, filled with energy efficient products SSM Santa Claus Parade - decorate a line truck, volunteer Bon Soo Winter Festival - Sponsorship ARCH Hospice - Employee Association Donation of over $7,500 Christmas Safety Breakfast - Donations to the SSM Food Bank United Way - $301, 222 fundraised/donated from 2008 - 2016 LEAP Program - Since 2012, donated over $130,000 to help low-income customers pay their electricity bills
A45: COMMUNICATIONS
A46: Online Communications | B46: Accessibility to information Knowledge of power outages Industry changes Conservation Program Availability Upcoming events, promotions Online services | C46: Website - Upgraded to user-friendly, online Customer-focused portal "Customer Connect" for monitored consumption data, tree trimming services, "Call Before You Dig", infrastructure renewal projects, conservation tips, and program initiatives for homes and businesses Social Media (Facebook, Twitter) - Communications with different demographic audience and ability to post a variety of topics, more frequently
A47: Public Notices | B47: Accessibility to information Knowledge of power outages Reliability | C47: PUC provides public notices to neighbourhoods in advance of planned projects and service modifications These notices are hand delivered to ensure customers receive them and are aware of any issues that may affect them or their routines
A48: Public Relations / Media Relations | B48: Accessibility to information Power Outage Notification Industry updates, Government rebates Conservation Program Availability Upcoming events, promotions Rate changes | C48: PUC Communications department provides information to local online, print and radio media channels to ensure customers of all demographics receive the same information. Media interviews Press releases
A49: Advertising | B49: Accessibility to information | C49: Public Service Announcements Time-of-Use ads Holiday lighting ads Conservation tips Tree trimming, worker safety
A50: Bill Inserts | B50: Improve rates Increase communication | C50: PUC utilizes bill inserts to communicate regulatory information, new initiatives (such as the Atlas Outage Notification System), Government rebates, CDM programs and eligibility
A51: Paperless Billing (E-Billing) | B51: Reducing environmental impact Online access to bill (current and previous) Convenience | C51: Online resource for customers 24/7 Access with Customer Connect platform (historical & current data) Paperless Billing Campaign is a future initiative to increase enrollment

Sheet App.2-B_Acctg Instructions
A1: General Instructions to MIFRS Appendices
A2: Types of Schedules to File
A4: The purpose of this tab is to provide general instructions. The specific instructions to each appendix are listed in footnotes of each appendix.
A6: The typical applicant is expected to have made capitalization and depreciation policy changes under CGAAP as permitted by the Board on January 1, 2012 or mandated by the Board by January 1, 2013, and adopted IFRS for reporting purposes on January 1, 2015 (transition date January 1, 2014). Some distributors filing for 2018 rates have rebased with these accounting changes reflected in a prior rebasing application. If that is the case, information relating to pre-accounting policy changes is not generally required. The information to be provided by applicants will depend on when the accounting policy changes were made and when they last rebased. In general, applicants should provide the following information in the appendices:
E9: Reflecting Accounting Policy Changes in Current Application | G9: Reflected Accounting Policy Changes in Prior Application3
E10: Accounting Policy Changes in 2012 and Adopted IFRS in 2015 | F10: Accounting Policy Changes in 2013 and Adopted IFRS in 2015 | G10: Adopted IFRS in 2015
A11: Information to be filed in 2018 CoS Application | B11: 2018 | C11: Test | E11: MIFRS | F11: MIFRS | G11: MIFRS
B12: 2017 | C12: Bridge | E12: MIFRS | F12: MIFRS | G12: MIFRS
B13: 2016 | C13: Historical | E13: MIFRS | F13: MIFRS | G13: MIFRS
B14: 2015 | C14: Historical | E14: MIFRS | F14: MIFRS | G14: MIFRS
B15: 2014 | C15: Historical | E15: MIFRS and Revised CGAAP1 | F15: MIFRS and Revised CGAAP1 | G15: MIFRS and Revised CGAAP1
B16: 2013 | C16: Historical | E16: Revised CGAAP | F16: CGAAP and Revised CGAAP2 | G16: N/A
B17: 2012 | C17: Historical | E17: CGAAP and Revised CGAAP2 | F17: N/A | G17: N/A
A19: 1) For the transition year (2014), the applicant may file two appendices, one under Revised CGAAP and one under MIFRS, depending on the materiality of impacts. See the specific instructions under each appendix below for further details.
A20: 2) For applicants that are reflecting accounting policy changes for the first time in a rebasing application, the applicant must file two appendices in the year that the applicant implemented changes to its capitalization and depreciation policies (2012 or 2013), one before and one after the policy changes.
A21: 3) Applicants should provide CGAAP and Revised CGAAP schedules (i.e. as indicated in the first two columns of the above table) to support balances in Account 1576 if the account has yet to be disposed of.
A24: Appendix 2-BA - Fixed Asset Schedule
A26: Applicants are to provide Appendix 2-BA in accordance with the years and corresponding accounting standards noted in the above table to provide a year over year continuity in fixed assets.
A27: For the transition year (2014), the applicant should file two appendices, one under Revised CGAAP and one under MIFRS if the change between Revised CGAAP and MIFRS is material. If the change from the accounting standards is not material, the applicant may choose to only provide one appendix under MIFRS. However, the applicant must also indicate the fixed asset net book value balance under Revised CGAAP, the total dollar value of the change and explain why it is not material.
A31: The applicant must establish the continuity of historic cost for gross assets and accumulated depreciation by asset class by ensuring that the opening balance in the year agrees to the closing balance in the prior year.
A34: Appendix 2-Cx - Depreciation and Amortization
A36: Applicants are to provide Appendix 2-C in accordance with the years and corresponding accounting standards listed in the above table.
A37: Appendix 2-C is to be used under all three of the scenarios presented in the table above. In the appendix, the applicant will need to indicate which scenario applies. The appendix is to be duplicated for each year and accounting standard required under the scenario.
A38: Depreciation accounting policy changes were mandated by the Board by January 1, 2013. In general, no further changes to an applicant's depreciation policy (i.e. assets' service lives) are expected after the Board mandated changes by January 1, 2013. If the applicant has made any changes to its depreciation policy subsequent to the Board mandated changes, for the year of the change, applicants must complete Appendix 2-C before and after the change. Applicants must also explain the nature of the change, the reason for the change, quantify the impact of the change, and quantify the depreciation expense before and after the change.
A40: Appendix 2-E - Account 1575, IFRS-CGAAP Transitional PP&E Amounts (2-EA), Account 1576, Accounting Changes Under CGAAP (2-EB, 2-EC)
A42: 1) For an applicant that has a balance in Account 1576 to dispose:
A43: · | B43: If an applicant changed capitalization and depreciation policies effective January 1, 2012, the applicant must complete Appendix 2-EB
A44: · | B44: If an applicant changed capitalization and depreciation policies effective January 1, 2013, the applicant must complete Appendix 2-EC
A46: 2) For an applicant that has a balance in Account 1575 to dispose:
A47: · | B47: The applicant must complete 2-EA
A48: If the applicant did not make any further PP&E accounting policy changes beyond the capitalization and depreciation policy changes as mandated by the Board by January 1, 2013 (i.e. no further changes made on transition to IFRS), the applicant must indicate this and does not need to complete Appendix 2-EA.
A52: Appendix 2-Y - Summary of Impacts to Revenue Requirement from Transition to MIFRS
A54: An applicant must provide a summary of the dollar impacts of MIFRS to each component of the revenue requirement (e.g. rate base, operating costs, etc.), including the overall impact on the proposed revenue requirement. Accordingly, the applicant must identify financial differences and resulting revenue requirement impacts arising from the adoption of MIFRS as compared to CGAAP. If the applicant is reflecting the changes in capitalization and depreciation policies for the first time in a rebasing application, then a comparison between MIFRS and CGAAP before the change in accounting policies should be completed. If the applicant changed capitalization and depreciation policies and reflected these changes in a prior rebasing application, then a comparison between MIFRS and CGAAP after the change in accounting policies should be completed.

Sheet App.2-BA_Fixed Asset Cont
L1: File Number: | M1: =EBNUMBER -> EB-2017-0071
L2: Exhibit: | M2: 2
L3: Tab:
L4: Schedule:
L5: Page: | M5: Page 68 or Appendix 1
L7: Date: | M7: 2018-03-29
A9: Appendix 2-BA
A10: Fixed Asset Continuity Schedule 1
E12: Accounting Standard | F12: CGAAP
E13: Year | F13: 2012
D15: Cost | J15: Accumulated Depreciation
A16: CCA Class 2 | B16: OEB Account 3 | C16: Description 3 | D16: Opening Balance | E16: Additions 4 | F16: Disposals 6 | G16: Closing Balance | I16: Opening Balance | J16: Additions | K16: Disposals 6 | L16: Closing Balance | M16: Net Book Value
A17: N/A | B17: 1706 | C17: Land Rights | D17: 602307.45 | G17: =D17+E17+F17 -> 602307.45 | L17: =I17+J17+K17 -> 0 | M17: =G17+L17 -> 602307.45
A18: 47 | B18: 1725 | C18: Poles and Fixtures | D18: 2018423.69 | F18: -143123.57 | G18: =D18+E18+F18 -> 1875300.12 | I18: -276243.35 | J18: -71122.41 | K18: 143123.57 | L18: =I18+J18+K18 -> -204242.19 | M18: =G18+L18 -> 1671057.93
A19: 47 | B19: 1730 | C19: Overhead Conductors & Devices | D19: 97606 | F19: -7532 | G19: =D19+E19+F19 -> 90074 | I19: -19044.96 | J19: -7567.74 | K19: 7532 | L19: =I19+J19+K19 -> -19080.7 | M19: =G19+L19 -> 70993.3
A20: 47 | B20: 1735 | C20: Underground Conduit | D20: 1017684.79 | F20: -357.22 | G20: =D20+E20+F20 -> 1017327.57 | I20: -71149.15 | J20: -38779.28 | K20: 357.22 | L20: =I20+J20+K20 -> -109571.21 | M20: =G20+L20 -> 907756.36
A21: 47 | B21: 1740 | C21: Underground Conductors & Devices | D21: 244903 | F21: -84 | G21: 244819 | I21: -13869.1 | J21: -7998.5 | K21: 84 | L21: -21783.6 | M21: 223035.4
A22: 12 | B22: 1611 | C22: Computer Software (Formally known as Account 1925) | G22: =D22+E22+F22 -> 0 | L22: =I22+J22+K22 -> 0 | M22: =G22+L22 -> 0
A23: CEC | B23: 1612 | C23: Land Rights (Formally known as Account 1906) | G23: =D23+E23+F23 -> 0 | L23: =I23+J23+K23 -> 0 | M23: =G23+L23 -> 0
A24: N/A | B24: 1805 | C24: Land | D24: 89159.57 | G24: =D24+E24+F24 -> 89159.57 | L24: =I24+J24+K24 -> 0 | M24: =G24+L24 -> 89159.57
A25: CEC | B25: 1806 | C25: Land Rights | D25: 234274.82 | E25: 8432.6 | F25: -89134 | G25: =D25+E25+F25 -> 153573.42 | L25: =I25+J25+K25 -> 0 | M25: =G25+L25 -> 153573.42
A26: 47 | B26: 1808 | C26: Buildings | D26: 1242325.61 | E26: 22916497.31 | F26: -20404 | G26: =D26+E26+F26 -> 24138418.92 | I26: -674422.15 | J26: -38839.06 | L26: =I26+J26+K26 -> -713261.21 | M26: =G26+L26 -> 23425157.71
A27: 13 | B27: 1810 | C27: Leasehold Improvements | G27: 0 | L27: 0 | M27: 0
A28: 47 | B28: 1815 | C28: Transformer Station Equipment >50 kV | D28: 8312485.32 | E28: 442023.05 | F28: -146448.54 | G28: 8608059.83 | I28: -3295804.78 | J28: -204327.5 | K28: 146448.54 | L28: -3353683.74 | M28: 5254376.09
A29: 47 | B29: 1820 | C29: Distribution Station Equipment <50 kV | D29: 9490317.22 | E29: 1158544.88 | G29: 10648862.1 | I29: -6284040.38 | J29: -144410.9 | L29: -6428451.28 | M29: 4220410.82
A30: 47 | B30: 1825 | C30: Storage Battery Equipment | D30: 19241 | G30: 19241 | I30: -4238.78 | J30: -640.33 | L30: -4879.11 | M30: 14361.89
A31: 47 | B31: 1830 | C31: Poles, Towers & Fixtures | D31: 11395085.91 | E31: 1453463.52 | G31: 12848549.43 | I31: -4206991.68 | J31: -231936.17 | L31: -4438927.85 | M31: 8409621.58
A32: 47 | B32: 1835 | C32: Overhead Conductors & Devices | D32: 11820056.52 | E32: 1368569.65 | G32: 13188626.17 | I32: -5281195.71 | J32: -156301.26 | L32: -5437496.97 | M32: 7751129.2
A33: 47 | B33: 1840 | C33: Underground Conduit | D33: 10185019.73 | E33: 332904.82 | F33: 108931 | G33: 10626855.55 | I33: -8153825.66 | J33: -74364.57 | L33: -8228190.23 | M33: 2398665.32
A34: 47 | B34: 1845 | C34: Underground Conductors & Devices | D34: 19164687.01 | E34: 597638.47 | G34: 19762325.48 | I34: -7896802.64 | J34: -401917.29 | L34: -8298719.93 | M34: 11463605.55
A35: 47 | B35: 1850 | C35: Line Transformers | D35: 15659948.03 | E35: 1124624.28 | G35: 16784572.31 | I35: -7614082.06 | J35: -300327.76 | L35: -7914409.82 | M35: 8870162.49
A36: 47 | B36: 1855 | C36: Services (Overhead & Underground) | D36: 3623556.42 | E36: 449031.61 | G36: 4072588.03 | I36: -263427.22 | J36: -88270.06 | L36: -351697.28 | M36: 3720890.75
A37: 47 | B37: 1860 | C37: Meters | G37: 0 | L37: 0 | M37: 0
A38: 47 | B38: 1860 | C38: Meters (Smart Meters) | D38: 4478778.99 | E38: 6129074.92 | F38: -241081.7 | G38: 10366772.21 | I38: -2933376.44 | J38: -1588344.53 | K38: 241081.7 | L38: -4280639.27 | M38: 6086132.94
A39: N/A | B39: 1905 | C39: Land | G39: 0 | L39: 0 | M39: 0
A40: 47 | B40: 1908 | C40: Buildings & Fixtures | G40: 0 | L40: 0 | M40: 0
A41: 13 | B41: 1910 | C41: Leasehold Improvements | G41: 0 | L41: 0 | M41: 0
A42: 8 | B42: 1915 | C42: Office Furniture & Equipment (10 years) | G42: 0 | L42: 0 | M42: 0
A43: 8 | B43: 1915 | C43: Office Furniture & Equipment (5 years) | G43: 0 | L43: 0 | M43: 0
A44: 10 | B44: 1920 | C44: Computer Equipment - Hardware | D44: 13578.34 | E44: 6760 | G44: 20338.34 | I44: -9315.76 | J44: -7534.67 | L44: -16850.43 | M44: 3487.91
A45: 45 | B45: 1920 | C45: Computer Equip.-Hardware(Post Mar. 22/04) | G45: 0 | L45: 0 | M45: 0
A46: 45.1 | B46: 1920 | C46: Computer Equip.-Hardware(Post Mar. 19/07) | G46: 0 | L46: 0 | M46: 0
A47: 12 | B47: 1925 | C47: Compute rSoftware | D47: 38397 | E47: 521482.63 | F47: -25872.01 | G47: 534007.62 | I47: -38372 | J47: -312436.92 | K47: 25872.01 | L47: -324936.91 | M47: 209070.71
A48: 10 | B48: 1930 | C48: Transportation Equipment | G48: 0 | L48: 0 | M48: 0
A49: 8 | B49: 1935 | C49: Stores Equipment | G49: 0 | L49: 0 | M49: 0
A50: 8 | B50: 1940 | C50: Tools, Shop & Garage Equipment | G50: 0 | L50: 0 | M50: 0
A51: 8 | B51: 1945 | C51: Measurement & Testing Equipment | G51: 0 | L51: 0 | M51: 0
A52: 8 | B52: 1950 | C52: Power Operated Equipment | G52: 0 | L52: 0 | M52: 0
A53: 8 | B53: 1955 | C53: Communications Equipment | G53: 0 | L53: 0 | M53: 0
A54: 8 | B54: 1955 | C54: Communication Equipment (Smart Meters) | G54: 0 | L54: 0 | M54: 0
A55: 8 | B55: 1960 | C55: Miscellaneous Equipment | G55: 0 | L55: 0 | M55: 0
A56: 47 | B56: 1970 | C56: Load Management Controls Customer Premises | D56: 27814 | F56: -27814 | G56: 0 | I56: -12542 | K56: 12542 | L56: 0 | M56: 0
A57: 47 | B57: 1975 | C57: Load Management Controls Utility Premises | G57: 0 | L57: 0 | M57: 0
A58: 47 | B58: 1980 | C58: System Supervisor Equipment | D58: 3887893.04 | E58: 305142.88 | G58: 4193035.92 | I58: -2571456.37 | J58: -196831.06 | L58: -2768287.43 | M58: 1424748.49
A59: 47 | B59: 1985 | C59: Miscellaneous Fixed Assets | G59: 0 | L59: 0 | M59: 0
A60: 47 | B60: 1990 | C60: Other Tangible Property | G60: 0 | L60: 0 | M60: 0
A61: 47 | B61: 1995 | C61: Contributions & Grants | D61: -10987086.37 | E61: -785722.21 | G61: -11772808.58 | I61: 1388648.16 | J61: 282137.15 | L61: 1670785.31 | M61: -10102023.27
A62: 47 | B62: 2440 | C62: Deferred Revenue5
G63: =D63+E63+F63 -> 0 | L63: =I63+J63+K63 -> 0 | M63: =G63+L63 -> 0
C64: Sub-Total | D64: =SUM(D17:D63) -> 92676457.09 | E64: =SUM(E17:E63) -> 36028468.41 | F64: =SUM(F17:F63) -> -592920.04 | G64: =SUM(G17:G63) -> 128112005.5 | I64: =SUM(I17:I63) -> -48231552.03 | J64: =SUM(J17:J63) -> -3589812.86 | K64: =SUM(K17:K63) -> 577041.04 | L64: =SUM(L17:L63) -> -51244323.85 | M64: =SUM(M17:M63) -> 76867681.61
C65: Less Socialized Renewable Energy Generation Investments (input as negative) | G65: =D65+E65+F65 -> 0 | L65: =I65+J65+K65 -> 0 | M65: =G65+L65 -> 0
C66: Less Other Non Rate-Regulated Utility Assets (input as negative) | G66: 0 | L66: 0 | M66: 0
C67: Total PP&E | D67: =SUM(D64:D66) -> 92676457.09 | E67: =SUM(E64:E66) -> 36028468.41 | F67: -592920.04 | G67: 128112005.5 | I67: =SUM(I64:I66) -> -48231552.03 | J67: -3589812.86 | K67: 577041.04 | L67: -51244323.85 | M67: 76867681.61
C68: Depreciation Expense adj. from gain or loss on the retirement of assets (pool of like assets), if applicable6
C69: Total | J69: =J67+J68 -> -3589812.86
I71: Less: Fully Allocated Depreciation
A72: 10 | C72: Transportation | I72: Transportation
A73: 8 | C73: Stores Equipment | I73: Stores Equipment
I74: Net Depreciation | K74: =J69-K72-K73 -> -3589812.86
A77: Appendix 2-BA
A78: Fixed Asset Continuity Schedule 1
E80: Accounting Standard | F80: CGAAP
E81: Year | F81: 2013
D83: Cost | J83: Accumulated Depreciation
A84: CCA Class 2 | B84: OEB Account 3 | C84: Description 3 | D84: Opening Balance | E84: Additions 4 | F84: Disposals 6 | G84: Closing Balance | I84: Opening Balance | J84: Additions | K84: Disposals 6 | L84: Closing Balance | M84: Net Book Value
A85: N/A | B85: 1706 | C85: Land Rights | D85: 602307 | G85: =D85+E85+F85 -> 602307 | L85: =I85+J85+K85 -> 0 | M85: =G85+L85 -> 602307
A86: 47 | B86: 1725 | C86: Poles and Fixtures | D86: 1875300 | F86: -121813 | G86: =D86+E86+F86 -> 1753487 | I86: -204242 | J86: -66718 | K86: 121813 | L86: =I86+J86+K86 -> -149147 | M86: =G86+L86 -> 1604340
A87: 47 | B87: 1730 | C87: Overhead Conductors & Devices | D87: 90074 | G87: =D87+E87+F87 -> 90074 | I87: -19081 | J87: -7099 | L87: =I87+J87+K87 -> -26180 | M87: =G87+L87 -> 63894
A88: 47 | B88: 1735 | C88: Underground Conduit | D88: 1017328 | F88: -31461 | G88: =D88+E88+F88 -> 985867 | I88: -109571 | J88: -37736 | K88: 31461 | L88: =I88+J88+K88 -> -115846 | M88: =G88+L88 -> 870021
A89: 47 | B89: 1740 | C89: Underground Conductors & Devices | D89: 244819 | G89: 244819 | I89: -21784 | J89: -7783 | L89: -29567 | M89: 215252
A90: 12 | B90: 1611 | C90: Computer Software (Formally known as Account 1925) | G90: =D90+E90+F90 -> 0 | L90: =I90+J90+K90 -> 0 | M90: =G90+L90 -> 0
A91: CEC | B91: 1612 | C91: Land Rights (Formally known as Account 1906) | G91: =D91+E91+F91 -> 0 | L91: =I91+J91+K91 -> 0 | M91: =G91+L91 -> 0
A92: N/A | B92: 1805 | C92: Land | D92: 89160 | G92: =D92+E92+F92 -> 89160 | L92: =I92+J92+K92 -> 0 | M92: =G92+L92 -> 89160
A93: CEC | B93: 1806 | C93: Land Rights | D93: 153573 | E93: 555 | G93: =D93+E93+F93 -> 154128 | L93: =I93+J93+K93 -> 0 | M93: =G93+L93 -> 154128
A94: 47 | B94: 1808 | C94: Buildings | D94: 24138419 | E94: 1861467 | G94: =D94+E94+F94 -> 25999886 | I94: -713261 | J94: -661658 | L94: =I94+J94+K94 -> -1374919 | M94: =G94+L94 -> 24624967
A95: 13 | B95: 1810 | C95: Leasehold Improvements | G95: 0 | L95: 0 | M95: 0
A96: 47 | B96: 1815 | C96: Transformer Station Equipment >50 kV | D96: 8608060 | E96: 448214 | G96: 9056274 | I96: -3353684 | J96: -210868 | L96: -3564552 | M96: 5491722
A97: 47 | B97: 1820 | C97: Distribution Station Equipment <50 kV | D97: 10648862 | E97: 3832429 | G97: 14481291 | I97: -6428451 | J97: -240222 | L97: -6668673 | M97: 7812618
A98: 47 | B98: 1825 | C98: Storage Battery Equipment | D98: 19241 | G98: 19241 | I98: -4879 | J98: -640 | L98: -5519 | M98: 13722
A99: 47 | B99: 1830 | C99: Poles, Towers & Fixtures | D99: 12848549 | E99: 2320239 | G99: 15168788 | I99: -4438928 | J99: -283445 | L99: -4722373 | M99: 10446415
A100: 47 | B100: 1835 | C100: Overhead Conductors & Devices | D100: 13188626 | E100: 763655 | G100: 13952281 | I100: -5437497 | J100: -169054 | L100: -5606551 | M100: 8345730
A101: 47 | B101: 1840 | C101: Underground Conduit | D101: 10626856 | E101: 226255 | G101: 10853111 | I101: -8228190 | J101: -78890 | L101: -8307080 | M101: 2546031
A102: 47 | B102: 1845 | C102: Underground Conductors & Devices | D102: 19762325 | E102: 400996 | G102: 20163321 | I102: -8298720 | J102: -427501 | L102: -8726221 | M102: 11437100
A103: 47 | B103: 1850 | C103: Line Transformers | D103: 16784572 | E103: 675571 | F103: -25049 | G103: 17435094 | I103: -7914410 | J103: -316591 | L103: -8231001 | M103: 9204093
A104: 47 | B104: 1855 | C104: Services (Overhead & Underground) | D104: 4072588 | E104: 833240 | G104: 4905828 | I104: -351697 | J104: -93542 | L104: -445239 | M104: 4460589
A105: 47 | B105: 1860 | C105: Meters | D105: 10366772 | E105: 271622 | F105: -4298049 | G105: 6340345 | I105: -4280639 | J105: -428593 | K105: 2837860 | L105: -1871372 | M105: 4468973
A106: 47 | B106: 1860 | C106: Meters (Smart Meters) | G106: 0 | L106: 0 | M106: 0
A107: N/A | B107: 1905 | C107: Land | G107: 0 | L107: 0 | M107: 0
A108: 47 | B108: 1908 | C108: Buildings & Fixtures | G108: 0 | L108: 0 | M108: 0
A109: 13 | B109: 1910 | C109: Leasehold Improvements | G109: 0 | L109: 0 | M109: 0
A110: 8 | B110: 1915 | C110: Office Furniture & Equipment (10 years) | G110: 0 | L110: 0 | M110: 0
A111: 8 | B111: 1915 | C111: Office Furniture & Equipment (5 years) | G111: 0 | L111: 0 | M111: 0
A112: 10 | B112: 1920 | C112: Computer Equipment - Hardware | D112: 20338 | G112: 20338 | I112: -16850 | J112: -2127 | L112: -18977 | M112: 1361
A113: 45 | B113: 1920 | C113: Computer Equip.-Hardware(Post Mar. 22/04) | G113: 0 | L113: 0 | M113: 0
A114: 45.1 | B114: 1920 | C114: Computer Equip.-Hardware(Post Mar. 19/07) | G114: 0 | L114: 0 | M114: 0
A115: 12 | B115: 1925 | C115: Compute rSoftware | D115: 534008 | E115: 1500 | G115: 535508 | I115: -324937 | J115: -104597 | L115: =I115+J115+K115 -> -429534 | M115: =G115+L115 -> 105974
A116: 10 | B116: 1930 | C116: Transportation Equipment | G116: 0 | L116: 0 | M116: 0
A117: 8 | B117: 1935 | C117: Stores Equipment | G117: 0 | L117: 0 | M117: 0
A118: 8 | B118: 1940 | C118: Tools, Shop & Garage Equipment | G118: 0 | L118: 0 | M118: 0
A119: 8 | B119: 1945 | C119: Measurement & Testing Equipment | G119: 0 | L119: 0 | M119: 0
A120: 8 | B120: 1950 | C120: Power Operated Equipment | G120: 0 | L120: 0 | M120: 0
A121: 8 | B121: 1955 | C121: Communications Equipment | G121: 0 | L121: 0 | M121: 0
A122: 8 | B122: 1955 | C122: Communication Equipment (Smart Meters) | G122: 0 | L122: 0 | M122: 0
A123: 8 | B123: 1960 | C123: Miscellaneous Equipment | G123: 0 | L123: 0 | M123: 0
A124: 47 | B124: 1970 | C124: Load Management Controls Customer Premises | G124: 0 | L124: 0 | M124: 0
A125: 47 | B125: 1975 | C125: Load Management Controls Utility Premises | G125: 0 | L125: 0 | M125: 0
A126: 47 | B126: 1980 | C126: System Supervisor Equipment | D126: 4193036 | E126: 161782 | G126: 4354818 | I126: -2768287 | J126: -204920 | L126: -2973207 | M126: 1381611
A127: 47 | B127: 1985 | C127: Miscellaneous Fixed Assets | G127: 0 | L127: 0 | M127: 0
A128: 47 | B128: 1990 | C128: Other Tangible Property | G128: 0 | L128: 0 | M128: 0
A129: 47 | B129: 1995 | C129: Contributions & Grants | D129: -11772809 | E129: -1376260 | G129: -13149069 | I129: 1670785 | J129: =--316544 -> 316544 | L129: 1987329 | M129: -11161740
A130: 47 | B130: 2440 | C130: Deferred Revenue5
G131: 0 | L131: 0 | M131: 0
C132: Sub-Total | D132: =SUM(D85:D131) -> 128112004 | E132: =SUM(E85:E131) -> 10421265 | F132: =SUM(F85:F131) -> -4476372 | G132: =SUM(G85:G131) -> 134056897 | I132: =SUM(I85:I131) -> -51244323 | J132: =SUM(J85:J131) -> -3025440 | K132: =SUM(K85:K131) -> 2991134 | L132: =SUM(L85:L131) -> -51278629 | M132: =SUM(M85:M131) -> 82778268
C133: Less Socialized Renewable Energy Generation Investments (input as negative) | G133: =D133+E133+F133 -> 0 | L133: =I133+J133+K133 -> 0 | M133: =G133+L133 -> 0
C134: Less Other Non Rate-Regulated Utility Assets (input as negative) | G134: 0 | L134: 0 | M134: 0
C135: Total PP&E | D135: =SUM(D132:D134) -> 128112004 | E135: =SUM(E132:E134) -> 10421265 | F135: -4476372 | G135: 134056897 | I135: =SUM(I132:I134) -> -51244323 | J135: -3025440 | K135: 2991134 | L135: -51278629 | M135: 82778268
C136: Depreciation Expense adj. from gain or loss on the retirement of assets (pool of like assets), if applicable6
C137: Total | J137: =J135+J136 -> -3025440
I139: Less: Fully Allocated Depreciation
A140: 10 | C140: Transportation | I140: Transportation
A141: 8 | C141: Stores Equipment | I141: Stores Equipment
I142: Net Depreciation | K142: =J137-K140-K141 -> -3025440
A146: Appendix 2-BA
A147: Fixed Asset Continuity Schedule 1
E149: Accounting Standard | F149: MIFRS
E150: Year | F150: 2014
D152: Cost | J152: Accumulated Depreciation
A153: CCA Class 2 | B153: OEB Account 3 | C153: Description 3 | D153: Opening Balance | E153: Additions 4 | F153: Disposals 6 | G153: Closing Balance | I153: Opening Balance | J153: Additions | K153: Disposals 6 | L153: Closing Balance | M153: Net Book Value
A154: N/A | B154: 1706 | C154: Land Rights | D154: =+M85 -> 602307 | G154: =D154+E154+F154 -> 602307 | I154: 0 | L154: =I154+J154+K154 -> 0 | M154: =G154+L154 -> 602307
A155: 47 | B155: 1725 | C155: Poles and Fixtures | D155: =+M86 -> 1604340 | G155: =D155+E155+F155 -> 1604340 | I155: 0 | J155: -39130 | L155: =I155+J155+K155 -> -39130 | M155: =G155+L155 -> 1565210
A156: 47 | B156: 1730 | C156: Overhead Conductors & Devices | D156: 63894 | G156: =D156+E156+F156 -> 63894 | I156: 0 | J156: -1997 | L156: =I156+J156+K156 -> -1997 | M156: =G156+L156 -> 61897
A157: 47 | B157: 1735 | C157: Underground Conduit | D157: 870021 | G157: =D157+E157+F157 -> 870021 | I157: 0 | J157: -24858 | L157: =I157+J157+K157 -> -24858 | M157: =G157+L157 -> 845163
A158: 47 | B158: 1740 | C158: Underground Conductors & Devices | D158: 215252 | G158: 215252 | I158: 0 | J158: -9784 | L158: -9784 | M158: 205468
A159: 12 | B159: 1611 | C159: Computer Software (Formally known as Account 1925) | D159: 0 | G159: =D159+E159+F159 -> 0 | I159: 0 | L159: =I159+J159+K159 -> 0 | M159: =G159+L159 -> 0
A160: CEC | B160: 1612 | C160: Land Rights (Formally known as Account 1906) | D160: 0 | G160: =D160+E160+F160 -> 0 | I160: 0 | L160: =I160+J160+K160 -> 0 | M160: =G160+L160 -> 0
A161: N/A | B161: 1805 | C161: Land | D161: 89160 | G161: =D161+E161+F161 -> 89160 | I161: 0 | L161: =I161+J161+K161 -> 0 | M161: =G161+L161 -> 89160
A162: CEC | B162: 1806 | C162: Land Rights | D162: 154128 | E162: 6798 | G162: =D162+E162+F162 -> 160926 | I162: 0 | L162: =I162+J162+K162 -> 0 | M162: =G162+L162 -> 160926
A163: 47 | B163: 1808 | C163: Buildings | D163: 24624967 | E163: 244854 | G163: =D163+E163+F163 -> 24869821 | I163: 0 | J163: -675297 | L163: =I163+J163+K163 -> -675297 | M163: =G163+L163 -> 24194524
A164: 13 | B164: 1810 | C164: Leasehold Improvements | D164: 0 | G164: 0 | I164: 0 | L164: 0 | M164: 0
A165: 47 | B165: 1815 | C165: Transformer Station Equipment >50 kV | D165: 5491722 | E165: 617923 | G165: 6109645 | I165: 0 | J165: -236546 | L165: -236546 | M165: 5873099
A166: 47 | B166: 1820 | C166: Distribution Station Equipment <50 kV | D166: 7812618 | E166: 1245158 | G166: 9057776 | I166: 0 | J166: -370683 | L166: -370683 | M166: 8687093
A167: 47 | B167: 1825 | C167: Storage Battery Equipment | D167: 13722 | G167: 13722 | I167: 0 | J167: -653 | L167: -653 | M167: 13069
A168: 47 | B168: 1830 | C168: Poles, Towers & Fixtures | D168: 10446415 | E168: 2281968 | G168: 12728383 | I168: 0 | J168: -262774 | L168: -262774 | M168: 12465609
A169: 47 | B169: 1835 | C169: Overhead Conductors & Devices | D169: 8345730 | E169: 960049 | G169: 9305779 | I169: 0 | J169: -239826 | L169: -239826 | M169: 9065953
A170: 47 | B170: 1840 | C170: Underground Conduit | D170: 2546031 | E170: 282137 | G170: 2828168 | I170: 0 | J170: -214991 | L170: -214991 | M170: 2613177
A171: 47 | B171: 1845 | C171: Underground Conductors & Devices | D171: 11437100 | E171: 582719 | G171: 12019819 | I171: 0 | J171: -504549 | L171: -504549 | M171: 11515270
A172: 47 | B172: 1850 | C172: Line Transformers | D172: 9204093 | E172: 645934 | G172: 9850027 | I172: 0 | J172: -244077 | L172: -244077 | M172: 9605950
A173: 47 | B173: 1855 | C173: Services (Overhead & Underground) | D173: 4460589 | E173: 541557 | G173: 5002146 | I173: 0 | J173: -130675 | L173: -130675 | M173: 4871471
A174: 47 | B174: 1860 | C174: Meters | D174: 4468973 | E174: 141089 | G174: 4610062 | I174: 0 | J174: -410973 | L174: -410973 | M174: 4199089
A175: 47 | B175: 1860 | C175: Meters (Smart Meters) | D175: 0 | G175: 0 | I175: 0 | L175: 0 | M175: 0
A176: N/A | B176: 1905 | C176: Land | D176: 0 | G176: 0 | I176: 0 | L176: 0 | M176: 0
A177: 47 | B177: 1908 | C177: Buildings & Fixtures | D177: 0 | G177: 0 | I177: 0 | L177: 0 | M177: 0
A178: 13 | B178: 1910 | C178: Leasehold Improvements | D178: 0 | G178: 0 | I178: 0 | L178: 0 | M178: 0
A179: 8 | B179: 1915 | C179: Office Furniture & Equipment (10 years) | D179: 0 | G179: 0 | I179: 0 | L179: 0 | M179: 0
A180: 8 | B180: 1915 | C180: Office Furniture & Equipment (5 years) | D180: 0 | G180: 0 | I180: 0 | L180: 0 | M180: 0
A181: 10 | B181: 1920 | C181: Computer Equipment - Hardware | D181: 1361 | G181: 1361 | I181: 0 | J181: -1361 | L181: -1361 | M181: 0
A182: 45 | B182: 1920 | C182: Computer Equip.-Hardware(Post Mar. 22/04) | D182: 0 | G182: 0 | I182: 0 | L182: 0 | M182: 0
A183: 45.1 | B183: 1920 | C183: Computer Equip.-Hardware(Post Mar. 19/07) | D183: 0 | G183: 0 | I183: 0 | L183: 0 | M183: 0
A184: 12 | B184: 1925 | C184: Compute rSoftware | D184: 105974 | G184: 105974 | I184: 0 | J184: -105974 | L184: -105974 | M184: 0
A185: 10 | B185: 1930 | C185: Transportation Equipment | D185: 0 | G185: 0 | I185: 0 | L185: 0 | M185: 0
A186: 8 | B186: 1935 | C186: Stores Equipment | D186: 0 | G186: 0 | I186: 0 | L186: 0 | M186: 0
A187: 8 | B187: 1940 | C187: Tools, Shop & Garage Equipment | D187: 0 | G187: 0 | I187: 0 | L187: 0 | M187: 0
A188: 8 | B188: 1945 | C188: Measurement & Testing Equipment | D188: 0 | G188: 0 | I188: 0 | L188: 0 | M188: 0
A189: 8 | B189: 1950 | C189: Power Operated Equipment | D189: 0 | G189: 0 | I189: 0 | L189: 0 | M189: 0
A190: 8 | B190: 1955 | C190: Communications Equipment | D190: 0 | G190: 0 | I190: 0 | L190: 0 | M190: 0
A191: 8 | B191: 1955 | C191: Communication Equipment (Smart Meters) | D191: 0 | G191: 0 | I191: 0 | L191: 0 | M191: 0
A192: 8 | B192: 1960 | C192: Miscellaneous Equipment | D192: 0 | G192: 0 | I192: 0 | L192: 0 | M192: 0
A193: 47 | B193: 1970 | C193: Load Management Controls Customer Premises | D193: 0 | G193: 0 | I193: 0 | L193: 0 | M193: 0
A194: 47 | B194: 1975 | C194: Load Management Controls Utility Premises | D194: 0 | G194: 0 | I194: 0 | L194: 0 | M194: 0
A195: 47 | B195: 1980 | C195: System Supervisor Equipment | D195: 1381611 | E195: 156593 | G195: 1538204 | I195: 0 | J195: -234183 | L195: -234183 | M195: 1304021
A196: 47 | B196: 1985 | C196: Miscellaneous Fixed Assets | D196: 0 | G196: 0 | I196: 0 | L196: 0 | M196: 0
A197: 47 | B197: 1990 | C197: Other Tangible Property | D197: 0 | G197: 0 | I197: 0 | L197: 0 | M197: 0
A198: 47 | B198: 1995 | C198: Contributions & Grants | D198: -11161740 | E198: 0 | G198: =D198+E198+F198 -> -11161740 | I198: 0 | J198: 328286 | L198: 328286 | M198: -10833454
A199: 47 | B199: 2440 | C199: Deferred Revenue5 | D199: 0 | E199: -1045731 | G199: =D199+E199+F199 -> -1045731 | I199: 0 | J199: 13072 | L199: =I199+J199+K199 -> 13072 | M199: =G199+L199 -> -1032659
G200: =D200+E200+F200 -> 0 | L200: =I200+J200+K200 -> 0 | M200: =G200+L200 -> 0
C201: Sub-Total | D201: =SUM(D154:D200) -> 82778268 | E201: =SUM(E154:E200) -> 6661048 | F201: =SUM(F154:F200) -> 0 | G201: =SUM(G154:G200) -> 89439316 | I201: =SUM(I154:I200) -> 0 | J201: =SUM(J154:J200) -> -3366973 | K201: =SUM(K154:K200) -> 0 | L201: =SUM(L154:L200) -> -3366973 | M201: =SUM(M154:M200) -> 86072343
C202: Less Socialized Renewable Energy Generation Investments (input as negative) | G202: =D202+E202+F202 -> 0 | L202: =I202+J202+K202 -> 0 | M202: =G202+L202 -> 0
C203: Less Other Non Rate-Regulated Utility Assets (input as negative) | G203: 0 | L203: 0 | M203: 0
C204: Total PP&E | D204: =SUM(D201:D203) -> 82778268 | E204: =SUM(E201:E203) -> 6661048 | F204: 0 | G204: 89439316 | I204: =SUM(I201:I203) -> 0 | J204: -3366973 | K204: 0 | L204: -3366973 | M204: 86072343
C205: Depreciation Expense adj. from gain or loss on the retirement of assets (pool of like assets), if applicable6
C206: Total | J206: =J204+J205 -> -3366973
I208: Less: Fully Allocated Depreciation
A209: 10 | C209: Transportation | I209: Transportation
A210: 8 | C210: Stores Equipment | I210: Stores Equipment
I211: Net Depreciation | K211: =J206-K209-K210 -> -3366973
A214: Appendix 2-BA
A215: Fixed Asset Continuity Schedule 1
E217: Accounting Standard | F217: MIFRS
E218: Year | F218: 2015
D220: Cost | J220: Accumulated Depreciation
... 254 more rows

Sheet Appendix 2-BB Service Life
N1: File Number: | P1: ='LDC Info'!E16 -> EB-2017-0071
N2: Exhibit: | P2: 2
N3: Tab:
N4: Schedule:
N5: Page: | P5: Page 77 or Appendix 10
N7: Date: | P7: 2018-03-29
A9: Appendix 2-BB
A10: Service Life Comparison
A11: Table F-1 from Kinetrics Report1
C15: Asset Details | F15: Useful Life | J15: USoA Account Number | K15: USoA Account Description | L15: Current | N15: Proposed | P15: Outside Range of Min, Max TUL?
A16: Parent* | B16: # | C16: Category| Component | Type | F16: MIN UL | G16: TUL | H16: MAX UL | L16: Years | M16: Rate | N16: Years | O16: Rate | P16: Below Min TUL | Q16: Above Max TUL
A17: OH | B17: 1 | C17: Fully Dressed Wood Poles | D17: Overall | F17: 35 | G17: 45 | H17: 75 | J17: 1830 | K17: Poles, Towers and Fixtures | L17: 45 | M17: =IF(ISERROR(1/L17), "", 1/L17) -> 0.02222222222 | N17: 45 | O17: =IF(ISERROR(1/N17), "", 1/N17) -> 0.02222222222 | P17: =IF(ISBLANK(N17),"",IF(N17<F17,"Yes","No")) -> No | Q17: =IF(ISBLANK(N17),"",IF(N17>H17,"Yes","No")) -> No
D18: Overall | F18: 35 | G18: 45 | H18: 75 | J18: 1725 | K18: Poles, Towers and Fixtures | L18: 45 | N18: 45
D19: Cross Arm | E19: Wood | F19: 20 | G19: 40 | H19: 55 | M19: =IF(ISERROR(1/L19), "", 1/L19) ->  | O19: =IF(ISERROR(1/N19), "", 1/N19) ->  | P19: =IF(ISBLANK(N19),"",IF(N19<F19,"Yes","No")) ->  | Q19: =IF(ISBLANK(N19),"",IF(N19>H19,"Yes","No")) -> 
E20: Steel | F20: 30 | G20: 70 | H20: 95
B21: 2 | C21: Fully Dressed Concrete Poles | D21: Overall | F21: 50 | G21: 60 | H21: 80
D22: Cross Arm | E22: Wood | F22: 20 | G22: 40 | H22: 55
E23: Steel | F23: 30 | G23: 70 | H23: 95
B24: 3 | C24: Fully Dressed Steel Poles | D24: Overall | F24: 60 | G24: 60 | H24: 80
D25: Cross Arm | E25: Wood | F25: 20 | G25: 40 | H25: 55
E26: Steel | F26: 30 | G26: 70 | H26: 95
B27: 4 | C27: OH Line Switch | F27: 30 | G27: 45 | H27: 55
B28: 4 | C28: OH Line Switch | F28: 30 | G28: 45 | H28: 55 | M28: =IF(ISERROR(1/L28), "", 1/L28) ->  | O28: =IF(ISERROR(1/N28), "", 1/N28) ->  | P28: =IF(ISBLANK(N28),"",IF(N28<F28,"Yes","No")) ->  | Q28: =IF(ISBLANK(N28),"",IF(N28>H28,"Yes","No")) -> 
B29: 5 | C29: OH Line Switch Motor | F29: 15 | G29: 25 | H29: 25
B30: 6 | C30: OH Line Switch RTU | F30: 15 | G30: 20 | H30: 20
B31: 7 | C31: OH Integral Switches | F31: 35 | G31: 45 | H31: 60
B32: 7 | C32: OH Integral Switches | F32: 35 | G32: 45 | H32: 60 | M32: =IF(ISERROR(1/L32), "", 1/L32) ->  | O32: =IF(ISERROR(1/N32), "", 1/N32) ->  | P32: =IF(ISBLANK(N32),"",IF(N32<F32,"Yes","No")) ->  | Q32: =IF(ISBLANK(N32),"",IF(N32>H32,"Yes","No")) -> 
B33: 8 | C33: OH Conductors | F33: 50 | G33: 60 | H33: 75 | J33: 1835 | K33: Overhead Conductors and Devices | L33: 60 | M33: 0.01666666667 | N33: 60 | O33: 0.01666666667 | P33: No | Q33: No
B34: 8 | C34: OH Conductors | F34: 50 | G34: 60 | H34: 75 | J34: 1730 | K34: Overhead Conductors and Devices | L34: 45 | N34: 45
B35: 9 | C35: OH Transformers & Voltage Regulators | F35: 30 | G35: 40 | H35: 60 | J35: 1850 | K35: Line Transformers | L35: 40 | M35: 0.025 | N35: 40 | O35: 0.025 | P35: No | Q35: No
B36: 10 | C36: OH Shunt Capacitor Banks | F36: 25 | G36: 30 | H36: 40
B37: 11 | C37: Reclosers | F37: 25 | G37: 40 | H37: 55
B38: 11 | C38: Reclosers | F38: 25 | G38: 40 | H38: 55 | J38: 1730 | K38: Overhead Conductors and Devices | L38: 45 | M38: =IF(ISERROR(1/L38), "", 1/L38) -> 0.02222222222 | N38: 45 | O38: =IF(ISERROR(1/N38), "", 1/N38) -> 0.02222222222 | P38: =IF(ISBLANK(N38),"",IF(N38<F38,"Yes","No")) -> No | Q38: =IF(ISBLANK(N38),"",IF(N38>H38,"Yes","No")) -> No
A39: TS & MS | B39: 12 | C39: Power Transformers | D39: Overall | F39: 30 | G39: 45 | H39: 60 | J39: 1820 | K39: Distribution Station Equipment<50kV | L39: 40 | M39: 0.025 | N39: 40 | O39: 0.025 | P39: No | Q39: No
D40: Bushing | F40: 10 | G40: 20 | H40: 30
D41: Tap Changer | F41: 20 | G41: 30 | H41: 60
B42: 13 | C42: Station Service Transformer | F42: 30 | G42: 45 | H42: 55 | J42: 1820 | K42: Distribution Station Equipment<50kV | L42: 40 | M42: 0.025 | N42: 40 | O42: 0.025 | P42: No | Q42: No
B43: 14 | C43: Station Grounding Transformer | F43: 30 | G43: 40 | H43: 40
B44: 15 | C44: Station DC System | D44: Overall | F44: 10 | G44: 20 | H44: 30 | Q44: =IF(ISBLANK(N44),"",IF(N44>H44,"Yes","No")) -> 
D45: Battery Bank | F45: 10 | G45: 15 | H45: 15
D46: Charger | F46: 20 | G46: 20 | H46: 30
B47: 16 | C47: Station Metal Clad Switchgear | D47: Overall | F47: 30 | G47: 40 | H47: 60 | J47: 1820 | K47: Distribution Station Equipment<50kV | L47: 40 | M47: 0.025 | N47: 40 | O47: 0.025 | P47: No | Q47: No
D48: Removable Breaker | F48: 25 | G48: 40 | H48: 60
B49: 17 | C49: Station Independent Breakers | F49: 35 | G49: 45 | H49: 65 | J49: 1820 | K49: Distribution Station Equipment<50kV | L49: 40 | M49: 0.025 | N49: 40 | O49: 0.025 | P49: No | Q49: No
B50: 18 | C50: Station Switch | F50: 30 | G50: 50 | H50: 60 | J50: 1820 | K50: Distribution Station Equipment<50kV | L50: 40 | M50: 0.025 | N50: 40 | O50: 0.025 | P50: No | Q50: No
B51: 19 | C51: Electromechanical Relays | F51: 25 | G51: 35 | H51: 50
B52: 20 | C52: Solid State Relays | F52: 10 | G52: 30 | H52: 45
B53: 21 | C53: Digital & Numeric Relays | F53: 15 | G53: 20 | H53: 20
B54: 22 | C54: Rigid Busbars | F54: 30 | G54: 55 | H54: 60
B55: 23 | C55: Steel Structure | F55: 35 | G55: 50 | H55: 90
A56: UG | B56: 24 | C56: Primary Paper Insulated Lead Covered (PILC) Cables | F56: 60 | G56: 65 | H56: 75
B57: 25 | C57: Primary Ethylene-Propylene Rubber (EPR) Cables | F57: 20 | G57: 25 | H57: 25
B58: 26 | C58: Primary Non-Tree Retardant (TR) Cross Linked Polyethylene (XLPE) Cables Direct Buried | F58: 20 | G58: 25 | H58: 30
B59: 27 | C59: Primary Non-TR XLPE Cables in Duct | F59: 20 | G59: 25 | H59: 30
B60: 27 | C60: Primary Non-TR XLPE Cables in Duct | F60: 20 | G60: 25 | H60: 30 | J60: 1740 | K60: Underground Conductors and Devices | L60: 25 | M60: =IF(ISERROR(1/L60), "", 1/L60) -> 0.04 | N60: 25 | O60: =IF(ISERROR(1/N60), "", 1/N60) -> 0.04 | P60: =IF(ISBLANK(N60),"",IF(N60<F60,"Yes","No")) -> No | Q60: =IF(ISBLANK(N60),"",IF(N60>H60,"Yes","No")) -> No
B61: 30 | C61: Secondary PILC Cables | F61: 70 | G61: 75 | H61: 80
B62: 30 | C62: Secondary PILC Cables | F62: 70 | G62: 75 | H62: 80 | M62: =IF(ISERROR(1/L62), "", 1/L62) ->  | O62: =IF(ISERROR(1/N62), "", 1/N62) ->  | P62: =IF(ISBLANK(N62),"",IF(N62<F62,"Yes","No")) ->  | Q62: =IF(ISBLANK(N62),"",IF(N62>H62,"Yes","No")) -> 
B63: 31 | C63: Secondary Cables Direct Buried | F63: 25 | G63: 35 | H63: 40 | J63: 1845 | K63: Underground Conductors and Devices | L63: 40 | M63: 0.025 | N63: 40 | O63: 0.025 | P63: No | Q63: No
B64: 31 | C64: Secondary Cables Direct Buried | F64: 25 | G64: 35 | H64: 40 | J64: 1740 | K64: Underground Conductors and Devices | L64: 25 | M64: =IF(ISERROR(1/L64), "", 1/L64) -> 0.04 | N64: 25 | O64: =IF(ISERROR(1/N64), "", 1/N64) -> 0.04 | P64: =IF(ISBLANK(N64),"",IF(N64<F64,"Yes","No")) -> No | Q64: =IF(ISBLANK(N64),"",IF(N64>H64,"Yes","No")) -> No
B65: 32 | C65: Secondary Cables in Duct | F65: 35 | G65: 40 | H65: 60 | J65: 1845 | K65: Underground Conductors and Devices | L65: 40 | M65: 0.025 | N65: 40 | O65: 0.025 | P65: No | Q65: No
B66: 32 | C66: Secondary Cables in Duct | F66: 35 | G66: 40 | H66: 60 | M66: =IF(ISERROR(1/L66), "", 1/L66) ->  | O66: =IF(ISERROR(1/N66), "", 1/N66) ->  | P66: =IF(ISBLANK(N66),"",IF(N66<F66,"Yes","No")) ->  | Q66: =IF(ISBLANK(N66),"",IF(N66>H66,"Yes","No")) -> 
B67: 33 | C67: Network Tranformers | D67: Overall | F67: 20 | G67: 35 | H67: 50
D68: Protector | F68: 20 | G68: 35 | H68: 40
B69: 34 | C69: Pad-Mounted Transformers | F69: 25 | G69: 40 | H69: 45 | J69: 1850 | K69: Line Transformers | L69: 40 | M69: 0.025 | N69: 40 | O69: 0.025 | P69: No | Q69: No
B70: 35 | C70: Submersible/Vault Transformers | F70: 25 | G70: 35 | H70: 45
B71: 36 | C71: UG Foundation | F71: 35 | G71: 55 | H71: 70 | J71: 1840 | K71: Underground Conduit | L71: 50 | M71: 0.02 | N71: 50 | O71: 0.02 | P71: No | Q71: No
B72: 36 | C72: UG Foundation | F72: 35 | G72: 55 | H72: 70 | J72: 1735 | K72: Underground Conduit | L72: 40 | M72: =IF(ISERROR(1/L72), "", 1/L72) -> 0.025 | N72: 40 | O72: =IF(ISERROR(1/N72), "", 1/N72) -> 0.025 | P72: =IF(ISBLANK(N72),"",IF(N72<F72,"Yes","No")) -> No | Q72: =IF(ISBLANK(N72),"",IF(N72>H72,"Yes","No")) -> No
B73: 37 | C73: UG Vaults | D73: Overall | F73: 40 | G73: 60 | H73: 80
D74: Roof | F74: 20 | G74: 30 | H74: 45
B75: 38 | C75: UG Vault Switches | F75: 20 | G75: 35 | H75: 50
B76: 39 | C76: Pad-Mounted Switchgear | F76: 20 | G76: 30 | H76: 45 | J76: 1845 | K76: Underground Conductors and Devices | L76: 40 | M76: 0.025 | N76: 40 | O76: 0.025 | P76: No | Q76: No
B77: 39 | C77: Pad-Mounted Switchgear | F77: 20 | G77: 30 | H77: 45 | J77: 1740 | K77: Underground Conductors and Devices | L77: 25 | M77: =IF(ISERROR(1/L77), "", 1/L77) -> 0.04 | N77: 25 | O77: =IF(ISERROR(1/N77), "", 1/N77) -> 0.04 | P77: =IF(ISBLANK(N77),"",IF(N77<F77,"Yes","No")) -> No | Q77: =IF(ISBLANK(N77),"",IF(N77>H77,"Yes","No")) -> No
B78: 40 | C78: Ducts | F78: 30 | G78: 50 | H78: 85 | J78: 1840 | K78: Underground Conduit | L78: 50 | M78: 0.02 | N78: 50 | O78: 0.02 | P78: No | Q78: No
B79: 40 | C79: Ducts | F79: 30 | G79: 50 | H79: 85 | J79: 1735 | K79: Underground Conduit | L79: 40 | M79: =IF(ISERROR(1/L79), "", 1/L79) -> 0.025 | N79: 40 | O79: =IF(ISERROR(1/N79), "", 1/N79) -> 0.025 | P79: =IF(ISBLANK(N79),"",IF(N79<F79,"Yes","No")) -> No | Q79: =IF(ISBLANK(N79),"",IF(N79>H79,"Yes","No")) -> No
B80: 41 | C80: Concrete Encased Duct Banks | F80: 35 | G80: 55 | H80: 80
B81: 42 | C81: Cable Chambers | F81: 50 | G81: 60 | H81: 80
A82: S | B82: 43 | C82: Remote SCADA | F82: 15 | G82: 20 | H82: 30 | J82: 1980 | K82: System Supervisory Equipment | L82: 20 | M82: 0.05 | N82: 20 | O82: 0.05 | P82: No | Q82: No
A85: Table F-2 from Kinetrics Report1
C87: Asset Details | F87: Useful Life Range | J87: USoA Account Number | K87: USoA Account Description | L87: Current | N87: Proposed | P87: Outside Range of Min, Max TUL?
B88: # | C88: Category| Component | Type | L88: Years | M88: Rate | N88: Years | O88: Rate | P88: Below Min Range | Q88: Above Max Range
B89: 1 | C89: Office Equipment | F89: 5 | G89: 15 | M89: =IF(ISERROR(1/L89), "", 1/L89) ->  | O89: =IF(ISERROR(1/N89), "", 1/N89) ->  | P89: =IF(ISBLANK(N89),"",IF(N89<F89,"Yes","No")) ->  | Q89: =IF(ISBLANK(N89),"",IF(N89>G89,"Yes","No")) -> 
B90: 2 | C90: Vehicles | D90: Trucks & Buckets | F90: 5 | G90: 15 | M90: =IF(ISERROR(1/L90), "", 1/L90) ->  | O90: =IF(ISERROR(1/N90), "", 1/N90) ->  | P90: =IF(ISBLANK(N90),"",IF(N90<F90,"Yes","No")) ->  | Q90: =IF(ISBLANK(N90),"",IF(N90>G90,"Yes","No")) -> 
D91: Trailers | F91: 5 | G91: 20
D92: Vans | F92: 5 | G92: 10
B93: 3 | C93: Administrative Buildings | F93: 50 | G93: 75 | J93: 1808 | K93: Buildings and Fixtures | L93: 50 | M93: 0.02 | N93: 50 | O93: 0.02 | P93: No | Q93: No
B94: 4 | C94: Leasehold Improvements | F94: Lease dependent
B95: 5 | C95: Station Buildings | D95: Station Buildings | F95: 50 | G95: 75
D96: Parking | F96: 25 | G96: 30
D97: Fence | F97: 25 | G97: 60
D98: Roof | F98: 20 | G98: 30
B99: 6 | C99: Computer Equipment | D99: Hardware | F99: 3 | G99: 5 | J99: 1920 | K99: Computer Equipment-Hardware | L99: 5 | M99: 0.2 | N99: 5 | O99: 0.2 | P99: No | Q99: No
D100: Software | F100: 2 | G100: 5 | J100: 1925 | K100: Computer Software | L100: 5 | M100: 0.2 | N100: 5 | O100: 0.2 | P100: No | Q100: No
B101: 7 | C101: Equipment | D101: Power Operated | F101: 5 | G101: 10
D102: Stores | F102: 5 | G102: 10
D103: Tools, Shop, Garage Equipment | F103: 5 | G103: 10
D104: Measurement & Testing Equipment | F104: 5 | G104: 10
B105: 8 | C105: Communication | D105: Towers | F105: 60 | G105: 70
D106: Wireless | F106: 2 | G106: 10
B107: 9 | C107: Residential Energy Meters | F107: 25 | G107: 35
B108: 10 | C108: Industrial/Commercial Energy Meters | F108: 25 | G108: 35
B109: 11 | C109: Wholesale Energy Meters | F109: 15 | G109: 30 | J109: 1860 | K109: Meters | L109: 15 | M109: 0.06666666667 | N109: 15 | O109: 0.06666666667 | P109: No | Q109: No
B110: 12 | C110: Current & Potential Transformer (CT & PT) | F110: 35 | G110: 50
B111: 13 | C111: Smart Meters | F111: 5 | G111: 15 | J111: 1860 | K111: Meters | L111: 15 | M111: 0.06666666667 | N111: 15 | O111: 0.06666666667 | P111: No | Q111: No
B112: 14 | C112: Repeaters - Smart Metering | F112: 10 | G112: 15 | J112: 1860 | K112: Meters | L112: 15 | M112: 0.06666666667 | N112: 15 | O112: 0.06666666667 | P112: No | Q112: No
B113: 15 | C113: Data Collectors - Smart Metering | F113: 15 | G113: 20 | J113: 1860 | K113: Meters | L113: 15 | M113: 0.06666666667 | N113: 15 | O113: 0.06666666667 | P113: No | Q113: No
A116: * TS & MS = Transformer and Municipal Stations UG = Underground Systems S = Monitoring and Control Systems
A118: Note 1: | B118: Tables F-1 and F-2 above are to be used as a reference in order to complete columns J, K, L and N.
B119: See pages 17-19 of Kinetrics Report

Sheet App.2-C_DepExp
A9: Appendix 2-C | Y9: CGAAP
A10: Depreciation and Amortization Expense | Y10: Revised CGAAP
Y11: MIFRS
A12: This appendix is to be completed in conjunction with the accounting instructions in Appendix 2-B
A15: Scenario that applies | C15: Applicable Years and Accounting Standard | R15: Year Reflected in Schedule Below | S15: Accounting Standard Reflected in Schedule Below | Y15: 2012
A16: Rebasing for the first time with depreciation policy changes made in 2012. | C16: This appendix must be duplicated and completed for the years 2012 to 2018. The appendix for 2012 is to be completed under CGAAP (prior to changes in depreciation policies). The appendix for 2012 to 2014 must be completed under Revised CGAAP (after changes in depreciation policies). The appendix for 2014 to 2018 is to be completed under MIFRS (2014 if changes to MIFRS are material). | Y16: 2013
A17: Rebasing for the first time with depreciation policy changes made in 2013. | C17: This appendix must be duplicated and completed for the years 2013 to 2018. The appendix for 2013 is to be completed under CGAAP (prior to changes in depreciation policies). The appendix for 2013 to 2014 must be completed under Revised CGAAP (after changes in depreciation policies). The appendix for 2014 to 2018 is to be completed under MIFRS (2014 if changes to MIFRS are material). | Y17: 2014
A18: Already rebased with depreciation policy changes in a prior rate application | C18: This appendix must be completed for 2014 to 2018. The appendix for 2014 is to be completed under Revised CGAAP (after changes in depreciation policies). The appendix for 2014 to 2018 is to be completed under MIFRS (2014 if changes to MIFRS are material). | R18: 2014 | S18: Revised CGAAP | Y18: 2015
Y19: 2016
Y20: 2017
C21: Book Values | J21: Service Lives | N21: Depreciation Expense | Y21: 2018
A22: Account | B22: Description | C22: Opening Net Book Value of Existing Assets as at Date of Policy Change (Jan. 1) 1 | D22: Less Fully Depreciated 7 | E22: Net Amount of Existing Assets Before Policy Change to be Depreciated | F22: Opening Gross Book Value of Assets Acquired After Policy Change 2 | G22: Less Fully Depreciated 8 | H22: Net Amount of Assets Acquired After Policy Change to be Depreciated | I22: Current Year Additions | J22: Average Remaining Life of Assets Existing Before Policy Change 3 | K22: Depreciation Rate Assets Acquired After Policy Change | L22: Life of Assets Acquired After Policy Change 4 | M22: Depreciation Rate on New Additions | N22: Depreciation Expense on Assets Existing Before Policy Change | O22: Depreciation Expense on Assets Acquired After Policy Change | P22: Depreciation Expense on Current Year Additions 5 | Q22: Total Current Year Depreciation Expense | R22: Depreciation Expense per Appendix 2-BA Fixed Assets, Column J | S22: Variance 6
C23: a | D23: b | E23: c = a-b | F23: d | G23: e | H23: f = d- e | I23: g | J23: h | K23: i = 1/h | L23: j | M23: k = 1/j | N23: l = c/h | O23: m = f/j | P23: n = g*0.5/j | Q23: o = l+m+n | R23: p | S23: q = p-o
A24: 1706 | B24: Land Rights | C24: =SUMIF('App.2-BA_Fixed Asset Cont'!$B$154:$B$199,'App.2-C_DepExp'!A24,'App.2-BA_Fixed Asset Cont'!$D$154:$D$199) -> 602307 | E24: =C24-D24 -> 602307 | H24: =F24-G24 -> 0 | I24: =SUMIF('App.2-BA_Fixed Asset Cont'!$B$154:$B$199,'App.2-C_DepExp'!A24,'App.2-BA_Fixed Asset Cont'!$E$154:$E$199) -> 0 | K24: =IF(J24=0,0,1/J24) -> 0 | L24: 0 | M24: =IF(L24=0,0,1/L24) -> 0 | N24: =IF(J24=0,0,+E24/J24) -> 0 | O24: =IF(L24=0,0,+H24/L24) -> 0 | P24: =IF(L24=0,0,+(I24*0.5)/L24) -> 0 | Q24: =IF(ISERROR(+N24+O24+P24), 0, +N24+O24+P24) -> 0 | R24: =-SUMIF('App.2-BA_Fixed Asset Cont'!$B$154:$B$199,'App.2-C_DepExp'!A24,'App.2-BA_Fixed Asset Cont'!$J$154:$J$199) -> 0 | S24: =IF(ISERROR(+R24-122), 0, +R24-Q24) -> 0
A25: 1725 | B25: Poles and Fixtures | C25: =SUMIF('App.2-BA_Fixed Asset Cont'!$B$154:$B$199,'App.2-C_DepExp'!A25,'App.2-BA_Fixed Asset Cont'!$D$154:$D$199) -> 1604340 | E25: 1604340 | H25: 0 | I25: =SUMIF('App.2-BA_Fixed Asset Cont'!$B$154:$B$199,'App.2-C_DepExp'!A25,'App.2-BA_Fixed Asset Cont'!$E$154:$E$199) -> 0 | J25: 41 | K25: 0.0243902439 | L25: 45 | M25: 0.02222222222 | N25: 39130.2439 | O25: 0 | P25: 0 | Q25: 39130.2439 | R25: =-SUMIF('App.2-BA_Fixed Asset Cont'!$B$154:$B$199,'App.2-C_DepExp'!A25,'App.2-BA_Fixed Asset Cont'!$J$154:$J$199) -> 39130 | S25: =IF(ISERROR(+R25-122), 0, +R25-Q25) -> -0.243902439
A26: 1730 | B26: Overhead Conductors & Devices | C26: =SUMIF('App.2-BA_Fixed Asset Cont'!$B$154:$B$199,'App.2-C_DepExp'!A26,'App.2-BA_Fixed Asset Cont'!$D$154:$D$199) -> 63894 | E26: 63894 | H26: 0 | I26: =SUMIF('App.2-BA_Fixed Asset Cont'!$B$154:$B$199,'App.2-C_DepExp'!A26,'App.2-BA_Fixed Asset Cont'!$E$154:$E$199) -> 0 | J26: 32 | K26: 0.03125 | L26: 45 | M26: 0.02222222222 | N26: 1996.6875 | O26: 0 | P26: 0 | Q26: 1996.6875 | R26: =-SUMIF('App.2-BA_Fixed Asset Cont'!$B$154:$B$199,'App.2-C_DepExp'!A26,'App.2-BA_Fixed Asset Cont'!$J$154:$J$199) -> 1997 | S26: =IF(ISERROR(+R26-122), 0, +R26-Q26) -> 0.3125
A27: 1735 | B27: Underground Conduit | C27: =SUMIF('App.2-BA_Fixed Asset Cont'!$B$154:$B$199,'App.2-C_DepExp'!A27,'App.2-BA_Fixed Asset Cont'!$D$154:$D$199) -> 870021 | E27: 870021 | H27: 0 | I27: =SUMIF('App.2-BA_Fixed Asset Cont'!$B$154:$B$199,'App.2-C_DepExp'!A27,'App.2-BA_Fixed Asset Cont'!$E$154:$E$199) -> 0 | J27: 35 | K27: 0.02857142857 | L27: 40 | M27: 0.025 | N27: 24857.74286 | O27: 0 | P27: 0 | Q27: 24857.74286 | R27: =-SUMIF('App.2-BA_Fixed Asset Cont'!$B$154:$B$199,'App.2-C_DepExp'!A27,'App.2-BA_Fixed Asset Cont'!$J$154:$J$199) -> 24858 | S27: 0.2571428571
A28: 1740 | B28: Underground Conductors & Devices | C28: =SUMIF('App.2-BA_Fixed Asset Cont'!$B$154:$B$199,'App.2-C_DepExp'!A28,'App.2-BA_Fixed Asset Cont'!$D$154:$D$199) -> 215252 | E28: 215252 | H28: 0 | I28: =SUMIF('App.2-BA_Fixed Asset Cont'!$B$154:$B$199,'App.2-C_DepExp'!A28,'App.2-BA_Fixed Asset Cont'!$E$154:$E$199) -> 0 | J28: 22 | K28: 0.04545454545 | L28: 25 | M28: 0.04 | N28: 9784.181818 | O28: 0 | P28: 0 | Q28: 9784.181818 | R28: =-SUMIF('App.2-BA_Fixed Asset Cont'!$B$154:$B$199,'App.2-C_DepExp'!A28,'App.2-BA_Fixed Asset Cont'!$J$154:$J$199) -> 9784 | S28: -0.1818181818
A29: 1611 | B29: Computer Software (Formally known as Account 1925) | C29: =SUMIF('App.2-BA_Fixed Asset Cont'!$B$154:$B$199,'App.2-C_DepExp'!A29,'App.2-BA_Fixed Asset Cont'!$D$154:$D$199) -> 0 | E29: =C29-D29 -> 0 | H29: =F29-G29 -> 0 | I29: =SUMIF('App.2-BA_Fixed Asset Cont'!$B$154:$B$199,'App.2-C_DepExp'!A29,'App.2-BA_Fixed Asset Cont'!$E$154:$E$199) -> 0 | J29: 0 | K29: =IF(J29=0,0,1/J29) -> 0 | L29: 0 | M29: =IF(L29=0,0,1/L29) -> 0 | N29: =IF(J29=0,0,+E29/J29) -> 0 | O29: =IF(L29=0,0,+H29/L29) -> 0 | P29: =IF(L29=0,0,+(I29*0.5)/L29) -> 0 | Q29: =IF(ISERROR(+N29+O29+P29), 0, +N29+O29+P29) -> 0 | R29: =-SUMIF('App.2-BA_Fixed Asset Cont'!$B$154:$B$199,'App.2-C_DepExp'!A29,'App.2-BA_Fixed Asset Cont'!$J$154:$J$199) -> 0 | S29: =IF(ISERROR(+R29-122), 0, +R29-Q29) -> 0
A30: 1612 | B30: Land Rights (Formally known as Account 1906) | C30: =SUMIF('App.2-BA_Fixed Asset Cont'!$B$154:$B$199,'App.2-C_DepExp'!A30,'App.2-BA_Fixed Asset Cont'!$D$154:$D$199) -> 0 | E30: =C30-D30 -> 0 | H30: =F30-G30 -> 0 | I30: =SUMIF('App.2-BA_Fixed Asset Cont'!$B$154:$B$199,'App.2-C_DepExp'!A30,'App.2-BA_Fixed Asset Cont'!$E$154:$E$199) -> 0 | J30: 0 | K30: =IF(J30=0,0,1/J30) -> 0 | L30: 0 | M30: =IF(L30=0,0,1/L30) -> 0 | N30: =IF(J30=0,0,+E30/J30) -> 0 | O30: =IF(L30=0,0,+H30/L30) -> 0 | P30: =IF(L30=0,0,+(I30*0.5)/L30) -> 0 | Q30: =IF(ISERROR(+N30+O30+P30), 0, +N30+O30+P30) -> 0 | R30: =-SUMIF('App.2-BA_Fixed Asset Cont'!$B$154:$B$199,'App.2-C_DepExp'!A30,'App.2-BA_Fixed Asset Cont'!$J$154:$J$199) -> 0 | S30: =IF(ISERROR(+R30-122), 0, +R30-Q30) -> 0
A31: 1805 | B31: Land | C31: =SUMIF('App.2-BA_Fixed Asset Cont'!$B$154:$B$199,'App.2-C_DepExp'!A31,'App.2-BA_Fixed Asset Cont'!$D$154:$D$199) -> 89160 | E31: 89160 | H31: 0 | I31: =SUMIF('App.2-BA_Fixed Asset Cont'!$B$154:$B$199,'App.2-C_DepExp'!A31,'App.2-BA_Fixed Asset Cont'!$E$154:$E$199) -> 0 | J31: 0 | K31: 0 | L31: 0 | M31: 0 | N31: 0 | O31: =IF(L31=0,0,+H31/L31) -> 0 | P31: 0 | Q31: 0 | R31: =-SUMIF('App.2-BA_Fixed Asset Cont'!$B$154:$B$199,'App.2-C_DepExp'!A31,'App.2-BA_Fixed Asset Cont'!$J$154:$J$199) -> 0 | S31: 0
A32: 1806 | B32: Land Rights | C32: =SUMIF('App.2-BA_Fixed Asset Cont'!$B$154:$B$199,'App.2-C_DepExp'!A32,'App.2-BA_Fixed Asset Cont'!$D$154:$D$199) -> 154128 | E32: 154128 | H32: 0 | I32: =SUMIF('App.2-BA_Fixed Asset Cont'!$B$154:$B$199,'App.2-C_DepExp'!A32,'App.2-BA_Fixed Asset Cont'!$E$154:$E$199) -> 6798 | J32: 0 | K32: 0 | L32: 0 | M32: 0 | N32: 0 | O32: 0 | P32: 0 | Q32: 0 | R32: =-SUMIF('App.2-BA_Fixed Asset Cont'!$B$154:$B$199,'App.2-C_DepExp'!A32,'App.2-BA_Fixed Asset Cont'!$J$154:$J$199) -> 0 | S32: 0
A33: 1808 | B33: Buildings | C33: =SUMIF('App.2-BA_Fixed Asset Cont'!$B$154:$B$199,'App.2-C_DepExp'!A33,'App.2-BA_Fixed Asset Cont'!$D$154:$D$199) -> 24624967 | E33: 24624967 | H33: 0 | I33: =SUMIF('App.2-BA_Fixed Asset Cont'!$B$154:$B$199,'App.2-C_DepExp'!A33,'App.2-BA_Fixed Asset Cont'!$E$154:$E$199) -> 244854 | J33: 36.5981 | K33: 0.02732382282 | L33: 50 | M33: 0.02 | N33: 672848.2353 | O33: 0 | P33: 2448.54 | Q33: 675296.7753 | R33: =-SUMIF('App.2-BA_Fixed Asset Cont'!$B$154:$B$199,'App.2-C_DepExp'!A33,'App.2-BA_Fixed Asset Cont'!$J$154:$J$199) -> 675297 | S33: =IF(ISERROR(+R33-122), 0, +R33-Q33) -> 0.2247090969
A34: 1810 | B34: Leasehold Improvements | C34: =SUMIF('App.2-BA_Fixed Asset Cont'!$B$154:$B$199,'App.2-C_DepExp'!A34,'App.2-BA_Fixed Asset Cont'!$D$154:$D$199) -> 0 | E34: 0 | H34: 0 | I34: =SUMIF('App.2-BA_Fixed Asset Cont'!$B$154:$B$199,'App.2-C_DepExp'!A34,'App.2-BA_Fixed Asset Cont'!$E$154:$E$199) -> 0 | J34: 0 | K34: 0 | L34: 0 | M34: 0 | N34: 0 | O34: 0 | P34: 0 | Q34: 0 | R34: =-SUMIF('App.2-BA_Fixed Asset Cont'!$B$154:$B$199,'App.2-C_DepExp'!A34,'App.2-BA_Fixed Asset Cont'!$J$154:$J$199) -> 0 | S34: =IF(ISERROR(+R34-122), 0, +R34-Q34) -> 0
A35: 1815 | B35: Transformer Station Equipment >50 kV | C35: =SUMIF('App.2-BA_Fixed Asset Cont'!$B$154:$B$199,'App.2-C_DepExp'!A35,'App.2-BA_Fixed Asset Cont'!$D$154:$D$199) -> 5491722 | E35: 5491722 | H35: 0 | I35: =SUMIF('App.2-BA_Fixed Asset Cont'!$B$154:$B$199,'App.2-C_DepExp'!A35,'App.2-BA_Fixed Asset Cont'!$E$154:$E$199) -> 617923 | J35: 24 | K35: 0.04166666667 | L35: 40 | M35: 0.025 | N35: 228821.75 | O35: 0 | P35: 7724.0375 | Q35: 236545.7875 | R35: =-SUMIF('App.2-BA_Fixed Asset Cont'!$B$154:$B$199,'App.2-C_DepExp'!A35,'App.2-BA_Fixed Asset Cont'!$J$154:$J$199) -> 236546 | S35: 0.2125
A36: 1820 | B36: Distribution Station Equipment <50 kV | C36: =SUMIF('App.2-BA_Fixed Asset Cont'!$B$154:$B$199,'App.2-C_DepExp'!A36,'App.2-BA_Fixed Asset Cont'!$D$154:$D$199) -> 7812618 | E36: 7812618 | H36: 0 | I36: =SUMIF('App.2-BA_Fixed Asset Cont'!$B$154:$B$199,'App.2-C_DepExp'!A36,'App.2-BA_Fixed Asset Cont'!$E$154:$E$199) -> 1245158 | J36: 22 | K36: 0.04545454545 | L36: 40 | M36: 0.025 | N36: 355119 | O36: 0 | P36: 15564.475 | Q36: 370683.475 | R36: =-SUMIF('App.2-BA_Fixed Asset Cont'!$B$154:$B$199,'App.2-C_DepExp'!A36,'App.2-BA_Fixed Asset Cont'!$J$154:$J$199) -> 370683 | S36: -0.475
A37: 1825 | B37: Storage Battery Equipment | C37: =SUMIF('App.2-BA_Fixed Asset Cont'!$B$154:$B$199,'App.2-C_DepExp'!A37,'App.2-BA_Fixed Asset Cont'!$D$154:$D$199) -> 13722 | E37: 13722 | H37: 0 | I37: =SUMIF('App.2-BA_Fixed Asset Cont'!$B$154:$B$199,'App.2-C_DepExp'!A37,'App.2-BA_Fixed Asset Cont'!$E$154:$E$199) -> 0 | J37: 21 | K37: 0.04761904762 | L37: 30 | M37: 0.03333333333 | N37: 653.4285714 | O37: 0 | P37: 0 | Q37: 653.4285714 | R37: =-SUMIF('App.2-BA_Fixed Asset Cont'!$B$154:$B$199,'App.2-C_DepExp'!A37,'App.2-BA_Fixed Asset Cont'!$J$154:$J$199) -> 653 | S37: -0.4285714286
A38: 1830 | B38: Poles, Towers & Fixtures | C38: =SUMIF('App.2-BA_Fixed Asset Cont'!$B$154:$B$199,'App.2-C_DepExp'!A38,'App.2-BA_Fixed Asset Cont'!$D$154:$D$199) -> 10446415 | E38: 10446415 | H38: 0 | I38: =SUMIF('App.2-BA_Fixed Asset Cont'!$B$154:$B$199,'App.2-C_DepExp'!A38,'App.2-BA_Fixed Asset Cont'!$E$154:$E$199) -> 2281968 | J38: 44 | K38: 0.02272727273 | L38: 45 | M38: 0.02222222222 | N38: 237418.5227 | O38: 0 | P38: 25355.2 | Q38: 262773.7227 | R38: =-SUMIF('App.2-BA_Fixed Asset Cont'!$B$154:$B$199,'App.2-C_DepExp'!A38,'App.2-BA_Fixed Asset Cont'!$J$154:$J$199) -> 262774 | S38: 0.2772727273
A39: 1835 | B39: Overhead Conductors & Devices | C39: =SUMIF('App.2-BA_Fixed Asset Cont'!$B$154:$B$199,'App.2-C_DepExp'!A39,'App.2-BA_Fixed Asset Cont'!$D$154:$D$199) -> 8345730 | E39: 8345730 | H39: 0 | I39: =SUMIF('App.2-BA_Fixed Asset Cont'!$B$154:$B$199,'App.2-C_DepExp'!A39,'App.2-BA_Fixed Asset Cont'!$E$154:$E$199) -> 960049 | J39: 36 | K39: 0.02777777778 | L39: 60 | M39: 0.01666666667 | N39: 231825.8333 | O39: 0 | P39: 8000.408333 | Q39: 239826.2417 | R39: =-SUMIF('App.2-BA_Fixed Asset Cont'!$B$154:$B$199,'App.2-C_DepExp'!A39,'App.2-BA_Fixed Asset Cont'!$J$154:$J$199) -> 239826 | S39: -0.2416666667
A40: 1840 | B40: Underground Conduit | C40: =SUMIF('App.2-BA_Fixed Asset Cont'!$B$154:$B$199,'App.2-C_DepExp'!A40,'App.2-BA_Fixed Asset Cont'!$D$154:$D$199) -> 2546031 | E40: 2546031 | H40: 0 | I40: =SUMIF('App.2-BA_Fixed Asset Cont'!$B$154:$B$199,'App.2-C_DepExp'!A40,'App.2-BA_Fixed Asset Cont'!$E$154:$E$199) -> 282137 | J40: 12 | K40: 0.08333333333 | L40: 50 | M40: 0.02 | N40: 212169.25 | O40: 0 | P40: 2821.37 | Q40: 214990.62 | R40: =-SUMIF('App.2-BA_Fixed Asset Cont'!$B$154:$B$199,'App.2-C_DepExp'!A40,'App.2-BA_Fixed Asset Cont'!$J$154:$J$199) -> 214991 | S40: 0.38
A41: 1845 | B41: Underground Conductors & Devices | C41: =SUMIF('App.2-BA_Fixed Asset Cont'!$B$154:$B$199,'App.2-C_DepExp'!A41,'App.2-BA_Fixed Asset Cont'!$D$154:$D$199) -> 11437100 | E41: 11437100 | H41: 0 | I41: =SUMIF('App.2-BA_Fixed Asset Cont'!$B$154:$B$199,'App.2-C_DepExp'!A41,'App.2-BA_Fixed Asset Cont'!$E$154:$E$199) -> 582719 | J41: 23 | K41: 0.04347826087 | L41: 40 | M41: 0.025 | N41: 497265.2174 | O41: 0 | P41: 7283.9875 | Q41: 504549.2049 | R41: =-SUMIF('App.2-BA_Fixed Asset Cont'!$B$154:$B$199,'App.2-C_DepExp'!A41,'App.2-BA_Fixed Asset Cont'!$J$154:$J$199) -> 504549 | S41: -0.2048913043
A42: 1850 | B42: Line Transformers | C42: =SUMIF('App.2-BA_Fixed Asset Cont'!$B$154:$B$199,'App.2-C_DepExp'!A42,'App.2-BA_Fixed Asset Cont'!$D$154:$D$199) -> 9204093 | E42: 9204093 | H42: 0 | I42: =SUMIF('App.2-BA_Fixed Asset Cont'!$B$154:$B$199,'App.2-C_DepExp'!A42,'App.2-BA_Fixed Asset Cont'!$E$154:$E$199) -> 645934 | J42: 39 | K42: 0.02564102564 | L42: 40 | M42: 0.025 | N42: 236002.3846 | O42: 0 | P42: 8074.175 | Q42: 244076.5596 | R42: =-SUMIF('App.2-BA_Fixed Asset Cont'!$B$154:$B$199,'App.2-C_DepExp'!A42,'App.2-BA_Fixed Asset Cont'!$J$154:$J$199) -> 244077 | S42: 0.4403846154
A43: 1855 | B43: Services (Overhead & Underground) | C43: =SUMIF('App.2-BA_Fixed Asset Cont'!$B$154:$B$199,'App.2-C_DepExp'!A43,'App.2-BA_Fixed Asset Cont'!$D$154:$D$199) -> 4460589 | E43: 4460589 | H43: 0 | I43: =SUMIF('App.2-BA_Fixed Asset Cont'!$B$154:$B$199,'App.2-C_DepExp'!A43,'App.2-BA_Fixed Asset Cont'!$E$154:$E$199) -> 541557 | J43: 36 | K43: 0.02777777778 | L43: 40 | M43: 0.025 | N43: 123905.25 | O43: 0 | P43: 6769.4625 | Q43: 130674.7125 | R43: =-SUMIF('App.2-BA_Fixed Asset Cont'!$B$154:$B$199,'App.2-C_DepExp'!A43,'App.2-BA_Fixed Asset Cont'!$J$154:$J$199) -> 130675 | S43: 0.2875
A44: 1860 | B44: Meters | C44: 0 | E44: 0 | H44: 0 | I44: 0 | K44: 0 | M44: 0 | N44: 0 | O44: 0 | P44: 0 | Q44: 0 | R44: 0 | S44: 0
A45: 1860 | B45: Meters (Smart Meters) | C45: =SUMIF('App.2-BA_Fixed Asset Cont'!$B$154:$B$199,'App.2-C_DepExp'!A45,'App.2-BA_Fixed Asset Cont'!$D$154:$D$199) -> 4468973 | E45: 4468973 | H45: 0 | I45: =SUMIF('App.2-BA_Fixed Asset Cont'!$B$154:$B$199,'App.2-C_DepExp'!A45,'App.2-BA_Fixed Asset Cont'!$E$154:$E$199) -> 141089 | J45: 11 | K45: 0.09090909091 | L45: 15 | M45: 0.06666666667 | N45: 406270.2727 | O45: 0 | P45: 4702.966667 | Q45: 410973.2394 | R45: =-SUMIF('App.2-BA_Fixed Asset Cont'!$B$154:$B$199,'App.2-C_DepExp'!A45,'App.2-BA_Fixed Asset Cont'!$J$154:$J$199) -> 410973 | S45: -0.2393939394
A46: 1905 | B46: Land | C46: =SUMIF('App.2-BA_Fixed Asset Cont'!$B$154:$B$199,'App.2-C_DepExp'!A46,'App.2-BA_Fixed Asset Cont'!$D$154:$D$199) -> 0 | E46: 0 | H46: 0 | I46: =SUMIF('App.2-BA_Fixed Asset Cont'!$B$154:$B$199,'App.2-C_DepExp'!A46,'App.2-BA_Fixed Asset Cont'!$E$154:$E$199) -> 0 | J46: 0 | K46: 0 | M46: 0 | N46: 0 | O46: 0 | P46: 0 | Q46: 0 | R46: =-SUMIF('App.2-BA_Fixed Asset Cont'!$B$154:$B$199,'App.2-C_DepExp'!A46,'App.2-BA_Fixed Asset Cont'!$J$154:$J$199) -> 0 | S46: 0
A47: 1908 | B47: Buildings & Fixtures | C47: =SUMIF('App.2-BA_Fixed Asset Cont'!$B$154:$B$199,'App.2-C_DepExp'!A47,'App.2-BA_Fixed Asset Cont'!$D$154:$D$199) -> 0 | E47: 0 | H47: 0 | I47: =SUMIF('App.2-BA_Fixed Asset Cont'!$B$154:$B$199,'App.2-C_DepExp'!A47,'App.2-BA_Fixed Asset Cont'!$E$154:$E$199) -> 0 | J47: 0 | K47: 0 | M47: 0 | N47: 0 | O47: 0 | P47: 0 | Q47: 0 | R47: =-SUMIF('App.2-BA_Fixed Asset Cont'!$B$154:$B$199,'App.2-C_DepExp'!A47,'App.2-BA_Fixed Asset Cont'!$J$154:$J$199) -> 0 | S47: 0
A48: 1910 | B48: Leasehold Improvements | C48: =SUMIF('App.2-BA_Fixed Asset Cont'!$B$154:$B$199,'App.2-C_DepExp'!A48,'App.2-BA_Fixed Asset Cont'!$D$154:$D$199) -> 0 | E48: 0 | H48: 0 | I48: =SUMIF('App.2-BA_Fixed Asset Cont'!$B$154:$B$199,'App.2-C_DepExp'!A48,'App.2-BA_Fixed Asset Cont'!$E$154:$E$199) -> 0 | J48: 0 | K48: 0 | M48: 0 | N48: 0 | O48: 0 | P48: 0 | Q48: 0 | R48: =-SUMIF('App.2-BA_Fixed Asset Cont'!$B$154:$B$199,'App.2-C_DepExp'!A48,'App.2-BA_Fixed Asset Cont'!$J$154:$J$199) -> 0 | S48: 0
A49: 1915 | B49: Office Furniture & Equipment (10 years) | C49: =SUMIF('App.2-BA_Fixed Asset Cont'!$B$154:$B$199,'App.2-C_DepExp'!A49,'App.2-BA_Fixed Asset Cont'!$D$154:$D$199) -> 0 | E49: 0 | H49: 0 | I49: =SUMIF('App.2-BA_Fixed Asset Cont'!$B$154:$B$199,'App.2-C_DepExp'!A49,'App.2-BA_Fixed Asset Cont'!$E$154:$E$199) -> 0 | J49: 0 | K49: 0 | M49: 0 | N49: 0 | O49: 0 | P49: 0 | Q49: 0 | R49: =-SUMIF('App.2-BA_Fixed Asset Cont'!$B$154:$B$199,'App.2-C_DepExp'!A49,'App.2-BA_Fixed Asset Cont'!$J$154:$J$199) -> 0 | S49: 0
A50: 1915 | B50: Office Furniture & Equipment (5 years) | C50: =SUMIF('App.2-BA_Fixed Asset Cont'!$B$154:$B$199,'App.2-C_DepExp'!A50,'App.2-BA_Fixed Asset Cont'!$D$154:$D$199) -> 0 | E50: 0 | H50: 0 | I50: =SUMIF('App.2-BA_Fixed Asset Cont'!$B$154:$B$199,'App.2-C_DepExp'!A50,'App.2-BA_Fixed Asset Cont'!$E$154:$E$199) -> 0 | J50: 0 | K50: 0 | M50: 0 | N50: 0 | O50: 0 | P50: 0 | Q50: 0 | R50: =-SUMIF('App.2-BA_Fixed Asset Cont'!$B$154:$B$199,'App.2-C_DepExp'!A50,'App.2-BA_Fixed Asset Cont'!$J$154:$J$199) -> 0 | S50: 0
A51: 1920 | B51: Computer Equipment - Hardware | C51: =SUMIF('App.2-BA_Fixed Asset Cont'!$B$154:$B$199,'App.2-C_DepExp'!A51,'App.2-BA_Fixed Asset Cont'!$D$154:$D$199) -> 1361 | E51: 1361 | H51: 0 | I51: =SUMIF('App.2-BA_Fixed Asset Cont'!$B$154:$B$199,'App.2-C_DepExp'!A51,'App.2-BA_Fixed Asset Cont'!$E$154:$E$199) -> 0 | J51: 1 | K51: 1 | L51: 5 | M51: 0.2 | N51: 1361 | O51: 0 | P51: 0 | Q51: 1361 | R51: =-SUMIF('App.2-BA_Fixed Asset Cont'!$B$154:$B$199,'App.2-C_DepExp'!A51,'App.2-BA_Fixed Asset Cont'!$J$154:$J$199) -> 1361 | S51: 0
A52: 1920 | B52: Computer Equip.-Hardware(Post Mar. 22/04) | C52: 0 | E52: 0 | H52: 0 | I52: =SUMIF('App.2-BA_Fixed Asset Cont'!$B$154:$B$199,'App.2-C_DepExp'!A52,'App.2-BA_Fixed Asset Cont'!$E$154:$E$199) -> 0 | J52: 0 | K52: 0 | L52: 5 | M52: 0.2 | N52: 0 | O52: 0 | P52: 0 | Q52: 0 | R52: 0 | S52: 0
A53: 1920 | B53: Computer Equip.-Hardware(Post Mar. 19/07) | C53: 0 | E53: 0 | H53: 0 | I53: =SUMIF('App.2-BA_Fixed Asset Cont'!$B$154:$B$199,'App.2-C_DepExp'!A53,'App.2-BA_Fixed Asset Cont'!$E$154:$E$199) -> 0 | J53: 0 | K53: 0 | L53: 5 | M53: 0.2 | N53: 0 | O53: 0 | P53: 0 | Q53: 0 | R53: 0 | S53: 0
A54: 1925 | B54: Computer Software | C54: =SUMIF('App.2-BA_Fixed Asset Cont'!$B$154:$B$199,'App.2-C_DepExp'!A54,'App.2-BA_Fixed Asset Cont'!$D$154:$D$199) -> 105974 | E54: 105974 | H54: 0 | I54: =SUMIF('App.2-BA_Fixed Asset Cont'!$B$154:$B$199,'App.2-C_DepExp'!A54,'App.2-BA_Fixed Asset Cont'!$E$154:$E$199) -> 0 | J54: 1 | K54: 1 | L54: 5 | M54: 0.2 | N54: 105974 | O54: 0 | P54: 0 | Q54: 105974 | R54: =-SUMIF('App.2-BA_Fixed Asset Cont'!$B$154:$B$199,'App.2-C_DepExp'!A54,'App.2-BA_Fixed Asset Cont'!$J$154:$J$199) -> 105974 | S54: 0
A55: 1930 | B55: Transportation Equipment | C55: =SUMIF('App.2-BA_Fixed Asset Cont'!$B$154:$B$199,'App.2-C_DepExp'!A55,'App.2-BA_Fixed Asset Cont'!$D$154:$D$199) -> 0 | E55: 0 | H55: 0 | I55: =SUMIF('App.2-BA_Fixed Asset Cont'!$B$154:$B$199,'App.2-C_DepExp'!A55,'App.2-BA_Fixed Asset Cont'!$E$154:$E$199) -> 0 | J55: 0 | K55: 0 | M55: 0 | N55: 0 | O55: 0 | P55: 0 | Q55: 0 | R55: =-SUMIF('App.2-BA_Fixed Asset Cont'!$B$154:$B$199,'App.2-C_DepExp'!A55,'App.2-BA_Fixed Asset Cont'!$J$154:$J$199) -> 0 | S55: 0
A56: 1935 | B56: Stores Equipment | C56: =SUMIF('App.2-BA_Fixed Asset Cont'!$B$154:$B$199,'App.2-C_DepExp'!A56,'App.2-BA_Fixed Asset Cont'!$D$154:$D$199) -> 0 | E56: 0 | H56: 0 | I56: =SUMIF('App.2-BA_Fixed Asset Cont'!$B$154:$B$199,'App.2-C_DepExp'!A56,'App.2-BA_Fixed Asset Cont'!$E$154:$E$199) -> 0 | J56: 0 | K56: 0 | M56: 0 | N56: 0 | O56: 0 | P56: 0 | Q56: 0 | R56: =-SUMIF('App.2-BA_Fixed Asset Cont'!$B$154:$B$199,'App.2-C_DepExp'!A56,'App.2-BA_Fixed Asset Cont'!$J$154:$J$199) -> 0 | S56: 0
A57: 1940 | B57: Tools, Shop & Garage Equipment | C57: =SUMIF('App.2-BA_Fixed Asset Cont'!$B$154:$B$199,'App.2-C_DepExp'!A57,'App.2-BA_Fixed Asset Cont'!$D$154:$D$199) -> 0 | E57: 0 | H57: 0 | I57: =SUMIF('App.2-BA_Fixed Asset Cont'!$B$154:$B$199,'App.2-C_DepExp'!A57,'App.2-BA_Fixed Asset Cont'!$E$154:$E$199) -> 0 | J57: 0 | K57: 0 | M57: 0 | N57: 0 | O57: 0 | P57: 0 | Q57: 0 | R57: =-SUMIF('App.2-BA_Fixed Asset Cont'!$B$154:$B$199,'App.2-C_DepExp'!A57,'App.2-BA_Fixed Asset Cont'!$J$154:$J$199) -> 0 | S57: 0
A58: 1945 | B58: Measurement & Testing Equipment | C58: =SUMIF('App.2-BA_Fixed Asset Cont'!$B$154:$B$199,'App.2-C_DepExp'!A58,'App.2-BA_Fixed Asset Cont'!$D$154:$D$199) -> 0 | E58: 0 | H58: 0 | I58: =SUMIF('App.2-BA_Fixed Asset Cont'!$B$154:$B$199,'App.2-C_DepExp'!A58,'App.2-BA_Fixed Asset Cont'!$E$154:$E$199) -> 0 | J58: 0 | K58: 0 | M58: 0 | N58: 0 | O58: 0 | P58: 0 | Q58: 0 | R58: =-SUMIF('App.2-BA_Fixed Asset Cont'!$B$154:$B$199,'App.2-C_DepExp'!A58,'App.2-BA_Fixed Asset Cont'!$J$154:$J$199) -> 0 | S58: 0
A59: 1950 | B59: Power Operated Equipment | C59: =SUMIF('App.2-BA_Fixed Asset Cont'!$B$154:$B$199,'App.2-C_DepExp'!A59,'App.2-BA_Fixed Asset Cont'!$D$154:$D$199) -> 0 | E59: 0 | H59: 0 | I59: =SUMIF('App.2-BA_Fixed Asset Cont'!$B$154:$B$199,'App.2-C_DepExp'!A59,'App.2-BA_Fixed Asset Cont'!$E$154:$E$199) -> 0 | J59: 0 | K59: 0 | M59: 0 | N59: 0 | O59: 0 | P59: 0 | Q59: 0 | R59: =-SUMIF('App.2-BA_Fixed Asset Cont'!$B$154:$B$199,'App.2-C_DepExp'!A59,'App.2-BA_Fixed Asset Cont'!$J$154:$J$199) -> 0 | S59: 0
A60: 1955 | B60: Communications Equipment | C60: =SUMIF('App.2-BA_Fixed Asset Cont'!$B$154:$B$199,'App.2-C_DepExp'!A60,'App.2-BA_Fixed Asset Cont'!$D$154:$D$199) -> 0 | E60: 0 | H60: 0 | I60: =SUMIF('App.2-BA_Fixed Asset Cont'!$B$154:$B$199,'App.2-C_DepExp'!A60,'App.2-BA_Fixed Asset Cont'!$E$154:$E$199) -> 0 | J60: 0 | K60: 0 | M60: 0 | N60: 0 | O60: 0 | P60: 0 | Q60: 0 | R60: =-SUMIF('App.2-BA_Fixed Asset Cont'!$B$154:$B$199,'App.2-C_DepExp'!A60,'App.2-BA_Fixed Asset Cont'!$J$154:$J$199) -> 0 | S60: 0
A61: 1955 | B61: Communication Equipment (Smart Meters) | C61: =SUMIF('App.2-BA_Fixed Asset Cont'!$B$154:$B$199,'App.2-C_DepExp'!A61,'App.2-BA_Fixed Asset Cont'!$D$154:$D$199) -> 0 | E61: 0 | H61: 0 | I61: =SUMIF('App.2-BA_Fixed Asset Cont'!$B$154:$B$199,'App.2-C_DepExp'!A61,'App.2-BA_Fixed Asset Cont'!$E$154:$E$199) -> 0 | J61: 0 | K61: 0 | M61: 0 | N61: 0 | O61: 0 | P61: 0 | Q61: 0 | R61: =-SUMIF('App.2-BA_Fixed Asset Cont'!$B$154:$B$199,'App.2-C_DepExp'!A61,'App.2-BA_Fixed Asset Cont'!$J$154:$J$199) -> 0 | S61: 0
A62: 1960 | B62: Miscellaneous Equipment | C62: =SUMIF('App.2-BA_Fixed Asset Cont'!$B$154:$B$199,'App.2-C_DepExp'!A62,'App.2-BA_Fixed Asset Cont'!$D$154:$D$199) -> 0 | E62: 0 | H62: 0 | I62: =SUMIF('App.2-BA_Fixed Asset Cont'!$B$154:$B$199,'App.2-C_DepExp'!A62,'App.2-BA_Fixed Asset Cont'!$E$154:$E$199) -> 0 | J62: 0 | K62: 0 | M62: 0 | N62: 0 | O62: 0 | P62: 0 | Q62: 0 | R62: =-SUMIF('App.2-BA_Fixed Asset Cont'!$B$154:$B$199,'App.2-C_DepExp'!A62,'App.2-BA_Fixed Asset Cont'!$J$154:$J$199) -> 0 | S62: 0
A63: 1970 | B63: Load Management Controls Customer Premises | C63: =SUMIF('App.2-BA_Fixed Asset Cont'!$B$154:$B$199,'App.2-C_DepExp'!A63,'App.2-BA_Fixed Asset Cont'!$D$154:$D$199) -> 0 | E63: 0 | H63: 0 | I63: =SUMIF('App.2-BA_Fixed Asset Cont'!$B$154:$B$199,'App.2-C_DepExp'!A63,'App.2-BA_Fixed Asset Cont'!$E$154:$E$199) -> 0 | J63: 0 | K63: 0 | M63: 0 | N63: 0 | O63: 0 | P63: 0 | Q63: 0 | R63: =-SUMIF('App.2-BA_Fixed Asset Cont'!$B$154:$B$199,'App.2-C_DepExp'!A63,'App.2-BA_Fixed Asset Cont'!$J$154:$J$199) -> 0 | S63: 0
A64: 1975 | B64: Load Management Controls Utility Premises | C64: =SUMIF('App.2-BA_Fixed Asset Cont'!$B$154:$B$199,'App.2-C_DepExp'!A64,'App.2-BA_Fixed Asset Cont'!$D$154:$D$199) -> 0 | E64: 0 | H64: 0 | I64: =SUMIF('App.2-BA_Fixed Asset Cont'!$B$154:$B$199,'App.2-C_DepExp'!A64,'App.2-BA_Fixed Asset Cont'!$E$154:$E$199) -> 0 | J64: 0 | K64: 0 | M64: 0 | N64: 0 | O64: 0 | P64: 0 | Q64: 0 | R64: =-SUMIF('App.2-BA_Fixed Asset Cont'!$B$154:$B$199,'App.2-C_DepExp'!A64,'App.2-BA_Fixed Asset Cont'!$J$154:$J$199) -> 0 | S64: 0
A65: 1980 | B65: System Supervisor Equipment | C65: =SUMIF('App.2-BA_Fixed Asset Cont'!$B$154:$B$199,'App.2-C_DepExp'!A65,'App.2-BA_Fixed Asset Cont'!$D$154:$D$199) -> 1381611 | E65: 1381611 | H65: 0 | I65: =SUMIF('App.2-BA_Fixed Asset Cont'!$B$154:$B$199,'App.2-C_DepExp'!A65,'App.2-BA_Fixed Asset Cont'!$E$154:$E$199) -> 156593 | J65: 6 | K65: 0.1666666667 | L65: 20 | M65: 0.05 | N65: 230268.5 | O65: 0 | P65: 3914.825 | Q65: 234183.325 | R65: =-SUMIF('App.2-BA_Fixed Asset Cont'!$B$154:$B$199,'App.2-C_DepExp'!A65,'App.2-BA_Fixed Asset Cont'!$J$154:$J$199) -> 234183 | S65: -0.325
A66: 1985 | B66: Miscellaneous Fixed Assets | C66: =SUMIF('App.2-BA_Fixed Asset Cont'!$B$154:$B$199,'App.2-C_DepExp'!A66,'App.2-BA_Fixed Asset Cont'!$D$154:$D$199) -> 0 | E66: 0 | H66: 0 | I66: =SUMIF('App.2-BA_Fixed Asset Cont'!$B$154:$B$199,'App.2-C_DepExp'!A66,'App.2-BA_Fixed Asset Cont'!$E$154:$E$199) -> 0 | J66: 0 | K66: 0 | M66: 0 | N66: 0 | O66: 0 | P66: 0 | Q66: 0 | R66: =-SUMIF('App.2-BA_Fixed Asset Cont'!$B$154:$B$199,'App.2-C_DepExp'!A66,'App.2-BA_Fixed Asset Cont'!$J$154:$J$199) -> 0 | S66: 0
A67: 1990 | B67: Other Tangible Property | C67: =SUMIF('App.2-BA_Fixed Asset Cont'!$B$154:$B$199,'App.2-C_DepExp'!A67,'App.2-BA_Fixed Asset Cont'!$D$154:$D$199) -> 0 | E67: 0 | H67: 0 | I67: =SUMIF('App.2-BA_Fixed Asset Cont'!$B$154:$B$199,'App.2-C_DepExp'!A67,'App.2-BA_Fixed Asset Cont'!$E$154:$E$199) -> 0 | J67: 0 | K67: 0 | M67: 0 | N67: 0 | O67: 0 | P67: 0 | Q67: 0 | R67: =-SUMIF('App.2-BA_Fixed Asset Cont'!$B$154:$B$199,'App.2-C_DepExp'!A67,'App.2-BA_Fixed Asset Cont'!$J$154:$J$199) -> 0 | S67: 0
A68: 1995 | B68: Contributions & Grants | C68: =SUMIF('App.2-BA_Fixed Asset Cont'!$B$154:$B$199,'App.2-C_DepExp'!A68,'App.2-BA_Fixed Asset Cont'!$D$154:$D$199) -> -11161740 | E68: -11161740 | H68: 0 | I68: =SUMIF('App.2-BA_Fixed Asset Cont'!$B$154:$B$199,'App.2-C_DepExp'!A68,'App.2-BA_Fixed Asset Cont'!$E$154:$E$199) -> 0 | J68: 34 | K68: 0.02941176471 | L68: 40 | M68: 0.025 | N68: -328286.4706 | O68: 0 | P68: 0 | Q68: -328286.4706 | R68: =-SUMIF('App.2-BA_Fixed Asset Cont'!$B$154:$B$199,'App.2-C_DepExp'!A68,'App.2-BA_Fixed Asset Cont'!$J$154:$J$199) -> -328286 | S68: 0.4705882353
B69: Total | C69: =SUM(C24:C68) -> 82778268 | D69: =SUM(D24:D68) -> 0 | E69: 82778268 | F69: 0 | G69: 0 | H69: 0 | I69: 7706779 | N69: =SUM(N24:N68) -> 3287385.03 | O69: 0 | P69: 92659.4475 | Q69: 3380044.478 | R69: 3380045 | S69: 0.5223535723
A74: Scenario that applies | C74: Applicable Years and Accounting Standard | R74: Year Reflected in Schedule Below | S74: Accounting Standard Reflected in Schedule Below | Y74: 2012
A75: Rebasing for the first time with depreciation policy changes made in 2012. | C75: This appendix must be duplicated and completed for the years 2012 to 2018. The appendix for 2012 is to be completed under CGAAP (prior to changes in depreciation policies). The appendix for 2012 to 2014 must be completed under Revised CGAAP (after changes in depreciation policies). The appendix for 2014 to 2018 is to be completed under MIFRS (2014 if changes to MIFRS are material). | Y75: 2013
A76: Rebasing for the first time with depreciation policy changes made in 2013. | C76: This appendix must be duplicated and completed for the years 2013 to 2018. The appendix for 2013 is to be completed under CGAAP (prior to changes in depreciation policies). The appendix for 2013 to 2014 must be completed under Revised CGAAP (after changes in depreciation policies). The appendix for 2014 to 2018 is to be completed under MIFRS (2014 if changes to MIFRS are material). | Y76: 2014
A77: Already rebased with depreciation policy changes in a prior rate application | C77: This appendix must be completed for 2014 to 2018. The appendix for 2014 is to be completed under Revised CGAAP (after changes in depreciation policies). The appendix for 2014 to 2018 is to be completed under MIFRS (2014 if changes to MIFRS are material). | R77: 2014 | S77: MIFRS | Y77: 2015
Y78: 2016
Y79: 2017
C80: Book Values | J80: Service Lives | N80: Depreciation Expense | Y80: 2018
A81: Account | B81: Description | C81: Opening Net Book Value of Existing Assets as at Date of Policy Change (Jan. 1) 1 | D81: Less Fully Depreciated 7 | E81: Net Amount of Existing Assets Before Policy Change to be Depreciated | F81: Opening Gross Book Value of Assets Acquired After Policy Change 2 | G81: Less Fully Depreciated 8 | H81: Net Amount of Assets Acquired After Policy Change to be Depreciated | I81: Current Year Additions | J81: Average Remaining Life of Assets Existing Before Policy Change 3 | K81: Depreciation Rate Assets Acquired After Policy Change | L81: Life of Assets Acquired After Policy Change 4 | M81: Depreciation Rate on New Additions | N81: Depreciation Expense on Assets Existing Before Policy Change | O81: Depreciation Expense on Assets Acquired After Policy Change | P81: Depreciation Expense on Current Year Additions 5 | Q81: Total Current Year Depreciation Expense | R81: Depreciation Expense per Appendix 2-BA Fixed Assets, Column J | S81: Variance 6
C82: a | D82: b | E82: c = a-b | F82: d | G82: e | H82: f = d- e | I82: g | J82: h | K82: i = 1/h | L82: j | M82: k = 1/j | N82: l = c/h | O82: m = f/j | P82: n = g*0.5/j | Q82: o = l+m+n | R82: p | S82: q = p-o
A83: 1706 | B83: Land Rights | C83: =SUMIF('App.2-BA_Fixed Asset Cont'!$B$154:$B$199,'App.2-C_DepExp'!A83,'App.2-BA_Fixed Asset Cont'!$D$154:$D$199) -> 602307 | E83: =C83-D83 -> 602307 | H83: =F83-G83 -> 0 | I83: =SUMIF('App.2-BA_Fixed Asset Cont'!$B$154:$B$199,'App.2-C_DepExp'!A83,'App.2-BA_Fixed Asset Cont'!$E$154:$E$199) -> 0 | K83: =IF(J83=0,0,1/J83) -> 0 | L83: 0 | M83: =IF(L83=0,0,1/L83) -> 0 | N83: =IF(J83=0,0,+E83/J83) -> 0 | O83: =IF(L83=0,0,+H83/L83) -> 0 | P83: =IF(L83=0,0,+(I83*0.5)/L83) -> 0 | Q83: =IF(ISERROR(+N83+O83+P83), 0, +N83+O83+P83) -> 0 | R83: =-SUMIF('App.2-BA_Fixed Asset Cont'!$B$154:$B$199,'App.2-C_DepExp'!A83,'App.2-BA_Fixed Asset Cont'!$J$154:$J$199) -> 0 | S83: =IF(ISERROR(+R83-122), 0, +R83-Q83) -> 0
A84: 1725 | B84: Poles and Fixtures | C84: =SUMIF('App.2-BA_Fixed Asset Cont'!$B$154:$B$199,'App.2-C_DepExp'!A84,'App.2-BA_Fixed Asset Cont'!$D$154:$D$199) -> 1604340 | E84: 1604340 | H84: 0 | I84: =SUMIF('App.2-BA_Fixed Asset Cont'!$B$154:$B$199,'App.2-C_DepExp'!A84,'App.2-BA_Fixed Asset Cont'!$E$154:$E$199) -> 0 | J84: 41 | K84: 0.0243902439 | L84: 45 | M84: 0.02222222222 | N84: 39130.2439 | O84: 0 | P84: 0 | Q84: 39130.2439 | R84: =-SUMIF('App.2-BA_Fixed Asset Cont'!$B$154:$B$199,'App.2-C_DepExp'!A84,'App.2-BA_Fixed Asset Cont'!$J$154:$J$199) -> 39130 | S84: =IF(ISERROR(+R84-122), 0, +R84-Q84) -> -0.243902439
A85: 1730 | B85: Overhead Conductors & Devices | C85: =SUMIF('App.2-BA_Fixed Asset Cont'!$B$154:$B$199,'App.2-C_DepExp'!A85,'App.2-BA_Fixed Asset Cont'!$D$154:$D$199) -> 63894 | E85: 63894 | H85: 0 | I85: =SUMIF('App.2-BA_Fixed Asset Cont'!$B$154:$B$199,'App.2-C_DepExp'!A85,'App.2-BA_Fixed Asset Cont'!$E$154:$E$199) -> 0 | J85: 32 | K85: 0.03125 | L85: 45 | M85: 0.02222222222 | N85: 1996.6875 | O85: 0 | P85: 0 | Q85: 1996.6875 | R85: =-SUMIF('App.2-BA_Fixed Asset Cont'!$B$154:$B$199,'App.2-C_DepExp'!A85,'App.2-BA_Fixed Asset Cont'!$J$154:$J$199) -> 1997 | S85: =IF(ISERROR(+R85-122), 0, +R85-Q85) -> 0.3125
A86: 1735 | B86: Underground Conduit | C86: =SUMIF('App.2-BA_Fixed Asset Cont'!$B$154:$B$199,'App.2-C_DepExp'!A86,'App.2-BA_Fixed Asset Cont'!$D$154:$D$199) -> 870021 | E86: 870021 | H86: 0 | I86: =SUMIF('App.2-BA_Fixed Asset Cont'!$B$154:$B$199,'App.2-C_DepExp'!A86,'App.2-BA_Fixed Asset Cont'!$E$154:$E$199) -> 0 | J86: 35 | K86: 0.02857142857 | L86: 40 | M86: 0.025 | N86: 24857.74286 | O86: 0 | P86: 0 | Q86: 24857.74286 | R86: =-SUMIF('App.2-BA_Fixed Asset Cont'!$B$154:$B$199,'App.2-C_DepExp'!A86,'App.2-BA_Fixed Asset Cont'!$J$154:$J$199) -> 24858 | S86: 0.2571428571
A87: 1740 | B87: Underground Conductors & Devices | C87: =SUMIF('App.2-BA_Fixed Asset Cont'!$B$154:$B$199,'App.2-C_DepExp'!A87,'App.2-BA_Fixed Asset Cont'!$D$154:$D$199) -> 215252 | E87: 215252 | H87: 0 | I87: =SUMIF('App.2-BA_Fixed Asset Cont'!$B$154:$B$199,'App.2-C_DepExp'!A87,'App.2-BA_Fixed Asset Cont'!$E$154:$E$199) -> 0 | J87: 22 | K87: 0.04545454545 | L87: 25 | M87: 0.04 | N87: 9784.181818 | O87: 0 | P87: 0 | Q87: 9784.181818 | R87: =-SUMIF('App.2-BA_Fixed Asset Cont'!$B$154:$B$199,'App.2-C_DepExp'!A87,'App.2-BA_Fixed Asset Cont'!$J$154:$J$199) -> 9784 | S87: -0.1818181818
A88: 1611 | B88: Computer Software (Formally known as Account 1925) | C88: =SUMIF('App.2-BA_Fixed Asset Cont'!$B$154:$B$199,'App.2-C_DepExp'!A88,'App.2-BA_Fixed Asset Cont'!$D$154:$D$199) -> 0 | E88: =C88-D88 -> 0 | H88: =F88-G88 -> 0 | I88: =SUMIF('App.2-BA_Fixed Asset Cont'!$B$154:$B$199,'App.2-C_DepExp'!A88,'App.2-BA_Fixed Asset Cont'!$E$154:$E$199) -> 0 | J88: 0 | K88: =IF(J88=0,0,1/J88) -> 0 | L88: 0 | M88: =IF(L88=0,0,1/L88) -> 0 | N88: =IF(J88=0,0,+E88/J88) -> 0 | O88: =IF(L88=0,0,+H88/L88) -> 0 | P88: =IF(L88=0,0,+(I88*0.5)/L88) -> 0 | Q88: =IF(ISERROR(+N88+O88+P88), 0, +N88+O88+P88) -> 0 | R88: =-SUMIF('App.2-BA_Fixed Asset Cont'!$B$154:$B$199,'App.2-C_DepExp'!A88,'App.2-BA_Fixed Asset Cont'!$J$154:$J$199) -> 0 | S88: =IF(ISERROR(+R88-122), 0, +R88-Q88) -> 0
A89: 1612 | B89: Land Rights (Formally known as Account 1906) | C89: =SUMIF('App.2-BA_Fixed Asset Cont'!$B$154:$B$199,'App.2-C_DepExp'!A89,'App.2-BA_Fixed Asset Cont'!$D$154:$D$199) -> 0 | E89: =C89-D89 -> 0 | H89: =F89-G89 -> 0 | I89: =SUMIF('App.2-BA_Fixed Asset Cont'!$B$154:$B$199,'App.2-C_DepExp'!A89,'App.2-BA_Fixed Asset Cont'!$E$154:$E$199) -> 0 | J89: 0 | K89: =IF(J89=0,0,1/J89) -> 0 | L89: 0 | M89: =IF(L89=0,0,1/L89) -> 0 | N89: =IF(J89=0,0,+E89/J89) -> 0 | O89: =IF(L89=0,0,+H89/L89) -> 0 | P89: =IF(L89=0,0,+(I89*0.5)/L89) -> 0 | Q89: =IF(ISERROR(+N89+O89+P89), 0, +N89+O89+P89) -> 0 | R89: =-SUMIF('App.2-BA_Fixed Asset Cont'!$B$154:$B$199,'App.2-C_DepExp'!A89,'App.2-BA_Fixed Asset Cont'!$J$154:$J$199) -> 0 | S89: =IF(ISERROR(+R89-122), 0, +R89-Q89) -> 0
A90: 1805 | B90: Land | C90: =SUMIF('App.2-BA_Fixed Asset Cont'!$B$154:$B$199,'App.2-C_DepExp'!A90,'App.2-BA_Fixed Asset Cont'!$D$154:$D$199) -> 89160 | E90: 89160 | H90: 0 | I90: =SUMIF('App.2-BA_Fixed Asset Cont'!$B$154:$B$199,'App.2-C_DepExp'!A90,'App.2-BA_Fixed Asset Cont'!$E$154:$E$199) -> 0 | J90: 0 | K90: 0 | L90: 0 | M90: 0 | N90: 0 | O90: =IF(L90=0,0,+H90/L90) -> 0 | P90: 0 | Q90: 0 | R90: =-SUMIF('App.2-BA_Fixed Asset Cont'!$B$154:$B$199,'App.2-C_DepExp'!A90,'App.2-BA_Fixed Asset Cont'!$J$154:$J$199) -> 0 | S90: 0
A91: 1806 | B91: Land Rights | C91: =SUMIF('App.2-BA_Fixed Asset Cont'!$B$154:$B$199,'App.2-C_DepExp'!A91,'App.2-BA_Fixed Asset Cont'!$D$154:$D$199) -> 154128 | E91: 154128 | H91: 0 | I91: =SUMIF('App.2-BA_Fixed Asset Cont'!$B$154:$B$199,'App.2-C_DepExp'!A91,'App.2-BA_Fixed Asset Cont'!$E$154:$E$199) -> 6798 | J91: 0 | K91: 0 | L91: 0 | M91: 0 | N91: 0 | O91: 0 | P91: 0 | Q91: 0 | R91: =-SUMIF('App.2-BA_Fixed Asset Cont'!$B$154:$B$199,'App.2-C_DepExp'!A91,'App.2-BA_Fixed Asset Cont'!$J$154:$J$199) -> 0 | S91: 0
A92: 1808 | B92: Buildings | C92: =SUMIF('App.2-BA_Fixed Asset Cont'!$B$154:$B$199,'App.2-C_DepExp'!A92,'App.2-BA_Fixed Asset Cont'!$D$154:$D$199) -> 24624967 | E92: 24624967 | H92: 0 | I92: =SUMIF('App.2-BA_Fixed Asset Cont'!$B$154:$B$199,'App.2-C_DepExp'!A92,'App.2-BA_Fixed Asset Cont'!$E$154:$E$199) -> 244854 | J92: 36.5981 | K92: 0.02732382282 | L92: 50 | M92: 0.02 | N92: 672848.2353 | O92: 0 | P92: 2448.54 | Q92: 675296.7753 | R92: =-SUMIF('App.2-BA_Fixed Asset Cont'!$B$154:$B$199,'App.2-C_DepExp'!A92,'App.2-BA_Fixed Asset Cont'!$J$154:$J$199) -> 675297 | S92: =IF(ISERROR(+R92-122), 0, +R92-Q92) -> 0.2247090969
A93: 1810 | B93: Leasehold Improvements | C93: =SUMIF('App.2-BA_Fixed Asset Cont'!$B$154:$B$199,'App.2-C_DepExp'!A93,'App.2-BA_Fixed Asset Cont'!$D$154:$D$199) -> 0 | E93: 0 | H93: 0 | I93: =SUMIF('App.2-BA_Fixed Asset Cont'!$B$154:$B$199,'App.2-C_DepExp'!A93,'App.2-BA_Fixed Asset Cont'!$E$154:$E$199) -> 0 | J93: 0 | K93: 0 | L93: 0 | M93: 0 | N93: 0 | O93: 0 | P93: 0 | Q93: 0 | R93: =-SUMIF('App.2-BA_Fixed Asset Cont'!$B$154:$B$199,'App.2-C_DepExp'!A93,'App.2-BA_Fixed Asset Cont'!$J$154:$J$199) -> 0 | S93: 0
A94: 1815 | B94: Transformer Station Equipment >50 kV | C94: =SUMIF('App.2-BA_Fixed Asset Cont'!$B$154:$B$199,'App.2-C_DepExp'!A94,'App.2-BA_Fixed Asset Cont'!$D$154:$D$199) -> 5491722 | E94: 5491722 | H94: 0 | I94: =SUMIF('App.2-BA_Fixed Asset Cont'!$B$154:$B$199,'App.2-C_DepExp'!A94,'App.2-BA_Fixed Asset Cont'!$E$154:$E$199) -> 617923 | J94: 24 | K94: 0.04166666667 | L94: 40 | M94: 0.025 | N94: 228821.75 | O94: 0 | P94: 7724.0375 | Q94: 236545.7875 | R94: =-SUMIF('App.2-BA_Fixed Asset Cont'!$B$154:$B$199,'App.2-C_DepExp'!A94,'App.2-BA_Fixed Asset Cont'!$J$154:$J$199) -> 236546 | S94: 0.2125
A95: 1820 | B95: Distribution Station Equipment <50 kV | C95: =SUMIF('App.2-BA_Fixed Asset Cont'!$B$154:$B$199,'App.2-C_DepExp'!A95,'App.2-BA_Fixed Asset Cont'!$D$154:$D$199) -> 7812618 | E95: 7812618 | H95: 0 | I95: =SUMIF('App.2-BA_Fixed Asset Cont'!$B$154:$B$199,'App.2-C_DepExp'!A95,'App.2-BA_Fixed Asset Cont'!$E$154:$E$199) -> 1245158 | J95: 22 | K95: 0.04545454545 | L95: 40 | M95: 0.025 | N95: 355119 | O95: 0 | P95: 15564.475 | Q95: 370683.475 | R95: =-SUMIF('App.2-BA_Fixed Asset Cont'!$B$154:$B$199,'App.2-C_DepExp'!A95,'App.2-BA_Fixed Asset Cont'!$J$154:$J$199) -> 370683 | S95: -0.475
A96: 1825 | B96: Storage Battery Equipment | C96: =SUMIF('App.2-BA_Fixed Asset Cont'!$B$154:$B$199,'App.2-C_DepExp'!A96,'App.2-BA_Fixed Asset Cont'!$D$154:$D$199) -> 13722 | E96: 13722 | H96: 0 | I96: =SUMIF('App.2-BA_Fixed Asset Cont'!$B$154:$B$199,'App.2-C_DepExp'!A96,'App.2-BA_Fixed Asset Cont'!$E$154:$E$199) -> 0 | J96: 21 | K96: 0.04761904762 | L96: 30 | M96: 0.03333333333 | N96: 653.4285714 | O96: 0 | P96: 0 | Q96: 653.4285714 | R96: =-SUMIF('App.2-BA_Fixed Asset Cont'!$B$154:$B$199,'App.2-C_DepExp'!A96,'App.2-BA_Fixed Asset Cont'!$J$154:$J$199) -> 653 | S96: -0.4285714286
A97: 1830 | B97: Poles, Towers & Fixtures | C97: =SUMIF('App.2-BA_Fixed Asset Cont'!$B$154:$B$199,'App.2-C_DepExp'!A97,'App.2-BA_Fixed Asset Cont'!$D$154:$D$199) -> 10446415 | E97: 10446415 | H97: 0 | I97: =SUMIF('App.2-BA_Fixed Asset Cont'!$B$154:$B$199,'App.2-C_DepExp'!A97,'App.2-BA_Fixed Asset Cont'!$E$154:$E$199) -> 2281968 | J97: 44 | K97: 0.02272727273 | L97: 45 | M97: 0.02222222222 | N97: 237418.5227 | O97: 0 | P97: 25355.2 | Q97: 262773.7227 | R97: =-SUMIF('App.2-BA_Fixed Asset Cont'!$B$154:$B$199,'App.2-C_DepExp'!A97,'App.2-BA_Fixed Asset Cont'!$J$154:$J$199) -> 262774 | S97: 0.2772727273
A98: 1835 | B98: Overhead Conductors & Devices | C98: =SUMIF('App.2-BA_Fixed Asset Cont'!$B$154:$B$199,'App.2-C_DepExp'!A98,'App.2-BA_Fixed Asset Cont'!$D$154:$D$199) -> 8345730 | E98: 8345730 | H98: 0 | I98: =SUMIF('App.2-BA_Fixed Asset Cont'!$B$154:$B$199,'App.2-C_DepExp'!A98,'App.2-BA_Fixed Asset Cont'!$E$154:$E$199) -> 960049 | J98: 36 | K98: 0.02777777778 | L98: 60 | M98: 0.01666666667 | N98: 231825.8333 | O98: 0 | P98: 8000.408333 | Q98: 239826.2417 | R98: =-SUMIF('App.2-BA_Fixed Asset Cont'!$B$154:$B$199,'App.2-C_DepExp'!A98,'App.2-BA_Fixed Asset Cont'!$J$154:$J$199) -> 239826 | S98: -0.2416666667
A99: 1840 | B99: Underground Conduit | C99: =SUMIF('App.2-BA_Fixed Asset Cont'!$B$154:$B$199,'App.2-C_DepExp'!A99,'App.2-BA_Fixed Asset Cont'!$D$154:$D$199) -> 2546031 | E99: 2546031 | H99: 0 | I99: =SUMIF('App.2-BA_Fixed Asset Cont'!$B$154:$B$199,'App.2-C_DepExp'!A99,'App.2-BA_Fixed Asset Cont'!$E$154:$E$199) -> 282137 | J99: 12 | K99: 0.08333333333 | L99: 50 | M99: 0.02 | N99: 212169.25 | O99: 0 | P99: 2821.37 | Q99: 214990.62 | R99: =-SUMIF('App.2-BA_Fixed Asset Cont'!$B$154:$B$199,'App.2-C_DepExp'!A99,'App.2-BA_Fixed Asset Cont'!$J$154:$J$199) -> 214991 | S99: 0.38
A100: 1845 | B100: Underground Conductors & Devices | C100: =SUMIF('App.2-BA_Fixed Asset Cont'!$B$154:$B$199,'App.2-C_DepExp'!A100,'App.2-BA_Fixed Asset Cont'!$D$154:$D$199) -> 11437100 | E100: 11437100 | H100: 0 | I100: =SUMIF('App.2-BA_Fixed Asset Cont'!$B$154:$B$199,'App.2-C_DepExp'!A100,'App.2-BA_Fixed Asset Cont'!$E$154:$E$199) -> 582719 | J100: 23 | K100: 0.04347826087 | L100: 40 | M100: 0.025 | N100: 497265.2174 | O100: 0 | P100: 7283.9875 | Q100: 504549.2049 | R100: =-SUMIF('App.2-BA_Fixed Asset Cont'!$B$154:$B$199,'App.2-C_DepExp'!A100,'App.2-BA_Fixed Asset Cont'!$J$154:$J$199) -> 504549 | S100: -0.2048913043
A101: 1850 | B101: Line Transformers | C101: =SUMIF('App.2-BA_Fixed Asset Cont'!$B$154:$B$199,'App.2-C_DepExp'!A101,'App.2-BA_Fixed Asset Cont'!$D$154:$D$199) -> 9204093 | E101: 9204093 | H101: 0 | I101: =SUMIF('App.2-BA_Fixed Asset Cont'!$B$154:$B$199,'App.2-C_DepExp'!A101,'App.2-BA_Fixed Asset Cont'!$E$154:$E$199) -> 645934 | J101: 39 | K101: 0.02564102564 | L101: 40 | M101: 0.025 | N101: 236002.3846 | O101: 0 | P101: 8074.175 | Q101: 244076.5596 | R101: =-SUMIF('App.2-BA_Fixed Asset Cont'!$B$154:$B$199,'App.2-C_DepExp'!A101,'App.2-BA_Fixed Asset Cont'!$J$154:$J$199) -> 244077 | S101: 0.4403846154
A102: 1855 | B102: Services (Overhead & Underground) | C102: =SUMIF('App.2-BA_Fixed Asset Cont'!$B$154:$B$199,'App.2-C_DepExp'!A102,'App.2-BA_Fixed Asset Cont'!$D$154:$D$199) -> 4460589 | E102: 4460589 | H102: 0 | I102: =SUMIF('App.2-BA_Fixed Asset Cont'!$B$154:$B$199,'App.2-C_DepExp'!A102,'App.2-BA_Fixed Asset Cont'!$E$154:$E$199) -> 541557 | J102: 36 | K102: 0.02777777778 | L102: 40 | M102: 0.025 | N102: 123905.25 | O102: 0 | P102: 6769.4625 | Q102: 130674.7125 | R102: =-SUMIF('App.2-BA_Fixed Asset Cont'!$B$154:$B$199,'App.2-C_DepExp'!A102,'App.2-BA_Fixed Asset Cont'!$J$154:$J$199) -> 130675 | S102: 0.2875
A103: 1860 | B103: Meters | C103: 0 | E103: 0 | H103: 0 | I103: 0 | K103: 0 | M103: 0 | N103: 0 | O103: 0 | P103: 0 | Q103: 0 | R103: 0 | S103: 0
A104: 1860 | B104: Meters (Smart Meters) | C104: =SUMIF('App.2-BA_Fixed Asset Cont'!$B$154:$B$199,'App.2-C_DepExp'!A104,'App.2-BA_Fixed Asset Cont'!$D$154:$D$199) -> 4468973 | E104: 4468973 | H104: 0 | I104: =SUMIF('App.2-BA_Fixed Asset Cont'!$B$154:$B$199,'App.2-C_DepExp'!A104,'App.2-BA_Fixed Asset Cont'!$E$154:$E$199) -> 141089 | J104: 11 | K104: 0.09090909091 | L104: 15 | M104: 0.06666666667 | N104: 406270.2727 | O104: 0 | P104: 4702.966667 | Q104: 410973.2394 | R104: =-SUMIF('App.2-BA_Fixed Asset Cont'!$B$154:$B$199,'App.2-C_DepExp'!A104,'App.2-BA_Fixed Asset Cont'!$J$154:$J$199) -> 410973 | S104: -0.2393939394
A105: 1905 | B105: Land | C105: =SUMIF('App.2-BA_Fixed Asset Cont'!$B$154:$B$199,'App.2-C_DepExp'!A105,'App.2-BA_Fixed Asset Cont'!$D$154:$D$199) -> 0 | E105: 0 | H105: 0 | I105: =SUMIF('App.2-BA_Fixed Asset Cont'!$B$154:$B$199,'App.2-C_DepExp'!A105,'App.2-BA_Fixed Asset Cont'!$E$154:$E$199) -> 0 | J105: 0 | K105: 0 | M105: 0 | N105: 0 | O105: 0 | P105: 0 | Q105: 0 | R105: =-SUMIF('App.2-BA_Fixed Asset Cont'!$B$154:$B$199,'App.2-C_DepExp'!A105,'App.2-BA_Fixed Asset Cont'!$J$154:$J$199) -> 0 | S105: 0
A106: 1908 | B106: Buildings & Fixtures | C106: =SUMIF('App.2-BA_Fixed Asset Cont'!$B$154:$B$199,'App.2-C_DepExp'!A106,'App.2-BA_Fixed Asset Cont'!$D$154:$D$199) -> 0 | E106: 0 | H106: 0 | I106: =SUMIF('App.2-BA_Fixed Asset Cont'!$B$154:$B$199,'App.2-C_DepExp'!A106,'App.2-BA_Fixed Asset Cont'!$E$154:$E$199) -> 0 | J106: 0 | K106: 0 | M106: 0 | N106: 0 | O106: 0 | P106: 0 | Q106: 0 | R106: =-SUMIF('App.2-BA_Fixed Asset Cont'!$B$154:$B$199,'App.2-C_DepExp'!A106,'App.2-BA_Fixed Asset Cont'!$J$154:$J$199) -> 0 | S106: 0
A107: 1910 | B107: Leasehold Improvements | C107: =SUMIF('App.2-BA_Fixed Asset Cont'!$B$154:$B$199,'App.2-C_DepExp'!A107,'App.2-BA_Fixed Asset Cont'!$D$154:$D$199) -> 0 | E107: 0 | H107: 0 | I107: =SUMIF('App.2-BA_Fixed Asset Cont'!$B$154:$B$199,'App.2-C_DepExp'!A107,'App.2-BA_Fixed Asset Cont'!$E$154:$E$199) -> 0 | J107: 0 | K107: 0 | M107: 0 | N107: 0 | O107: 0 | P107: 0 | Q107: 0 | R107: =-SUMIF('App.2-BA_Fixed Asset Cont'!$B$154:$B$199,'App.2-C_DepExp'!A107,'App.2-BA_Fixed Asset Cont'!$J$154:$J$199) -> 0 | S107: 0
A108: 1915 | B108: Office Furniture & Equipment (10 years) | C108: =SUMIF('App.2-BA_Fixed Asset Cont'!$B$154:$B$199,'App.2-C_DepExp'!A108,'App.2-BA_Fixed Asset Cont'!$D$154:$D$199) -> 0 | E108: 0 | H108: 0 | I108: =SUMIF('App.2-BA_Fixed Asset Cont'!$B$154:$B$199,'App.2-C_DepExp'!A108,'App.2-BA_Fixed Asset Cont'!$E$154:$E$199) -> 0 | J108: 0 | K108: 0 | M108: 0 | N108: 0 | O108: 0 | P108: 0 | Q108: 0 | R108: =-SUMIF('App.2-BA_Fixed Asset Cont'!$B$154:$B$199,'App.2-C_DepExp'!A108,'App.2-BA_Fixed Asset Cont'!$J$154:$J$199) -> 0 | S108: 0
A109: 1915 | B109: Office Furniture & Equipment (5 years) | C109: =SUMIF('App.2-BA_Fixed Asset Cont'!$B$154:$B$199,'App.2-C_DepExp'!A109,'App.2-BA_Fixed Asset Cont'!$D$154:$D$199) -> 0 | E109: 0 | H109: 0 | I109: =SUMIF('App.2-BA_Fixed Asset Cont'!$B$154:$B$199,'App.2-C_DepExp'!A109,'App.2-BA_Fixed Asset Cont'!$E$154:$E$199) -> 0 | J109: 0 | K109: 0 | M109: 0 | N109: 0 | O109: 0 | P109: 0 | Q109: 0 | R109: =-SUMIF('App.2-BA_Fixed Asset Cont'!$B$154:$B$199,'App.2-C_DepExp'!A109,'App.2-BA_Fixed Asset Cont'!$J$154:$J$199) -> 0 | S109: 0
A110: 1920 | B110: Computer Equipment - Hardware | C110: =SUMIF('App.2-BA_Fixed Asset Cont'!$B$154:$B$199,'App.2-C_DepExp'!A110,'App.2-BA_Fixed Asset Cont'!$D$154:$D$199) -> 1361 | E110: 1361 | H110: 0 | I110: =SUMIF('App.2-BA_Fixed Asset Cont'!$B$154:$B$199,'App.2-C_DepExp'!A110,'App.2-BA_Fixed Asset Cont'!$E$154:$E$199) -> 0 | J110: 1 | K110: 1 | L110: 5 | M110: 0.2 | N110: 1361 | O110: 0 | P110: 0 | Q110: 1361 | R110: =-SUMIF('App.2-BA_Fixed Asset Cont'!$B$154:$B$199,'App.2-C_DepExp'!A110,'App.2-BA_Fixed Asset Cont'!$J$154:$J$199) -> 1361 | S110: 0
A111: 1920 | B111: Computer Equip.-Hardware(Post Mar. 22/04) | C111: 0 | E111: 0 | H111: 0 | I111: =SUMIF('App.2-BA_Fixed Asset Cont'!$B$154:$B$199,'App.2-C_DepExp'!A111,'App.2-BA_Fixed Asset Cont'!$E$154:$E$199) -> 0 | J111: 0 | K111: 0 | L111: 5 | M111: 0.2 | N111: 0 | O111: 0 | P111: 0 | Q111: 0 | R111: 0 | S111: 0
A112: 1920 | B112: Computer Equip.-Hardware(Post Mar. 19/07) | C112: 0 | E112: 0 | H112: 0 | I112: =SUMIF('App.2-BA_Fixed Asset Cont'!$B$154:$B$199,'App.2-C_DepExp'!A112,'App.2-BA_Fixed Asset Cont'!$E$154:$E$199) -> 0 | J112: 0 | K112: 0 | L112: 5 | M112: 0.2 | N112: 0 | O112: 0 | P112: 0 | Q112: 0 | R112: 0 | S112: 0
A113: 1925 | B113: Computer Software | C113: =SUMIF('App.2-BA_Fixed Asset Cont'!$B$154:$B$199,'App.2-C_DepExp'!A113,'App.2-BA_Fixed Asset Cont'!$D$154:$D$199) -> 105974 | E113: 105974 | H113: 0 | I113: =SUMIF('App.2-BA_Fixed Asset Cont'!$B$154:$B$199,'App.2-C_DepExp'!A113,'App.2-BA_Fixed Asset Cont'!$E$154:$E$199) -> 0 | J113: 1 | K113: 1 | L113: 5 | M113: 0.2 | N113: 105974 | O113: 0 | P113: 0 | Q113: 105974 | R113: =-SUMIF('App.2-BA_Fixed Asset Cont'!$B$154:$B$199,'App.2-C_DepExp'!A113,'App.2-BA_Fixed Asset Cont'!$J$154:$J$199) -> 105974 | S113: 0
A114: 1930 | B114: Transportation Equipment | C114: =SUMIF('App.2-BA_Fixed Asset Cont'!$B$154:$B$199,'App.2-C_DepExp'!A114,'App.2-BA_Fixed Asset Cont'!$D$154:$D$199) -> 0 | E114: 0 | H114: 0 | I114: =SUMIF('App.2-BA_Fixed Asset Cont'!$B$154:$B$199,'App.2-C_DepExp'!A114,'App.2-BA_Fixed Asset Cont'!$E$154:$E$199) -> 0 | J114: 0 | K114: 0 | M114: 0 | N114: 0 | O114: 0 | P114: 0 | Q114: 0 | R114: =-SUMIF('App.2-BA_Fixed Asset Cont'!$B$154:$B$199,'App.2-C_DepExp'!A114,'App.2-BA_Fixed Asset Cont'!$J$154:$J$199) -> 0 | S114: 0
A115: 1935 | B115: Stores Equipment | C115: =SUMIF('App.2-BA_Fixed Asset Cont'!$B$154:$B$199,'App.2-C_DepExp'!A115,'App.2-BA_Fixed Asset Cont'!$D$154:$D$199) -> 0 | E115: 0 | H115: 0 | I115: =SUMIF('App.2-BA_Fixed Asset Cont'!$B$154:$B$199,'App.2-C_DepExp'!A115,'App.2-BA_Fixed Asset Cont'!$E$154:$E$199) -> 0 | J115: 0 | K115: 0 | M115: 0 | N115: 0 | O115: 0 | P115: 0 | Q115: 0 | R115: =-SUMIF('App.2-BA_Fixed Asset Cont'!$B$154:$B$199,'App.2-C_DepExp'!A115,'App.2-BA_Fixed Asset Cont'!$J$154:$J$199) -> 0 | S115: 0
A116: 1940 | B116: Tools, Shop & Garage Equipment | C116: =SUMIF('App.2-BA_Fixed Asset Cont'!$B$154:$B$199,'App.2-C_DepExp'!A116,'App.2-BA_Fixed Asset Cont'!$D$154:$D$199) -> 0 | E116: 0 | H116: 0 | I116: =SUMIF('App.2-BA_Fixed Asset Cont'!$B$154:$B$199,'App.2-C_DepExp'!A116,'App.2-BA_Fixed Asset Cont'!$E$154:$E$199) -> 0 | J116: 0 | K116: 0 | M116: 0 | N116: 0 | O116: 0 | P116: 0 | Q116: 0 | R116: =-SUMIF('App.2-BA_Fixed Asset Cont'!$B$154:$B$199,'App.2-C_DepExp'!A116,'App.2-BA_Fixed Asset Cont'!$J$154:$J$199) -> 0 | S116: 0
A117: 1945 | B117: Measurement & Testing Equipment | C117: =SUMIF('App.2-BA_Fixed Asset Cont'!$B$154:$B$199,'App.2-C_DepExp'!A117,'App.2-BA_Fixed Asset Cont'!$D$154:$D$199) -> 0 | E117: 0 | H117: 0 | I117: =SUMIF('App.2-BA_Fixed Asset Cont'!$B$154:$B$199,'App.2-C_DepExp'!A117,'App.2-BA_Fixed Asset Cont'!$E$154:$E$199) -> 0 | J117: 0 | K117: 0 | M117: 0 | N117: 0 | O117: 0 | P117: 0 | Q117: 0 | R117: =-SUMIF('App.2-BA_Fixed Asset Cont'!$B$154:$B$199,'App.2-C_DepExp'!A117,'App.2-BA_Fixed Asset Cont'!$J$154:$J$199) -> 0 | S117: 0
A118: 1950 | B118: Power Operated Equipment | C118: =SUMIF('App.2-BA_Fixed Asset Cont'!$B$154:$B$199,'App.2-C_DepExp'!A118,'App.2-BA_Fixed Asset Cont'!$D$154:$D$199) -> 0 | E118: 0 | H118: 0 | I118: =SUMIF('App.2-BA_Fixed Asset Cont'!$B$154:$B$199,'App.2-C_DepExp'!A118,'App.2-BA_Fixed Asset Cont'!$E$154:$E$199) -> 0 | J118: 0 | K118: 0 | M118: 0 | N118: 0 | O118: 0 | P118: 0 | Q118: 0 | R118: =-SUMIF('App.2-BA_Fixed Asset Cont'!$B$154:$B$199,'App.2-C_DepExp'!A118,'App.2-BA_Fixed Asset Cont'!$J$154:$J$199) -> 0 | S118: 0
A119: 1955 | B119: Communications Equipment | C119: =SUMIF('App.2-BA_Fixed Asset Cont'!$B$154:$B$199,'App.2-C_DepExp'!A119,'App.2-BA_Fixed Asset Cont'!$D$154:$D$199) -> 0 | E119: 0 | H119: 0 | I119: =SUMIF('App.2-BA_Fixed Asset Cont'!$B$154:$B$199,'App.2-C_DepExp'!A119,'App.2-BA_Fixed Asset Cont'!$E$154:$E$199) -> 0 | J119: 0 | K119: 0 | M119: 0 | N119: 0 | O119: 0 | P119: 0 | Q119: 0 | R119: =-SUMIF('App.2-BA_Fixed Asset Cont'!$B$154:$B$199,'App.2-C_DepExp'!A119,'App.2-BA_Fixed Asset Cont'!$J$154:$J$199) -> 0 | S119: 0
A120: 1955 | B120: Communication Equipment (Smart Meters) | C120: =SUMIF('App.2-BA_Fixed Asset Cont'!$B$154:$B$199,'App.2-C_DepExp'!A120,'App.2-BA_Fixed Asset Cont'!$D$154:$D$199) -> 0 | E120: 0 | H120: 0 | I120: =SUMIF('App.2-BA_Fixed Asset Cont'!$B$154:$B$199,'App.2-C_DepExp'!A120,'App.2-BA_Fixed Asset Cont'!$E$154:$E$199) -> 0 | J120: 0 | K120: 0 | M120: 0 | N120: 0 | O120: 0 | P120: 0 | Q120: 0 | R120: =-SUMIF('App.2-BA_Fixed Asset Cont'!$B$154:$B$199,'App.2-C_DepExp'!A120,'App.2-BA_Fixed Asset Cont'!$J$154:$J$199) -> 0 | S120: 0
A121: 1960 | B121: Miscellaneous Equipment | C121: =SUMIF('App.2-BA_Fixed Asset Cont'!$B$154:$B$199,'App.2-C_DepExp'!A121,'App.2-BA_Fixed Asset Cont'!$D$154:$D$199) -> 0 | E121: 0 | H121: 0 | I121: =SUMIF('App.2-BA_Fixed Asset Cont'!$B$154:$B$199,'App.2-C_DepExp'!A121,'App.2-BA_Fixed Asset Cont'!$E$154:$E$199) -> 0 | J121: 0 | K121: 0 | M121: 0 | N121: 0 | O121: 0 | P121: 0 | Q121: 0 | R121: =-SUMIF('App.2-BA_Fixed Asset Cont'!$B$154:$B$199,'App.2-C_DepExp'!A121,'App.2-BA_Fixed Asset Cont'!$J$154:$J$199) -> 0 | S121: 0
A122: 1970 | B122: Load Management Controls Customer Premises | C122: =SUMIF('App.2-BA_Fixed Asset Cont'!$B$154:$B$199,'App.2-C_DepExp'!A122,'App.2-BA_Fixed Asset Cont'!$D$154:$D$199) -> 0 | E122: 0 | H122: 0 | I122: =SUMIF('App.2-BA_Fixed Asset Cont'!$B$154:$B$199,'App.2-C_DepExp'!A122,'App.2-BA_Fixed Asset Cont'!$E$154:$E$199) -> 0 | J122: 0 | K122: 0 | M122: 0 | N122: 0 | O122: 0 | P122: 0 | Q122: 0 | R122: =-SUMIF('App.2-BA_Fixed Asset Cont'!$B$154:$B$199,'App.2-C_DepExp'!A122,'App.2-BA_Fixed Asset Cont'!$J$154:$J$199) -> 0 | S122: 0
A123: 1975 | B123: Load Management Controls Utility Premises | C123: =SUMIF('App.2-BA_Fixed Asset Cont'!$B$154:$B$199,'App.2-C_DepExp'!A123,'App.2-BA_Fixed Asset Cont'!$D$154:$D$199) -> 0 | E123: 0 | H123: 0 | I123: =SUMIF('App.2-BA_Fixed Asset Cont'!$B$154:$B$199,'App.2-C_DepExp'!A123,'App.2-BA_Fixed Asset Cont'!$E$154:$E$199) -> 0 | J123: 0 | K123: 0 | M123: 0 | N123: 0 | O123: 0 | P123: 0 | Q123: 0 | R123: =-SUMIF('App.2-BA_Fixed Asset Cont'!$B$154:$B$199,'App.2-C_DepExp'!A123,'App.2-BA_Fixed Asset Cont'!$J$154:$J$199) -> 0 | S123: 0
A124: 1980 | B124: System Supervisor Equipment | C124: =SUMIF('App.2-BA_Fixed Asset Cont'!$B$154:$B$199,'App.2-C_DepExp'!A124,'App.2-BA_Fixed Asset Cont'!$D$154:$D$199) -> 1381611 | E124: 1381611 | H124: 0 | I124: =SUMIF('App.2-BA_Fixed Asset Cont'!$B$154:$B$199,'App.2-C_DepExp'!A124,'App.2-BA_Fixed Asset Cont'!$E$154:$E$199) -> 156593 | J124: 6 | K124: 0.1666666667 | L124: 20 | M124: 0.05 | N124: 230268.5 | O124: 0 | P124: 3914.825 | Q124: 234183.325 | R124: =-SUMIF('App.2-BA_Fixed Asset Cont'!$B$154:$B$199,'App.2-C_DepExp'!A124,'App.2-BA_Fixed Asset Cont'!$J$154:$J$199) -> 234183 | S124: -0.325
A125: 1985 | B125: Miscellaneous Fixed Assets | C125: =SUMIF('App.2-BA_Fixed Asset Cont'!$B$154:$B$199,'App.2-C_DepExp'!A125,'App.2-BA_Fixed Asset Cont'!$D$154:$D$199) -> 0 | E125: 0 | H125: 0 | I125: =SUMIF('App.2-BA_Fixed Asset Cont'!$B$154:$B$199,'App.2-C_DepExp'!A125,'App.2-BA_Fixed Asset Cont'!$E$154:$E$199) -> 0 | J125: 0 | K125: 0 | M125: 0 | N125: 0 | O125: 0 | P125: 0 | Q125: 0 | R125: =-SUMIF('App.2-BA_Fixed Asset Cont'!$B$154:$B$199,'App.2-C_DepExp'!A125,'App.2-BA_Fixed Asset Cont'!$J$154:$J$199) -> 0 | S125: 0
A126: 1990 | B126: Other Tangible Property | C126: =SUMIF('App.2-BA_Fixed Asset Cont'!$B$154:$B$199,'App.2-C_DepExp'!A126,'App.2-BA_Fixed Asset Cont'!$D$154:$D$199) -> 0 | E126: 0 | H126: 0 | I126: =SUMIF('App.2-BA_Fixed Asset Cont'!$B$154:$B$199,'App.2-C_DepExp'!A126,'App.2-BA_Fixed Asset Cont'!$E$154:$E$199) -> 0 | J126: 0 | K126: 0 | M126: 0 | N126: 0 | O126: 0 | P126: 0 | Q126: 0 | R126: =-SUMIF('App.2-BA_Fixed Asset Cont'!$B$154:$B$199,'App.2-C_DepExp'!A126,'App.2-BA_Fixed Asset Cont'!$J$154:$J$199) -> 0 | S126: 0
A127: 1995 | B127: Contributions & Grants | C127: =SUMIF('App.2-BA_Fixed Asset Cont'!$B$154:$B$199,'App.2-C_DepExp'!A127,'App.2-BA_Fixed Asset Cont'!$D$154:$D$199) -> -11161740 | E127: -11161740 | H127: 0 | I127: =SUMIF('App.2-BA_Fixed Asset Cont'!$B$154:$B$199,'App.2-C_DepExp'!A127,'App.2-BA_Fixed Asset Cont'!$E$154:$E$199) -> 0 | J127: 34 | K127: 0.02941176471 | L127: 40 | M127: 0.025 | N127: -328286.4706 | O127: 0 | P127: 0 | Q127: -328286.4706 | R127: =-SUMIF('App.2-BA_Fixed Asset Cont'!$B$154:$B$199,'App.2-C_DepExp'!A127,'App.2-BA_Fixed Asset Cont'!$J$154:$J$199) -> -328286 | S127: 0.4705882353
B128: Total | C128: =SUM(C83:C127) -> 82778268 | D128: =SUM(D83:D127) -> 0 | E128: 82778268 | F128: 0 | G128: 0 | H128: 0 | I128: 7706779 | N128: =SUM(N83:N127) -> 3287385.03 | O128: 0 | P128: 92659.4475 | Q128: 3380044.478 | R128: 3380045 | S128: 0.5223535723
A132: Scenario that applies | C132: Applicable Years and Accounting Standard | R132: Year Reflected in Schedule Below | S132: Accounting Standard Reflected in Schedule Below | Y132: 2012
A133: Rebasing for the first time with depreciation policy changes made in 2012. | C133: This appendix must be duplicated and completed for the years 2012 to 2018. The appendix for 2012 is to be completed under CGAAP (prior to changes in depreciation policies). The appendix for 2012 to 2014 must be completed under Revised CGAAP (after changes in depreciation policies). The appendix for 2014 to 2018 is to be completed under MIFRS (2014 if changes to MIFRS are material). | Y133: 2013
A134: Rebasing for the first time with depreciation policy changes made in 2013. | C134: This appendix must be duplicated and completed for the years 2013 to 2018. The appendix for 2013 is to be completed under CGAAP (prior to changes in depreciation policies). The appendix for 2013 to 2014 must be completed under Revised CGAAP (after changes in depreciation policies). The appendix for 2014 to 2018 is to be completed under MIFRS (2014 if changes to MIFRS are material). | Y134: 2014
A135: Already rebased with depreciation policy changes in a prior rate application | C135: This appendix must be completed for 2014 to 2018. The appendix for 2014 is to be completed under Revised CGAAP (after changes in depreciation policies). The appendix for 2014 to 2018 is to be completed under MIFRS (2014 if changes to MIFRS are material). | R135: 2015 | S135: MIFRS | Y135: 2015
Y136: 2016
Y137: 2017
C138: Book Values | J138: Service Lives | N138: Depreciation Expense | Y138: 2018
A139: Account | B139: Description | C139: Opening Net Book Value of Existing Assets as at Date of Policy Change (Jan. 1) 1 | D139: Less Fully Depreciated 7 | E139: Net Amount of Existing Assets Before Policy Change to be Depreciated | F139: Opening Gross Book Value of Assets Acquired After Policy Change 2 | G139: Less Fully Depreciated 8 | H139: Net Amount of Assets Acquired After Policy Change to be Depreciated | I139: Current Year Additions | J139: Average Remaining Life of Assets Existing Before Policy Change 3 | K139: Depreciation Rate Assets Acquired After Policy Change | L139: Life of Assets Acquired After Policy Change 4 | M139: Depreciation Rate on New Additions | N139: Depreciation Expense on Assets Existing Before Policy Change | O139: Depreciation Expense on Assets Acquired After Policy Change | P139: Depreciation Expense on Current Year Additions 5 | Q139: Total Current Year Depreciation Expense | R139: Depreciation Expense per Appendix 2-BA Fixed Assets, Column J | S139: Variance 6
C140: a | D140: b | E140: c = a-b | F140: d | G140: e | H140: f = d- e | I140: g | J140: h | K140: i = 1/h | L140: j | M140: k = 1/j | N140: l = c/h | O140: m = f/j | P140: n = g*0.5/j | Q140: o = l+m+n | R140: p | S140: q = p-o
A141: 1706 | B141: Land Rights | C141: =SUMIF('App.2-BA_Fixed Asset Cont'!$B$154:$B$199,'App.2-C_DepExp'!A141,'App.2-BA_Fixed Asset Cont'!$D$154:$D$199) -> 602307 | E141: =C141-D141 -> 602307 | F141: =+F83+I83 -> 0 | H141: =F141-G141 -> 0 | I141: =SUMIF('App.2-BA_Fixed Asset Cont'!$B$222:$B$267,'App.2-C_DepExp'!A141,'App.2-BA_Fixed Asset Cont'!$E$222:$E$267) -> 0 | K141: =IF(J141=0,0,1/J141) -> 0 | L141: 0 | M141: =IF(L141=0,0,1/L141) -> 0 | N141: =IF(J141=0,0,+E141/J141) -> 0 | O141: =IF(L141=0,0,+H141/L141) -> 0 | P141: =IF(L141=0,0,+(I141*0.5)/L141) -> 0 | Q141: =IF(ISERROR(+N141+O141+P141), 0, +N141+O141+P141) -> 0 | R141: =-SUMIF('App.2-BA_Fixed Asset Cont'!$B$222:$B$267,'App.2-C_DepExp'!A141,'App.2-BA_Fixed Asset Cont'!$J$222:$J$267) -> 0 | S141: =IF(ISERROR(+R141-122), 0, +R141-Q141) -> 0
A142: 1725 | B142: Poles and Fixtures | C142: =SUMIF('App.2-BA_Fixed Asset Cont'!$B$154:$B$199,'App.2-C_DepExp'!A142,'App.2-BA_Fixed Asset Cont'!$D$154:$D$199) -> 1604340 | E142: 1604340 | F142: =+F84+I84 -> 0 | H142: 0 | I142: =SUMIF('App.2-BA_Fixed Asset Cont'!$B$222:$B$267,'App.2-C_DepExp'!A142,'App.2-BA_Fixed Asset Cont'!$E$222:$E$267) -> 0 | J142: 41 | K142: 0.0243902439 | L142: 45 | M142: 0.02222222222 | N142: 39130.2439 | O142: 0 | P142: 0 | Q142: 39130.2439 | R142: =-SUMIF('App.2-BA_Fixed Asset Cont'!$B$222:$B$267,'App.2-C_DepExp'!A142,'App.2-BA_Fixed Asset Cont'!$J$222:$J$267) -> 39130 | S142: =IF(ISERROR(+R142-122), 0, +R142-Q142) -> -0.243902439
A143: 1730 | B143: Overhead Conductors & Devices | C143: =SUMIF('App.2-BA_Fixed Asset Cont'!$B$154:$B$199,'App.2-C_DepExp'!A143,'App.2-BA_Fixed Asset Cont'!$D$154:$D$199) -> 63894 | E143: 63894 | F143: 0 | H143: 0 | I143: =SUMIF('App.2-BA_Fixed Asset Cont'!$B$222:$B$267,'App.2-C_DepExp'!A143,'App.2-BA_Fixed Asset Cont'!$E$222:$E$267) -> 0 | J143: 32 | K143: 0.03125 | L143: 45 | M143: 0.02222222222 | N143: 1996.6875 | O143: 0 | P143: 0 | Q143: 1996.6875 | R143: =-SUMIF('App.2-BA_Fixed Asset Cont'!$B$222:$B$267,'App.2-C_DepExp'!A143,'App.2-BA_Fixed Asset Cont'!$J$222:$J$267) -> 1997 | S143: =IF(ISERROR(+R143-122), 0, +R143-Q143) -> 0.3125
A144: 1735 | B144: Underground Conduit | C144: =SUMIF('App.2-BA_Fixed Asset Cont'!$B$154:$B$199,'App.2-C_DepExp'!A144,'App.2-BA_Fixed Asset Cont'!$D$154:$D$199) -> 870021 | E144: 870021 | F144: 0 | H144: 0 | I144: =SUMIF('App.2-BA_Fixed Asset Cont'!$B$222:$B$267,'App.2-C_DepExp'!A144,'App.2-BA_Fixed Asset Cont'!$E$222:$E$267) -> 0 | J144: 35 | K144: 0.02857142857 | L144: 40 | M144: 0.025 | N144: 24857.74286 | O144: 0 | P144: 0 | Q144: 24857.74286 | R144: =-SUMIF('App.2-BA_Fixed Asset Cont'!$B$222:$B$267,'App.2-C_DepExp'!A144,'App.2-BA_Fixed Asset Cont'!$J$222:$J$267) -> 24858 | S144: 0.2571428571
A145: 1740 | B145: Underground Conductors & Devices | C145: =SUMIF('App.2-BA_Fixed Asset Cont'!$B$154:$B$199,'App.2-C_DepExp'!A145,'App.2-BA_Fixed Asset Cont'!$D$154:$D$199) -> 215252 | E145: 215252 | F145: 0 | H145: 0 | I145: =SUMIF('App.2-BA_Fixed Asset Cont'!$B$222:$B$267,'App.2-C_DepExp'!A145,'App.2-BA_Fixed Asset Cont'!$E$222:$E$267) -> 0 | J145: 22 | K145: 0.04545454545 | L145: 25 | M145: 0.04 | N145: 9784.181818 | O145: 0 | P145: 0 | Q145: 9784.181818 | R145: =-SUMIF('App.2-BA_Fixed Asset Cont'!$B$222:$B$267,'App.2-C_DepExp'!A145,'App.2-BA_Fixed Asset Cont'!$J$222:$J$267) -> 9784 | S145: -0.1818181818
A146: 1611 | B146: Computer Software (Formally known as Account 1925) | C146: =SUMIF('App.2-BA_Fixed Asset Cont'!$B$154:$B$199,'App.2-C_DepExp'!A146,'App.2-BA_Fixed Asset Cont'!$D$154:$D$199) -> 0 | E146: =C146-D146 -> 0 | F146: 0 | H146: =F146-G146 -> 0 | I146: =SUMIF('App.2-BA_Fixed Asset Cont'!$B$222:$B$267,'App.2-C_DepExp'!A146,'App.2-BA_Fixed Asset Cont'!$E$222:$E$267) -> 0 | J146: 0 | K146: =IF(J146=0,0,1/J146) -> 0 | L146: 0 | M146: =IF(L146=0,0,1/L146) -> 0 | N146: =IF(J146=0,0,+E146/J146) -> 0 | O146: =IF(L146=0,0,+H146/L146) -> 0 | P146: =IF(L146=0,0,+(I146*0.5)/L146) -> 0 | Q146: =IF(ISERROR(+N146+O146+P146), 0, +N146+O146+P146) -> 0 | R146: =-SUMIF('App.2-BA_Fixed Asset Cont'!$B$222:$B$267,'App.2-C_DepExp'!A146,'App.2-BA_Fixed Asset Cont'!$J$222:$J$267) -> 0 | S146: =IF(ISERROR(+R146-122), 0, +R146-Q146) -> 0
A147: 1612 | B147: Land Rights (Formally known as Account 1906) | C147: =SUMIF('App.2-BA_Fixed Asset Cont'!$B$154:$B$199,'App.2-C_DepExp'!A147,'App.2-BA_Fixed Asset Cont'!$D$154:$D$199) -> 0 | E147: =C147-D147 -> 0 | F147: 0 | H147: =F147-G147 -> 0 | I147: =SUMIF('App.2-BA_Fixed Asset Cont'!$B$222:$B$267,'App.2-C_DepExp'!A147,'App.2-BA_Fixed Asset Cont'!$E$222:$E$267) -> 0 | J147: 0 | K147: =IF(J147=0,0,1/J147) -> 0 | L147: 0 | M147: =IF(L147=0,0,1/L147) -> 0 | N147: =IF(J147=0,0,+E147/J147) -> 0 | O147: =IF(L147=0,0,+H147/L147) -> 0 | P147: =IF(L147=0,0,+(I147*0.5)/L147) -> 0 | Q147: =IF(ISERROR(+N147+O147+P147), 0, +N147+O147+P147) -> 0 | R147: =-SUMIF('App.2-BA_Fixed Asset Cont'!$B$222:$B$267,'App.2-C_DepExp'!A147,'App.2-BA_Fixed Asset Cont'!$J$222:$J$267) -> 0 | S147: =IF(ISERROR(+R147-122), 0, +R147-Q147) -> 0
A148: 1805 | B148: Land | C148: =SUMIF('App.2-BA_Fixed Asset Cont'!$B$154:$B$199,'App.2-C_DepExp'!A148,'App.2-BA_Fixed Asset Cont'!$D$154:$D$199) -> 89160 | E148: 89160 | F148: 0 | H148: 0 | I148: =SUMIF('App.2-BA_Fixed Asset Cont'!$B$222:$B$267,'App.2-C_DepExp'!A148,'App.2-BA_Fixed Asset Cont'!$E$222:$E$267) -> 0 | J148: 0 | K148: 0 | L148: 0 | M148: 0 | N148: 0 | O148: =IF(L148=0,0,+H148/L148) -> 0 | P148: 0 | Q148: 0 | R148: =-SUMIF('App.2-BA_Fixed Asset Cont'!$B$222:$B$267,'App.2-C_DepExp'!A148,'App.2-BA_Fixed Asset Cont'!$J$222:$J$267) -> 0 | S148: 0
A149: 1806 | B149: Land Rights | C149: =SUMIF('App.2-BA_Fixed Asset Cont'!$B$154:$B$199,'App.2-C_DepExp'!A149,'App.2-BA_Fixed Asset Cont'!$D$154:$D$199) -> 154128 | E149: 154128 | F149: 6798 | H149: 6798 | I149: =SUMIF('App.2-BA_Fixed Asset Cont'!$B$222:$B$267,'App.2-C_DepExp'!A149,'App.2-BA_Fixed Asset Cont'!$E$222:$E$267) -> 5693 | J149: 0 | K149: 0 | L149: 0 | M149: 0 | N149: 0 | O149: 0 | P149: 0 | Q149: 0 | R149: =-SUMIF('App.2-BA_Fixed Asset Cont'!$B$222:$B$267,'App.2-C_DepExp'!A149,'App.2-BA_Fixed Asset Cont'!$J$222:$J$267) -> 0 | S149: 0
A150: 1808 | B150: Buildings | C150: =SUMIF('App.2-BA_Fixed Asset Cont'!$B$154:$B$199,'App.2-C_DepExp'!A150,'App.2-BA_Fixed Asset Cont'!$D$154:$D$199) -> 24624967 | E150: 24624967 | F150: 244854 | H150: 244854 | I150: =SUMIF('App.2-BA_Fixed Asset Cont'!$B$222:$B$267,'App.2-C_DepExp'!A150,'App.2-BA_Fixed Asset Cont'!$E$222:$E$267) -> 66532 | J150: 36.5981 | K150: 0.02732382282 | L150: 49.05 | M150: 0.02038735984 | N150: 672848.2353 | O150: 4991.926606 | P150: 678.2059123 | Q150: 678518.3678 | R150: =-SUMIF('App.2-BA_Fixed Asset Cont'!$B$222:$B$267,'App.2-C_DepExp'!A150,'App.2-BA_Fixed Asset Cont'!$J$222:$J$267) -> 678518 | S150: =IF(ISERROR(+R150-122), 0, +R150-Q150) -> -0.367808742
A151: 1810 | B151: Leasehold Improvements | C151: =SUMIF('App.2-BA_Fixed Asset Cont'!$B$154:$B$199,'App.2-C_DepExp'!A151,'App.2-BA_Fixed Asset Cont'!$D$154:$D$199) -> 0 | E151: 0 | F151: 0 | H151: 0 | I151: =SUMIF('App.2-BA_Fixed Asset Cont'!$B$222:$B$267,'App.2-C_DepExp'!A151,'App.2-BA_Fixed Asset Cont'!$E$222:$E$267) -> 0 | J151: 0 | K151: 0 | L151: 0 | M151: 0 | N151: 0 | O151: 0 | P151: 0 | Q151: 0 | R151: =-SUMIF('App.2-BA_Fixed Asset Cont'!$B$222:$B$267,'App.2-C_DepExp'!A151,'App.2-BA_Fixed Asset Cont'!$J$222:$J$267) -> 0 | S151: =IF(ISERROR(+R151-122), 0, +R151-Q151) -> 0
A152: 1815 | B152: Transformer Station Equipment >50 kV | C152: =SUMIF('App.2-BA_Fixed Asset Cont'!$B$154:$B$199,'App.2-C_DepExp'!A152,'App.2-BA_Fixed Asset Cont'!$D$154:$D$199) -> 5491722 | E152: 5491722 | F152: 617923 | H152: 617923 | I152: =SUMIF('App.2-BA_Fixed Asset Cont'!$B$222:$B$267,'App.2-C_DepExp'!A152,'App.2-BA_Fixed Asset Cont'!$E$222:$E$267) -> 100183 | J152: 24 | K152: 0.04166666667 | L152: 40 | M152: 0.025 | N152: 228821.75 | O152: 15448.075 | P152: 1252.2875 | Q152: 245522.1125 | R152: =-SUMIF('App.2-BA_Fixed Asset Cont'!$B$222:$B$267,'App.2-C_DepExp'!A152,'App.2-BA_Fixed Asset Cont'!$J$222:$J$267) -> 245522 | S152: -0.1125
A153: 1820 | B153: Distribution Station Equipment <50 kV | C153: =SUMIF('App.2-BA_Fixed Asset Cont'!$B$154:$B$199,'App.2-C_DepExp'!A153,'App.2-BA_Fixed Asset Cont'!$D$154:$D$199) -> 7812618 | E153: 7812618 | F153: 1245158 | H153: 1245158 | I153: =SUMIF('App.2-BA_Fixed Asset Cont'!$B$222:$B$267,'App.2-C_DepExp'!A153,'App.2-BA_Fixed Asset Cont'!$E$222:$E$267) -> 865058 | J153: 22 | K153: 0.04545454545 | L153: 40 | M153: 0.025 | N153: 355119 | O153: 31128.95 | P153: 10813.225 | Q153: 397061.175 | R153: =-SUMIF('App.2-BA_Fixed Asset Cont'!$B$222:$B$267,'App.2-C_DepExp'!A153,'App.2-BA_Fixed Asset Cont'!$J$222:$J$267) -> 397061 | S153: -0.175
A154: 1825 | B154: Storage Battery Equipment | C154: =SUMIF('App.2-BA_Fixed Asset Cont'!$B$154:$B$199,'App.2-C_DepExp'!A154,'App.2-BA_Fixed Asset Cont'!$D$154:$D$199) -> 13722 | E154: 13722 | F154: 0 | H154: 0 | I154: =SUMIF('App.2-BA_Fixed Asset Cont'!$B$222:$B$267,'App.2-C_DepExp'!A154,'App.2-BA_Fixed Asset Cont'!$E$222:$E$267) -> 0 | J154: 21 | K154: 0.04761904762 | L154: 30 | M154: 0.03333333333 | N154: 653.4285714 | O154: 0 | P154: 0 | Q154: 653.4285714 | R154: =-SUMIF('App.2-BA_Fixed Asset Cont'!$B$222:$B$267,'App.2-C_DepExp'!A154,'App.2-BA_Fixed Asset Cont'!$J$222:$J$267) -> 653 | S154: -0.4285714286
A155: 1830 | B155: Poles, Towers & Fixtures | C155: =SUMIF('App.2-BA_Fixed Asset Cont'!$B$154:$B$199,'App.2-C_DepExp'!A155,'App.2-BA_Fixed Asset Cont'!$D$154:$D$199) -> 10446415 | E155: 10446415 | F155: 2281968 | H155: 2281968 | I155: =SUMIF('App.2-BA_Fixed Asset Cont'!$B$222:$B$267,'App.2-C_DepExp'!A155,'App.2-BA_Fixed Asset Cont'!$E$222:$E$267) -> 1854371 | J155: 44 | K155: 0.02272727273 | L155: 45 | M155: 0.02222222222 | N155: 237418.5227 | O155: 50710.4 | P155: 20604.12222 | Q155: 308733.0449 | R155: =-SUMIF('App.2-BA_Fixed Asset Cont'!$B$222:$B$267,'App.2-C_DepExp'!A155,'App.2-BA_Fixed Asset Cont'!$J$222:$J$267) -> 308733 | S155: -0.04494949494
A156: 1835 | B156: Overhead Conductors & Devices | C156: =SUMIF('App.2-BA_Fixed Asset Cont'!$B$154:$B$199,'App.2-C_DepExp'!A156,'App.2-BA_Fixed Asset Cont'!$D$154:$D$199) -> 8345730 | E156: 8345730 | F156: 960049 | H156: 960049 | I156: =SUMIF('App.2-BA_Fixed Asset Cont'!$B$222:$B$267,'App.2-C_DepExp'!A156,'App.2-BA_Fixed Asset Cont'!$E$222:$E$267) -> 1150860 | J156: 36 | K156: 0.02777777778 | L156: 60 | M156: 0.01666666667 | N156: 231825.8333 | O156: 16000.81667 | P156: 9590.5 | Q156: 257417.15 | R156: =-SUMIF('App.2-BA_Fixed Asset Cont'!$B$222:$B$267,'App.2-C_DepExp'!A156,'App.2-BA_Fixed Asset Cont'!$J$222:$J$267) -> 257417 | S156: -0.15
A157: 1840 | B157: Underground Conduit | C157: =SUMIF('App.2-BA_Fixed Asset Cont'!$B$154:$B$199,'App.2-C_DepExp'!A157,'App.2-BA_Fixed Asset Cont'!$D$154:$D$199) -> 2546031 | E157: 2546031 | F157: 282137 | H157: 282137 | I157: =SUMIF('App.2-BA_Fixed Asset Cont'!$B$222:$B$267,'App.2-C_DepExp'!A157,'App.2-BA_Fixed Asset Cont'!$E$222:$E$267) -> 339474 | J157: 12 | K157: 0.08333333333 | L157: 50 | M157: 0.02 | N157: 212169.25 | O157: 5642.74 | P157: 3394.74 | Q157: 221206.73 | R157: =-SUMIF('App.2-BA_Fixed Asset Cont'!$B$222:$B$267,'App.2-C_DepExp'!A157,'App.2-BA_Fixed Asset Cont'!$J$222:$J$267) -> 221207 | S157: 0.27
A158: 1845 | B158: Underground Conductors & Devices | C158: =SUMIF('App.2-BA_Fixed Asset Cont'!$B$154:$B$199,'App.2-C_DepExp'!A158,'App.2-BA_Fixed Asset Cont'!$D$154:$D$199) -> 11437100 | E158: 11437100 | F158: 582719 | H158: 582719 | I158: =SUMIF('App.2-BA_Fixed Asset Cont'!$B$222:$B$267,'App.2-C_DepExp'!A158,'App.2-BA_Fixed Asset Cont'!$E$222:$E$267) -> 785894 | J158: 23 | K158: 0.04347826087 | L158: 40 | M158: 0.025 | N158: 497265.2174 | O158: 14567.975 | P158: 9823.675 | Q158: 521656.8674 | R158: =-SUMIF('App.2-BA_Fixed Asset Cont'!$B$222:$B$267,'App.2-C_DepExp'!A158,'App.2-BA_Fixed Asset Cont'!$J$222:$J$267) -> 521657 | S158: 0.1326086957
A159: 1850 | B159: Line Transformers | C159: =SUMIF('App.2-BA_Fixed Asset Cont'!$B$154:$B$199,'App.2-C_DepExp'!A159,'App.2-BA_Fixed Asset Cont'!$D$154:$D$199) -> 9204093 | E159: 9204093 | F159: 645934 | H159: 645934 | I159: =SUMIF('App.2-BA_Fixed Asset Cont'!$B$222:$B$267,'App.2-C_DepExp'!A159,'App.2-BA_Fixed Asset Cont'!$E$222:$E$267) -> 1127232 | J159: 39 | K159: 0.02564102564 | L159: 40 | M159: 0.025 | N159: 236002.3846 | O159: 16148.35 | P159: 14090.4 | Q159: 266241.1346 | R159: =-SUMIF('App.2-BA_Fixed Asset Cont'!$B$222:$B$267,'App.2-C_DepExp'!A159,'App.2-BA_Fixed Asset Cont'!$J$222:$J$267) -> 266241 | S159: -0.1346153846
A160: 1855 | B160: Services (Overhead & Underground) | C160: =SUMIF('App.2-BA_Fixed Asset Cont'!$B$154:$B$199,'App.2-C_DepExp'!A160,'App.2-BA_Fixed Asset Cont'!$D$154:$D$199) -> 4460589 | E160: 4460589 | F160: 541557 | H160: 541557 | I160: =SUMIF('App.2-BA_Fixed Asset Cont'!$B$222:$B$267,'App.2-C_DepExp'!A160,'App.2-BA_Fixed Asset Cont'!$E$222:$E$267) -> 357901 | J160: 36 | K160: 0.02777777778 | L160: 40 | M160: 0.025 | N160: 123905.25 | O160: 13538.925 | P160: 4473.7625 | Q160: 141917.9375 | R160: =-SUMIF('App.2-BA_Fixed Asset Cont'!$B$222:$B$267,'App.2-C_DepExp'!A160,'App.2-BA_Fixed Asset Cont'!$J$222:$J$267) -> 141918 | S160: 0.0625
A161: 1860 | B161: Meters | C161: 0 | E161: 0 | F161: 0 | H161: 0 | I161: 0 | K161: 0 | M161: 0 | N161: 0 | O161: 0 | P161: 0 | Q161: 0 | R161: 0 | S161: 0
A162: 1860 | B162: Meters (Smart Meters) | C162: =SUMIF('App.2-BA_Fixed Asset Cont'!$B$154:$B$199,'App.2-C_DepExp'!A162,'App.2-BA_Fixed Asset Cont'!$D$154:$D$199) -> 4468973 | E162: 4468973 | F162: 141089 | H162: 141089 | I162: =SUMIF('App.2-BA_Fixed Asset Cont'!$B$222:$B$267,'App.2-C_DepExp'!A162,'App.2-BA_Fixed Asset Cont'!$E$222:$E$267) -> 52944 | J162: 11 | K162: 0.09090909091 | L162: 15 | M162: 0.06666666667 | N162: 406270.2727 | O162: 9405.933333 | P162: 1764.8 | Q162: 417441.0061 | R162: =-SUMIF('App.2-BA_Fixed Asset Cont'!$B$222:$B$267,'App.2-C_DepExp'!A162,'App.2-BA_Fixed Asset Cont'!$J$222:$J$267) -> 417441 | S162: -0.006060606043
A163: 1905 | B163: Land | C163: =SUMIF('App.2-BA_Fixed Asset Cont'!$B$154:$B$199,'App.2-C_DepExp'!A163,'App.2-BA_Fixed Asset Cont'!$D$154:$D$199) -> 0 | E163: 0 | F163: 0 | H163: 0 | I163: =SUMIF('App.2-BA_Fixed Asset Cont'!$B$222:$B$267,'App.2-C_DepExp'!A163,'App.2-BA_Fixed Asset Cont'!$E$222:$E$267) -> 0 | J163: 0 | K163: 0 | M163: 0 | N163: 0 | O163: 0 | P163: 0 | Q163: 0 | R163: =-SUMIF('App.2-BA_Fixed Asset Cont'!$B$222:$B$267,'App.2-C_DepExp'!A163,'App.2-BA_Fixed Asset Cont'!$J$222:$J$267) -> 0 | S163: 0
A164: 1908 | B164: Buildings & Fixtures | C164: =SUMIF('App.2-BA_Fixed Asset Cont'!$B$154:$B$199,'App.2-C_DepExp'!A164,'App.2-BA_Fixed Asset Cont'!$D$154:$D$199) -> 0 | E164: 0 | F164: 0 | H164: 0 | I164: =SUMIF('App.2-BA_Fixed Asset Cont'!$B$222:$B$267,'App.2-C_DepExp'!A164,'App.2-BA_Fixed Asset Cont'!$E$222:$E$267) -> 0 | J164: 0 | K164: 0 | M164: 0 | N164: 0 | O164: 0 | P164: 0 | Q164: 0 | R164: =-SUMIF('App.2-BA_Fixed Asset Cont'!$B$222:$B$267,'App.2-C_DepExp'!A164,'App.2-BA_Fixed Asset Cont'!$J$222:$J$267) -> 0 | S164: 0
A165: 1910 | B165: Leasehold Improvements | C165: =SUMIF('App.2-BA_Fixed Asset Cont'!$B$154:$B$199,'App.2-C_DepExp'!A165,'App.2-BA_Fixed Asset Cont'!$D$154:$D$199) -> 0 | E165: 0 | F165: 0 | H165: 0 | I165: =SUMIF('App.2-BA_Fixed Asset Cont'!$B$222:$B$267,'App.2-C_DepExp'!A165,'App.2-BA_Fixed Asset Cont'!$E$222:$E$267) -> 0 | J165: 0 | K165: 0 | M165: 0 | N165: 0 | O165: 0 | P165: 0 | Q165: 0 | R165: =-SUMIF('App.2-BA_Fixed Asset Cont'!$B$222:$B$267,'App.2-C_DepExp'!A165,'App.2-BA_Fixed Asset Cont'!$J$222:$J$267) -> 0 | S165: 0
A166: 1915 | B166: Office Furniture & Equipment (10 years) | C166: =SUMIF('App.2-BA_Fixed Asset Cont'!$B$154:$B$199,'App.2-C_DepExp'!A166,'App.2-BA_Fixed Asset Cont'!$D$154:$D$199) -> 0 | E166: 0 | F166: 0 | H166: 0 | I166: =SUMIF('App.2-BA_Fixed Asset Cont'!$B$222:$B$267,'App.2-C_DepExp'!A166,'App.2-BA_Fixed Asset Cont'!$E$222:$E$267) -> 0 | J166: 0 | K166: 0 | M166: 0 | N166: 0 | O166: 0 | P166: 0 | Q166: 0 | R166: =-SUMIF('App.2-BA_Fixed Asset Cont'!$B$222:$B$267,'App.2-C_DepExp'!A166,'App.2-BA_Fixed Asset Cont'!$J$222:$J$267) -> 0 | S166: 0
A167: 1915 | B167: Office Furniture & Equipment (5 years) | C167: =SUMIF('App.2-BA_Fixed Asset Cont'!$B$154:$B$199,'App.2-C_DepExp'!A167,'App.2-BA_Fixed Asset Cont'!$D$154:$D$199) -> 0 | E167: 0 | F167: 0 | H167: 0 | I167: =SUMIF('App.2-BA_Fixed Asset Cont'!$B$222:$B$267,'App.2-C_DepExp'!A167,'App.2-BA_Fixed Asset Cont'!$E$222:$E$267) -> 0 | J167: 0 | K167: 0 | M167: 0 | N167: 0 | O167: 0 | P167: 0 | Q167: 0 | R167: =-SUMIF('App.2-BA_Fixed Asset Cont'!$B$222:$B$267,'App.2-C_DepExp'!A167,'App.2-BA_Fixed Asset Cont'!$J$222:$J$267) -> 0 | S167: 0
A168: 1920 | B168: Computer Equipment - Hardware | C168: =SUMIF('App.2-BA_Fixed Asset Cont'!$B$154:$B$199,'App.2-C_DepExp'!A168,'App.2-BA_Fixed Asset Cont'!$D$154:$D$199) -> 1361 | D168: 1361 | E168: 0 | F168: 0 | H168: 0 | I168: =SUMIF('App.2-BA_Fixed Asset Cont'!$B$222:$B$267,'App.2-C_DepExp'!A168,'App.2-BA_Fixed Asset Cont'!$E$222:$E$267) -> 0 | J168: 1 | K168: 1 | L168: 5 | M168: 0.2 | N168: 0 | O168: 0 | P168: 0 | Q168: 0 | R168: =-SUMIF('App.2-BA_Fixed Asset Cont'!$B$222:$B$267,'App.2-C_DepExp'!A168,'App.2-BA_Fixed Asset Cont'!$J$222:$J$267) -> 0 | S168: 0
A169: 1920 | B169: Computer Equip.-Hardware(Post Mar. 22/04) | C169: 0 | E169: 0 | F169: 0 | H169: 0 | I169: =SUMIF('App.2-BA_Fixed Asset Cont'!$B$222:$B$267,'App.2-C_DepExp'!A169,'App.2-BA_Fixed Asset Cont'!$E$222:$E$267) -> 0 | J169: 0 | K169: 0 | L169: 5 | M169: 0.2 | N169: 0 | O169: 0 | P169: 0 | Q169: 0 | R169: =-SUMIF('App.2-BA_Fixed Asset Cont'!$B$222:$B$267,'App.2-C_DepExp'!A169,'App.2-BA_Fixed Asset Cont'!$J$222:$J$267) -> 0 | S169: 0
A170: 1920 | B170: Computer Equip.-Hardware(Post Mar. 19/07) | C170: 0 | E170: 0 | F170: 0 | H170: 0 | I170: =SUMIF('App.2-BA_Fixed Asset Cont'!$B$222:$B$267,'App.2-C_DepExp'!A170,'App.2-BA_Fixed Asset Cont'!$E$222:$E$267) -> 0 | J170: 0 | K170: 0 | L170: 5 | M170: 0.2 | N170: 0 | O170: 0 | P170: 0 | Q170: 0 | R170: =-SUMIF('App.2-BA_Fixed Asset Cont'!$B$222:$B$267,'App.2-C_DepExp'!A170,'App.2-BA_Fixed Asset Cont'!$J$222:$J$267) -> 0 | S170: 0
A171: 1925 | B171: Computer Software | C171: =SUMIF('App.2-BA_Fixed Asset Cont'!$B$154:$B$199,'App.2-C_DepExp'!A171,'App.2-BA_Fixed Asset Cont'!$D$154:$D$199) -> 105974 | D171: 105974 | E171: 0 | F171: 0 | H171: 0 | I171: =SUMIF('App.2-BA_Fixed Asset Cont'!$B$222:$B$267,'App.2-C_DepExp'!A171,'App.2-BA_Fixed Asset Cont'!$E$222:$E$267) -> 0 | J171: 1 | K171: 1 | L171: 5 | M171: 0.2 | N171: 0 | O171: 0 | P171: 0 | Q171: 0 | R171: =-SUMIF('App.2-BA_Fixed Asset Cont'!$B$222:$B$267,'App.2-C_DepExp'!A171,'App.2-BA_Fixed Asset Cont'!$J$222:$J$267) -> 0 | S171: 0
A172: 1930 | B172: Transportation Equipment | C172: =SUMIF('App.2-BA_Fixed Asset Cont'!$B$154:$B$199,'App.2-C_DepExp'!A172,'App.2-BA_Fixed Asset Cont'!$D$154:$D$199) -> 0 | E172: 0 | F172: 0 | H172: 0 | I172: =SUMIF('App.2-BA_Fixed Asset Cont'!$B$222:$B$267,'App.2-C_DepExp'!A172,'App.2-BA_Fixed Asset Cont'!$E$222:$E$267) -> 0 | J172: 0 | K172: 0 | M172: 0 | N172: 0 | O172: 0 | P172: 0 | Q172: 0 | R172: =-SUMIF('App.2-BA_Fixed Asset Cont'!$B$222:$B$267,'App.2-C_DepExp'!A172,'App.2-BA_Fixed Asset Cont'!$J$222:$J$267) -> 0 | S172: 0
A173: 1935 | B173: Stores Equipment | C173: =SUMIF('App.2-BA_Fixed Asset Cont'!$B$154:$B$199,'App.2-C_DepExp'!A173,'App.2-BA_Fixed Asset Cont'!$D$154:$D$199) -> 0 | E173: 0 | F173: 0 | H173: 0 | I173: =SUMIF('App.2-BA_Fixed Asset Cont'!$B$222:$B$267,'App.2-C_DepExp'!A173,'App.2-BA_Fixed Asset Cont'!$E$222:$E$267) -> 0 | J173: 0 | K173: 0 | M173: 0 | N173: 0 | O173: 0 | P173: 0 | Q173: 0 | R173: =-SUMIF('App.2-BA_Fixed Asset Cont'!$B$222:$B$267,'App.2-C_DepExp'!A173,'App.2-BA_Fixed Asset Cont'!$J$222:$J$267) -> 0 | S173: 0
A174: 1940 | B174: Tools, Shop & Garage Equipment | C174: =SUMIF('App.2-BA_Fixed Asset Cont'!$B$154:$B$199,'App.2-C_DepExp'!A174,'App.2-BA_Fixed Asset Cont'!$D$154:$D$199) -> 0 | E174: 0 | F174: 0 | H174: 0 | I174: =SUMIF('App.2-BA_Fixed Asset Cont'!$B$222:$B$267,'App.2-C_DepExp'!A174,'App.2-BA_Fixed Asset Cont'!$E$222:$E$267) -> 0 | J174: 0 | K174: 0 | M174: 0 | N174: 0 | O174: 0 | P174: 0 | Q174: 0 | R174: =-SUMIF('App.2-BA_Fixed Asset Cont'!$B$222:$B$267,'App.2-C_DepExp'!A174,'App.2-BA_Fixed Asset Cont'!$J$222:$J$267) -> 0 | S174: 0
A175: 1945 | B175: Measurement & Testing Equipment | C175: =SUMIF('App.2-BA_Fixed Asset Cont'!$B$154:$B$199,'App.2-C_DepExp'!A175,'App.2-BA_Fixed Asset Cont'!$D$154:$D$199) -> 0 | E175: 0 | F175: 0 | H175: 0 | I175: =SUMIF('App.2-BA_Fixed Asset Cont'!$B$222:$B$267,'App.2-C_DepExp'!A175,'App.2-BA_Fixed Asset Cont'!$E$222:$E$267) -> 0 | J175: 0 | K175: 0 | M175: 0 | N175: 0 | O175: 0 | P175: 0 | Q175: 0 | R175: =-SUMIF('App.2-BA_Fixed Asset Cont'!$B$222:$B$267,'App.2-C_DepExp'!A175,'App.2-BA_Fixed Asset Cont'!$J$222:$J$267) -> 0 | S175: 0
A176: 1950 | B176: Power Operated Equipment | C176: =SUMIF('App.2-BA_Fixed Asset Cont'!$B$154:$B$199,'App.2-C_DepExp'!A176,'App.2-BA_Fixed Asset Cont'!$D$154:$D$199) -> 0 | E176: 0 | F176: 0 | H176: 0 | I176: =SUMIF('App.2-BA_Fixed Asset Cont'!$B$222:$B$267,'App.2-C_DepExp'!A176,'App.2-BA_Fixed Asset Cont'!$E$222:$E$267) -> 0 | J176: 0 | K176: 0 | M176: 0 | N176: 0 | O176: 0 | P176: 0 | Q176: 0 | R176: =-SUMIF('App.2-BA_Fixed Asset Cont'!$B$222:$B$267,'App.2-C_DepExp'!A176,'App.2-BA_Fixed Asset Cont'!$J$222:$J$267) -> 0 | S176: 0
A177: 1955 | B177: Communications Equipment | C177: =SUMIF('App.2-BA_Fixed Asset Cont'!$B$154:$B$199,'App.2-C_DepExp'!A177,'App.2-BA_Fixed Asset Cont'!$D$154:$D$199) -> 0 | E177: 0 | F177: 0 | H177: 0 | I177: =SUMIF('App.2-BA_Fixed Asset Cont'!$B$222:$B$267,'App.2-C_DepExp'!A177,'App.2-BA_Fixed Asset Cont'!$E$222:$E$267) -> 0 | J177: 0 | K177: 0 | M177: 0 | N177: 0 | O177: 0 | P177: 0 | Q177: 0 | R177: =-SUMIF('App.2-BA_Fixed Asset Cont'!$B$222:$B$267,'App.2-C_DepExp'!A177,'App.2-BA_Fixed Asset Cont'!$J$222:$J$267) -> 0 | S177: 0
A178: 1955 | B178: Communication Equipment (Smart Meters) | C178: =SUMIF('App.2-BA_Fixed Asset Cont'!$B$154:$B$199,'App.2-C_DepExp'!A178,'App.2-BA_Fixed Asset Cont'!$D$154:$D$199) -> 0 | E178: 0 | F178: 0 | H178: 0 | I178: =SUMIF('App.2-BA_Fixed Asset Cont'!$B$222:$B$267,'App.2-C_DepExp'!A178,'App.2-BA_Fixed Asset Cont'!$E$222:$E$267) -> 0 | J178: 0 | K178: 0 | M178: 0 | N178: 0 | O178: 0 | P178: 0 | Q178: 0 | R178: =-SUMIF('App.2-BA_Fixed Asset Cont'!$B$222:$B$267,'App.2-C_DepExp'!A178,'App.2-BA_Fixed Asset Cont'!$J$222:$J$267) -> 0 | S178: 0
A179: 1960 | B179: Miscellaneous Equipment | C179: =SUMIF('App.2-BA_Fixed Asset Cont'!$B$154:$B$199,'App.2-C_DepExp'!A179,'App.2-BA_Fixed Asset Cont'!$D$154:$D$199) -> 0 | E179: 0 | F179: 0 | H179: 0 | I179: =SUMIF('App.2-BA_Fixed Asset Cont'!$B$222:$B$267,'App.2-C_DepExp'!A179,'App.2-BA_Fixed Asset Cont'!$E$222:$E$267) -> 0 | J179: 0 | K179: 0 | M179: 0 | N179: 0 | O179: 0 | P179: 0 | Q179: 0 | R179: =-SUMIF('App.2-BA_Fixed Asset Cont'!$B$222:$B$267,'App.2-C_DepExp'!A179,'App.2-BA_Fixed Asset Cont'!$J$222:$J$267) -> 0 | S179: 0
A180: 1970 | B180: Load Management Controls Customer Premises | C180: =SUMIF('App.2-BA_Fixed Asset Cont'!$B$154:$B$199,'App.2-C_DepExp'!A180,'App.2-BA_Fixed Asset Cont'!$D$154:$D$199) -> 0 | E180: 0 | F180: 0 | H180: 0 | I180: =SUMIF('App.2-BA_Fixed Asset Cont'!$B$222:$B$267,'App.2-C_DepExp'!A180,'App.2-BA_Fixed Asset Cont'!$E$222:$E$267) -> 0 | J180: 0 | K180: 0 | M180: 0 | N180: 0 | O180: 0 | P180: 0 | Q180: 0 | R180: =-SUMIF('App.2-BA_Fixed Asset Cont'!$B$222:$B$267,'App.2-C_DepExp'!A180,'App.2-BA_Fixed Asset Cont'!$J$222:$J$267) -> 0 | S180: 0
A181: 1975 | B181: Load Management Controls Utility Premises | C181: =SUMIF('App.2-BA_Fixed Asset Cont'!$B$154:$B$199,'App.2-C_DepExp'!A181,'App.2-BA_Fixed Asset Cont'!$D$154:$D$199) -> 0 | E181: 0 | F181: 0 | H181: 0 | I181: =SUMIF('App.2-BA_Fixed Asset Cont'!$B$222:$B$267,'App.2-C_DepExp'!A181,'App.2-BA_Fixed Asset Cont'!$E$222:$E$267) -> 0 | J181: 0 | K181: 0 | M181: 0 | N181: 0 | O181: 0 | P181: 0 | Q181: 0 | R181: =-SUMIF('App.2-BA_Fixed Asset Cont'!$B$222:$B$267,'App.2-C_DepExp'!A181,'App.2-BA_Fixed Asset Cont'!$J$222:$J$267) -> 0 | S181: 0
A182: 1980 | B182: System Supervisor Equipment | C182: =SUMIF('App.2-BA_Fixed Asset Cont'!$B$154:$B$199,'App.2-C_DepExp'!A182,'App.2-BA_Fixed Asset Cont'!$D$154:$D$199) -> 1381611 | E182: 1381611 | F182: 156593 | H182: 156593 | I182: =SUMIF('App.2-BA_Fixed Asset Cont'!$B$222:$B$267,'App.2-C_DepExp'!A182,'App.2-BA_Fixed Asset Cont'!$E$222:$E$267) -> 4551 | J182: 6 | K182: 0.1666666667 | L182: 20 | M182: 0.05 | N182: 230268.5 | O182: 7829.65 | P182: 113.775 | Q182: 238211.925 | R182: =-SUMIF('App.2-BA_Fixed Asset Cont'!$B$222:$B$267,'App.2-C_DepExp'!A182,'App.2-BA_Fixed Asset Cont'!$J$222:$J$267) -> 238212 | S182: 0.07500000001
A183: 1985 | B183: Miscellaneous Fixed Assets | C183: =SUMIF('App.2-BA_Fixed Asset Cont'!$B$154:$B$199,'App.2-C_DepExp'!A183,'App.2-BA_Fixed Asset Cont'!$D$154:$D$199) -> 0 | E183: 0 | F183: 0 | H183: 0 | I183: =SUMIF('App.2-BA_Fixed Asset Cont'!$B$222:$B$267,'App.2-C_DepExp'!A183,'App.2-BA_Fixed Asset Cont'!$E$222:$E$267) -> 0 | J183: 0 | K183: 0 | M183: 0 | N183: 0 | O183: 0 | P183: 0 | Q183: 0 | R183: =-SUMIF('App.2-BA_Fixed Asset Cont'!$B$222:$B$267,'App.2-C_DepExp'!A183,'App.2-BA_Fixed Asset Cont'!$J$222:$J$267) -> 0 | S183: 0
A184: 1990 | B184: Other Tangible Property | C184: =SUMIF('App.2-BA_Fixed Asset Cont'!$B$154:$B$199,'App.2-C_DepExp'!A184,'App.2-BA_Fixed Asset Cont'!$D$154:$D$199) -> 0 | E184: 0 | F184: 0 | H184: 0 | I184: =SUMIF('App.2-BA_Fixed Asset Cont'!$B$222:$B$267,'App.2-C_DepExp'!A184,'App.2-BA_Fixed Asset Cont'!$E$222:$E$267) -> 0 | J184: 0 | K184: 0 | M184: 0 | N184: 0 | O184: 0 | P184: 0 | Q184: 0 | R184: =-SUMIF('App.2-BA_Fixed Asset Cont'!$B$222:$B$267,'App.2-C_DepExp'!A184,'App.2-BA_Fixed Asset Cont'!$J$222:$J$267) -> 0 | S184: 0
A185: 1995 | B185: Contributions & Grants | C185: =SUMIF('App.2-BA_Fixed Asset Cont'!$B$154:$B$199,'App.2-C_DepExp'!A185,'App.2-BA_Fixed Asset Cont'!$D$154:$D$199) -> -11161740 | E185: -11161740 | F185: 0 | H185: 0 | I185: =SUMIF('App.2-BA_Fixed Asset Cont'!$B$222:$B$267,'App.2-C_DepExp'!A185,'App.2-BA_Fixed Asset Cont'!$E$222:$E$267) -> 0 | J185: 34 | K185: 0.02941176471 | L185: 40 | M185: 0.025 | N185: -328286.4706 | O185: 0 | P185: 0 | Q185: -328286.4706 | R185: =-SUMIF('App.2-BA_Fixed Asset Cont'!$B$222:$B$267,'App.2-C_DepExp'!A185,'App.2-BA_Fixed Asset Cont'!$J$222:$J$267) -> -328286 | S185: 0.4705882353
B186: Total | C186: =SUM(C141:C185) -> 82778268 | D186: =SUM(D141:D185) -> 107335 | E186: 82670933 | F186: 7706779 | G186: 0 | H186: 7706779 | I186: 6710693 | N186: =SUM(N141:N185) -> 3180050.03 | O186: 185413.7416 | P186: 76599.49313 | Q186: 3442063.265 | R186: 3442063 | S186: -0.2648864889
A190: Scenario that applies | C190: Applicable Years and Accounting Standard | R190: Year Reflected in Schedule Below | S190: Accounting Standard Reflected in Schedule Below | Y190: 2012
A191: Rebasing for the first time with depreciation policy changes made in 2012. | C191: This appendix must be duplicated and completed for the years 2012 to 2018. The appendix for 2012 is to be completed under CGAAP (prior to changes in depreciation policies). The appendix for 2012 to 2014 must be completed under Revised CGAAP (after changes in depreciation policies). The appendix for 2014 to 2018 is to be completed under MIFRS (2014 if changes to MIFRS are material). | Y191: 2013
A192: Rebasing for the first time with depreciation policy changes made in 2013. | C192: This appendix must be duplicated and completed for the years 2013 to 2018. The appendix for 2013 is to be completed under CGAAP (prior to changes in depreciation policies). The appendix for 2013 to 2014 must be completed under Revised CGAAP (after changes in depreciation policies). The appendix for 2014 to 2018 is to be completed under MIFRS (2014 if changes to MIFRS are material). | Y192: 2014
A193: Already rebased with depreciation policy changes in a prior rate application | C193: This appendix must be completed for 2014 to 2018. The appendix for 2014 is to be completed under Revised CGAAP (after changes in depreciation policies). The appendix for 2014 to 2018 is to be completed under MIFRS (2014 if changes to MIFRS are material). | R193: 2016 | S193: MIFRS | Y193: 2015
Y194: 2016
Y195: 2017
C196: Book Values | J196: Service Lives | N196: Depreciation Expense | Y196: 2018
A197: Account | B197: Description | C197: Opening Net Book Value of Existing Assets as at Date of Policy Change (Jan. 1) 1 | D197: Less Fully Depreciated 7 | E197: Net Amount of Existing Assets Before Policy Change to be Depreciated | F197: Opening Gross Book Value of Assets Acquired After Policy Change 2 | G197: Less Fully Depreciated 8 | H197: Net Amount of Assets Acquired After Policy Change to be Depreciated | I197: Current Year Additions | J197: Average Remaining Life of Assets Existing Before Policy Change 3 | K197: Depreciation Rate Assets Acquired After Policy Change | L197: Life of Assets Acquired After Policy Change 4 | M197: Depreciation Rate on New Additions | N197: Depreciation Expense on Assets Existing Before Policy Change | O197: Depreciation Expense on Assets Acquired After Policy Change | P197: Depreciation Expense on Current Year Additions 5 | Q197: Total Current Year Depreciation Expense | R197: Depreciation Expense per Appendix 2-BA Fixed Assets, Column J | S197: Variance 6
C198: a | D198: b | E198: c = a-b | F198: d | G198: e | H198: f = d- e | I198: g | J198: h | K198: i = 1/h | L198: j | M198: k = 1/j | N198: l = c/h | O198: m = f/j | P198: n = g*0.5/j | Q198: o = l+m+n | R198: p | S198: q = p-o
A199: 1706 | B199: Land Rights | C199: =SUMIF('App.2-BA_Fixed Asset Cont'!$B$154:$B$199,'App.2-C_DepExp'!A199,'App.2-BA_Fixed Asset Cont'!$D$154:$D$199) -> 602307 | E199: =C199-D199 -> 602307 | F199: =+F141+I141 -> 0 | H199: =F199-G199 -> 0 | I199: =SUMIF('App.2-BA_Fixed Asset Cont'!$B$290:$B$335,'App.2-C_DepExp'!A199,'App.2-BA_Fixed Asset Cont'!$E$290:$E$335) -> 0 | K199: =IF(J199=0,0,1/J199) -> 0 | L199: 0 | M199: =IF(L199=0,0,1/L199) -> 0 | N199: =IF(J199=0,0,+E199/J199) -> 0 | O199: =IF(L199=0,0,+H199/L199) -> 0 | P199: =IF(L199=0,0,+(I199*0.5)/L199) -> 0 | Q199: =IF(ISERROR(+N199+O199+P199), 0, +N199+O199+P199) -> 0 | R199: =-SUMIF('App.2-BA_Fixed Asset Cont'!$B$290:$B$335,'App.2-C_DepExp'!A199,'App.2-BA_Fixed Asset Cont'!$J$290:$J$335) -> 0 | S199: =IF(ISERROR(+R199-122), 0, +R199-Q199) -> 0
A200: 1725 | B200: Poles and Fixtures | C200: =SUMIF('App.2-BA_Fixed Asset Cont'!$B$154:$B$199,'App.2-C_DepExp'!A200,'App.2-BA_Fixed Asset Cont'!$D$154:$D$199) -> 1604340 | E200: 1604340 | F200: =+F142+I142 -> 0 | H200: 0 | I200: =SUMIF('App.2-BA_Fixed Asset Cont'!$B$290:$B$335,'App.2-C_DepExp'!A200,'App.2-BA_Fixed Asset Cont'!$E$290:$E$335) -> 0 | J200: 41 | K200: 0.0243902439 | L200: 45 | M200: 0.02222222222 | N200: 39130.2439 | O200: 0 | P200: 0 | Q200: 39130.2439 | R200: =-SUMIF('App.2-BA_Fixed Asset Cont'!$B$290:$B$335,'App.2-C_DepExp'!A200,'App.2-BA_Fixed Asset Cont'!$J$290:$J$335) -> 39130 | S200: =IF(ISERROR(+R200-122), 0, +R200-Q200) -> -0.243902439
A201: 1730 | B201: Overhead Conductors & Devices | C201: =SUMIF('App.2-BA_Fixed Asset Cont'!$B$154:$B$199,'App.2-C_DepExp'!A201,'App.2-BA_Fixed Asset Cont'!$D$154:$D$199) -> 63894 | E201: 63894 | F201: 0 | H201: 0 | I201: =SUMIF('App.2-BA_Fixed Asset Cont'!$B$290:$B$335,'App.2-C_DepExp'!A201,'App.2-BA_Fixed Asset Cont'!$E$290:$E$335) -> 0 | J201: 32 | K201: 0.03125 | L201: 45 | M201: 0.02222222222 | N201: 1996.6875 | O201: 0 | P201: 0 | Q201: 1996.6875 | R201: =-SUMIF('App.2-BA_Fixed Asset Cont'!$B$290:$B$335,'App.2-C_DepExp'!A201,'App.2-BA_Fixed Asset Cont'!$J$290:$J$335) -> 1997 | S201: =IF(ISERROR(+R201-122), 0, +R201-Q201) -> 0.3125
A202: 1735 | B202: Underground Conduit | C202: =SUMIF('App.2-BA_Fixed Asset Cont'!$B$154:$B$199,'App.2-C_DepExp'!A202,'App.2-BA_Fixed Asset Cont'!$D$154:$D$199) -> 870021 | E202: 870021 | F202: 0 | H202: 0 | I202: =SUMIF('App.2-BA_Fixed Asset Cont'!$B$290:$B$335,'App.2-C_DepExp'!A202,'App.2-BA_Fixed Asset Cont'!$E$290:$E$335) -> 0 | J202: 35 | K202: 0.02857142857 | L202: 40 | M202: 0.025 | N202: 24857.74286 | O202: 0 | P202: 0 | Q202: 24857.74286 | R202: =-SUMIF('App.2-BA_Fixed Asset Cont'!$B$290:$B$335,'App.2-C_DepExp'!A202,'App.2-BA_Fixed Asset Cont'!$J$290:$J$335) -> 24858 | S202: 0.2571428571
A203: 1740 | B203: Underground Conductors & Devices | C203: =SUMIF('App.2-BA_Fixed Asset Cont'!$B$154:$B$199,'App.2-C_DepExp'!A203,'App.2-BA_Fixed Asset Cont'!$D$154:$D$199) -> 215252 | E203: 215252 | F203: 0 | H203: 0 | I203: =SUMIF('App.2-BA_Fixed Asset Cont'!$B$290:$B$335,'App.2-C_DepExp'!A203,'App.2-BA_Fixed Asset Cont'!$E$290:$E$335) -> 0 | J203: 22 | K203: 0.04545454545 | L203: 25 | M203: 0.04 | N203: 9784.181818 | O203: 0 | P203: 0 | Q203: 9784.181818 | R203: =-SUMIF('App.2-BA_Fixed Asset Cont'!$B$290:$B$335,'App.2-C_DepExp'!A203,'App.2-BA_Fixed Asset Cont'!$J$290:$J$335) -> 9784 | S203: -0.1818181818
A204: 1611 | B204: Computer Software (Formally known as Account 1925) | C204: =SUMIF('App.2-BA_Fixed Asset Cont'!$B$154:$B$199,'App.2-C_DepExp'!A204,'App.2-BA_Fixed Asset Cont'!$D$154:$D$199) -> 0 | E204: =C204-D204 -> 0 | F204: 0 | H204: =F204-G204 -> 0 | I204: =SUMIF('App.2-BA_Fixed Asset Cont'!$B$290:$B$335,'App.2-C_DepExp'!A204,'App.2-BA_Fixed Asset Cont'!$E$290:$E$335) -> 0 | J204: 0 | K204: =IF(J204=0,0,1/J204) -> 0 | L204: 0 | M204: =IF(L204=0,0,1/L204) -> 0 | N204: =IF(J204=0,0,+E204/J204) -> 0 | O204: =IF(L204=0,0,+H204/L204) -> 0 | P204: =IF(L204=0,0,+(I204*0.5)/L204) -> 0 | Q204: =IF(ISERROR(+N204+O204+P204), 0, +N204+O204+P204) -> 0 | R204: =-SUMIF('App.2-BA_Fixed Asset Cont'!$B$290:$B$335,'App.2-C_DepExp'!A204,'App.2-BA_Fixed Asset Cont'!$J$290:$J$335) -> 0 | S204: =IF(ISERROR(+R204-122), 0, +R204-Q204) -> 0
A205: 1612 | B205: Land Rights (Formally known as Account 1906) | C205: =SUMIF('App.2-BA_Fixed Asset Cont'!$B$154:$B$199,'App.2-C_DepExp'!A205,'App.2-BA_Fixed Asset Cont'!$D$154:$D$199) -> 0 | E205: =C205-D205 -> 0 | F205: 0 | H205: =F205-G205 -> 0 | I205: =SUMIF('App.2-BA_Fixed Asset Cont'!$B$290:$B$335,'App.2-C_DepExp'!A205,'App.2-BA_Fixed Asset Cont'!$E$290:$E$335) -> 0 | J205: 0 | K205: =IF(J205=0,0,1/J205) -> 0 | L205: 0 | M205: =IF(L205=0,0,1/L205) -> 0 | N205: =IF(J205=0,0,+E205/J205) -> 0 | O205: =IF(L205=0,0,+H205/L205) -> 0 | P205: =IF(L205=0,0,+(I205*0.5)/L205) -> 0 | Q205: =IF(ISERROR(+N205+O205+P205), 0, +N205+O205+P205) -> 0 | R205: =-SUMIF('App.2-BA_Fixed Asset Cont'!$B$290:$B$335,'App.2-C_DepExp'!A205,'App.2-BA_Fixed Asset Cont'!$J$290:$J$335) -> 0 | S205: =IF(ISERROR(+R205-122), 0, +R205-Q205) -> 0
A206: 1805 | B206: Land | C206: =SUMIF('App.2-BA_Fixed Asset Cont'!$B$154:$B$199,'App.2-C_DepExp'!A206,'App.2-BA_Fixed Asset Cont'!$D$154:$D$199) -> 89160 | E206: 89160 | F206: 0 | H206: 0 | I206: =SUMIF('App.2-BA_Fixed Asset Cont'!$B$290:$B$335,'App.2-C_DepExp'!A206,'App.2-BA_Fixed Asset Cont'!$E$290:$E$335) -> 0 | J206: 0 | K206: 0 | L206: 0 | M206: 0 | N206: 0 | O206: =IF(L206=0,0,+H206/L206) -> 0 | P206: 0 | Q206: 0 | R206: =-SUMIF('App.2-BA_Fixed Asset Cont'!$B$290:$B$335,'App.2-C_DepExp'!A206,'App.2-BA_Fixed Asset Cont'!$J$290:$J$335) -> 0 | S206: 0
A207: 1806 | B207: Land Rights | C207: =SUMIF('App.2-BA_Fixed Asset Cont'!$B$154:$B$199,'App.2-C_DepExp'!A207,'App.2-BA_Fixed Asset Cont'!$D$154:$D$199) -> 154128 | E207: 154128 | F207: 12491 | H207: 12491 | I207: =SUMIF('App.2-BA_Fixed Asset Cont'!$B$290:$B$335,'App.2-C_DepExp'!A207,'App.2-BA_Fixed Asset Cont'!$E$290:$E$335) -> 7064 | J207: 0 | K207: 0 | L207: 0 | M207: 0 | N207: 0 | O207: 0 | P207: 0 | Q207: 0 | R207: =-SUMIF('App.2-BA_Fixed Asset Cont'!$B$290:$B$335,'App.2-C_DepExp'!A207,'App.2-BA_Fixed Asset Cont'!$J$290:$J$335) -> 0 | S207: 0
A208: 1808 | B208: Buildings | C208: =SUMIF('App.2-BA_Fixed Asset Cont'!$B$154:$B$199,'App.2-C_DepExp'!A208,'App.2-BA_Fixed Asset Cont'!$D$154:$D$199) -> 24624967 | E208: 24624967 | F208: 311386 | H208: 311386 | I208: =SUMIF('App.2-BA_Fixed Asset Cont'!$B$290:$B$335,'App.2-C_DepExp'!A208,'App.2-BA_Fixed Asset Cont'!$E$290:$E$335) -> 82630 | J208: 36.5981 | K208: 0.02732382282 | L208: 43.85 | M208: 0.0228050171 | N208: 672848.2353 | O208: 7101.163056 | P208: 942.1892816 | Q208: 680891.5876 | R208: =-SUMIF('App.2-BA_Fixed Asset Cont'!$B$290:$B$335,'App.2-C_DepExp'!A208,'App.2-BA_Fixed Asset Cont'!$J$290:$J$335) -> 680892 | S208: =IF(ISERROR(+R208-122), 0, +R208-Q208) -> 0.4123715827
A209: 1810 | B209: Leasehold Improvements | C209: =SUMIF('App.2-BA_Fixed Asset Cont'!$B$154:$B$199,'App.2-C_DepExp'!A209,'App.2-BA_Fixed Asset Cont'!$D$154:$D$199) -> 0 | E209: 0 | F209: 0 | H209: 0 | I209: =SUMIF('App.2-BA_Fixed Asset Cont'!$B$290:$B$335,'App.2-C_DepExp'!A209,'App.2-BA_Fixed Asset Cont'!$E$290:$E$335) -> 0 | J209: 0 | K209: 0 | L209: 0 | M209: 0 | N209: 0 | O209: 0 | P209: 0 | Q209: 0 | R209: =-SUMIF('App.2-BA_Fixed Asset Cont'!$B$290:$B$335,'App.2-C_DepExp'!A209,'App.2-BA_Fixed Asset Cont'!$J$290:$J$335) -> 0 | S209: =IF(ISERROR(+R209-122), 0, +R209-Q209) -> 0
A210: 1815 | B210: Transformer Station Equipment >50 kV | C210: =SUMIF('App.2-BA_Fixed Asset Cont'!$B$154:$B$199,'App.2-C_DepExp'!A210,'App.2-BA_Fixed Asset Cont'!$D$154:$D$199) -> 5491722 | E210: 5491722 | F210: 718106 | H210: 718106 | I210: =SUMIF('App.2-BA_Fixed Asset Cont'!$B$290:$B$335,'App.2-C_DepExp'!A210,'App.2-BA_Fixed Asset Cont'!$E$290:$E$335) -> 275737 | J210: 24 | K210: 0.04166666667 | L210: 40 | M210: 0.025 | N210: 228821.75 | O210: 17952.65 | P210: 3446.7125 | Q210: 250221.1125 | R210: =-SUMIF('App.2-BA_Fixed Asset Cont'!$B$290:$B$335,'App.2-C_DepExp'!A210,'App.2-BA_Fixed Asset Cont'!$J$290:$J$335) -> 250221 | S210: -0.1125
A211: 1820 | B211: Distribution Station Equipment <50 kV | C211: =SUMIF('App.2-BA_Fixed Asset Cont'!$B$154:$B$199,'App.2-C_DepExp'!A211,'App.2-BA_Fixed Asset Cont'!$D$154:$D$199) -> 7812618 | E211: 7812618 | F211: 2110216 | H211: 2110216 | I211: =SUMIF('App.2-BA_Fixed Asset Cont'!$B$290:$B$335,'App.2-C_DepExp'!A211,'App.2-BA_Fixed Asset Cont'!$E$290:$E$335) -> 276939 | J211: 22 | K211: 0.04545454545 | L211: 40 | M211: 0.025 | N211: 355119 | O211: 52755.4 | P211: 3461.7375 | Q211: 411336.1375 | R211: =-SUMIF('App.2-BA_Fixed Asset Cont'!$B$290:$B$335,'App.2-C_DepExp'!A211,'App.2-BA_Fixed Asset Cont'!$J$290:$J$335) -> 411336 | S211: -0.1375
A212: 1825 | B212: Storage Battery Equipment | C212: =SUMIF('App.2-BA_Fixed Asset Cont'!$B$154:$B$199,'App.2-C_DepExp'!A212,'App.2-BA_Fixed Asset Cont'!$D$154:$D$199) -> 13722 | E212: 13722 | F212: 0 | H212: 0 | I212: =SUMIF('App.2-BA_Fixed Asset Cont'!$B$290:$B$335,'App.2-C_DepExp'!A212,'App.2-BA_Fixed Asset Cont'!$E$290:$E$335) -> 0 | J212: 21 | K212: 0.04761904762 | L212: 30 | M212: 0.03333333333 | N212: 653.4285714 | O212: 0 | P212: 0 | Q212: 653.4285714 | R212: =-SUMIF('App.2-BA_Fixed Asset Cont'!$B$290:$B$335,'App.2-C_DepExp'!A212,'App.2-BA_Fixed Asset Cont'!$J$290:$J$335) -> 653 | S212: -0.4285714286
A213: 1830 | B213: Poles, Towers & Fixtures | C213: =SUMIF('App.2-BA_Fixed Asset Cont'!$B$154:$B$199,'App.2-C_DepExp'!A213,'App.2-BA_Fixed Asset Cont'!$D$154:$D$199) -> 10446415 | E213: 10446415 | F213: 4136339 | H213: 4136339 | I213: =SUMIF('App.2-BA_Fixed Asset Cont'!$B$290:$B$335,'App.2-C_DepExp'!A213,'App.2-BA_Fixed Asset Cont'!$E$290:$E$335) -> 1601920 | J213: 44 | K213: 0.02272727273 | L213: 45 | M213: 0.02222222222 | N213: 237418.5227 | O213: 91918.64444 | P213: 17799.11111 | Q213: 347136.2783 | R213: =-SUMIF('App.2-BA_Fixed Asset Cont'!$B$290:$B$335,'App.2-C_DepExp'!A213,'App.2-BA_Fixed Asset Cont'!$J$290:$J$335) -> 347136 | S213: -0.2782828283
A214: 1835 | B214: Overhead Conductors & Devices | C214: =SUMIF('App.2-BA_Fixed Asset Cont'!$B$154:$B$199,'App.2-C_DepExp'!A214,'App.2-BA_Fixed Asset Cont'!$D$154:$D$199) -> 8345730 | E214: 8345730 | F214: 2110909 | H214: 2110909 | I214: =SUMIF('App.2-BA_Fixed Asset Cont'!$B$290:$B$335,'App.2-C_DepExp'!A214,'App.2-BA_Fixed Asset Cont'!$E$290:$E$335) -> 1278318 | J214: 36 | K214: 0.02777777778 | L214: 60 | M214: 0.01666666667 | N214: 231825.8333 | O214: 35181.81667 | P214: 10652.65 | Q214: 277660.3 | R214: =-SUMIF('App.2-BA_Fixed Asset Cont'!$B$290:$B$335,'App.2-C_DepExp'!A214,'App.2-BA_Fixed Asset Cont'!$J$290:$J$335) -> 277660 | S214: -0.3
A215: 1840 | B215: Underground Conduit | C215: =SUMIF('App.2-BA_Fixed Asset Cont'!$B$154:$B$199,'App.2-C_DepExp'!A215,'App.2-BA_Fixed Asset Cont'!$D$154:$D$199) -> 2546031 | E215: 2546031 | F215: 621611 | H215: 621611 | I215: =SUMIF('App.2-BA_Fixed Asset Cont'!$B$290:$B$335,'App.2-C_DepExp'!A215,'App.2-BA_Fixed Asset Cont'!$E$290:$E$335) -> 377141 | J215: 12 | K215: 0.08333333333 | L215: 50 | M215: 0.02 | N215: 212169.25 | O215: 12432.22 | P215: 3771.41 | Q215: 228372.88 | R215: =-SUMIF('App.2-BA_Fixed Asset Cont'!$B$290:$B$335,'App.2-C_DepExp'!A215,'App.2-BA_Fixed Asset Cont'!$J$290:$J$335) -> 228373 | S215: 0.12
A216: 1845 | B216: Underground Conductors & Devices | C216: =SUMIF('App.2-BA_Fixed Asset Cont'!$B$154:$B$199,'App.2-C_DepExp'!A216,'App.2-BA_Fixed Asset Cont'!$D$154:$D$199) -> 11437100 | E216: 11437100 | F216: 1368613 | H216: 1368613 | I216: =SUMIF('App.2-BA_Fixed Asset Cont'!$B$290:$B$335,'App.2-C_DepExp'!A216,'App.2-BA_Fixed Asset Cont'!$E$290:$E$335) -> 333422 | J216: 23 | K216: 0.04347826087 | L216: 40 | M216: 0.025 | N216: 497265.2174 | O216: 34215.325 | P216: 4167.775 | Q216: 535648.3174 | R216: =-SUMIF('App.2-BA_Fixed Asset Cont'!$B$290:$B$335,'App.2-C_DepExp'!A216,'App.2-BA_Fixed Asset Cont'!$J$290:$J$335) -> 535648 | S216: -0.3173913043
A217: 1850 | B217: Line Transformers | C217: =SUMIF('App.2-BA_Fixed Asset Cont'!$B$154:$B$199,'App.2-C_DepExp'!A217,'App.2-BA_Fixed Asset Cont'!$D$154:$D$199) -> 9204093 | E217: 9204093 | F217: 1773166 | H217: 1773166 | I217: =SUMIF('App.2-BA_Fixed Asset Cont'!$B$290:$B$335,'App.2-C_DepExp'!A217,'App.2-BA_Fixed Asset Cont'!$E$290:$E$335) -> 1279182 | J217: 39 | K217: 0.02564102564 | L217: 40.49999 | M217: 0.02469136412 | N217: 236002.3846 | O217: 43781.88735 | P217: 15792.37427 | Q217: 295576.6462 | R217: =-SUMIF('App.2-BA_Fixed Asset Cont'!$B$290:$B$335,'App.2-C_DepExp'!A217,'App.2-BA_Fixed Asset Cont'!$J$290:$J$335) -> 295574 | S217: -2.646238659
A218: 1855 | B218: Services (Overhead & Underground) | C218: =SUMIF('App.2-BA_Fixed Asset Cont'!$B$154:$B$199,'App.2-C_DepExp'!A218,'App.2-BA_Fixed Asset Cont'!$D$154:$D$199) -> 4460589 | E218: 4460589 | F218: 899458 | H218: 899458 | I218: =SUMIF('App.2-BA_Fixed Asset Cont'!$B$290:$B$335,'App.2-C_DepExp'!A218,'App.2-BA_Fixed Asset Cont'!$E$290:$E$335) -> 349553 | J218: 36 | K218: 0.02777777778 | L218: 40 | M218: 0.025 | N218: 123905.25 | O218: 22486.45 | P218: 4369.4125 | Q218: 150761.1125 | R218: =-SUMIF('App.2-BA_Fixed Asset Cont'!$B$290:$B$335,'App.2-C_DepExp'!A218,'App.2-BA_Fixed Asset Cont'!$J$290:$J$335) -> 150761 | S218: -0.1125
A219: 1860 | B219: Meters | C219: 0 | E219: 0 | F219: 0 | H219: 0 | I219: 0 | K219: 0 | M219: 0 | N219: 0 | O219: 0 | P219: 0 | Q219: 0 | R219: 0 | S219: 0
A220: 1860 | B220: Meters (Smart Meters) | C220: =SUMIF('App.2-BA_Fixed Asset Cont'!$B$154:$B$199,'App.2-C_DepExp'!A220,'App.2-BA_Fixed Asset Cont'!$D$154:$D$199) -> 4468973 | E220: 4468973 | F220: 194033 | H220: 194033 | I220: =SUMIF('App.2-BA_Fixed Asset Cont'!$B$290:$B$335,'App.2-C_DepExp'!A220,'App.2-BA_Fixed Asset Cont'!$E$290:$E$335) -> 83653 | J220: 11 | K220: 0.09090909091 | L220: 15 | M220: 0.06666666667 | N220: 406270.2727 | O220: 12935.53333 | P220: 2788.433333 | Q220: 421994.2394 | R220: =-SUMIF('App.2-BA_Fixed Asset Cont'!$B$290:$B$335,'App.2-C_DepExp'!A220,'App.2-BA_Fixed Asset Cont'!$J$290:$J$335) -> 421994 | S220: -0.2393939394
... 134 more rows

Sheet App.2-D_Overhead
F1: File Number: | G1: =EBNUMBER -> EB-2017-0071
F2: Exhibit: | G2: 2 & 4
F3: Tab:
F4: Schedule:
F5: Page: | G5: Page 72 or Appendix 5 & Page 29
F7: Date: | G7: 2018-03-29
A9: Appendix 2-D
A10: Overhead Expense
A12: Applicants are to provide a breakdown of OM&A before capitalization in the below table. OM&A before capitalization may be broken down by cost center, program, drivers or another format best suited to focus on capitalized vs. uncapitalized OM&A.
A14: OM&A Before Capitalization
B15: =F15-4 -> 2014 | C15: =F15-3 -> 2015 | D15: =F15-2 -> 2016 | E15: =F15-1 -> 2017 | F15: =TestYear -> 2018
B16: Historical Year | C16: Historical Year | D16: Historical Year | E16: Bridge Year | F16: Test Year
A17: Total OM&A Before Capitalization (B) | B17: ='App.2-JA_OM&A_Summary_Analys'!D26+'App.2-D_Overhead'!B35 -> 12900367.11 | C17: ='App.2-JA_OM&A_Summary_Analys'!E26+'App.2-D_Overhead'!C35 -> 13023046.49 | D17: ='App.2-JA_OM&A_Summary_Analys'!F26+'App.2-D_Overhead'!D35 -> 12985960.58 | E17: ='App.2-JA_OM&A_Summary_Analys'!H26+'App.2-D_Overhead'!E35 -> 13139549.21 | F17: ='App.2-JA_OM&A_Summary_Analys'!I26+'App.2-D_Overhead'!F35 -> 13576654.85
A19: Applicants are to provide a breakdown of capitalized OM&A in the below table. Capitalized OM&A may be broken down using the categories listed in the table below if possible. Otherwise, applicants are to provide its own break down of capitalized OM&A.
A21: Capitalized OM&A | G21: Directly | H21: Explanation for Change in Overhead Capitalized
B22: =F22-4 -> 2014 | C22: =F22-3 -> 2015 | D22: =F22-2 -> 2016 | E22: =F22-1 -> 2017 | F22: =TestYear -> 2018 | G22: Attributable?
B23: Historical Year | C23: Historical Year | D23: Historical Year | E23: Bridge Year | F23: Test Year | G23: (Yes/No)
A24: Material | B24: =(1354870.04/1.25)*0.25 -> 270974.008 | C24: =(1697298.03/1.25)*0.25 -> 339459.606 | D24: =(1503561.69/1.25)*0.25 -> 300712.338 | E24: 276147.126 | F24: 281670.0685 | G24: Yes
A25: Engineering | B25: 632250.58 | C25: 564975.04 | D25: 553561.4 | E25: 470469.79 | F25: 549312.0037 | G25: Yes
A26: Trucking | B26: 595906.01 | C26: 570833.42 | D26: 491515.19 | E26: 535908.29 | F26: 546626.4558 | G26: Yes
A27: Supervisory | B27: 363895.51 | C27: 269955.42 | D27: 275236.65 | E27: 207260 | F27: 243212.9005 | G27: Yes
A35: Total Capitalized OM&A (A) | B35: =SUM(B24:B34) -> 1863026.108 | C35: =SUM(C24:C34) -> 1745223.486 | D35: =SUM(D24:D34) -> 1621025.578 | E35: =SUM(E24:E34) -> 1489785.206 | F35: =SUM(F24:F34) -> 1620821.429
A37: % of Capitalized OM&A (=A/B) | B37: =IF(ISERROR(B35/B17),"0%",B35/B17) -> 0.1444165187 | C37: =IF(ISERROR(C35/C17),"0%",C35/C17) -> 0.134010386 | D37: =IF(ISERROR(D35/D17),"0%",D35/D17) -> 0.1248290851 | E37: =IF(ISERROR(E35/E17),"0%",E35/E17) -> 0.1133817593 | F37: =IF(ISERROR(F35/F17),"0%",F35/F17) -> 0.1193829737

Sheet App.2-EA_Account 1575 (2015)
H1: File Number: | I1: =EBNUMBER -> EB-2017-0071
H2: Exhibit: | I2: N/A
H3: Tab:
H4: Schedule:
H5: Page:
H7: Date: | I7: 2018-03-29
A9: Appendix 2-EA
A10: Account 1575 - IFRS-CGAAP Transitional PP&E Amounts
A11: 2015 Adopters of IFRS for Financial Reporting Purposes
A13: For applicants that adopted IFRS on January 1, 2015 for financial reporting purposes
B17: 2014 | C17: =TestYear-3 -> 2015 | D17: =TestYear-2 -> 2016 | E17: =CONCATENATE(TestYear-1," Bridge Year") -> 2017 Bridge Year | F17: =CONCATENATE(TestYear," Rebasing Year") -> 2018 Rebasing Year
A18: Reporting Basis | B18: CGAAP | C18: CGAAP | D18: CGAAP | E18: MIFRS | F18: MIFRS
B19: Actual | C19: Actual | D19: Actual | E19: Forecast | F19: Forecast
D20: $ | E20: $
A21: PP&E Values under CGAAP
A22: Opening net PP&E - Note 1 | C22: =+B25 -> 0 | D22: =+C25 -> 0 | E22: =+D25 -> 0
A23: Net Additions - Note 4
A24: Net Depreciation (amounts should be negative) - Note 4
A25: Closing net PP&E (1) | B25: =SUM(B22:B24) -> 0 | C25: =SUM(C22:C24) -> 0 | D25: =SUM(D22:D24) -> 0 | E25: =SUM(E22:E24) -> 0
A27: PP&E Values under MIFRS (Starts from 2014, the transition year)
A28: Opening net PP&E - Note 1 | C28: =+B31 -> 0 | D28: =+C31 -> 0 | E28: =+D31 -> 0
A29: Net Additions - Note 4
A30: Net Depreciation (amounts should be negative) - Note 4
A31: Closing net PP&E (2) | B31: =SUM(B28:B30) -> 0 | C31: =SUM(C28:C30) -> 0 | D31: =SUM(D28:D30) -> 0 | E31: =SUM(E28:E30) -> 0
A33: Difference in Closing net PP&E, former CGAAP vs. revised CGAAP | B33: =B25-B31 -> 0 | C33: =C25-C31 -> 0 | D33: =D25-D31 -> 0 | E33: =E25-E31 -> 0
A36: Effect on Deferral and Variance Account Rate Riders
A37: Closing balance in Account 1575 | F37: =IF(ISERROR(E33), 0, E33) -> 0 | H37: WACC
A38: Return on Rate Base Associated with Account 1575 balance at WACC - Note 2 | F38: =E33*I37*I38 -> 0 | G38: # of years of rate rider disposition period
A39: Amount included in Deferral and Variance Account Rate Rider Calculation | F39: =F37+F38 -> 0
A41: Notes:
A42: 1 For an applicant that adopted IFRS on January 1, 2015, the PP&E values as of January 1, 2014 under both CGAAP and MIFRS should be the same.
A43: 2 Return on rate base associated with deferred balance is calculated as:
A44: the deferral account closing balance as of 2017 x WACC X # of years of rate rider disposition period
A45: * Please note that the calculation should be adjusted once WACC is updated and finalized in the rate application.
A46: 3 The PP&E deferral account is cleared by including the total balance in the deferral and variance account rate rider calculation.
A47: 4 Net additions are additions net of disposals; Net depreciation is additions to depreciation net of disposals.

Sheet App.2-EB_Account 1576 (2012)
K1: File Number: | L1: =EBNUMBER -> EB-2017-0071
K2: Exhibit: | L2: N/A
K3: Tab:
K4: Schedule:
K5: Page:
K7: Date: | L7: 2018-03-29
A9: Appendix 2-EB
A10: Account 1576 - Accounting Changes under CGAAP
A11: 2012 Changes in Accounting Policies under CGAAP
A13: For applicants with a balance in Account 1576 and made capitalization and depreciation expense accounting policy changes under CGAAP effective January 1, 2012. This is the first time the applicant is rebasing with changes in these accounting policies.
B17: Prior Years Rebasing | C17: 2012 | D17: 2013 | E17: 2014 | F17: 2015 | G17: 2016 | H17: 2017 | I17: 2018 Rebasing Year
A18: Reporting Basis | B18: CGAAP | C18: CGAAP | D18: CGAAP | E18: CGAAP | F18: MIFRS - Note 5 | G18: MIFRS | H18: MIFRS | I18: MIFRS
B19: Forecast | C19: Actual | D19: Actual | E19: Actual | F19: Actual | G19: Actual | H19: Forecast | I19: Forecast
C20: $ | D20: $ | E20: $ | F20: $ | G20: $ | H20: $
A21: PP&E Values under former CGAAP
A22: Opening net PP&E - Note 1 | D22: =+C25 -> 0 | E22: =+D25 -> 0 | F22: =+E25 -> 0 | G22: =+F25 -> 0 | H22: =+G25 -> 0
A23: Net Additions - Note 4
A24: Net Depreciation (amounts should be negative) - Note 4
A25: Closing net PP&E (1) | C25: =C22+C23+C24 -> 0 | D25: 0 | E25: 0 | F25: 0 | G25: 0 | H25: 0
A27: PP&E Values under revised CGAAP (Starts from 2012)
A28: Opening net PP&E - Note 1 | D28: =+C31 -> 0 | E28: =+D31 -> 0 | F28: =+E31 -> 0 | G28: =+F31 -> 0 | H28: =+G31 -> 0
A29: Net Additions - Note 4
A30: Net Depreciation (amounts should be negative) - Note 4
A31: Closing net PP&E (2) | C31: =SUM(C28:C30) -> 0 | D31: 0 | E31: 0 | F31: 0 | G31: 0 | H31: 0
A33: Difference in Closing net PP&E, former CGAAP vs. revised CGAAP | C33: =C25-C31 -> 0 | D33: 0 | E33: 0 | F33: 0 | G33: 0 | H33: 0
A36: Effect on Deferral and Variance Account Rate Riders
A37: Closing balance in Account 1576 | I37: =IF(ISERROR(H33), 0, H33) -> 0 | K37: WACC
A38: Return on Rate Base Associated with Account 1576 balance at WACC - Note 2 | I38: =H33*L37*L38 -> 0 | J38: # of years of rate rider disposition period
A39: Amount included in Deferral and Variance Account Rate Rider Calculation | I39: =I37+I38 -> 0
A41: Notes:
A42: 1 For an applicant that made the capitalization and depreciation expense accounting policy changes on January 1, 2012, the PP&E values as of January 1, 2012 under both former CGAAP and revised CGAAP should be the same.
A43: 2 Return on rate base associated with Account 1576 balance is calculated as:
A44: the variance account ending balance as of 2017 x WACC X # of years of rate rider disposition period
A45: * Please note that the calculation should be adjusted once WACC is updated and finalized in the rate application.
A46: 3 Account 1576 is cleared by including the total balance in the deferral and variance account rate rider calculation.
A47: 4 Net additions are additions net of disposals; Net depreciation is additions to depreciation net of disposals.
A48: 5 Differences due to the adoption of MIFRS are to be shown separately in Account 1575 in Appendix 2-EA as Accounts 1575 and 1576 cannot be used interchangably.

Sheet App.2-EC_Account 1576 (2013)
J1: File Number: | K1: =EBNUMBER -> EB-2017-0071
J2: Exhibit: | K2: N/A
J3: Tab:
J4: Schedule:
J5: Page:
J7: Date: | K7: 2018-03-29
A9: Appendix 2-EC
A10: Account 1576 - Accounting Changes under CGAAP
A11: 2013 Changes in Accounting Policies under CGAAP
A13: For applicants with a balance in Account 1576 and made capitalization and depreciation expense accounting policy changes under CGAAP effective January 1, 2013. This is the first time the applicant is rebasing with changes in these accounting policies.
B17: Prior Years Rebasing | C17: 2013 | D17: 2014 | E17: 2015 | F17: 2016 | G17: 2017 | H17: 2018 Rebasing Year
A18: Reporting Basis | B18: CGAAP | C18: CGAAP | D18: CGAAP | E18: MIFRS - Note 5 | F18: MIFRS | G18: MIFRS | H18: MIFRS
B19: Actual | C19: Actual | D19: Actual | E19: Actual | F19: Actual | G19: Forecast | H19: Forecast
C20: $ | D20: $ | F20: $
A21: PP&E Values under former CGAAP
A22: Opening net PP&E - Note 1 | D22: =+C25 -> 0 | E22: =+D25 -> 0 | F22: =+E25 -> 0 | G22: =+F25 -> 0
A23: Net Additions - Note 4
A24: Net Depreciation (amounts should be negative) - Note 4
A25: Closing net PP&E (1) | C25: =C22+C23+C24 -> 0 | D25: =D22+D23+D24 -> 0 | E25: =E22+E23+E24 -> 0 | F25: =F22+F23+F24 -> 0 | G25: =G22+G23+G24 -> 0
A27: PP&E Values under revised CGAAP (Starts from 2012)
A28: Opening net PP&E - Note 1 | D28: =+C31 -> 0 | E28: =+D31 -> 0 | F28: =+E31 -> 0 | G28: =+F31 -> 0
A29: Net Additions - Note 4
A30: Net Depreciation (amounts should be negative) - Note 4
A31: Closing net PP&E (2) | C31: =SUM(C28:C30) -> 0 | D31: =SUM(D28:D30) -> 0 | E31: =SUM(E28:E30) -> 0 | F31: =SUM(F28:F30) -> 0 | G31: =SUM(G28:G30) -> 0
A33: Difference in Closing net PP&E, former CGAAP vs. revised CGAAP | C33: =C25-C31 -> 0 | D33: =D25-D31 -> 0 | E33: =E25-E31 -> 0 | F33: =F25-F31 -> 0 | G33: =G25-G31 -> 0
A36: Effect on Deferral and Variance Account Rate Riders
A37: Closing balance in Account 1576 | H37: =IF(ISERROR(G33), 0, G33) -> 0 | J37: WACC
A38: Return on Rate Base Associated with Account 1576 balance at WACC - Note 2 | H38: =G33*K37*K38 -> 0 | I38: # of years of rate rider disposition period
A39: Amount included in Deferral and Variance Account Rate Rider Calculation | H39: =H37+H38 -> 0
A41: Notes:
A42: 1 For an applicant that made the capitalization and depreciation expense accounting policy changes on January 1, 2013, the PP&E values as of January 1, 2013 under both former CGAAP and revised CGAAP should be the same.
A43: 2 Return on rate base associated with Account 1576 balance is calculated as:
A44: the variance account ending balance as of 2017 x WACC X # of years of rate rider disposition period
A45: * Please note that the calculation should be adjusted once WACC is updated and finalized in the rate application.
A46: 3 Account 1576 is cleared by including the total balance in the deferral and variance account rate rider calculation.
A47: 4 Net additions are additions net of disposals; Net depreciation is additions to depreciation net of disposals.
A48: 5 Differences due to the adoption of MIFRS are to be shown separately in Account 1575 in Appendix 2-EA as Accounts 1575 and 1576 cannot be used interchangably.

Sheet App.2-FA Proposed REG Invest.
J1: File Number: | K1: =EBNUMBER -> EB-2017-0071
J2: Exhibit: | K2: 2
J3: Tab:
J4: Schedule:
J5: Page: | K5: Page 73 or Appendix 6
J7: Date: | K7: 2018-03-29
A9: Appendix 2-FA
A10: Renewable Generation Connection Investment Summary (past investments or over the future rate setting period)
A12: Enter the details of the Renewable Generation Connection projects as described in the appropriate section of the Filing Requirements.
A13: All costs entered on this page will be transferred to the appropriate cells in the appendices that follow.
A14: For Part A, Renewable Enabling Improvements (REI), these amounts will be transferred to Appendix 2 - FB
A15: For Part B, Expansions, these amounts will be transferred to Appendix 2 - FC
A17: If there are more than five projects proposed to be in-service in a certain year, please amend the tables below and ensure that the formulae for the Total Amounts in any given rate year are updated.
A18: Based on the current methodology and allocation, amounts allocated represent 6% for REI Connection Investments and 17% for Expansion Investments. (EB-2009-0349, 6-10-2010, p. 15, note 9)
A20: There are two scenarios described below. Separate sets of spreadsheets (2-FA, 2-FB, 2-FC) should be submited for each scenario as required.
A21: Scenario 1: Past Investments with No Recovery. The distributor has made investments in the past (during the IRM Years), but has not received approval for these projects and therefore did not receive
A22: revenue from the IESO under Regulation 330/09 and did not receive ratepayer revenue for the direct benefit portion of the investment.
A23: The WCA percentage, debt percentages, interest rates, kWh, tax rates, amortization period, CCA Class and percentage should correspond to the distributor's last Cost of Service approval.
A24: The Direct Benefit portion of the calculated Revenue Requirement for each year should be summed and can be applied for recovery from the distributor's ratepayers through a rate rider.
A25: The Provincial Recovery portion of the calculated Revenue Requirement for each year should be summed and can be applied for recovery from the IESO through a separate order.
A27: Scenario 2: Investments in the Test Year and Beyond. Distributor plans to make investments in 2017 and/or beyond. These investments should be added to 2-FA in the appropriate year.
A28: The WCA percentage, debt percentages, interest rates, kWh, tax rates, amortization period, CCA Class and percentage should correspond to the distributor's current application.
A30: Part A | G30: Test Year
A31: REI Investments (Direct Benefit at 6%) | C31: =D31-1 -> 2014 | D31: =E31-1 -> 2015 | E31: =F31-1 -> 2016 | F31: =G31-1 -> 2017 | G31: =TestYear -> 2018 | H31: =G31+1 -> 2019 | I31: =H31+1 -> 2020 | J31: =I31+1 -> 2021 | K31: =J31+1 -> 2022
A32: Project 1
A33: Name: REI Connection Project
A34: Capital Costs | C34: 0 | D34: 0 | E34: 0 | F34: 0 | G34: 0 | H34: 0 | I34: 0 | J34: 0 | K34: 0
A35: OM&A (Start-Up) | C35: 0 | D35: 0 | E35: 0 | F35: 0 | G35: 0 | H35: 0 | I35: 0 | J35: 0 | K35: 0
A36: OM&A (Ongoing) | C36: 0 | D36: 0 | E36: 0 | F36: 0 | G36: 0 | H36: 0 | I36: 0 | J36: 0 | K36: 0
A38: Project 2
A39: Name: REI Connection Project
A40: Capital Costs | C40: 0 | D40: 0 | E40: 0 | F40: 0 | G40: 0 | H40: 0 | I40: 0 | J40: 0 | K40: 0
A41: OM&A (Start-Up) | C41: 0 | D41: 0 | E41: 0 | F41: 0 | G41: 0 | H41: 0 | I41: 0 | J41: 0 | K41: 0
A42: OM&A (Ongoing) | C42: 0 | D42: 0 | E42: 0 | F42: 0 | G42: 0 | H42: 0 | I42: 0 | J42: 0 | K42: 0
A44: Project 3
A45: Name: REI Connection Project
A46: Capital Costs | C46: 0 | D46: 0 | E46: 0 | F46: 0 | G46: 0 | H46: 0 | I46: 0 | J46: 0 | K46: 0
A47: OM&A (Start-Up) | C47: 0 | D47: 0 | E47: 0 | F47: 0 | G47: 0 | H47: 0 | I47: 0 | J47: 0 | K47: 0
A48: OM&A (Ongoing) | C48: 0 | D48: 0 | E48: 0 | F48: 0 | G48: 0 | H48: 0 | I48: 0 | J48: 0 | K48: 0
A50: Project 4
A51: Name: REI Connection Project
A52: Capital Costs | C52: 0 | D52: 0 | E52: 0 | F52: 0 | G52: 0 | H52: 0 | I52: 0 | J52: 0 | K52: 0
A53: OM&A (Start-Up) | C53: 0 | D53: 0 | E53: 0 | F53: 0 | G53: 0 | H53: 0 | I53: 0 | J53: 0 | K53: 0
A54: OM&A (Ongoing) | C54: 0 | D54: 0 | E54: 0 | F54: 0 | G54: 0 | H54: 0 | I54: 0 | J54: 0 | K54: 0
A56: Project 5
A57: Name: REI Connection Project
A58: Capital Costs | C58: 0 | D58: 0 | E58: 0 | F58: 0 | G58: 0 | H58: 0 | I58: 0 | J58: 0 | K58: 0
A59: OM&A (Start-Up) | C59: 0 | D59: 0 | E59: 0 | F59: 0 | G59: 0 | H59: 0 | I59: 0 | J59: 0 | K59: 0
A60: OM&A (Ongoing) | C60: 0 | D60: 0 | E60: 0 | F60: 0 | G60: 0 | H60: 0 | I60: 0 | J60: 0 | K60: 0
A62: Total Capital Costs | C62: =SUM(C58,C52,C46,C40,C34) -> 0 | D62: 0 | E62: 0 | F62: 0 | G62: =SUM(G58,G52,G46,G40,G34) -> 0 | H62: =SUM(H58,H52,H46,H40,H34) -> 0 | I62: 0 | J62: 0 | K62: 0
A63: Total OM&A (Start-Up) | C63: 0 | D63: 0 | E63: 0 | F63: 0 | G63: =SUM(G59,G53,G47,G41,G35) -> 0 | H63: 0 | I63: 0 | J63: 0 | K63: 0
A64: Total OM&A (Ongoing) | C64: 0 | D64: 0 | E64: 0 | F64: 0 | G64: =SUM(G60,G54,G48,G42,G36) -> 0 | H64: 0 | I64: 0 | J64: 0 | K64: 0
A67: Part B | G67: Test Year
A68: Expansion Investments (Direct Benefit at 17%) | C68: =D68-1 -> 2014 | D68: =E68-1 -> 2015 | E68: =F68-1 -> 2016 | F68: =G68-1 -> 2017 | G68: =TestYear -> 2018 | H68: =G68+1 -> 2019 | I68: =H68+1 -> 2020 | J68: 2021 | K68: 2022
A69: Project 1
A70: Name: Expansion Connection Project
A71: Capital Costs | C71: 0 | D71: 0 | E71: 0 | F71: 0 | G71: 0 | H71: 0 | I71: 0 | J71: 0 | K71: 0
A72: OM&A (Start-Up) | C72: 0 | D72: 0 | E72: 0 | F72: 0 | G72: 0 | H72: 0 | I72: 0 | J72: 0 | K72: 0
A73: OM&A (Ongoing) | C73: 0 | D73: 0 | E73: 0 | F73: 0 | G73: 0 | H73: 0 | I73: 0 | J73: 0 | K73: 0
A75: Project 2
A76: Name: Expansion Connection Project
A77: Capital Costs | C77: 0 | D77: 0 | E77: 0 | F77: 0 | G77: 0 | H77: 0 | I77: 0 | J77: 0 | K77: 0
A78: OM&A (Start-Up) | C78: 0 | D78: 0 | E78: 0 | F78: 0 | G78: 0 | H78: 0 | I78: 0 | J78: 0 | K78: 0
A79: OM&A (Ongoing) | C79: 0 | D79: 0 | E79: 0 | F79: 0 | G79: 0 | H79: 0 | I79: 0 | J79: 0 | K79: 0
A81: Project 3
A82: Name: Expansion Connection Project
A83: Capital Costs | C83: 0 | D83: 0 | E83: 0 | F83: 0 | G83: 0 | H83: 0 | I83: 0 | J83: 0 | K83: 0
A84: OM&A (Start-Up) | C84: 0 | D84: 0 | E84: 0 | F84: 0 | G84: 0 | H84: 0 | I84: 0 | J84: 0 | K84: 0
A85: OM&A (Ongoing) | C85: 0 | D85: 0 | E85: 0 | F85: 0 | G85: 0 | H85: 0 | I85: 0 | J85: 0 | K85: 0
A87: Project 4
A88: Name: Expansion Connection Project
A89: Capital Costs | C89: 0 | D89: 0 | E89: 0 | F89: 0 | G89: 0 | H89: 0 | I89: 0 | J89: 0 | K89: 0
A90: OM&A (Start-Up) | C90: 0 | D90: 0 | E90: 0 | F90: 0 | G90: 0 | H90: 0 | I90: 0 | J90: 0 | K90: 0
A91: OM&A (Ongoing) | C91: 0 | D91: 0 | E91: 0 | F91: 0 | G91: 0 | H91: 0 | I91: 0 | J91: 0 | K91: 0
A93: Project 5
A94: Name: Expansion Connection Project
A95: Capital Costs | C95: 0 | D95: 0 | E95: 0 | F95: 0 | G95: 0 | H95: 0 | I95: 0 | J95: 0 | K95: 0
A96: OM&A (Start-Up) | C96: 0 | D96: 0 | E96: 0 | F96: 0 | G96: 0 | H96: 0 | I96: 0 | J96: 0 | K96: 0
A97: OM&A (Ongoing) | C97: 0 | D97: 0 | E97: 0 | F97: 0 | G97: 0 | H97: 0 | I97: 0 | J97: 0 | K97: 0
A99: Total Capital Costs | C99: =SUM(C95,C89,C83,C77,C71) -> 0 | D99: 0 | E99: 0 | F99: 0 | G99: =SUM(G95,G89,G83,G77,G71) -> 0 | H99: =SUM(H95,H89,H83,H77,H71) -> 0 | I99: 0 | J99: 0 | K99: 0
A100: Total OM&A (Start-Up) | C100: 0 | D100: 0 | E100: 0 | F100: 0 | G100: =SUM(G96,G90,G84,G78,G72) -> 0 | H100: 0 | I100: 0 | J100: 0 | K100: 0
A101: Total OM&A (Ongoing) | C101: 0 | D101: 0 | E101: 0 | F101: 0 | G101: =SUM(G97,G91,G85,G79,G73) -> 0 | H101: 0 | I101: 0 | J101: 0 | K101: 0

Sheet App.2-FB Calc of REG Improvemnt
N1: File Number: | O1: =EBNUMBER -> EB-2017-0071
N2: Exhibit: | O2: 2
N3: Tab:
N4: Schedule:
N5: Page: | O5: Page 74 or Appendix 7
N7: Date: | O7: 2018-03-29
A9: Appendix 2-FB
A10: Calculation of Renewable Generation Connection Direct Benefits/Provincial Amount: Renewable Enabling Improvement Investments
A12: This table will calculate the distributor/provincial shares of the investments entered in Part A of Appendix 2-FA.
A13: Enter values in green shaded cells: WCA percentage, debt percentages, interest rates, kWh, tax rates, amortization period, CCA Class and percentage.
A14: For historical investments, enter these variables for your last cost of service test year. For 2017 and beyond, enter variables as in the application.
A15: Rate Riders are not calculated for the Test Year as these assets and costs are already in the distributor's rate base/revenue requirement.
C17: =F17-1 -> 2014 | F17: =I17-1 -> 2015 | I17: =L17-1 -> 2016 | L17: =BridgeYear -> 2017 | O17: =CONCATENATE(TestYear," Test Year") -> 2018 Test Year | R17: =TestYear+1 -> 2019 | U17: =R17+1 -> 2020 | V17: 2016 | X17: =U17+1 -> 2021 | AA17: =X17+1 -> 2022
D18: Direct Benefit | E18: Provincial | G18: Direct Benefit | H18: Provincial | J18: Direct Benefit | K18: Provincial | M18: Direct Benefit | N18: Provincial | P18: Direct Benefit | Q18: Provincial | S18: Direct Benefit | T18: Provincial | V18: Direct Benefit | W18: Provincial | Y18: Direct Benefit | Z18: Provincial | AB18: Direct Benefit | AC18: Provincial
C19: Total | D19: 0.06 | E19: 0.94 | F19: Total | G19: 0.06 | H19: 0.94 | I19: Total | J19: 0.06 | K19: 0.94 | L19: Total | M19: 0.06 | N19: 0.94 | O19: Total | P19: 0.06 | Q19: 0.94 | R19: Total | S19: 0.06 | T19: 0.94 | U19: Total | V19: 0.06 | W19: 0.94 | X19: Total | Y19: 0.06 | Z19: 0.94 | AA19: Total | AB19: 0.06 | AC19: 0.94
A20: Net Fixed Assets (average) | C20: =D82 -> 0 | D20: =C20*D19 -> 0 | E20: =C20*E19 -> 0 | F20: =E82 -> 0 | G20: =F20*G19 -> 0 | H20: =F20*H19 -> 0 | I20: =F82 -> 0 | J20: =I20*J19 -> 0 | K20: =I20*K19 -> 0 | L20: =G82 -> 0 | M20: =L20*M19 -> 0 | N20: =L20*N19 -> 0 | O20: =H82 -> 0 | P20: =O20*P19 -> 0 | Q20: =O20*Q19 -> 0 | R20: =I82 -> 0 | S20: =R20*S19 -> 0 | T20: =R20*T19 -> 0 | U20: =J82 -> 0 | V20: =U20*V19 -> 0 | W20: =U20*W19 -> 0 | X20: =K82 -> 0 | Y20: =X20*Y19 -> 0 | Z20: =X20*Z19 -> 0 | AA20: =L82 -> 0 | AB20: =AA20*AB19 -> 0 | AC20: =AA20*AC19 -> 0
A21: Incremental OM&A (on-going, N/A for Provincial Recovery) | C21: ='App.2-FA Proposed REG Invest.'!C64 -> 0 | D21: =C21 -> 0 | F21: ='App.2-FA Proposed REG Invest.'!D64 -> 0 | G21: =F21 -> 0 | I21: ='App.2-FA Proposed REG Invest.'!E64 -> 0 | J21: =I21 -> 0 | L21: ='App.2-FA Proposed REG Invest.'!F64 -> 0 | M21: =L21 -> 0 | O21: ='App.2-FA Proposed REG Invest.'!G64 -> 0 | P21: =O21 -> 0 | R21: ='App.2-FA Proposed REG Invest.'!H64 -> 0 | S21: =R21 -> 0 | U21: ='App.2-FA Proposed REG Invest.'!I64 -> 0 | V21: =U21 -> 0 | X21: ='App.2-FA Proposed REG Invest.'!J64 -> 0 | Y21: =X21 -> 0 | AA21: ='App.2-FA Proposed REG Invest.'!K64 -> 0 | AB21: =AA21 -> 0
A22: Incremental OM&A (start-up, applicable for Provincial Recovery) | C22: ='App.2-FA Proposed REG Invest.'!C63 -> 0 | D22: =C22*D19 -> 0 | E22: =C22*E19 -> 0 | F22: ='App.2-FA Proposed REG Invest.'!D63 -> 0 | G22: =F22*G19 -> 0 | H22: =F22*H19 -> 0 | I22: ='App.2-FA Proposed REG Invest.'!E63 -> 0 | J22: =I22*J19 -> 0 | K22: =I22*K19 -> 0 | L22: ='App.2-FA Proposed REG Invest.'!F63 -> 0 | M22: =L22*M19 -> 0 | N22: =L22*N19 -> 0 | O22: ='App.2-FA Proposed REG Invest.'!G63 -> 0 | P22: =O22*P19 -> 0 | Q22: =O22*Q19 -> 0 | R22: ='App.2-FA Proposed REG Invest.'!H63 -> 0 | S22: =R22*S19 -> 0 | T22: =R22*T19 -> 0 | U22: ='App.2-FA Proposed REG Invest.'!I63 -> 0 | V22: =U22*V19 -> 0 | W22: =U22*W19 -> 0 | X22: ='App.2-FA Proposed REG Invest.'!J63 -> 0 | Y22: =X22*Y19 -> 0 | Z22: =X22*Z19 -> 0 | AA22: ='App.2-FA Proposed REG Invest.'!K63 -> 0 | AB22: =AA22*AB19 -> 0 | AC22: =AA22*AC19 -> 0
A23: WCA | B23: 0.075 | D23: =(D21+D22)*$B$23 -> 0 | E23: =E22*$B$23 -> 0 | G23: =(G21+G22)*$B$23 -> 0 | H23: =H22*$B$23 -> 0 | J23: =(J21+J22)*$B$23 -> 0 | K23: =K22*$B$23 -> 0 | M23: =(M21+M22)*$B$23 -> 0 | N23: =N22*$B$23 -> 0 | P23: =(P21+P22)*$B$23 -> 0 | Q23: =Q22*$B$23 -> 0 | S23: =(S21+S22)*$B$23 -> 0 | T23: =T22*$B$23 -> 0 | V23: =(V21+V22)*$B$23 -> 0 | W23: =W22*$B$23 -> 0 | Y23: =(Y21+Y22)*$B$23 -> 0 | Z23: =Z22*$B$23 -> 0 | AB23: =(AB21+AB22)*$B$23 -> 0 | AC23: =AC22*$B$23 -> 0
A24: Rate Base | D24: =SUM(D20+D23) -> 0 | E24: =SUM(E20+E23) -> 0 | G24: =SUM(G20+G23) -> 0 | H24: =SUM(H20+H23) -> 0 | J24: =SUM(J20+J23) -> 0 | K24: =SUM(K20+K23) -> 0 | M24: =SUM(M20+M23) -> 0 | N24: =SUM(N20+N23) -> 0 | P24: =SUM(P20+P23) -> 0 | Q24: =SUM(Q20+Q23) -> 0 | S24: =SUM(S20+S23) -> 0 | T24: =SUM(T20+T23) -> 0 | V24: =SUM(V20+V23) -> 0 | W24: =SUM(W20+W23) -> 0 | Y24: =SUM(Y20+Y23) -> 0 | Z24: =SUM(Z20+Z23) -> 0 | AB24: =SUM(AB20+AB23) -> 0 | AC24: =SUM(AC20+AC23) -> 0
A27: Deemed ST Debt | B27: 0.04 | D27: =D24*$B$27 -> 0 | E27: =E24*$B$27 -> 0 | G27: =G24*$B$27 -> 0 | H27: =H24*$B$27 -> 0 | J27: =J24*$B$27 -> 0 | K27: =K24*$B$27 -> 0 | M27: =M24*$B$27 -> 0 | N27: =N24*$B$27 -> 0 | P27: =P24*$B$27 -> 0 | Q27: =Q24*$B$27 -> 0 | S27: =S24*$B$27 -> 0 | T27: =T24*$B$27 -> 0 | V27: =V24*$B$27 -> 0 | W27: =W24*$B$27 -> 0 | Y27: =Y24*$B$27 -> 0 | Z27: =Z24*$B$27 -> 0 | AB27: =AB24*$B$27 -> 0 | AC27: =AC24*$B$27 -> 0
A28: Deemed LT Debt | B28: 0.56 | D28: =D24*$B$28 -> 0 | E28: =E24*$B$28 -> 0 | G28: =G24*$B$28 -> 0 | H28: =H24*$B$28 -> 0 | J28: =J24*$B$28 -> 0 | K28: =K24*$B$28 -> 0 | M28: =M24*$B$28 -> 0 | N28: =N24*$B$28 -> 0 | P28: =P24*$B$28 -> 0 | Q28: =Q24*$B$28 -> 0 | S28: =S24*$B$28 -> 0 | T28: =T24*$B$28 -> 0 | V28: =V24*$B$28 -> 0 | W28: =W24*$B$28 -> 0 | Y28: =Y24*$B$28 -> 0 | Z28: =Z24*$B$28 -> 0 | AB28: =AB24*$B$28 -> 0 | AC28: =AC24*$B$28 -> 0
A29: Deemed Equity | B29: 0.4 | D29: =D24*$B$29 -> 0 | E29: =E24*$B$29 -> 0 | G29: =G24*$B$29 -> 0 | H29: =H24*$B$29 -> 0 | J29: =J24*$B$29 -> 0 | K29: =K24*$B$29 -> 0 | M29: =M24*$B$29 -> 0 | N29: =N24*$B$29 -> 0 | P29: =P24*$B$29 -> 0 | Q29: =Q24*$B$29 -> 0 | S29: =S24*$B$29 -> 0 | T29: =T24*$B$29 -> 0 | V29: =V24*$B$29 -> 0 | W29: =W24*$B$29 -> 0 | Y29: =Y24*$B$29 -> 0 | Z29: =Z24*$B$29 -> 0 | AB29: =AB24*$B$29 -> 0 | AC29: =AC24*$B$29 -> 0
A31: ST Interest | B31: 0.0229 | D31: =D27*$B31 -> 0 | E31: =E27*$B31 -> 0 | G31: =G27*$B31 -> 0 | H31: =H27*$B31 -> 0 | J31: =J27*$B31 -> 0 | K31: =K27*$B31 -> 0 | M31: =M27*$B31 -> 0 | N31: =N27*$B31 -> 0 | P31: =P27*$B31 -> 0 | Q31: =Q27*$B31 -> 0 | S31: =S27*$B31 -> 0 | T31: =T27*$B31 -> 0 | V31: =V27*$B31 -> 0 | W31: =W27*$B31 -> 0 | Y31: =Y27*$B31 -> 0 | Z31: =Z27*$B31 -> 0 | AB31: =AB27*$B31 -> 0 | AC31: =AC27*$B31 -> 0
A32: LT Interest | B32: 0.0412 | D32: =D28*$B32 -> 0 | E32: 0 | G32: =G28*$B32 -> 0 | H32: 0 | J32: =J28*$B32 -> 0 | K32: 0 | M32: =M28*$B32 -> 0 | N32: 0 | P32: =P28*$B32 -> 0 | Q32: 0 | S32: =S28*$B32 -> 0 | T32: 0 | V32: =V28*$B32 -> 0 | W32: 0 | Y32: =Y28*$B32 -> 0 | Z32: 0 | AB32: =AB28*$B32 -> 0 | AC32: 0
A33: ROE | B33: 0.09 | D33: 0 | E33: 0 | G33: 0 | H33: 0 | J33: 0 | K33: 0 | M33: 0 | N33: 0 | P33: 0 | Q33: 0 | S33: 0 | T33: 0 | V33: 0 | W33: 0 | Y33: 0 | Z33: 0 | AB33: 0 | AC33: 0
A34: Cost of Capital Total | D34: =SUM(D31:D33) -> 0 | E34: =SUM(E31:E33) -> 0 | G34: =SUM(G31:G33) -> 0 | H34: =SUM(H31:H33) -> 0 | J34: =SUM(J31:J33) -> 0 | K34: =SUM(K31:K33) -> 0 | M34: =SUM(M31:M33) -> 0 | N34: =SUM(N31:N33) -> 0 | P34: =SUM(P31:P33) -> 0 | Q34: =SUM(Q31:Q33) -> 0 | S34: =SUM(S31:S33) -> 0 | T34: =SUM(T31:T33) -> 0 | V34: =SUM(V31:V33) -> 0 | W34: =SUM(W31:W33) -> 0 | Y34: =SUM(Y31:Y33) -> 0 | Z34: =SUM(Z31:Z33) -> 0 | AB34: =SUM(AB31:AB33) -> 0 | AC34: =SUM(AC31:AC33) -> 0
A36: OM&A | D36: =D21+D22 -> 0 | E36: =E22 -> 0 | G36: =G21+G22 -> 0 | H36: =H22 -> 0 | J36: =J21+J22 -> 0 | K36: =K22 -> 0 | M36: =M21+M22 -> 0 | N36: =N22 -> 0 | P36: =P21+P22 -> 0 | Q36: =Q22 -> 0 | S36: =S21+S22 -> 0 | T36: =T22 -> 0 | V36: =V21+V22 -> 0 | W36: =W22 -> 0 | Y36: =Y21+Y22 -> 0 | Z36: =Z22 -> 0 | AB36: =AB21+AB22 -> 0 | AC36: =AC22 -> 0
A37: Amortization | C37: =D77 -> 0 | D37: =C37*D$19 -> 0 | E37: =C37*E$19 -> 0 | F37: =E77 -> 0 | G37: =F37*G$19 -> 0 | H37: =F37*H$19 -> 0 | I37: =F77 -> 0 | J37: =I37*J$19 -> 0 | K37: =I37*K$19 -> 0 | L37: =G77 -> 0 | M37: =L37*M$19 -> 0 | N37: =L37*N$19 -> 0 | O37: =H77 -> 0 | P37: =O37*P$19 -> 0 | Q37: =O37*Q$19 -> 0 | R37: =I76+I77 -> 0 | S37: =R37*S$19 -> 0 | T37: =R37*T$19 -> 0 | U37: =J76+J77 -> 0 | V37: =U37*V$19 -> 0 | W37: =U37*W$19 -> 0 | X37: =K76+K77 -> 0 | Y37: =X37*Y$19 -> 0 | Z37: =X37*Z$19 -> 0 | AA37: =L76+L77 -> 0 | AB37: =AA37*AB$19 -> 0 | AC37: =AA37*AC$19 -> 0
A38: Grossed-up PILs | D38: =D65 -> 0 | E38: =E65 -> 0 | G38: =G65 -> 0 | H38: =H65 -> 0 | J38: =J65 -> 0 | K38: =K65 -> 0 | M38: =M65 -> 0 | N38: =N65 -> 0 | P38: =P65 -> 0 | Q38: =Q65 -> 0 | S38: =S65 -> 0 | T38: =T65 -> 0 | V38: =V65 -> 0 | W38: =W65 -> 0 | Y38: =Y65 -> 0 | Z38: =Z65 -> 0 | AB38: =AB65 -> 0 | AC38: =AC65 -> 0
A40: Revenue Requirement | D40: =SUM(D34:D38) -> 0 | E40: =SUM(E34:E38) -> 0 | G40: =SUM(G34:G38) -> 0 | H40: =SUM(H34:H38) -> 0 | J40: =SUM(J34:J38) -> 0 | K40: =SUM(K34:K38) -> 0 | M40: =SUM(M34:M38) -> 0 | N40: =SUM(N34:N38) -> 0 | P40: =SUM(P34:P38) -> 0 | Q40: =SUM(Q34:Q38) -> 0 | S40: =SUM(S34:S38) -> 0 | T40: =SUM(T34:T38) -> 0 | V40: =SUM(V34:V38) -> 0 | W40: =SUM(W34:W38) -> 0 | Y40: =SUM(Y34:Y38) -> 0 | Z40: =SUM(Z34:Z38) -> 0 | AB40: =SUM(AB34:AB38) -> 0 | AC40: =SUM(AC34:AC38) -> 0
A43: Provincial Rate Protection | E43: =E40 -> 0 | H43: =H40 -> 0 | K43: =K40 -> 0 | N43: =N40 -> 0 | Q43: =Q40 -> 0 | T43: =T40 -> 0 | W43: =W40 -> 0 | Z43: =Z40 -> 0 | AC43: =AC40 -> 0
A45: Monthly Amount Paid by IESO | E45: =E43/12 -> 0 | H45: =H43/12 -> 0 | K45: =K43/12 -> 0 | N45: =N43/12 -> 0 | Q45: =Q43/12 -> 0 | T45: =T43/12 -> 0 | W45: =W43/12 -> 0 | Z45: =Z43/12 -> 0 | AC45: =AC43/12 -> 0
A47: Note 1: The difference between the actual costs of approved eligible investments and revenue received from the IESO should be recorded in a variance account. The Board may provide
A48: regulatory accounting guidance regarding a variance account either in an individual proceeding or on a generic basis.
A49: Note 2: For the 2016 Test Year, Costs and Revenues of the Direct Benefit are to be included in the test year applicant Rate Base and Revenues.
A51: PILs Calculation
D52: =C17 -> 2014 | G52: =F17 -> 2015 | J52: =I17 -> 2016 | M52: =L17 -> 2017 | P52: =O17 -> 2018 Test Year | S52: =R17 -> 2019 | V52: =U17 -> 2020 | Y52: =X17 -> 2021 | AB52: =AA17 -> 2022
A53: Income Tax | D53: Direct Benefit | E53: Provincial | G53: Direct Benefit | H53: Provincial | J53: Direct Benefit | K53: Provincial | M53: Direct Benefit | N53: Provincial | P53: Direct Benefit | Q53: Provincial | S53: Direct Benefit | T53: Provincial | V53: Direct Benefit | W53: Provincial | Y53: Direct Benefit | Z53: Provincial | AB53: Direct Benefit | AC53: Provincial
X54: Total | AA54: Total
A55: Net Income - ROE on Rate Base | D55: =D33 -> 0 | E55: =E33 -> 0 | G55: =G33 -> 0 | H55: =H33 -> 0 | J55: =J33 -> 0 | K55: =K33 -> 0 | M55: =M33 -> 0 | N55: =N33 -> 0 | P55: =P33 -> 0 | Q55: =Q33 -> 0 | S55: =S33 -> 0 | T55: =T33 -> 0 | V55: =V33 -> 0 | W55: =W33 -> 0 | Y55: =Y33 -> 0 | Z55: =Z33 -> 0 | AB55: =AB33 -> 0 | AC55: =AC33 -> 0
A56: Amortization (6% DB and 94% P) | D56: =D37 -> 0 | E56: =E37 -> 0 | G56: =G37 -> 0 | H56: =H37 -> 0 | J56: =J37 -> 0 | K56: =K37 -> 0 | M56: =M37 -> 0 | N56: =N37 -> 0 | P56: =P37 -> 0 | Q56: =Q37 -> 0 | S56: =S37 -> 0 | T56: =T37 -> 0 | V56: =V37 -> 0 | W56: =W37 -> 0 | Y56: =Y37 -> 0 | Z56: =Z37 -> 0 | AB56: =AB37 -> 0 | AC56: =AC37 -> 0
A57: CCA (6% DB and 94% P) | D57: =-D94*D$19 -> 0 | E57: =-D94*E$19 -> 0 | G57: =-E94*G19 -> 0 | H57: =-E94*H$19 -> 0 | J57: =-F94*J$19 -> 0 | K57: =-F94*K$19 -> 0 | M57: =-G94*M$19 -> 0 | N57: =-G94*N$19 -> 0 | P57: =-H94*P$19 -> 0 | Q57: =-H94*Q$19 -> 0 | S57: =-I94*S$19 -> 0 | T57: =-I94*T$19 -> 0 | V57: =-J94*V$19 -> 0 | W57: =-J94*W$19 -> 0 | Y57: =-K94*Y$19 -> 0 | Z57: =-K94*Z$19 -> 0 | AB57: =-L94*AB$19 -> 0 | AC57: =-L94*AC$19 -> 0
A58: Taxable income | D58: =SUM(D55:D57) -> 0 | E58: =SUM(E55:E57) -> 0 | G58: =SUM(G55:G57) -> 0 | H58: =SUM(H55:H57) -> 0 | J58: =SUM(J55:J57) -> 0 | K58: =SUM(K55:K57) -> 0 | M58: =SUM(M55:M57) -> 0 | N58: =SUM(N55:N57) -> 0 | P58: =SUM(P55:P57) -> 0 | Q58: =SUM(Q55:Q57) -> 0 | S58: =SUM(S55:S57) -> 0 | T58: =SUM(T55:T57) -> 0 | V58: =SUM(V55:V57) -> 0 | W58: =SUM(W55:W57) -> 0 | Y58: =SUM(Y55:Y57) -> 0 | Z58: =SUM(Z55:Z57) -> 0 | AB58: =SUM(AB55:AB57) -> 0 | AC58: =SUM(AC55:AC57) -> 0
A60: Tax Rate (to be entered)
A62: Income Taxes Payable | D62: =D58*D60 -> 0 | E62: =E58*E60 -> 0 | G62: =G58*G60 -> 0 | H62: =H58*H60 -> 0 | J62: =J58*J60 -> 0 | K62: =K58*K60 -> 0 | M62: =M58*M60 -> 0 | N62: =N58*N60 -> 0 | P62: =P58*P60 -> 0 | Q62: =Q58*Q60 -> 0 | S62: =S58*S60 -> 0 | T62: =T58*T60 -> 0 | V62: =V58*V60 -> 0 | W62: =W58*W60 -> 0 | Y62: =Y58*Y60 -> 0 | Z62: =Z58*Z60 -> 0 | AB62: =AB58*AB60 -> 0 | AC62: =AC58*AC60 -> 0
A63: Gross Up
A64: Income Taxes Payable | D64: =D62/(1-D60) -> 0 | E64: =E62/(1-E60) -> 0 | G64: =G62/(1-G60) -> 0 | H64: =H62/(1-H60) -> 0 | J64: =J62/(1-J60) -> 0 | K64: =K62/(1-K60) -> 0 | M64: =M62/(1-M60) -> 0 | N64: =N62/(1-N60) -> 0 | P64: =P62/(1-P60) -> 0 | Q64: =Q62/(1-Q60) -> 0 | S64: =S62/(1-S60) -> 0 | T64: =T62/(1-T60) -> 0 | V64: =V62/(1-V60) -> 0 | W64: =W62/(1-W60) -> 0 | Y64: =Y62/(1-Y60) -> 0 | Z64: =Z62/(1-Z60) -> 0 | AB64: =AB62/(1-AB60) -> 0 | AC64: =AC62/(1-AC60) -> 0
A65: Grossed Up PILs | D65: =SUM(D64:D64) -> 0 | E65: =SUM(E64:E64) -> 0 | G65: =SUM(G64:G64) -> 0 | H65: =SUM(H64:H64) -> 0 | J65: =SUM(J64:J64) -> 0 | K65: =SUM(K64:K64) -> 0 | M65: =SUM(M64:M64) -> 0 | N65: =SUM(N64:N64) -> 0 | P65: =SUM(P64:P64) -> 0 | Q65: =SUM(Q64:Q64) -> 0 | S65: =SUM(S64:S64) -> 0 | T65: =SUM(T64:T64) -> 0 | V65: =SUM(V64:V64) -> 0 | W65: =SUM(W64:W64) -> 0 | Y65: =SUM(Y64:Y64) -> 0 | Z65: =SUM(Z64:Z64) -> 0 | AB65: =SUM(AB64:AB64) -> 0 | AC65: =SUM(AC64:AC64) -> 0
D68: =E68-1 -> 2014 | E68: =F68-1 -> 2015 | F68: =G68-1 -> 2016 | G68: =H68-1 -> 2017 | H68: =TestYear -> 2018 | I68: =H68+1 -> 2019 | J68: =I68+1 -> 2020 | K68: =J68+1 -> 2021 | L68: =K68+1 -> 2022
A69: Net Fixed Assets
B70: Enter applicable amortization in years: | C70: 25
A71: Opening Gross Fixed Assets | E71: =D73 -> 0 | F71: 0 | G71: 0 | H71: 0 | I71: =H73 -> 0 | J71: =I73 -> 0 | K71: =J73 -> 0 | L71: =K73 -> 0
A72: Gross Capital Additions | D72: ='App.2-FA Proposed REG Invest.'!C62 -> 0 | E72: ='App.2-FA Proposed REG Invest.'!D62 -> 0 | F72: ='App.2-FA Proposed REG Invest.'!E62 -> 0 | G72: ='App.2-FA Proposed REG Invest.'!F62 -> 0 | H72: ='App.2-FA Proposed REG Invest.'!G62 -> 0 | I72: ='App.2-FA Proposed REG Invest.'!H62 -> 0 | J72: ='App.2-FA Proposed REG Invest.'!I62 -> 0 | K72: ='App.2-FA Proposed REG Invest.'!J62 -> 0 | L72: ='App.2-FA Proposed REG Invest.'!K62 -> 0
A73: Closing Gross Fixed Assets | D73: =SUM(D71:D72) -> 0 | E73: 0 | F73: 0 | G73: 0 | H73: =SUM(H71:H72) -> 0 | I73: =SUM(I71:I72) -> 0 | J73: 0 | K73: 0 | L73: 0
A75: Opening Accumulated Amortization | E75: =+D78 -> 0 | F75: =E78 -> 0 | G75: 0 | H75: 0 | I75: 0 | J75: 0 | K75: 0 | L75: 0
A76: Current Year Amortization (before additions) | D76: =IF(ISERROR(D71/$C$70), 0, D71/$C$70) -> 0 | E76: 0 | F76: 0 | G76: 0 | H76: 0 | I76: =IF(ISERROR(I71/$C$70), 0, I71/$C$70) -> 0 | J76: =IF(ISERROR(J71/$C$70), 0, J71/$C$70) -> 0 | K76: =IF(ISERROR(K71/$C$70), 0, K71/$C$70) -> 0 | L76: =IF(ISERROR(L71/$C$70), 0, L71/$C$70) -> 0
A77: Additions (half year) | D77: =D72/$C$70/2 -> 0 | E77: =E72/$C$70/2 -> 0 | F77: =F72/$C$70/2 -> 0 | G77: 0 | H77: =H72/$C$70/2 -> 0 | I77: =I72/C70/2 -> 0 | J77: =J72/C70/2 -> 0 | K77: =K72/C70/2 -> 0 | L77: =L72/C70/2 -> 0
A78: Closing Accumulated Amortization | D78: =SUM(D75+D76+D77) -> 0 | E78: =SUM(E75+E76+E77) -> 0 | F78: =SUM(F75+F76+F77) -> 0 | G78: =SUM(G75+G76+G77) -> 0 | H78: =SUM(H75+H76+H77) -> 0 | I78: =SUM(I75:I77) -> 0 | J78: =SUM(J75:J77) -> 0 | K78: =SUM(K75:K77) -> 0 | L78: =SUM(L75:L77) -> 0
A80: Opening Net Fixed Assets | D80: =D71-D75 -> 0 | E80: 0 | F80: =F71-F75 -> 0 | G80: 0 | H80: =H71-H75 -> 0 | I80: =H81 -> 0 | J80: =I81 -> 0 | K80: =J81 -> 0 | L80: =K81 -> 0
A81: Closing Net Fixed Assets | D81: =D73-D78 -> 0 | E81: =E73-E78 -> 0 | F81: 0 | G81: 0 | H81: =H73-H78 -> 0 | I81: =I73-I78 -> 0 | J81: =J73-J78 -> 0 | K81: =K73-K78 -> 0 | L81: =L73-L78 -> 0
A82: Average Net Fixed Assets | D82: =SUM(D80:D81)/2 -> 0 | E82: 0 | F82: 0 | G82: 0 | H82: =SUM(H80:H81)/2 -> 0 | I82: =SUM(I80:I81)/2 -> 0 | J82: =SUM(J80:J81)/2 -> 0 | K82: =SUM(K80:K81)/2 -> 0 | L82: =SUM(L80:L81)/2 -> 0
A84: UCC for PILs Calculation
D85: =D68 -> 2014 | E85: =E68 -> 2015 | F85: 2016 | G85: 2017 | H85: 2018 | I85: 2019 | J85: 2020 | K85: 2021 | L85: 2022
A87: Opening UCC | E87: =D95 -> 0 | F87: 0 | G87: 0 | H87: 0 | I87: 0 | J87: 0 | K87: 0 | L87: 0
A88: Capital Additions (from Appendix 2-FA) | D88: =D72 -> 0 | E88: 0 | F88: 0 | G88: 0 | H88: =H72 -> 0 | I88: =I72 -> 0 | J88: 0 | K88: 0 | L88: 0
A89: UCC Before Half Year Rule | D89: =SUM(D87:D88) -> 0 | E89: 0 | F89: 0 | G89: 0 | H89: =SUM(H87:H88) -> 0 | I89: =SUM(I87:I88) -> 0 | J89: =SUM(J87:J88) -> 0 | K89: =SUM(K87:K88) -> 0 | L89: =SUM(L87:L88) -> 0
A90: Half Year Rule (1/2 Additions - Disposals) | D90: =D88/2 -> 0 | E90: 0 | F90: 0 | G90: 0 | H90: =H88/2 -> 0 | I90: =I88/2 -> 0 | J90: =J88/2 -> 0 | K90: =K88/2 -> 0 | L90: =L88/2 -> 0
A91: Reduced UCC | D91: =D89-D90 -> 0 | E91: 0 | F91: 0 | G91: 0 | H91: =H89-H90 -> 0 | I91: =I89-I90 -> 0 | J91: =J89-J90 -> 0 | K91: =K89-K90 -> 0 | L91: =L89-L90 -> 0
A92: CCA Rate Class (to be entered) | C92: 47 | D92: =C92 -> 47 | E92: =D92 -> 47 | F92: 47 | G92: 47 | H92: 47 | I92: 47 | J92: 47 | K92: 47 | L92: 47
A93: CCA Rate (to be entered) | C93: 0.08 | D93: =C93 -> 0.08 | E93: 0.08 | F93: 0.08 | G93: 0.08 | H93: 0.08 | I93: 0.08 | J93: 0.08 | K93: 0.08 | L93: 0.08
A94: CCA | D94: =D91*D93 -> 0 | E94: 0 | F94: 0 | G94: 0 | H94: =H91*H93 -> 0 | I94: =I91*I93 -> 0 | J94: 0 | K94: 0 | L94: =L91*L93 -> 0
A95: Closing UCC | D95: =D89-D94 -> 0 | E95: 0 | F95: 0 | G95: 0 | H95: =H89-H94 -> 0 | I95: =I89-I94 -> 0 | J95: =J89-J94 -> 0 | K95: =K89-K94 -> 0 | L95: =L89-L94 -> 0

Sheet App.2-FC Calc of REG Expansion
N1: File Number: | O1: =EBNUMBER -> EB-2017-0071
N2: Exhibit: | O2: 2
N3: Tab:
N4: Schedule:
N5: Page: | O5: Page 75 or Appendix 8
N7: Date: | O7: 2018-03-29
A9: Appendix 2-FC
A10: Calculation of Renewable Generation Connection Direct Benefits/Provincial Amount: Renewable Expansion Investments
A12: This table will calculate the distributor/provincial shares of the investments entered in Part B of Appendix 2-FA.
A13: Enter values in green shaded cells: WCA percentage, debt percentages, interest rates, kWh, tax rates, amortization period, CCA Class and percentage.
A14: For historical investments, enter these variables for your last cost of service test year. For 2016 and beyond, enter variables as in the application.
A15: Rate Riders are not calculated for the Test Year as these assets and costs are already in the distributor's rate base.
D18: =G18-1 -> 2014 | G18: =J18-1 -> 2015 | J18: =M18-1 -> 2016 | M18: =BridgeYear -> 2017 | P18: =CONCATENATE(TestYear," Test Year") -> 2018 Test Year | S18: =TestYear+1 -> 2019 | T18: 2016 | V18: =S18+1 -> 2020 | Y18: =V18+1 -> 2021 | AB18: =Y18+1 -> 2022
E19: Direct Benefit | F19: Provincial | H19: Direct Benefit | I19: Provincial | K19: Direct Benefit | L19: Provincial | N19: Direct Benefit | O19: Provincial | Q19: Direct Benefit | R19: Provincial | T19: Direct Benefit | U19: Provincial | W19: Direct Benefit | X19: Provincial | Z19: Direct Benefit | AA19: Provincial | AC19: Direct Benefit | AD19: Provincial
D20: Total | E20: 0.17 | F20: 0.83 | G20: Total | H20: 0.17 | I20: 0.83 | J20: Total | K20: 0.17 | L20: 0.83 | M20: Total | N20: 0.17 | O20: 0.83 | P20: Total | Q20: 0.17 | R20: 0.83 | S20: Total | T20: 0.17 | U20: 0.83 | V20: Total | W20: 0.17 | X20: 0.83 | Y20: Total | Z20: 0.17 | AA20: 0.83 | AB20: Total | AC20: 0.17 | AD20: 0.83
A21: Net Fixed Assets (average) | D21: =D82 -> 0 | E21: =D21*E20 -> 0 | F21: =D21*F20 -> 0 | G21: =E82 -> 0 | H21: =G21*H20 -> 0 | I21: =G21*I20 -> 0 | J21: =F82 -> 0 | K21: =J21*K20 -> 0 | L21: =J21*L20 -> 0 | M21: =G82 -> 0 | N21: =M21*N20 -> 0 | O21: =M21*O20 -> 0 | P21: =H82 -> 0 | Q21: =P21*Q20 -> 0 | R21: =P21*R20 -> 0 | S21: =I82 -> 0 | T21: =S21*T20 -> 0 | U21: =S21*U20 -> 0 | V21: =J82 -> 0 | W21: =V21*W20 -> 0 | X21: =V21*X20 -> 0 | Y21: =K82 -> 0 | Z21: =Y21*Z20 -> 0 | AA21: =Y21*AA20 -> 0 | AB21: =L82 -> 0 | AC21: =AB21*AC20 -> 0 | AD21: =AB21*AD20 -> 0
A22: Incremental OM&A (on-going, N/A for Provincial Recovery) | D22: ='App.2-FA Proposed REG Invest.'!C101 -> 0 | E22: =D22 -> 0 | G22: ='App.2-FA Proposed REG Invest.'!D$101 -> 0 | H22: =G22 -> 0 | J22: ='App.2-FA Proposed REG Invest.'!E$101 -> 0 | K22: =J22 -> 0 | M22: ='App.2-FA Proposed REG Invest.'!F$101 -> 0 | N22: =M22 -> 0 | P22: ='App.2-FA Proposed REG Invest.'!G$101 -> 0 | Q22: =P22 -> 0 | S22: ='App.2-FA Proposed REG Invest.'!H$101 -> 0 | T22: =S22 -> 0 | V22: ='App.2-FA Proposed REG Invest.'!I$101 -> 0 | W22: =V22 -> 0 | Y22: ='App.2-FA Proposed REG Invest.'!J$101 -> 0 | Z22: =Y22 -> 0 | AB22: ='App.2-FA Proposed REG Invest.'!K$101 -> 0 | AC22: =AB22 -> 0
A23: Incremental OM&A (start-up, applicable for Provincial Recovery) | D23: ='App.2-FA Proposed REG Invest.'!C100 -> 0 | E23: =D23*E20 -> 0 | F23: =D23*F20 -> 0 | G23: ='App.2-FA Proposed REG Invest.'!D$100 -> 0 | H23: =G23*H20 -> 0 | I23: =G23*I20 -> 0 | J23: ='App.2-FA Proposed REG Invest.'!E$100 -> 0 | K23: =J23*K20 -> 0 | L23: =J23*L20 -> 0 | M23: ='App.2-FA Proposed REG Invest.'!F$100 -> 0 | N23: =M23*N20 -> 0 | O23: =M23*O20 -> 0 | P23: ='App.2-FA Proposed REG Invest.'!G$100 -> 0 | Q23: =P23*Q20 -> 0 | R23: =P23*R20 -> 0 | S23: ='App.2-FA Proposed REG Invest.'!H$100 -> 0 | T23: =S23*T20 -> 0 | U23: =S23*U20 -> 0 | V23: ='App.2-FA Proposed REG Invest.'!I$100 -> 0 | W23: =V23*W20 -> 0 | X23: =V23*X20 -> 0 | Y23: ='App.2-FA Proposed REG Invest.'!J$100 -> 0 | Z23: =Y23*Z20 -> 0 | AA23: =Y23*AA20 -> 0 | AB23: ='App.2-FA Proposed REG Invest.'!K$100 -> 0 | AC23: =AB23*AC20 -> 0 | AD23: =AB23*AD20 -> 0
A24: WCA | B24: 0.075 | E24: =(E22+E23)*$B$24 -> 0 | F24: =F23*$B$24 -> 0 | H24: =(H22+H23)*$B$24 -> 0 | I24: =I23*$B$24 -> 0 | K24: =(K22+K23)*$B$24 -> 0 | L24: =L23*$B$24 -> 0 | N24: =(N22+N23)*$B$24 -> 0 | O24: =O23*$B$24 -> 0 | Q24: =(Q22+Q23)*$B$24 -> 0 | R24: =R23*$B$24 -> 0 | T24: =(T22+T23)*$B$24 -> 0 | U24: =U23*$B$24 -> 0 | W24: =(W22+W23)*$B$24 -> 0 | X24: =X23*$B$24 -> 0 | Z24: =(Z22+Z23)*$B$24 -> 0 | AA24: =AA23*$B$24 -> 0 | AC24: =(AC22+AC23)*$B$24 -> 0 | AD24: =AD23*$B$24 -> 0
A25: Rate Base | E25: =SUM(E21+E24) -> 0 | F25: =SUM(F21+F24) -> 0 | H25: =SUM(H21+H24) -> 0 | I25: =SUM(I21+I24) -> 0 | K25: =SUM(K21+K24) -> 0 | L25: =SUM(L21+L24) -> 0 | N25: =SUM(N21+N24) -> 0 | O25: =SUM(O21+O24) -> 0 | Q25: =SUM(Q21+Q24) -> 0 | R25: =SUM(R21+R24) -> 0 | T25: =SUM(T21+T24) -> 0 | U25: =SUM(U21+U24) -> 0 | W25: =SUM(W21+W24) -> 0 | X25: =SUM(X21+X24) -> 0 | Z25: =SUM(Z21+Z24) -> 0 | AA25: =SUM(AA21+AA24) -> 0 | AC25: =SUM(AC21+AC24) -> 0 | AD25: =SUM(AD21+AD24) -> 0
A28: Deemed ST Debt | B28: 0.04 | E28: =E25*$B$28 -> 0 | F28: =F25*$B$28 -> 0 | H28: =H25*$B$28 -> 0 | I28: =I25*$B$28 -> 0 | K28: =K25*$B$28 -> 0 | L28: =L25*$B$28 -> 0 | N28: =N25*$B$28 -> 0 | O28: =O25*$B$28 -> 0 | Q28: =Q25*$B$28 -> 0 | R28: =R25*$B$28 -> 0 | T28: =T25*$B$28 -> 0 | U28: =U25*$B$28 -> 0 | W28: =W25*$B$28 -> 0 | X28: =X25*$B$28 -> 0 | Z28: =Z25*$B$28 -> 0 | AA28: =AA25*$B$28 -> 0 | AC28: =AC25*$B$28 -> 0 | AD28: =AD25*$B$28 -> 0
A29: Deemed LT Debt | B29: 0.56 | E29: =E25*$B$29 -> 0 | F29: =F25*$B$29 -> 0 | H29: =H25*$B$29 -> 0 | I29: =I25*$B$29 -> 0 | K29: =K25*$B$29 -> 0 | L29: =L25*$B$29 -> 0 | N29: =N25*$B$29 -> 0 | O29: =O25*$B$29 -> 0 | Q29: =Q25*$B$29 -> 0 | R29: =R25*$B$29 -> 0 | T29: =T25*$B$29 -> 0 | U29: =U25*$B$29 -> 0 | W29: =W25*$B$29 -> 0 | X29: =X25*$B$29 -> 0 | Z29: =Z25*$B$29 -> 0 | AA29: =AA25*$B$29 -> 0 | AC29: =AC25*$B$29 -> 0 | AD29: =AD25*$B$29 -> 0
A30: Deemed Equity | B30: 0.4 | E30: =E25*$B$30 -> 0 | F30: =F25*$B$30 -> 0 | H30: =H25*$B$30 -> 0 | I30: =I25*$B$30 -> 0 | K30: =K25*$B$30 -> 0 | L30: =L25*$B$30 -> 0 | N30: =N25*$B$30 -> 0 | O30: =O25*$B$30 -> 0 | Q30: =Q25*$B$30 -> 0 | R30: =R25*$B$30 -> 0 | T30: =T25*$B$30 -> 0 | U30: =U25*$B$30 -> 0 | W30: =W25*$B$30 -> 0 | X30: =X25*$B$30 -> 0 | Z30: =Z25*$B$30 -> 0 | AA30: =AA25*$B$30 -> 0 | AC30: =AC25*$B$30 -> 0 | AD30: =AD25*$B$30 -> 0
A32: ST Interest | B32: 0.0229 | E32: =E28*$B$32 -> 0 | F32: =F28*$B$32 -> 0 | H32: =H28*$B$32 -> 0 | I32: =I28*$B$32 -> 0 | K32: =K28*$B$32 -> 0 | L32: =L28*$B$32 -> 0 | N32: =N28*$B$32 -> 0 | O32: =O28*$B$32 -> 0 | Q32: =Q28*$B$32 -> 0 | R32: =R28*$B$32 -> 0 | T32: =T28*$B$32 -> 0 | U32: =U28*$B$32 -> 0 | W32: =W28*$B$32 -> 0 | X32: =X28*$B$32 -> 0 | Z32: =Z28*$B$32 -> 0 | AA32: =AA28*$B$32 -> 0 | AC32: =AC28*$B$32 -> 0 | AD32: =AD28*$B$32 -> 0
A33: LT Interest | B33: 0.0412 | E33: =E29*$B$33 -> 0 | F33: =F29*$B$33 -> 0 | H33: =H29*$B$33 -> 0 | I33: =I29*$B$33 -> 0 | K33: =K29*$B$33 -> 0 | L33: =L29*$B$33 -> 0 | N33: =N29*$B$33 -> 0 | O33: =O29*$B$33 -> 0 | Q33: =Q29*$B$33 -> 0 | R33: =R29*$B$33 -> 0 | T33: =T29*$B$33 -> 0 | U33: =U29*$B$33 -> 0 | W33: =W29*$B$33 -> 0 | X33: =X29*$B$33 -> 0 | Z33: =Z29*$B$33 -> 0 | AA33: =AA29*$B$33 -> 0 | AC33: =AC29*$B$33 -> 0 | AD33: =AD29*$B$33 -> 0
A34: ROE | B34: 0.09 | E34: =E30*$B$34 -> 0 | F34: =F30*$B$34 -> 0 | H34: =H30*$B$34 -> 0 | I34: =I30*$B$34 -> 0 | K34: =K30*$B$34 -> 0 | L34: =L30*$B$34 -> 0 | N34: =N30*$B$34 -> 0 | O34: =O30*$B$34 -> 0 | Q34: =Q30*$B$34 -> 0 | R34: =R30*$B$34 -> 0 | T34: =T30*$B$34 -> 0 | U34: =U30*$B$34 -> 0 | W34: =W30*$B$34 -> 0 | X34: =X30*$B$34 -> 0 | Z34: =Z30*$B$34 -> 0 | AA34: =AA30*$B$34 -> 0 | AC34: =AC30*$B$34 -> 0 | AD34: =AD30*$B$34 -> 0
A35: Cost of Capital Total | E35: =SUM(E32:E34) -> 0 | F35: =SUM(F32:F34) -> 0 | H35: =SUM(H32:H34) -> 0 | I35: =SUM(I32:I34) -> 0 | K35: =SUM(K32:K34) -> 0 | L35: =SUM(L32:L34) -> 0 | N35: =SUM(N32:N34) -> 0 | O35: =SUM(O32:O34) -> 0 | Q35: =SUM(Q32:Q34) -> 0 | R35: =SUM(R32:R34) -> 0 | T35: =SUM(T32:T34) -> 0 | U35: =SUM(U32:U34) -> 0 | W35: =SUM(W32:W34) -> 0 | X35: =SUM(X32:X34) -> 0 | Z35: =SUM(Z32:Z34) -> 0 | AA35: =SUM(AA32:AA34) -> 0 | AC35: =SUM(AC32:AC34) -> 0 | AD35: =SUM(AD32:AD34) -> 0
A37: OM&A | E37: =E22+E23 -> 0 | F37: =F23 -> 0 | H37: =H22+H23 -> 0 | I37: =I23 -> 0 | K37: =K22+K23 -> 0 | L37: =L23 -> 0 | N37: =N22+N23 -> 0 | O37: =O23 -> 0 | Q37: =Q22+Q23 -> 0 | R37: =R23 -> 0 | T37: =T22+T23 -> 0 | U37: =U23 -> 0 | W37: =W22+W23 -> 0 | X37: =X23 -> 0 | Z37: =Z22+Z23 -> 0 | AA37: =AA23 -> 0 | AC37: =AC22+AC23 -> 0 | AD37: =AD23 -> 0
A38: Amortization | D38: =D78 -> 0 | E38: =D38*E$20 -> 0 | F38: =D38*F$20 -> 0 | G38: =E78 -> 0 | H38: =G38*H$20 -> 0 | I38: =G38*I$20 -> 0 | J38: =F78 -> 0 | K38: =J38*K$20 -> 0 | L38: =J38*L$20 -> 0 | M38: =G78 -> 0 | N38: =M38*N$20 -> 0 | O38: =M38*O$20 -> 0 | P38: =H76+H77 -> 0 | Q38: =P38*Q$20 -> 0 | R38: =P38*R$20 -> 0 | S38: =I76+I77 -> 0 | T38: =S38*T$20 -> 0 | U38: =S38*U$20 -> 0 | V38: =J76+J77 -> 0 | W38: =V38*W$20 -> 0 | X38: =V38*X$20 -> 0 | Y38: =K76+K77 -> 0 | Z38: =Y38*Z$20 -> 0 | AA38: =Y38*AA$20 -> 0 | AB38: =L76+L77 -> 0 | AC38: =AB38*AC$20 -> 0 | AD38: =AB38*AD$20 -> 0
A39: Grossed-up PILs | E39: =E66 -> 0 | F39: =F66 -> 0 | H39: =H66 -> 0 | I39: =I66 -> 0 | K39: =K66 -> 0 | L39: =L66 -> 0 | N39: =N66 -> 0 | O39: =O66 -> 0 | Q39: =Q66 -> 0 | R39: =R66 -> 0 | T39: =T66 -> 0 | U39: =U66 -> 0 | W39: =W66 -> 0 | X39: =X66 -> 0 | Z39: =Z66 -> 0 | AA39: =AA66 -> 0 | AC39: =AC66 -> 0 | AD39: =AD66 -> 0
A41: Revenue Requirement | E41: =SUM(E35:E39) -> 0 | F41: =SUM(F35:F39) -> 0 | H41: =SUM(H35:H39) -> 0 | I41: =SUM(I35:I39) -> 0 | K41: =SUM(K35:K39) -> 0 | L41: =SUM(L35:L39) -> 0 | N41: =SUM(N35:N39) -> 0 | O41: =SUM(O35:O39) -> 0 | Q41: =SUM(Q35:Q39) -> 0 | R41: =SUM(R35:R39) -> 0 | T41: =SUM(T35:T39) -> 0 | U41: =SUM(U35:U39) -> 0 | W41: =SUM(W35:W39) -> 0 | X41: =SUM(X35:X39) -> 0 | Z41: =SUM(Z35:Z39) -> 0 | AA41: =SUM(AA35:AA39) -> 0 | AC41: =SUM(AC35:AC39) -> 0 | AD41: =SUM(AD35:AD39) -> 0
A44: Provincial Rate Protection | F44: =F41 -> 0 | I44: =I41 -> 0 | L44: =L41 -> 0 | O44: =O41 -> 0 | R44: =R41 -> 0 | U44: =U41 -> 0 | X44: =X41 -> 0 | AA44: =AA41 -> 0 | AD44: =AD41 -> 0
A46: Monthly Amount Paid by IESO | F46: =F44/12 -> 0 | I46: =I44/12 -> 0 | L46: =L44/12 -> 0 | O46: =O44/12 -> 0 | R46: =R44/12 -> 0 | U46: =U44/12 -> 0 | X46: =X44/12 -> 0 | AA46: =AA44/12 -> 0 | AD46: =AD44/12 -> 0
A48: Note 1: The difference between the actual costs of approved eligible investments and revenue received from the IESO should be recorded in a variance account. The Board may provide
A49: regulatory accounting guidance regarding a variance account either in an individual proceeding or on a generic basis.
A50: Note 2: For the 2016 Test Year, Costs and Revenues of the Direct Benefit are to be included in the test year applicant Rate Base and Revenues.
A52: PILs Calculation
E53: =D18 -> 2014 | H53: =G18 -> 2015 | K53: =J18 -> 2016 | N53: =M18 -> 2017 | Q53: =P18 -> 2018 Test Year | T53: =S18 -> 2019 | W53: =V18 -> 2020 | Z53: =Y18 -> 2021 | AC53: =AB18 -> 2022
A54: Income Tax | E54: Direct Benefit | F54: Provincial | H54: Direct Benefit | I54: Provincial | K54: Direct Benefit | L54: Provincial | N54: Direct Benefit | O54: Provincial | Q54: Direct Benefit | R54: Provincial | T54: Direct Benefit | U54: Provincial | W54: Direct Benefit | X54: Provincial | Z54: Direct Benefit | AA54: Provincial | AC54: Direct Benefit | AD54: Provincial
V55: Total | Y55: Total | AB55: Total
A56: Net Income - ROE on Rate Base | E56: =E34 -> 0 | F56: =F34 -> 0 | H56: =H34 -> 0 | I56: =I34 -> 0 | K56: =K34 -> 0 | L56: =L34 -> 0 | N56: =N34 -> 0 | O56: =O34 -> 0 | Q56: =Q34 -> 0 | R56: =R34 -> 0 | T56: =T34 -> 0 | U56: =U34 -> 0 | W56: =W34 -> 0 | X56: =X34 -> 0 | Z56: =Z34 -> 0 | AA56: =AA34 -> 0 | AC56: =AC34 -> 0 | AD56: =AD34 -> 0
A57: Amortization (17% DB and 83% P) | E57: =E38 -> 0 | F57: =F38 -> 0 | H57: =H38 -> 0 | I57: =I38 -> 0 | K57: =K38 -> 0 | L57: =L38 -> 0 | N57: =N38 -> 0 | O57: =O38 -> 0 | Q57: =Q38 -> 0 | R57: =R38 -> 0 | T57: =T38 -> 0 | U57: =U38 -> 0 | W57: =W38 -> 0 | X57: =X38 -> 0 | Z57: =Z38 -> 0 | AA57: =AA38 -> 0 | AC57: =AC38 -> 0 | AD57: =AD38 -> 0
A58: CCA (17% DB and 83% P) | E58: =-D94*E$20 -> 0 | F58: =-D94*F$20 -> 0 | H58: =-E94*H$20 -> 0 | I58: =-E94*I$20 -> 0 | K58: =-F94*K$20 -> 0 | L58: =-F94*L$20 -> 0 | N58: =-G94*N$20 -> 0 | O58: =-G94*O$20 -> 0 | Q58: =-H94*Q$20 -> 0 | R58: =-H94*R$20 -> 0 | T58: =-I94*T$20 -> 0 | U58: =-I94*U$20 -> 0 | W58: =-J94*W$20 -> 0 | X58: =-J94*X$20 -> 0 | Z58: =-K94*Z$20 -> 0 | AA58: =-K94*AA$20 -> 0 | AC58: =-L94*AC$20 -> 0 | AD58: =-L94*AD$20 -> 0
A59: Taxable income | E59: =SUM(E56:E58) -> 0 | F59: =SUM(F56:F58) -> 0 | H59: =SUM(H56:H58) -> 0 | I59: =SUM(I56:I58) -> 0 | K59: =SUM(K56:K58) -> 0 | L59: =SUM(L56:L58) -> 0 | N59: =SUM(N56:N58) -> 0 | O59: =SUM(O56:O58) -> 0 | Q59: =SUM(Q56:Q58) -> 0 | R59: =SUM(R56:R58) -> 0 | T59: =SUM(T56:T58) -> 0 | U59: =SUM(U56:U58) -> 0 | W59: =SUM(W56:W58) -> 0 | X59: =SUM(X56:X58) -> 0 | Z59: =SUM(Z56:Z58) -> 0 | AA59: =SUM(AA56:AA58) -> 0 | AC59: =SUM(AC56:AC58) -> 0 | AD59: =SUM(AD56:AD58) -> 0
A61: Tax Rate (to be entered)
A63: Income Taxes Payable | E63: =E59*E61 -> 0 | F63: =F59*F61 -> 0 | H63: =H59*H61 -> 0 | I63: =I59*I61 -> 0 | K63: =K59*K61 -> 0 | L63: =L59*L61 -> 0 | N63: =N59*N61 -> 0 | O63: =O59*O61 -> 0 | Q63: =Q59*Q61 -> 0 | R63: =R59*R61 -> 0 | T63: =T59*T61 -> 0 | U63: =U59*U61 -> 0 | W63: =W59*W61 -> 0 | X63: =X59*X61 -> 0 | Z63: =Z59*Z61 -> 0 | AA63: =AA59*AA61 -> 0 | AC63: =AC59*AC61 -> 0 | AD63: =AD59*AD61 -> 0
A64: Gross Up
A65: Income Taxes Payable | E65: =E63/(1-E61) -> 0 | F65: =F63/(1-F61) -> 0 | H65: =H63/(1-H61) -> 0 | I65: =I63/(1-I61) -> 0 | K65: =K63/(1-K61) -> 0 | L65: =L63/(1-L61) -> 0 | N65: =N63/(1-N61) -> 0 | O65: =O63/(1-O61) -> 0 | Q65: =Q63/(1-Q61) -> 0 | R65: =R63/(1-R61) -> 0 | T65: =T63/(1-T61) -> 0 | U65: =U63/(1-U61) -> 0 | W65: =W63/(1-W61) -> 0 | X65: =X63/(1-X61) -> 0 | Z65: =Z63/(1-Z61) -> 0 | AA65: =AA63/(1-AA61) -> 0 | AC65: =AC63/(1-AC61) -> 0 | AD65: =AD63/(1-AD61) -> 0
A66: Grossed Up PILs | E66: =SUM(E65:E65) -> 0 | F66: =SUM(F65:F65) -> 0 | H66: =SUM(H65:H65) -> 0 | I66: =SUM(I65:I65) -> 0 | K66: =SUM(K65:K65) -> 0 | L66: =SUM(L65:L65) -> 0 | N66: =SUM(N65:N65) -> 0 | O66: =SUM(O65:O65) -> 0 | Q66: =SUM(Q65:Q65) -> 0 | R66: =SUM(R65:R65) -> 0 | T66: =SUM(T65:T65) -> 0 | U66: =SUM(U65:U65) -> 0 | W66: =SUM(W65:W65) -> 0 | X66: =SUM(X65:X65) -> 0 | Z66: =SUM(Z65:Z65) -> 0 | AA66: =SUM(AA65:AA65) -> 0 | AC66: =SUM(AC65:AC65) -> 0 | AD66: =SUM(AD65:AD65) -> 0
A69: Net Fixed Assets | D69: 2011 | E69: 2012 | F69: 2013 | G69: 2014 | H69: 2015 | I69: 2016 | J69: 2017 | K69: 2018 | L69: 2019
B70: Enter applicable amortization in years: | C70: 25
A71: Opening Gross Fixed Assets | E71: =D73 -> 0 | F71: 0 | G71: 0 | H71: 0 | I71: 0 | J71: 0 | K71: 0 | L71: 0
A72: Gross Capital Additions | D72: ='App.2-FA Proposed REG Invest.'!C99 -> 0 | E72: ='App.2-FA Proposed REG Invest.'!D99 -> 0 | F72: ='App.2-FA Proposed REG Invest.'!E99 -> 0 | G72: ='App.2-FA Proposed REG Invest.'!F99 -> 0 | H72: ='App.2-FA Proposed REG Invest.'!G99 -> 0 | I72: ='App.2-FA Proposed REG Invest.'!H99 -> 0 | J72: ='App.2-FA Proposed REG Invest.'!I99 -> 0 | K72: ='App.2-FA Proposed REG Invest.'!J99 -> 0 | L72: ='App.2-FA Proposed REG Invest.'!K99 -> 0
A73: Closing Gross Fixed Assets | D73: =SUM(D71:D72) -> 0 | E73: 0 | F73: 0 | G73: 0 | H73: 0 | I73: 0 | J73: 0 | K73: 0 | L73: 0
A75: Opening Accumulated Amortization | E75: =+D78 -> 0 | F75: =E78 -> 0 | G75: 0 | H75: =G78 -> 0 | I75: =H78 -> 0 | J75: =I78 -> 0 | K75: =J78 -> 0 | L75: =K78 -> 0
A76: Current Year Amortization (before additions) | E76: =IF(ISERROR(E71/$C$70), 0, E71/$C$70) -> 0 | F76: 0 | G76: 0 | H76: =H71/$C$70 -> 0 | I76: =I71/$C$70 -> 0 | J76: =J71/$C$70 -> 0 | K76: =K71/$C$70 -> 0 | L76: =L71/$C$70 -> 0
A77: Additions (half year) | D77: =D72/C70/2 -> 0 | E77: =E72/C70/2 -> 0 | F77: =F72/C70/2 -> 0 | G77: =G72/C70/2 -> 0 | H77: =H72/C70/2 -> 0 | I77: =I72/C70/2 -> 0 | J77: =J72/C70/2 -> 0 | K77: =K72/C70/2 -> 0 | L77: =L72/C70/2 -> 0
A78: Closing Accumulated Amortization | D78: =SUM(D75+D77) -> 0 | E78: =SUM(E75:E77) -> 0 | F78: 0 | G78: 0 | H78: 0 | I78: 0 | J78: 0 | K78: 0 | L78: 0
A80: Opening Net Fixed Assets | D80: =D71-D75 -> 0 | E80: =E71-E75 -> 0 | F80: =F71-F75 -> 0 | G80: =G71-G75 -> 0 | H80: =G81 -> 0 | I80: =H81 -> 0 | J80: =I81 -> 0 | K80: =J81 -> 0 | L80: =K81 -> 0
A81: Closing Net Fixed Assets | D81: =D73-D78 -> 0 | E81: 0 | F81: 0 | G81: 0 | H81: 0 | I81: 0 | J81: 0 | K81: 0 | L81: 0
A82: Average Net Fixed Assets | D82: =SUM(D80:D81)/2 -> 0 | E82: 0 | F82: 0 | G82: 0 | H82: 0 | I82: 0 | J82: 0 | K82: 0 | L82: 0
A84: UCC for PILs Calculation
D85: 2014 | E85: 2014 | F85: 2014 | G85: 2014 | H85: 2015 | I85: 2016 | J85: 2017 | K85: 2018 | L85: 2019
A87: Opening UCC | E87: =D95 -> 0 | F87: 0 | G87: 0 | H87: 0 | I87: 0 | J87: 0 | K87: 0 | L87: 0
A88: Capital Additions (from Appendix 2-FA) | D88: =D72 -> 0 | E88: 0 | F88: 0 | G88: 0 | H88: 0 | I88: 0 | J88: 0 | K88: 0 | L88: 0
A89: UCC Before Half Year Rule | D89: =SUM(D87:D88) -> 0 | E89: 0 | F89: 0 | G89: 0 | H89: 0 | I89: 0 | J89: 0 | K89: 0 | L89: 0
A90: Half Year Rule (1/2 Additions - Disposals) | D90: =D88/2 -> 0 | E90: 0 | F90: 0 | G90: 0 | H90: 0 | I90: 0 | J90: 0 | K90: 0 | L90: 0
A91: Reduced UCC | D91: =D89-D90 -> 0 | E91: 0 | F91: 0 | G91: 0 | H91: 0 | I91: 0 | J91: 0 | K91: 0 | L91: 0
A92: CCA Rate Class (to be entered) | C92: 47 | D92: =$C$92 -> 47 | E92: =$C$92 -> 47 | F92: 47 | G92: 47 | H92: 47 | I92: 47 | J92: 47 | K92: 47 | L92: 47
A93: CCA Rate (to be entered) | C93: 0.08 | D93: =$C$93 -> 0.08 | E93: =$C$93 -> 0.08 | F93: 0.08 | G93: 0.08 | H93: 0.08 | I93: 0.08 | J93: 0.08 | K93: 0.08 | L93: 0.08
A94: CCA | D94: =D91*D$93 -> 0 | E94: =E91*E$93 -> 0 | F94: =F91*F$93 -> 0 | G94: =G91*G$93 -> 0 | H94: =H91*H$93 -> 0 | I94: 0 | J94: 0 | K94: 0 | L94: 0
A95: Closing UCC | D95: =D89-D94 -> 0 | E95: 0 | F95: 0 | G95: 0 | H95: 0 | I95: 0 | J95: 0 | K95: 0 | L95: 0

Sheet App.2-G SQI
M1: File Number: | O1: =EBNUMBER -> EB-2017-0071
M2: Exhibit: | O2: 2
M3: Tab:
M4: Schedule:
M5: Page: | O5: Page 76 or Appendix 9
M7: Date: | O7: 2018-03-29
A9: Appendix 2-G
A10: Service Reliability and Quality Indicators
A11: 2012 - 2017
A13: Service Reliability
A15: Index | B15: Including outages caused by loss of supply | H15: Excluding outages caused by loss of supply | N15: Excluding Major Event Days
B16: =TestYear-6 -> 2012 | C16: =TestYear-5 -> 2013 | D16: =TestYear-4 -> 2014 | E16: =TestYear-3 -> 2015 | F16: =TestYear-2 -> 2016 | G16: 2017 | H16: =B16 -> 2012 | I16: =C16 -> 2013 | J16: =D16 -> 2014 | K16: =E16 -> 2015 | L16: =F16 -> 2016 | M16: 2017 | N16: =H16 -> 2012 | O16: 2013 | P16: 2014 | Q16: 2015 | R16: =L16 -> 2016 | S16: =M16 -> 2017
A17: SAIDI | B17: 1.65 | C17: 2.65 | D17: 1.19 | E17: 3.35 | F17: 2.53 | G17: 1.96 | H17: 1.65 | I17: 2.48 | J17: 1.19 | K17: 3.35 | L17: 2.46 | M17: 1.96 | N17: 1.65 | O17: 1.42 | P17: 1.19 | Q17: 1.37 | R17: 1.49 | S17: 1.43
A18: SAIFI | B18: 2.17 | C18: 3.53 | D18: 1.21 | E18: 1.84 | F18: 2.21 | G18: 1.61 | H18: 2.17 | I18: 2.67 | J18: 1.21 | K18: 1.84 | L18: 2.11 | M18: 1.61 | N18: 2.17 | O18: 1.78 | P18: 1.21 | Q18: 1.03 | R18: 1.41 | S18: 1.21
A20: 5 Year Historical Average
A21: SAIDI | F21: =IF(ISERROR(AVERAGE(B17:F17)), "", AVERAGE(B17:F17)) -> 2.274 | K21: =IF(ISERROR(AVERAGE(H17:L17)), "", AVERAGE(H17:L17)) -> 2.226 | P21: =IF(ISERROR(AVERAGE(N17:R17)), "", AVERAGE(N17:R17)) -> 1.424
A22: SAIFI | F22: =IF(ISERROR(AVERAGE(B18:F18)), "", AVERAGE(B18:F18)) -> 2.192 | K22: =IF(ISERROR(AVERAGE(H18:L18)), "", AVERAGE(H18:L18)) -> 2 | P22: =IF(ISERROR(AVERAGE(N18:R18)), "", AVERAGE(N18:R18)) -> 1.52
A24: SAIDI = System Average Interruption Duration Index
A25: SAIFI = System Average Interruption Frequency Index
A27: Service Quality
A29: Indicator | E29: OEB Minimum Standard | G29: =B16 -> 2012 | H29: =C16 -> 2013 | I29: =D16 -> 2014 | J29: =E16 -> 2015 | K29: =F16 -> 2016 | L29: 2017
A30: Low Voltage Connections | E30: 0.9 | G30: 0.958 | H30: 0.965 | I30: 0.93 | J30: 0.972 | K30: 0.989 | L30: 0.9667
A31: High Voltage Connections | E31: 0.9 | G31: 0.958 | H31: 1 | I31: 1 | J31: 0.983 | K31: 1 | L31: 1
A32: Appointment Scheduling | E32: 0.9 | G32: 0.985 | H32: 0.976 | I32: 0.867 | J32: 0.92 | K32: 0.985 | L32: 0.9107
A33: Appointments Met | E33: 0.9 | G33: 0.984 | H33: 0.971 | I33: 0.954 | J33: 0.974 | K33: 0.983 | L33: 0.9762
A34: Rescheduling a Missed Appointment | E34: 1 | G34: 1 | H34: 1 | I34: 0.96 | J34: 0.6 | K34: 1 | L34: 1
A35: Telephone Accessibility | E35: 0.65 | G35: 0.746 | H35: 0.809 | I35: 0.819 | J35: 0.823 | K35: 0.813 | L35: 0.7988
A36: Telephone Call Abandon Rate | E36: 0.1 | G36: 0.037 | H36: 0.021 | I36: 0.018 | J36: 0.016 | K36: 0.015 | L36: 0.0307
A37: Written Response to Enquires | E37: 0.8 | G37: 0.976 | H37: 0.985 | I37: 0.984 | J37: 0.973 | K37: 0.992 | L37: 0.9928
A38: Emergency Urban Response | E38: 0.8 | G38: 0.838 | H38: 0.956 | I38: 0.875 | J38: 0.984 | K38: 0.898 | L38: 0.8659
A39: Emergency Rural Response | E39: 0.8 | G39: 0 | H39: 0 | I39: 0 | J39: 0 | K39: 0 | L39: 0
A40: Reconnection Performance Standard | E40: 0.85 | G40: 0.977 | H40: 1 | I40: 1 | J40: 1 | K40: 1 | L40: 0.9972

Sheet App.2-H_Other_Oper_Rev
G1: File Number: | H1: =EBNUMBER -> EB-2017-0071
G2: Exhibit: | H2: 3
G3: Tab:
G4: Schedule:
G5: Page: | H5: 39
G7: Date: | H7: 2018-03-29
A9: Appendix 2-H
A10: Other Operating Revenue
A12: USoA # | B12: USoA Description | C12: =C13&" Actual"&CHAR(178) -> 2013 Actual² | D12: =D13&" Actual"&CHAR(178) -> 2014 Actual² | E12: =E13 & " Actual" & CHAR(178) -> 2015 Actual² | F12: =F13 & " Actual" & CHAR(178) -> 2016 Actual² | G12: 2017 Actual | H12: Test Year | I12: Revised Test Year
C13: =D13-1 -> 2013 | D13: =E13-1 -> 2014 | E13: =F13-1 -> 2015 | F13: =G13-1 -> 2016 | G13: =BridgeYear -> 2017 | H13: =TestYear -> 2018 | I13: =TestYear -> 2018
B14: Reporting Basis | C14: CGAAP | D14: MIFRS | E14: MIFRS | F14: MIFRS | G14: MIFRS | H14: MIFRS | I14: MIFRS
A15: 4080-2 | B15: SSS Revenue | C15: 119697 | D15: 119614 | E15: 121349 | F15: 118839 | G15: 127859 | H15: 105000 | I15: 121000
A16: 4082 | B16: Retail Services Revenue | C16: 29639 | D16: 28305 | E16: 27321 | F16: 23850 | G16: 18458 | H16: 23500 | I16: 23500
A17: 4084 | B17: STR Revenues | C17: 470 | D17: 408 | E17: 360 | F17: 275 | G17: 126 | H17: 300 | I17: 300
A18: 4210 | B18: Rent from Electric Property | C18: 2662462 | D18: 1609979 | E18: 1628387 | F18: 1731777 | G18: 1708952 | H18: 1719261 | I18: 2093714
A19: 4225 | B19: Late Payment Charges | C19: 245293 | D19: 270758 | E19: 246557 | F19: 177225 | G19: 244224 | H19: 259000 | I19: 259000
A20: 4235 | B20: Miscellaneous Service Revenues | C20: 247215 | D20: 238812 | E20: 291424 | F20: 316019 | G20: 218201 | H20: 170100 | I20: 170100
A21: 4245 | B21: Government & Other Assistance | C21: 0 | D21: ='App.2-BA_Fixed Asset Cont'!J199 -> 13072 | E21: =+'App.2-BA_Fixed Asset Cont'!J267 -> 31829 | F21: =+'App.2-BA_Fixed Asset Cont'!J335 -> 43142 | G21: =+'App.2-BA_Fixed Asset Cont'!J403 -> 62979 | H21: =+'App.2-BA_Fixed Asset Cont'!J471 -> 79297 | I21: =+H21 -> 79297
A22: 4305 | B22: Regulatory Debits | C22: 43830 | D22: 0 | E22: 0 | F22: 0 | G22: 0 | H22: 0 | I22: 0
A23: 4325 | B23: Revenues from Merchandise | C23: 213339 | D23: 83547 | E23: 80941 | F23: 229685 | G23: 111201 | H23: 80000 | I23: 100000
A24: 4330 | B24: Costs & Expenses of Merchandising | C24: -7548 | D24: -8212 | E24: -12050 | F24: -2507 | G24: -18760 | H24: -7500 | I24: -7500
A25: 4360 | B25: Loss on Disposition of Utility and Other Property | C25: -110632 | D25: 0 | E25: 0 | F25: 0 | G25: 0 | H25: 0 | I25: 0
A26: 4375 | B26: Revenues of Non-Utility Operations | C26: 1381145 | D26: 1779725 | E26: 1110897 | F26: 766822 | G26: 1822767 | H26: 1537447 | I26: 1537447
A27: 4380 | B27: Expenses of Non-Utility Operations | C27: -1381145 | D27: -1958374 | E27: -858672 | F27: -762273 | G27: -1822767 | H27: -1537447 | I27: -1537447
A28: 4390 | B28: Miscellaneous Non-Operating Income | C28: 46721 | D28: 21014 | E28: 35229 | F28: 19338 | G28: 25859 | H28: 20000 | I28: 20000
A29: 4405 | B29: Interest and Dividend Income | C29: 41984 | D29: 7555 | E29: 26460 | F29: 33313 | G29: 22622 | H29: 20000 | I29: 20000
A31: Specific Service Charges | C31: =+C20 -> 247215 | D31: =+D20 -> 238812 | E31: 291424 | F31: 316019 | G31: 218201 | H31: 170100 | I31: =+I20 -> 170100
A32: Late Payment Charges | C32: =+C19 -> 245293 | D32: =+D19 -> 270758 | E32: 246557 | F32: 177225 | G32: 244224 | H32: 259000 | I32: =+I19 -> 259000
A33: Other Operating Revenues | C33: =+C16+C17+C18+C15 -> 2812268 | D33: =+D16+D17+D18+D15 -> 1758306 | E33: 1777417 | F33: 1874741 | G33: 1855395 | H33: 1848061 | I33: =+I16+I17+I18+I15 -> 2238514
A34: Other Income or Deductions | C34: =SUM(C22:C29) -> 227694 | D34: =SUM(D22:D29) -> -74745 | E34: 382805 | F34: 284378 | G34: 140922 | H34: 112500 | I34: =SUM(I22:I29) -> 132500
A35: Total | C35: =SUM(C31:C34) -> 3532470 | D35: 2193131 | E35: 2698203 | F35: 2652363 | G35: 2458742 | H35: 2389661 | I35: =SUM(I31:I34) -> 2800114
A37: Description | C37: Account(s)
A38: Specific Service Charges: | C38: 4235
A39: Late Payment Charges: | C39: 4225
A40: Other Distribution Revenues: | C40: 4080, 4082, 4084, 4090, 4205, 4210, 4215, 4220, 4240, 4245
A41: Other Income and Expenses: | C41: 4305, 4310, 4315, 4320, 4325, 4330, 4335, 4340, 4345, 4350, 4355, 4360, 4365, 4370, 4375, 4380, 4385, 4390, 4395, 4398, 4405, 4415
A44: Note: Add all applicable accounts listed above to the table and include all relevant information.
A46: Account Breakdown Details
A48: For each "Other Operating Revenue" and "Other Income or Deductions" Account, a detailed breakdown of the account components is required. See the example below for Account 4405, Interest and Dividend Income.
A51: Account 4405 - Interest and Dividend Income
C52: =C12 -> 2013 Actual² | D52: 2014 Actual² | E52: 2015 Actual² | F52: 2016 Actual² | G52: 2017 Actual | H52: Test Year
F53: =F13 -> 2016 | G53: =G13 -> 2017 | H53: =H13 -> 2018
A54: Reporting Basis | C54: =IF(C14=0, "", C14) -> CGAAP | D54: MIFRS | E54: MIFRS | F54: MIFRS | G54: MIFRS | H54: MIFRS
A55: Short-term Investment Interest
A56: Bank Deposit Interest
A57: Miscellaneous Interest Revenue | C57: -41984 | D57: -7555 | E57: -26460 | F57: -33313 | G57: -20500 | H57: -20000
A58: etc.1
A60: Total | C60: =SUM(C55:C59) -> -41984 | D60: -7555 | E60: -26460 | F60: -33313 | G60: -20500 | H60: -20000
A63: Notes:
A64: 1 | B64: List and specify any other interest revenue.
A65: 2 | B65: In the transition year to IFRS, the applicant is to present information in both MIFRS and CGAAP. For the typical applicant that adopted IFRS on January 1, 2015, 2014 must be presented in both a CGAAP and MIFRS basis.

Sheet App_2-I LF_CDM
G1: File Number: | H1: =EBNUMBER -> EB-2017-0071
G2: Exhibit: | H2: 3
G3: Tab:
G4: Schedule:
G5: Page: | H5: Appendix 2
G7: Date: | H7: 2018-03-29
A9: Appendix 2-I
A10: Load Forecast CDM Adjustment Work Form (2018)
A12: Appendix 2-I was initially developed to help determine what would be the amount of CDM savings needed in each year to cumulatively achieve the four year 2011-2014 CDM target. This then determined the amount of kWh (and with translation, kW of demand) savings that were converted into dollar balances for the LRAMVA, and also to determine the related adjustment to the load forecast to account for OPA-reported savings. Beginning in the 2015 year, it has been adjusted because the persistence of 2011-2014 CDM programs will be an adjustment to the load forecast in addition to the estimated savings for the first year (2015) for the new 2015-2020 CDM plan.
A14: 2018 is the fourth year of the six-year (2015-2020) Conservation First program. Final results for the 2011-14 program were issued in the fall of 2015, and the program is completed, although in some instances disposition of the amounts has been deferred. For the purposes of the 2015-2020 LRAMVA, and the impact of CDM on the load forecast, CDM programs in 2014 and earlier are implicit in the historical data on which the base load forecast is developed. Only actual and forecasted impacts of 2015 to 2018 CDM programs need to be reflected in the manual load forecast adjustment and for the LRAMVA threshold amount in 2018 and carrying forward, although the full year impact of 2015 CDM programs and half-year impact of 2016 CDM programs on 2016 historical data is also assumed to be reflected in the base load forecast.
A16: The new six year (2015-2020) CDM program works in a slightly different manner to the previous 2011-2014 CDM program. Distributors will offer programs each year that, over the six years (from January 1, 2015 to December 31, 2020) will strive to achieve savings equal to the new six year CDM target with the full target in place (i.e., persisting) on December 31, 2020. In other words, distributors will be able to offer and execute programs on a basis so that, as long as savings equal to the full target are in place at the end the period, the distributor's 2015-2020 CDM target will have been met.
A18: 2015-2020 CDM Program - 2018 fourth year of the current CDM plan
A20: For the first year of the new 2015-2020 CDM plan, it is assumed that each year's program will achieve an equal amount of new CDM savings. This results in each year's program being about 1/6 (16.67%) of the cumulative 2015-2020 CDM target for kWh savings. A distributor may propose an alternative approach but would be expected to document in its application why it believes that its proposal is more reasonable. In its proposal, the distributor should ensure that the sum of the results for each year's CDM program from 2015 to 2020 add up to its 2015-2020 CDM target as established by the IESO.
A22: 6 Year (2015-2020) kWh Target:
A23: 26410000
B24: 2015 | C24: 2016 | D24: 2017 | E24: 2018 | F24: 2019 | G24: 2020 | H24: Total
A25: %
A26: 2015 CDM Programs | G26: =G34/G40 -> 0.1967944718 | H26: =H34/H40 -> 0.1967944718
A27: 2016 CDM Programs | G27: =G35/G40 -> 0.3329485044 | H27: =H35/H40 -> 0.3329485044
A28: 2017 CDM Programs | G28: =G36/$H$40 -> 0.1274650592 | H28: =H36/H40 -> 0.1274650592
A29: 2018 CDM Programs | G29: 0.1482013631 | H29: =H37/H40 -> 0.1482013631
A30: 2019 CDM Programs | G30: 0.09729530078 | H30: =H38/H40 -> 0.09729530078
A31: 2020 CDM Programs | G31: =G39/$H$40 -> 0.09729530078 | H31: =H39/H40 -> 0.09729530078
A32: Total in Year | B32: =SUM(B26:B31) -> 0 | C32: =SUM(C26:C31) -> 0 | D32: =SUM(D26:D31) -> 0 | E32: =SUM(E26:E29) -> 0 | F32: =SUM(F26:F30) -> 0 | G32: =SUM(G26:G31) -> 1 | H32: =SUM(H26:H31) -> 1
A33: kWh
A34: =A26 -> 2015 CDM Programs | B34: 5400747 | C34: 5259083 | D34: 5227909 | E34: 5222016 | F34: 5211179 | G34: 5197342 | H34: =G34 -> 5197342
A35: 2016 CDM Programs | C35: 8818120 | D35: 8793170 | E35: 8793170 | F35: 8793170 | G35: 8793170 | H35: 8793170 | K35: 2011 | L35: 2012 | M35: 2013 | N35: 2014
A36: 2017 CDM Programs | D36: 3375904 | E36: 3366352.213 | F36: 3366352.213 | G36: 3366352.213 | H36: 3366352.213 | J36: 2011 CDM Programs | K36: =50% -> 0.5 | L36: 1 | M36: 1 | N36: 1
A37: 2018 CDM Programs | E37: 3913998 | F37: 3913998 | G37: 3913998 | H37: 3913998 | J37: 2012 CDM Programs | L37: 0.5 | M37: 1 | N37: 1
A38: 2019 CDM Programs | F38: 2569568.894 | G38: 2569568.894 | H38: 2569568.894 | J38: 2013 CDM Programs | M38: 0.5 | N38: 1
A39: 2020 CDM Programs | G39: 2569568.894 | H39: 2569568.894 | J39: 2014 CDM Programs | N39: 0.5
A40: Total in Year | B40: =SUM(B34:B39) -> 5400747 | C40: =SUM(C34:C39) -> 14077203 | D40: 17396983 | E40: =SUM(E34:E37) -> 21295536.21 | F40: =SUM(F34:F38) -> 23854268.11 | G40: =SUM(G34:G39) -> 26410000 | H40: =A23 -> 26410000
G41: =IF(G40-H40<>0,"Inputs do no match 2015-20 CDM target","") -> 
A43: Note: The default formulae in the above table assume that the 2015-2020 kWh CDM target is achieved through persistence of CDM savings to the end of 2020. The distributor should enter measured CDM savings for 2015, and persistence of 2015 programs for 2016-2020 in row 34. When available, (preliminary/final) CDM savings for 2016 can be entered into row 35. The distributor can also input estimates or forecasts of the 2017 CDM programs if it believes that these are more realistic and can be supported; such information would typically be derived from the CDM plans that the distributor has filed with the IESO. Similarly, CDM savings and persistence into future years can be estimated for 2018, 2019 and 2020 CDM programs. However, the distributor will have to support its proposals for estimated or forecasted savings, particularly beyond the 2017 bridge year. The sum of persistent savings to the end of 2020, should equal the target entered into cell A23.
A45: Determination of 2018 Load Forecast Adjustment
A47: The Board determined that the "net" number should be used in its Decision and Order with respect to Centre Wellington Hydro Ltd.'s 2013 Cost of Service rates (EB-2012-0113). This approach has also been used in Settlement Agreements accepted by the Board in other 2013 and 2014 applications. The distributor should select whether the adjustment is done on a "net" or "gross" basis, but must support a proposal for the adjustment being done on a "gross" basis. Sheet 2-I defaults to the adjustment being done on a "net" basis consistent with Board policy and practice.
A49: From each of the 2006-2010 CDM Final Report, and the 2011 to 2016 CDM Final Reports, issued by the OPA/IESO for the distributor, the distributor should input the "gross" and "net" results of the cumulative CDM savings for 2018 into cells C57 to C63 and D57 to D63. The model will calculate the cumulative savings for all programs from 2006 to 2016 and determine the "net" to "gross" factor "g".
A51: Net-to-Gross Conversion
A53: Is CDM adjustment being done on a "net" or "gross" basis? | F53: net
C55: "Gross" | D55: "Net" | E55: Difference | F55: "Net-to-Gross" Conversion Factor
A56: Persistence of Historical CDM programs to 2015 | C56: kWh | D56: kWh | E56: kWh | F56: ('g')
A57: 2006-2010 CDM programs | E57: =IF(ISBLANK(D57),"",C57-D57) ->  | F57: =IF(D57="",0,D57/C57) -> 0
A58: 2011 CDM program | F58: =IF(D58="",0,D58/C58) -> 0
A59: 2012 CDM program | F59: 0
A60: 2013 CDM program | F60: 0
A61: 2014 CDM program | F61: 0
A62: 2015 CDM program | F62: 0
A63: 2016 CDM program | F63: 0
A64: 2006 to 2016 OPA CDM programs: Persistence to 2018. | C64: =SUM(C57:C63) -> 0 | D64: =SUM(D57:D63) -> 0 | E64: =C64-D64 -> 0 | F64: =IF(D64=0,0,IF(F53="net",0,E64/D64)) -> 0
A66: The default values below represent the factor used for how each year's CDM program is factored into the manual CDM adjustment. Distributors can choose alternative weights of "0", "0.5" or "1" from the drop-down menu for each cell, but must support its alternatives.
A68: These factors do not mean that CDM programs are excluded, but the assumption that impacts of previous year CDM programs are already implicitly reflected in the actual data for historical years that are used to derive the load forecast prior to any manual CDM adjustment for the 2018 test year.
A70: Weight Factor for Inclusion in CDM Adjustment to 2018 Load Forecast
B71: 2015 | C71: 2016 | D71: 2017 | E71: 2018 | F71: 2019 | G71: 2020
A72: Weight Factor for each year's CDM program impact on 2018 load forecast | B72: 0 | D72: 1 | E72: 0.5 | F72: 0 | G72: 0 | H72: Distributor can select "0", "0.5", or "1" from drop-down list
A73: Default Value selection rationale. | B73: Full year impact of 2015 CDM is assumed to be reflected in the base forecast, as the full year persistence of 2015 CDM programs is in the 2016 historical actual data. No further impact is necessary for the manual adjustment to the load forecast. | C73: Default is 0.5, but one option is for full year impact of persistence of 2016 CDM programs on 2018 load forecast, but 50% impact in base forecast (first year impact of 2016 CDM programs on 2016 actuals, which is part of the data underlying the base load forecast). | D73: Full year impact of persistence of 2017 programs on 2018 load forecast. 2017 CDM program impacts are not in the base forecast. | E73: Only 50% of 2017 CDM programs are assumed to impact the 2018 load forecast based on the "half-year" rule. | F73: 2019 and 2020 are future years beyond the 2018 test year. No impacts of CDM programs beyond the 2018 test year are factored into the test year load forecast.
A75: 2015-2020 LRAMVA and 2018 CDM adjustment to Load Forecast
A77: One manual adjustment for CDM impacts to the 2018 load forecast is made. There is a different but related threshold amount that is used for the 2018 LRAMVA amount for Account 1568.
A79: The amount used for the CDM threshold of the LRAMVA is the kWh that will be used to determine the base amount for the LRAMVA balance for 2018, for assessing performance against the six-year target.
A81: If used to determine the manual CDM adjustment for the system purchased kWh, the proposed loss factor should correspond with the proposed total loss factor calculated in Appendix 2-R .
A83: The Manual Adjustment for the 2018 Load Forecast is the amount manually subtracted from the system-wide load forecast (either based on a purchased or billed basis) derived from the base forecast from historical data. If the distributor has developed their load forecast on a system purchased basis, then the manual adjustment should be on a system purchased basis, including the adjustment for losses. If the load forecast has been developed on a billed basis, either on a system basis or on a class-specific basis, the manual adjustment should be on a billed basis, excluding losses.
A85: The distributor should determine the allocation of the savings to all customer classes in a reasonable manner (e.g. taking into account what programs and what IESO-measured impacts were directed at specific customer classes), for both the LRAMVA and for the load forecast adjustment.
B87: 2015 | C87: 2016 | D87: 2017 | E87: 2018 | F87: 2019 | G87: 2020 | H87: Total for 2018
A89: Amount used for CDM threshold for LRAMVA (2018) | D89: =E36 -> 3366352.213 | E89: =E37 -> 3913998 | H89: =SUM(B89:G89) -> 7280350.213
A91: Manual Adjustment for 2018 Load Forecast (billed basis) | B91: =B89*(1+F64)*B72 -> 0 | C91: =C89*(1+F64)*C72 -> 0 | D91: =D89*(1+F64)*D72 -> 3366352.213 | E91: =E89*(1+G64)*E72 -> 1956999 | H91: =SUM(B91:G91) -> 5323351.213
A92: Manual Adjustment for 2018 LDC-only CDM programs (billed basis)
A93: Total Manual Forecast to Load Forecast | B93: =B91+B92 -> 0 | C93: 0 | D93: 3366352.213 | E93: 1956999 | H93: =SUM(B93:G93) -> 5323351.213
A95: Proposed Loss Factor (TLF) | B95: 0.0481 | C95: Format: X.XX%
A96: Manual Adjustment for 2018 Load Forecast (system purchased basis) | B96: =B93*(1+$B95) -> 0 | C96: 0 | D96: 3528273.754 | E96: 2051130.652 | H96: =SUM(B96:G96) -> 5579404.406
A98: Manual adjustment uses "gross" versus "net" (i.e. numbers multiplied by (1 + g). The Weight factor is also used to calculate the impact of each year's program on the CDM adjustment to the 2018 load forecast.

Sheet App.2-IA_Load_Forecast_Instrct
Q1: File Number: | R1: =EBNUMBER -> EB-2017-0071
Q2: Exhibit: | R2: 3
Q3: Tab:
Q4: Schedule:
Q5: Page: | R5: 29
Q7: Date: | R7: 2018-03-29
B9: Appendix 2-IA
B10: Instructions on Customer, Connections, Load Forecast and Revenues Data and Analysis
B12: This sheet requires no inputs, but serves as a summary of the hiostorical and forecasted data to be provided with respect to:
B14: 1) | C14: Customers and connections
B15: 2) | C15: Consumption (kWh)
B16: 3) | C16: Demand (kW or kCA) for applicable demand-billed customer classes
B17: 4) | C17: Revenues
B19: The spreadsheet summarizes the data provided and the analyses (variance or year-over-year) that are required. Data are required to be provided on a customer class level. Consumption (kWh) must also be provided on a total distribution system level.
B21: Appendix 2-IB (formerly 2-IA) is the appendix spreadsheet that the distributor populates, and the spreadsheet is laid out for inputting the necessary data. The spreadsheet also calculates necessary statistics such as average consumption per customer/connection per year, and variances and % annual changes, as necessary.
B23: The distributor is required to provide suitable documentation in Exhibit 3 of its Application, in accordance with section 2.3.2 of Chaoter 2 of the Filing Requirements. This would include explanations for material variations or of trends in the data.
B25: The distributor is also required to input its test year customer/connection and load forecast in Sheet 10 - Load Forecast of the Revenue Requirement Work Form. This sheet should also be updated to reflect changes in the load forecast made through the stages of processing of the rates application.
B27: The applicant must demonstrate the historical accuracy of its load forecast approach for at least the past 5 years. Such analysis will cover both customer/connections and consumption (kWh) and demand (kW or kVA) by providing the following, as shown in the following table:
D29: Calendar Year | F29: Customers / Connections | I29: Consumption (kWh) (3) | M29: Demand (kW or kVA) | Q29: Revenues
D30: ="(for "&TestYear&" Cost of Service)" -> (for 2018 Cost of Service) | I30: Weather-actual | J30: Weather-normalized | M30: Weather-actual | N30: Weather-normalized | Q30: Weather-actual | R30: Weather-normalized
C31: Historical | D31: =D32-1 -> 2012 | F31: Actual | I31: Actual | J31: Actual (1) | M31: Actual | N31: Actual (1) | Q31: Actual
C32: Historical | D32: 2013 | F32: Actual | G32: Board-approved (2) | I32: Actual | J32: Actual (1) | K32: Board-approved (2) | M32: Actual | N32: Actual (1) | O32: Board-approved (2) | Q32: Actual
C33: Historical | D33: 2014 | F33: Actual | I33: Actual | J33: Actual (1) | M33: Actual | N33: Actual (1) | Q33: Actual
C34: Historical | D34: 2015 | F34: Actual | I34: Actual | J34: Actual (1) | M34: Actual | N34: Actual (1) | Q34: Actual
C35: Historical | D35: 2016 | F35: Actual | I35: Actual | J35: Actual (1) | M35: Actual | N35: Actual (1) | Q35: Actual
C36: Bridge Year (Forecast) | D36: 2017 | F36: Forecast | J36: Forecast | N36: Forecast | R36: Forecast
C37: Test Year (Forecast) | D37: =TestYear -> 2018 | F37: Forecast | J37: Forecast | N37: Forecast | R37: Forecast
B40: Notes:
B42: (1) | C42: “Weather-normalized actuals” are estimated by replacing the actual weather-related values (typically Heating Degree Days (HDD) and Cooling Degree Days (CDD)) by the “typical” or “weather-normalized” values. These “weather-normalized HDD and CDD values would be the same as used to estimate the Bridge Year and Test Year forecasts.
B43: (2) | C43: For 2017 Cost of Service rebasers, the typical situation is that 2013 would have been the most recent cost of service rebasing application. If the most recent rebasing application was for a rate year other than 2013, that year should be used. An applicant must provide historical information back to the greater of: a) at least five (5) historical actual years; or b) to its last cost of service application.
B44: (3) | C44: Consumption must be provided on a total distribution system basis as well as at a customer class level.
B45: (4) | C45: Revenues exclude commodity charges.

Sheet App.2-IB_Load_Forecast_Analysis
T1: File Number: | U1: =EBNUMBER -> EB-2017-0071
T2: Exhibit: | U2: 3
T3: Tab:
T4: Schedule:
T5: Page: | U5: 29
T7: Date: | U7: 2018-03-29
B9: Appendix 2-IB
B10: Customer, Connections, Load Forecast and Revenues Data and Analysis
B12: This sheet requires no inputs, but serves as a summary of the hiostorical and forecasted data to be provided with respect to:
B14: 1) | C14: Customers and connections
B15: 2) | C15: Consumption (kWh)
B16: 3) | C16: Demand (kW or kCA) for applicable demand-billed customer classes
B17: 4) | C17: Revenues
B19: The spreadsheet summarizes the data provided and the analyses (variance or year-over-year) that are required. Data are required to be provided on a customer class level. Consumption (kWh) must also be provided on a total distribution system level.
B21: Appendix 2-IB (formerly 2-IA) is the appendix spreadsheet that the distributor populates, and the spreadsheet is laid out for inputting the necessary data. The spreadsheet also calculates necessary statistics such as average consumption per customer/connection per year, and variances and % annual changes, as necessary.
B23: The distributor is required to provide suitable documentation in Exhibit 3 of its Application, in accordance with section 2.3.2 of Chaoter 2 of the Filing Requirements. This would include explanations for material variations or of trends in the data.
B25: The distributor is also required to input its test year customer/connection and load forecast in Sheet 10 - Load Forecast of the Revenue Requirement Work Form. This sheet should also be updated to reflect changes in the load forecast made through the stages of processing of the rates application.
B27: The applicant must demonstrate the historical accuracy of its load forecast approach for at least the past 5 years. Such analysis will cover both customer/connections and consumption (kWh) and demand (kW or kVA) by providing the following, as shown in the following table:
B29: This sheet is to be filled in accordance with the instructions documented in section 2.3.2 of Chapter 2 of the Filing Requirements for Distribution Rate Applications, in terms of one set of tables per customer class.
B31: Color coding for Cells: | F31: Data input | K31: Drop-down List
F33: No data entry required | K33: Blank or calculated value
B35: Distribution System (Total)
D37: Calendar Year | K37: Consumption (kWh) (3)
D38: =CONCATENATE("(for ",TestYear," Cost of Service") -> (for 2018 Cost of Service | L38: Actual (Weather actual) | M38: Weather-normalized | O38: Weather-normalized
C39: Historical | D39: =D40-1 -> 2012 | K39: Actual | L39: 676765709 | M39: =L39*1.04577 -> 707741275.5 | N39: =IF(D39=RebaseYear,"Board-approved","") -> 
C40: Historical | D40: 2013 | K40: Actual | L40: 688244167 | M40: =L40*1.01368 -> 697659347.2 | N40: Board-approved | O40: 703408249
C41: Historical | D41: 2014 | K41: Actual | L41: 701843127 | M41: =L41*0.95873 -> 672878061.1
C42: Historical | D42: 2015 | K42: Actual | L42: 669387526 | M42: =L42*0.98231 -> 657546060.7
C43: Historical | D43: 2016 | K43: Actual | L43: 636876244 | M43: =L43*1.00801 -> 641977622.7
C44: Bridge Year | D44: 2017 | K44: Actual | L44: 622542513 | M44: =+L44*1.01105 -> 629421607.8
C45: Test Year | D45: =TestYear -> 2018 | K45: Forecast | M45: 629144064
O46: =SUM(O39:O44) -> 703408249
C47: Variance Analysis | K47: Year | L47: Year-over-year | O47: Versus Board-approved
D48: =D39 -> 2012 | K48: =D48 -> 2012
D49: 2013 | K49: =D49 -> 2013 | L49: =IF(L39=0,"",L40/L39-1) -> 0.01696075591 | M49: -0.01424521735
D50: 2014 | K50: 2014 | L50: 0.01975891791 | M50: -0.03552061068
D51: 2015 | K51: 2015 | L51: -0.04624338367 | M51: -0.02278570423
D52: 2016 | K52: 2016 | L52: -0.0485687001 | M52: -0.02367657398
D53: 2017 | K53: 2017 | L53: =IF(K44="Forecast","",IF(L43=0,"",L44/L43-1)) -> -0.02250630501 | M53: =IF(M43=0,"",M44/M43-1) -> -0.0195583374
D54: 2018 | K54: 2018 | L54: =IF(K45="Forecast","",IF(L44=0,"",L45/L44-1)) ->  | M54: =IF(M44=0,"",M45/M44-1) -> -0.0004409504936 | O54: =IF(O46=0,"",M45/O46-1) -> -0.105577643
D55: Geometric Mean | K55: Geometric Mean | L55: =IF(L39=0,"",(L43/L39)^(1/($D43-$D39-1))-1) -> -0.02004627497 | M55: =IF(M39=0,"",(M45/M39)^(1/($D45-$D39-1))-1) -> -0.02326867617 | O55: =IF(O46=0,"",(M45/O46)^(1/(TestYear-RebaseYear-1))-1) -> -0.02750884152
B57: Customer Class Analysis (one for each Customer Class, excluding MicroFIT and Standby)
B59: 1 | C59: Customer Class: | D59: Residential | H59: Is the customer class billed on consumption (kWh) or demand (kW or kVA)? | N59: kWh
D61: Calendar Year | F61: Customers | K61: Consumption (kWh) (3) | Q61: =CONCATENATE("Consumption (kWh) per ",LEFT(F61,LEN(F61)-1)) -> Consumption (kWh) per Customer
D62: =CONCATENATE("(for ",TestYear," Cost of Service") -> (for 2018 Cost of Service | L62: Actual (Weather actual) | M62: Weather-normalized | O62: Weather-normalized | R62: =L62 -> Actual (Weather actual) | S62: =M62 -> Weather-normalized | U62: =O62 -> Weather-normalized
C63: Historical | D63: =D64-1 -> 2012 | F63: =K39 -> Actual | G63: 29327 | H63: =IF(D63=RebaseYear,"Board-approved","") ->  | K63: =F63 -> Actual | L63: 316127645 | M63: =L63*1.04577 -> 330596807.3 | N63: =H63 ->  | Q63: =K63 -> Actual | R63: =IF(G63=0,"",L63/G63) -> 10779.40618 | S63: =IF(G63=0,"",M63/G63) -> 11272.7796 | T63: =N63 ->  | U63: =IF(T63="","",IF(I63=0,"",O63/I63)) -> 
C64: Historical | D64: 2013 | F64: =K40 -> Actual | G64: 29504 | H64: Board-approved | I64: 29271 | K64: =F64 -> Actual | L64: 324185392 | M64: =L64*1.01368 -> 328620248.2 | N64: =H64 -> Board-approved | O64: 3430561449 | Q64: =K64 -> Actual | R64: =IF(G64=0,"",L64/G64) -> 10987.84544 | S64: =IF(G64=0,"",M64/G64) -> 11138.15917 | T64: =N64 -> Board-approved | U64: =IF(T64="","",IF(I64=0,"",O64/I64)) -> 117200.0085
C65: Historical | D65: 2014 | F65: Actual | G65: 29514 | K65: Actual | L65: 334950383 | M65: =L65*0.95873 -> 321126980.7 | Q65: Actual | R65: 11348.86437 | S65: 10880.49674
C66: Historical | D66: 2015 | F66: Actual | G66: 29566 | K66: Actual | L66: 310458240 | M66: =L66*0.98231 -> 304966233.7 | Q66: Actual | R66: 10500.51546 | S66: 10314.76134
C67: Historical | D67: 2016 | F67: Actual | G67: 29620 | K67: Actual | L67: 288746486 | M67: =L67*1.00801 -> 291059345.4 | Q67: Actual | R67: 9748.36212 | S67: 9826.446501
C68: Bridge Year | D68: 2017 | F68: Actual | G68: 29729 | K68: Actual | L68: 282820547 | M68: =+L68*1.01105 -> 285945714 | Q68: Actual | R68: 9513.288271 | S68: 9618.410106
C69: Test Year | D69: =TestYear -> 2018 | F69: Forecast | G69: 29816 | K69: Forecast | M69: 287663507 | Q69: Forecast | R69: 0 | S69: 9647.957707
I70: =SUM(I63:I68) -> 29271 | O70: =SUM(O63:O68) -> 3430561449 | U70: =SUM(U63:U68) -> 117200.0085
C71: Variance Analysis | D71: Year | G71: Year-over-year | I71: Test Year Versus Board-approved | K71: Year | L71: Year-over-year | O71: =I71 -> Test Year Versus Board-approved | Q71: Year | R71: Year-over-year | U71: =O71 -> Test Year Versus Board-approved
D72: =D63 -> 2012 | K72: =D72 -> 2012 | Q72: =K72 -> 2012
D73: 2013 | G73: =IF(G63=0,"",G64/G63-1) -> 0.006035394006 | K73: =D73 -> 2013 | L73: =IF(L63=0,"",L64/L63-1) -> 0.02548890338 | M73: -0.005978760549 | Q73: =K73 -> 2013 | R73: =IF(R63="","",IF(R63=0,"",R64/R63-1)) -> 0.01933680415 | S73: =IF(S63="","",IF(S63=0,"",S64/S63-1)) -> -0.0119420794
D74: 2014 | G74: 0.0003389370933 | K74: 2014 | L74: 0.03320628031 | M74: -0.02280220866 | Q74: 2014 | R74: =IF(R64="","",IF(R64=0,"",R65/R64-1)) -> 0.03285620703 | S74: -0.02313330502
D75: 2015 | G75: 0.00176187572 | K75: 2015 | L75: -0.07312170472 | M75: -0.05032509858 | Q75: 2015 | R75: -0.07475187692 | S75: -0.05199536493
D76: 2016 | G76: 0.001826422242 | K76: 2016 | L76: -0.06993453934 | M76: -0.04560140384 | Q76: 2016 | R76: -0.07163013471 | S76: -0.04734136077
D77: 2017 | G77: 0.003679945982 | K77: 2017 | L77: =IF(K68="Forecast","",IF(L67=0,"",L68/L67-1)) -> -0.02052298223 | M77: =IF(M67=0,"",M68/M67-1) -> -0.01756903322 | Q77: 2017 | R77: =IF(Q68="Forecast","",IF(R67=0,"",R68/R67-1)) -> -0.02411418929 | S77: =IF(S67="","",IF(S67=0,"",S68/S67-1)) -> -0.02117107081
D78: 2018 | G78: 0.002926435467 | I78: =IF(I70=0,"",G69/I70-1) -> 0.01861911107 | K78: 2018 | L78: =IF(K69="Forecast","",IF(L68=0,"",L69/L68-1)) ->  | M78: =IF(M68=0,"",M69/M68-1) -> 0.006007409348 | O78: =IF(O70=0,"",M69/O70-1) -> -0.9161468141 | Q78: 2018 | R78: =IF(Q69="Forecast","",IF(R68=0,"",R69/R68-1)) ->  | S78: 0.003071983919 | U78: =IF(U70=0,"",S69/U70-1) -> -0.9176795477
D79: Geometric Mean | G79: =IF(G63=0,"",(G69/G63)^(1/($D69-$D63-1))-1) -> 0.00331278895 | I79: =IF(I70=0,"",(G69/I70)^(1/(TestYear-RebaseYear-1))-1) -> 0.004622625868 | K79: Geometric Mean | L79: =IF(L63=0,"",(L67/L63)^(1/($D67-$D63-1))-1) -> -0.02974755938 | M79: =IF(M63=0,"",(M69/M63)^(1/($D69-$D63-1))-1) -> -0.02743816494 | O79: =IF(O70=0,"",(M69/O70)^(1/(TestYear-RebaseYear-1))-1) -> -0.4618790602 | Q79: Geometric Mean | R79: =IF(R63="","",IF(R63=0,"",(R67/R63)^(1/($D67-$D63-1))-1)) -> -0.032957401 | S79: =IF(S63="","",IF(S63=0,"",(S69/S63)^(1/($D69-$D63-1))-1)) -> -0.03064941883 | U79: =IF(U70=0,"",(S69/U70)^(1/(TestYear-RebaseYear-1))-1) -> -0.464355146
D82: Calendar Year | F82: Revenues | K82: =IF(ISBLANK(N59),"",CONCATENATE("Demand (",N59,")")) -> Demand (kWh) | Q82: =CONCATENATE("Demand (",N59,") per ",LEFT(F61,LEN(F61)-1)) -> Demand (kWh) per Customer
D83: =CONCATENATE("(for ",TestYear," Cost of Service") -> (for 2018 Cost of Service | L83: Actual (Weather actual) | M83: Weather-normalized | O83: =M83 -> Weather-normalized | R83: =L83 -> Actual (Weather actual) | S83: =M83 -> Weather-normalized | U83: =O83 -> Weather-normalized
C84: Historical | D84: =D85-1 -> 2012 | F84: =F63 -> Actual | G84: 7893410.62 | H84: =IF(D84=RebaseYear,"Board-approved","") ->  | K84: =K63 -> Actual | N84: =N63 ->  | Q84: =K84 -> Actual | R84: =IF(G84=0,"",L84/G84) -> 0 | S84: =IF(G84=0,"",M84/G84) -> 0 | T84: =N84 ->  | U84: =IF(T84="","",IF(I84=0,"",O84/I84)) -> 
C85: Historical | D85: 2013 | F85: Actual | G85: 8383231 | H85: Board-approved | I85: 9069512 | K85: Actual | N85: Board-approved | Q85: =K85 -> Actual | R85: =IF(G85=0,"",L85/G85) -> 0 | S85: =IF(G85=0,"",M85/G85) -> 0 | T85: =N85 -> Board-approved | U85: =IF(T85="","",IF(I85=0,"",O85/I85)) -> 0
C86: Historical | D86: 2014 | F86: Actual | G86: 9058873 | K86: Actual | Q86: Actual | R86: 0 | S86: 0
C87: Historical | D87: 2015 | F87: Actual | G87: 8805836 | K87: Actual | Q87: Actual | R87: 0 | S87: 0
C88: Historical | D88: 2016 | F88: Actual | G88: 8499404 | K88: Actual | Q88: Actual | R88: 0 | S88: 0
C89: Bridge Year (Forecast) | D89: 2017 | F89: Actual | G89: 9399841 | K89: Actual | Q89: Actual | R89: 0 | S89: 0
C90: Test Year (Forecast) | D90: =TestYear -> 2018 | F90: Forecast | G90: 11487469 | K90: Forecast | Q90: Forecast | R90: 0 | S90: 0
I91: =SUM(I84:I89) -> 9069512 | O91: =SUM(O84:O89) -> 0 | U91: =SUM(U84:U89) -> 0
C92: Variance Analysis | D92: Year | G92: Year-over-year | I92: =I71 -> Test Year Versus Board-approved | K92: Year | L92: Year-over-year | O92: =I92 -> Test Year Versus Board-approved | Q92: Year | R92: Year-over-year | U92: =O92 -> Test Year Versus Board-approved
D93: =D84 -> 2012 | K93: =D93 -> 2012 | Q93: =K93 -> 2012
D94: =D85 -> 2013 | G94: =IF(G84=0,"",G85/G84-1) -> 0.06205433919 | K94: =D94 -> 2013 | L94: =IF(L84=0,"",L85/L84-1) ->  | M94: =IF(M84=0,"",M85/M84-1) ->  | Q94: =K94 -> 2013 | R94: =IF(R84="","",IF(R84=0,"",R85/R84-1)) ->  | S94: =IF(S84="","",IF(S84=0,"",S85/S84-1)) -> 
D95: =D86 -> 2014 | G95: =IF(G85=0,"",G86/G85-1) -> 0.08059446292 | K95: 2014 | L95: =IF(L85=0,"",L86/L85-1) ->  | Q95: 2014 | R95: =IF(R85="","",IF(R85=0,"",R86/R85-1)) -> 
D96: 2015 | G96: -0.0279325033 | K96: 2015 | L96: =IF(L86=0,"",L87/L86-1) ->  | Q96: 2015
D97: 2016 | G97: -0.03479874029 | K97: 2016 | L97: =IF(L87=0,"",L88/L87-1) ->  | Q97: 2016
D98: 2017 | G98: 0.1059411931 | K98: 2017 | L98: =IF(K89="Forecast","",IF(L88=0,"",L89/L88-1)) ->  | M98: =IF(M88=0,"",M89/M88-1) ->  | Q98: 2017 | R98: =IF(Q89="Forecast","",IF(R88=0,"",R89/R88-1)) ->  | S98: =IF(S88="","",IF(S88=0,"",S89/S88-1)) -> 
D99: 2018 | G99: 0.2220918418 | I99: =IF(I91=0,"",G90/I91-1) -> 0.2666027676 | K99: 2018 | L99: =IF(K90="Forecast","",IF(L89=0,"",L90/L89-1)) ->  | M99: =IF(M89=0,"",M90/M89-1) ->  | O99: =IF(O91=0,"",M90/O91-1) ->  | Q99: 2018 | R99: =IF(Q90="Forecast","",IF(R89=0,"",R90/R89-1)) ->  | U99: =IF(U91=0,"",S90/U91-1) -> 
D100: Geometric Mean | G100: =IF(G84=0,"",(G90/G84)^(1/($D90-$D84-1))-1) -> 0.07793340623 | I100: =IF(I91=0,"",(G90/I91)^(1/(TestYear-RebaseYear-1))-1) -> 0.0608649676 | K100: Geometric Mean | L100: =IF(L84=0,"",(L88/L84)^(1/($D88-$D84-1))-1) ->  | M100: =IF(M84=0,"",(M90/M84)^(1/($D90-$D84-1))-1) ->  | O100: =IF(O91=0,"",(M90/O91)^(1/(TestYear-RebaseYear-1))-1) ->  | Q100: Geometric Mean | R100: =IF(R84="","",IF(R84=0,"",(R88/R84)^(1/($D88-$D84-1))-1)) ->  | S100: =IF(S84="","",IF(S84=0,"",(S90/S84)^(1/($D90-$D84-1))-1)) ->  | U100: =IF(U91=0,"",(S90/U91)^(1/(TestYear-RebaseYear-1))-1) -> 
B102: 2 | C102: Customer Class: | D102: GS < 50 kW | H102: Is the customer class billed on consumption (kWh) or demand (kW or kVA)? | N102: kWh
D104: Calendar Year | F104: Customers | K104: Consumption (kWh) (3) | Q104: =CONCATENATE("Consumption (kWh) per ",LEFT(F104,LEN(F104)-1)) -> Consumption (kWh) per Customer
D105: =CONCATENATE("(for ",TestYear," Cost of Service") -> (for 2018 Cost of Service | L105: Actual (Weather actual) | M105: Weather-normalized | O105: Weather-normalized | R105: =L105 -> Actual (Weather actual) | S105: =M105 -> Weather-normalized | U105: =O105 -> Weather-normalized
C106: Historical | D106: =D107-1 -> 2012 | F106: =F63 -> Actual | G106: 3448 | H106: =IF(D106=RebaseYear,"Board-approved","") ->  | K106: =F106 -> Actual | L106: 97479014 | M106: =L106*1.04577 -> 101940628.5 | N106: =H106 ->  | Q106: =K106 -> Actual | R106: =IF(G106=0,"",L106/G106) -> 28271.17575 | S106: =IF(G106=0,"",M106/G106) -> 29565.14747 | T106: =N106 ->  | U106: =IF(T106="","",IF(I106=0,"",O106/I106)) -> 
C107: Historical | D107: 2013 | F107: =F64 -> Actual | G107: 3474 | H107: Board-approved | I107: 3401 | K107: =F107 -> Actual | L107: 95827695 | M107: =L107*1.01368 -> 97138617.87 | N107: =H107 -> Board-approved | O107: 102179766 | Q107: =K107 -> Actual | R107: =IF(G107=0,"",L107/G107) -> 27584.25302 | S107: =IF(G107=0,"",M107/G107) -> 27961.6056 | T107: =N107 -> Board-approved | U107: =IF(T107="","",IF(I107=0,"",O107/I107)) -> 30044.03587
C108: Historical | D108: 2014 | F108: Actual | G108: 3464 | K108: Actual | L108: 99153426 | M108: =L108*0.95873 -> 95061364.11 | Q108: Actual | R108: 28623.96824 | S108: 27442.65708
C109: Historical | D109: 2015 | F109: Actual | G109: 3431 | K109: Actual | L109: 95701162 | M109: =L109*0.98231 -> 94008208.44 | Q109: Actual | R109: 27893.08132 | S109: 27399.65271
C110: Historical | D110: 2016 | F110: Actual | G110: 3414 | K110: Actual | L110: 92174996 | M110: =L110*1.00801 -> 92913317.72 | Q110: Actual | R110: 26999.12009 | S110: 27215.38305
C111: Bridge Year | D111: 2017 | F111: Actual | G111: 3417 | K111: Actual | L111: 91035995 | M111: =+L111*1.01105 -> 92041942.74 | Q111: Actual | R111: 26642.08224 | S111: 26936.47724
C112: Test Year | D112: =TestYear -> 2018 | F112: Forecast | G112: 3431 | K112: Forecast | M112: 92683979 | Q112: Forecast | R112: 0 | S112: 27013.69251
I113: =SUM(I106:I111) -> 3401 | O113: =SUM(O106:O111) -> 102179766 | U113: =SUM(U106:U111) -> 30044.03587
C114: Variance Analysis | D114: Year | G114: Year-over-year | I114: Test Year Versus Board-approved | K114: Year | L114: Year-over-year | O114: =I114 -> Test Year Versus Board-approved | Q114: Year | R114: Year-over-year | U114: =O114 -> Test Year Versus Board-approved
D115: =D106 -> 2012 | K115: =D115 -> 2012 | Q115: =K115 -> 2012
